Workbook

Sheet Xl0ader (hidden)
A1: addins | D1: 2008-12-09T15:56:38 | R1: 1 | S1: 6 | T1: C | W1: =SECOND(NOW()) -> 55 | Y1: =IF(AC2=0,NOW(),MIN(AA:AA)) -> 2020-01-10T23:40:46 | Z1: =NOW() -> 2020-01-11T11:40:54.600 | AA1: 2020-01-10T23:40:46 | AC1: =MIN(AB:AB) -> 0 | AD1: Last day | AE1: 44196 | AG1: 1 | AH1: 2 | AI1: 3 | AJ1: 4 | AK1: 6 | AL1: 7 | AM1: 8 | AN1: 9 | AO1: 11 | AP1: 12 | AQ1: 13 | AR1: 14 | AS1: 16 | AT1: 17 | AU1: 18 | AV1: 19 | AW1: 21 | AX1: 22 | BB1: 1 | BC1: =S33 -> 6 | BD1: C | BE1: 1 | BF1: protf | BG1: Protect all formulae | BH1: TRUE | BK1: Sheet Name | BL1: XLSafe | BM1: XLKey Generator | BN1: EULA | BO1: READ ME | BP1: USER 1 | BQ1: DSDM EXPORT | BR1: MASTER DASHBOARD | BS1: DASHBOARD | BT1: REBOUND | BU1: SPRINGLINK REBOUND | BV1: COMPRESSION | BW1: SPRINGLINK COMPRESSION | BX1: LEFT STEER | BY1: RIGHT STEER | BZ1: RESULTS | CA1: REF1 | CB1: REF2 | CC1: REF3 | CD1: REF4 | CE1: TEMPLATES
D2: =NOW() -> 2020-01-11T11:40:54.600 | R2: 2 | S2: 3 | T2: P | W2: =MINUTE(NOW()) -> 40 | Y2: =MAX(AA:AA) -> 2020-01-10T23:40:46 | AC2: =COUNT(AA1:AA36) -> 1 | AE2: =IF(ISBLANK(AE1),100,(YEAR(AE1)-YEAR(Z1))*360+(MONTH(AE1)-MONTH(Z1))*30+(DAY(AE1)-DAY(Z1))) -> 350.0 | AG2: =VALUE(MID($AZ$2,AG1,1)) -> 5 | AH2: =VALUE(MID($AZ$2,AH1,1)) -> 6 | AI2: =MID($AZ$2,AI1,1) -> U | AJ2: =VALUE(MID($AZ$2,AJ1,1)) -> 9 | AK2: =VALUE(MID($AZ$2,AK1,1)) -> 2 | AL2: =MID($AZ$2,AL1,1) -> R | AM2: =VALUE(MID($AZ$2,AM1,1)) -> 8 | AN2: =VALUE(MID($AZ$2,AN1,1)) -> 3 | AO2: =MID($AZ$2,AO1,1) -> F | AP2: =VALUE(MID($AZ$2,AP1,1)) -> 2 | AQ2: =VALUE(MID($AZ$2,AQ1,1)) -> 0 | AR2: =MID($AZ$2,AR1,1) -> S | AS2: =VALUE(MID($AZ$2,AS1,1)) -> 2 | AT2: =VALUE(MID($AZ$2,AT1,1)) -> 5 | AU2: =MID($AZ$2,AU1,1) -> K | AV2: =MID($AZ$2,AV1,1) -> 7 | AW2: =MID($AZ$2,AW1,1) -> 1 | AX2: =MID($AZ$2,AX1,1) -> 4 | AY2: RKEY | AZ2: 56U9-2R83-F20S-25K7-1452 | BB2: 2 | BC2: 3 | BD2: P | BE2: 2 | BF2: hidef | BG2: Hide all formulae | BH2: TRUE | BJ2: s1 | BK2: Select locked cells | BL2: TRUE | BM2: TRUE | BN2: FALSE | BO2: FALSE | BP2: TRUE | BQ2: TRUE | BR2: TRUE | BS2: TRUE | BT2: TRUE | BU2: TRUE | BV2: TRUE | BW2: TRUE | BX2: TRUE | BY2: TRUE | BZ2: TRUE | CA2: TRUE | CB2: TRUE | CC2: TRUE | CD2: TRUE | CE2: TRUE
D3: =2-(D2-D1) -> -4047.822414 | R3: 3 | S3: 5 | T3: H | W3: =HOUR(NOW()) -> 11 | Y3: =(YEAR(Y2)-YEAR(Y1))*360+(MONTH(Y2)-MONTH(Y1))*30+(DAY(Y2)-DAY(Y1)) -> 0 | AE3: =IF(ISBLANK(AE1),10000,(AE1-Z1)*24) -> 8508 hours left | AG3: 2 | AH3: 3 | AI3: 7 | AJ3: 1 | AK3: 5 | AL3: 6 | AM3: 9 | AN3: 8 | AO3: 4 | AP3: 10 | AX3: 23 | BB3: 3 | BC3: 5 | BD3: H | BE3: 3 | BF3: prott | BG3: Protect text labels | BH3: TRUE | BJ3: s2 | BK3: Select unlocked cells | BL3: TRUE | BM3: TRUE | BN3: FALSE | BO3: FALSE | BP3: TRUE | BQ3: TRUE | BR3: TRUE | BS3: TRUE | BT3: TRUE | BU3: TRUE | BV3: TRUE | BW3: TRUE | BX3: TRUE | BY3: TRUE | BZ3: TRUE | CA3: TRUE | CB3: TRUE | CC3: TRUE | CD3: TRUE | CE3: TRUE
D4: =NOW() -> 2020-01-11T11:40:54.600 | R4: 4 | S4: 9 | T4: X | W4: =W1&W2&W3 -> 554011 | Y4: =IF(OR(BH11=FALSE,H36="HOST",H36="COLL"),"NOT ACTIVE",IF(OR(Z8<0,AC1<0,AE3<=0,H31=TRUE),"EXPIRED","TRIAL RUNNING")) -> NOT ACTIVE | Z4: =IF(ISBLANK(Z3),100,Z3-Y3) -> 100 days left | AG4: =AG2 -> 5 | AH4: =AH2 -> 6 | AI4: =AJ2 -> 9 | AJ4: =AK2 -> 2 | AK4: =AM2 -> 8 | AL4: =AN2 -> 3 | AM4: =AP2 -> 2 | AN4: =AQ2 -> 0 | AO4: =AS2 -> 2 | AP4: =AT2 -> 5 | AX4: =MID($AZ$2,AX3,1) -> 5 | BB4: 4 | BC4: 9 | BD4: X | BE4: 4 | BF4: protc | BG4: Protect constants | BH4: FALSE | BJ4: s3 | BK4: format cells | BL4: FALSE | BM4: FALSE | BN4: FALSE | BO4: FALSE | BP4: TRUE | BQ4: FALSE | BR4: FALSE | BS4: FALSE | BT4: FALSE | BU4: FALSE | BV4: FALSE | BW4: FALSE | BX4: FALSE | BY4: FALSE | BZ4: TRUE | CA4: TRUE | CB4: TRUE | CC4: TRUE | CD4: TRUE | CE4: FALSE
E5: Retries | F5: 3 | R5: 5 | S5: 1 | T5: Q | AG5: =AI2 -> U | AH5: =AL2 -> R | AI5: =AO2 -> F | AJ5: =AR2 -> S | AK5: =AU2 -> K | AL5: =AV2 -> 7 | AM5: =AW2 -> 1 | AN5: =AX2 -> 4 | AO5: =AX4 -> 5 | AP5: =AX6 -> 2 | AX5: 24 | BB5: 5 | BC5: 1 | BD5: Q | BE5: 5 | BF5: protb | BG5: Protect blanks | BH5: FALSE | BJ5: s4 | BK5: format columns | BL5: FALSE | BM5: FALSE | BN5: FALSE | BO5: FALSE | BP5: TRUE | BQ5: FALSE | BR5: FALSE | BS5: FALSE | BT5: FALSE | BU5: FALSE | BV5: FALSE | BW5: FALSE | BX5: FALSE | BY5: FALSE | BZ5: TRUE | CA5: TRUE | CB5: TRUE | CC5: TRUE | CD5: TRUE | CE5: FALSE
R6: 6 | S6: 2 | T6: K | Y6: Hours | AG6: 1 | AH6: 2 | AI6: 3 | AJ6: 4 | AK6: 5 | AL6: 6 | AM6: 7 | AN6: 8 | AO6: 9 | AP6: 10 | AX6: =MID($AZ$2,AX5,1) -> 2 | BB6: 6 | BC6: 2 | BD6: K | BE6: 6 | BF6: removex | BG6: Disable hardware act | BH6: TRUE | BJ6: s5 | BK6: format rows | BL6: FALSE | BM6: FALSE | BN6: FALSE | BO6: FALSE | BP6: TRUE | BQ6: FALSE | BR6: FALSE | BS6: FALSE | BT6: FALSE | BU6: FALSE | BV6: FALSE | BW6: FALSE | BX6: FALSE | BY6: FALSE | BZ6: TRUE | CA6: TRUE | CB6: TRUE | CC6: TRUE | CD6: TRUE | CE6: FALSE
R7: 7 | S7: 0 | T7: V | W7: DYNATUNE_SDM_7.1.2_BASE_DEMO_2020.xlsm | Y7: =(Z1-Y1)*24 -> 12 | Z7: =Z3*24 -> 0 | AG7: =HLOOKUP(AG6,$AG$3:$AP$4,2,FALSE) -> 2 | AH7: 5 | AI7: 6 | AJ7: 2 | AK7: 8 | AL7: 3 | AM7: 9 | AN7: 0 | AO7: 2 | AP7: 5 | BB7: 7 | BC7: 0 | BD7: V | BE7: 7 | BF7: protcha | BG7: Protect charts | BH7: FALSE | BJ7: s6 | BK7: insert columns | BL7: FALSE | BM7: FALSE | BN7: FALSE | BO7: FALSE | BP7: TRUE | BQ7: FALSE | BR7: FALSE | BS7: FALSE | BT7: FALSE | BU7: FALSE | BV7: FALSE | BW7: FALSE | BX7: FALSE | BY7: FALSE | BZ7: TRUE | CA7: TRUE | CB7: TRUE | CC7: TRUE | CD7: TRUE | CE7: FALSE
E8: 1 | F8: 2 | G8: 3 | I8: 1 | J8: 2 | R8: 8 | S8: 7 | T8: M | Z8: =IF(ISBLANK(Z3),10000,ROUND(Z7-Y7,0)) -> 10000 hours left | AG8: =VLOOKUP(AG7,$BB$1:$BD$10,2,FALSE) -> 3 | AH8: 1 | AI8: 2 | AJ8: 3 | AK8: 7 | AL8: 5 | AM8: 4 | AN8: 8 | AO8: 3 | AP8: 1 | BB8: 8 | BC8: 7 | BD8: M | BE8: 8 | BF8: protobj | BG8: Protect objects | BH8: TRUE | BJ8: s7 | BK8: insert rows | BL8: FALSE | BM8: FALSE | BN8: FALSE | BO8: FALSE | BP8: TRUE | BQ8: FALSE | BR8: FALSE | BS8: FALSE | BT8: FALSE | BU8: FALSE | BV8: FALSE | BW8: FALSE | BX8: FALSE | BY8: FALSE | BZ8: TRUE | CA8: TRUE | CB8: TRUE | CC8: TRUE | CD8: TRUE | CE8: FALSE
E9: =VALUE(MID($W$4,E$8,1)) -> 5 | F9: =VALUE(MID($W$4,F$8,1)) -> 5 | G9: =VALUE(MID($W$4,G$8,1)) -> 4 | I9: =VALUE(MID($W$4,I$8,1)) -> 5 | J9: =VALUE(MID($W$4,J$8,1)) -> 5 | R9: 9 | S9: 4 | T9: U | Z9: =IF(H36<>"CLIENT",10000,MIN(Z8,AE3)) -> 10000 hours left | AG9: =VLOOKUP(AG8,$BB$1:$BD$10,3,FALSE) -> H | AH9: =VLOOKUP(AH8,$BB$1:$BD$10,3,FALSE) -> C | AI9: =VLOOKUP(AI8,$BB$1:$BD$10,3,FALSE) -> P | AJ9: =VLOOKUP(AJ8,$BB$1:$BD$10,3,FALSE) -> H | AK9: =VLOOKUP(AK8,$BB$1:$BD$10,3,FALSE) -> V | AN9: =INDEX($BD$1:$BD$10,MATCH(VALUE(AL5),$BC1:$BC10,0)) -> M | AO9: =INDEX($BD$1:$BD$10,MATCH(VALUE(AM5),$BC1:$BC10,0)) -> Q | AP9: =INDEX($BD$1:$BD$10,MATCH(VALUE(AN5),$BC1:$BC10,0)) -> U | AQ9: =INDEX($BD$1:$BD$10,MATCH(VALUE(AO5),$BC1:$BC10,0)) -> H | AR9: =INDEX($BD$1:$BD$10,MATCH(VALUE(AP5),$BC1:$BC10,0)) -> K | BB9: 9 | BC9: 4 | BD9: U | BE9: 9 | BF9: discut | BG9: Disable cut/copy | BH9: FALSE | BJ9: s8 | BK9: insert hyperlinks | BL9: FALSE | BM9: FALSE | BN9: FALSE | BO9: FALSE | BP9: TRUE | BQ9: FALSE | BR9: FALSE | BS9: FALSE | BT9: FALSE | BU9: FALSE | BV9: FALSE | BW9: FALSE | BX9: FALSE | BY9: FALSE | BZ9: TRUE | CA9: TRUE | CB9: TRUE | CC9: TRUE | CD9: TRUE | CE9: FALSE
E10: 1 | F10: -1 | G10: 1 | I10: 0 | J10: 1 | R10: 0 | S10: 8 | T10: A | BB10: 0 | BC10: 8 | BD10: A | BE10: 10 | BF10: disprint | BG10: Disable printing | BH10: FALSE | BJ10: s9 | BK10: delete columns | BL10: FALSE | BM10: FALSE | BN10: FALSE | BO10: FALSE | BP10: TRUE | BQ10: FALSE | BR10: FALSE | BS10: FALSE | BT10: FALSE | BU10: FALSE | BV10: FALSE | BW10: FALSE | BX10: FALSE | BY10: FALSE | BZ10: TRUE | CA10: TRUE | CB10: TRUE | CC10: TRUE | CD10: TRUE | CE10: FALSE
E11: =MIN(9,MAX(0,E9+E10)) -> 6 | F11: =MIN(9,MAX(0,F9+F10)) -> 4 | G11: =MIN(9,MAX(0,G9+G10)) -> 5 | I11: =MIN(9,MAX(0,I9+I10)) -> 5 | J11: =MIN(9,MAX(0,J9+J10)) -> 6 | Z11: =IF(ISBLANK(AE1),"Time Expiration: " & ROUND(Z9/24,1) & " day(s) / "&TEXT(Z9,"0")&" hour(s) left until expiration.","Time Expiration: "& ROUND(Z9/24,1) & " day(s) / "&TEXT(Z9,"0")&" hour(s) left until expiration. - Expiry Date: "&TEXT(AE1,"dd/mm/yyyy")) -> Time Expiration: 416.7 day(s) / 10000 hour(s) left until expiration. - Expiry Date: 31/12/2020 | AG11: =AG8 -> 3 | AH11: =AH8 -> 1 | AI11: =AG9 -> H | AJ11: =AI8 -> 2 | AK11: =AJ8 -> 3 | AL11: =AH9 -> C | AM11: =AK8 -> 7 | AN11: =AL8 -> 5 | AO11: =AI9 -> P | AP11: =AM8 -> 4 | AQ11: =AN8 -> 8 | AR11: =AJ9 -> H | AS11: =AO8 -> 3 | AT11: =AP8 -> 1 | AU11: =AK9 -> V | AZ11: =AG11&AH11&AI11&AJ11&"-"&AK11&AL11&AM11&AN11&"-"&AO11&AP11&AQ11&AR11&"-"&AS11&AT11&AU11&AN9&"-"&AR9&AQ9&AO9&AP9 -> 31H2-3C75-P48H-31VM-KHQU | BE11: 11 | BF11: actime | BG11: Activate time Exp | BH11: TRUE | BJ11: s10 | BK11: delete rows | BL11: FALSE | BM11: FALSE | BN11: FALSE | BO11: FALSE | BP11: TRUE | BQ11: FALSE | BR11: FALSE | BS11: FALSE | BT11: FALSE | BU11: FALSE | BV11: FALSE | BW11: FALSE | BX11: FALSE | BY11: FALSE | BZ11: TRUE | CA11: TRUE | CB11: TRUE | CC11: TRUE | CD11: TRUE | CE11: FALSE
E12: =INDEX($T$1:$T$10,MATCH(E13,$S$1:$S$10,0)) -> K | F12: =INDEX($T$1:$T$10,MATCH(F13,$S$1:$S$10,0)) -> X | G12: =INDEX($T$1:$T$10,MATCH(G13,$S$1:$S$10,0)) -> Q | I12: =INDEX($T$1:$T$10,MATCH(I13,$S$1:$S$10,0)) -> Q | J12: =INDEX($T$1:$T$10,MATCH(J13,$S$1:$S$10,0)) -> K | Y12: Formula | Z12: =IF(AND(Z9=10000,AE3=10000),"This file does not have a time expiration period.",Z11) -> Time Expiration: 416.7 day(s) / 10000 hour(s) left until expiration. - Expiry Date: 31/12/2020 | BE12: 12 | BF12: passop | BG12: Password to open | BH12: TRUE | BJ12: s11 | BK12: sort | BL12: FALSE | BM12: FALSE | BN12: FALSE | BO12: FALSE | BP12: TRUE | BQ12: TRUE | BR12: FALSE | BS12: TRUE | BT12: TRUE | BU12: TRUE | BV12: TRUE | BW12: TRUE | BX12: TRUE | BY12: TRUE | BZ12: TRUE | CA12: TRUE | CB12: TRUE | CC12: TRUE | CD12: TRUE | CE12: TRUE
D13: Internal Clock | E13: =VLOOKUP(E$11,$R$1:$T$10,2,FALSE) -> 2 | F13: =VLOOKUP(F$11,$R$1:$T$10,2,FALSE) -> 9 | G13: =VLOOKUP(G$11,$R$1:$T$10,2,FALSE) -> 1 | I13: =VLOOKUP(I$11,$R$1:$T$10,2,FALSE) -> 1 | J13: =VLOOKUP(J$11,$R$1:$T$10,2,FALSE) -> 2 | BE13: 13 | BF13: protstr | BG13: Protect workbook str | BH13: TRUE | BJ13: s12 | BK13: use autofilter | BL13: FALSE | BM13: FALSE | BN13: FALSE | BO13: FALSE | BP13: TRUE | BQ13: TRUE | BR13: FALSE | BS13: TRUE | BT13: TRUE | BU13: TRUE | BV13: TRUE | BW13: TRUE | BX13: TRUE | BY13: TRUE | BZ13: TRUE | CA13: TRUE | CB13: TRUE | CC13: TRUE | CD13: TRUE | CE13: TRUE
BE14: 14 | BF14: passpanel | BG14: Password panel | BH14: FALSE | BJ14: s13 | BK14: use pivottable reports | BL14: FALSE | BM14: FALSE | BN14: FALSE | BO14: FALSE | BP14: TRUE | BQ14: TRUE | BR14: FALSE | BS14: TRUE | BT14: TRUE | BU14: TRUE | BV14: TRUE | BW14: TRUE | BX14: TRUE | BY14: TRUE | BZ14: TRUE | CA14: TRUE | CB14: TRUE | CC14: TRUE | CD14: TRUE | CE14: TRUE
BE15: 15 | BF15: T1 | BG15: Expiration period in days | BJ15: s14 | BK15: edit objects | BL15: TRUE | BM15: TRUE | BN15: FALSE | BO15: FALSE | BP15: TRUE | BQ15: TRUE | BR15: FALSE | BS15: TRUE | BT15: TRUE | BU15: TRUE | BV15: TRUE | BW15: TRUE | BX15: TRUE | BY15: TRUE | BZ15: TRUE | CA15: TRUE | CB15: TRUE | CC15: TRUE | CD15: TRUE | CE15: TRUE
D16: =IF(LEN(MID(SNuR(),2,LEN(SNuR()-1)))<10,MID(SNuR(),2,LEN(SNuR()-1))&"391756182398",MID(SNuR(),2,LEN(SNuR()-1))) -> 1630539938097117108 | E16: 1 | F16: 2 | G16: 3 | H16: 4 | I16: 5 | J16: 6 | K16: 7 | L16: 8 | M16: 9 | N16: 10 | BE16: 16 | BF16: T2 | BG16: Expiry Date | BH16: 2020-12-31 | BJ16: s15 | BK16: edit scenarios | BL16: TRUE | BM16: TRUE | BN16: FALSE | BO16: FALSE | BP16: TRUE | BQ16: TRUE | BR16: FALSE | BS16: TRUE | BT16: TRUE | BU16: TRUE | BV16: TRUE | BW16: TRUE | BX16: TRUE | BY16: TRUE | BZ16: TRUE | CA16: TRUE | CB16: TRUE | CC16: TRUE | CD16: TRUE | CE16: TRUE
E17: 1 | F17: 1 | G17: -1 | H17: 0 | I17: -1 | J17: 0 | K17: 1 | L17: -1 | M17: 1 | N17: 1 | BE17: 17 | BF17: T3 | BG17: Password open string | BH17: Dyn@4xlSDMDemo2015
E18: =MIN(9,MAX(VALUE(MID($D$16,E16,1))+E17,0)) -> 2 | F18: 7 | G18: 2 | H18: 0 | I18: 4 | J18: 3 | K18: 9 | L18: 8 | M18: 4 | N18: 9 | BE18: 18 | BF18: T4 | BG18: Password panel string
E19: =VLOOKUP(E18,$R$1:$S$10,2,FALSE) -> 3 | F19: 0 | G19: 3 | H19: 8 | I19: 9 | J19: 5 | K19: 4 | L19: 7 | M19: 9 | N19: 4 | BE19: 19 | BF19: disright | BG19: Disable Right click | BH19: FALSE
E20: =VLOOKUP(E19,$R$1:$T$10,3,FALSE) -> H | F20: =VLOOKUP(F19,$R$1:$T$10,3,FALSE) -> A | G20: =VLOOKUP(G19,$R$1:$T$10,3,FALSE) -> H | H20: =VLOOKUP(H19,$R$1:$T$10,3,FALSE) -> M | I20: =VLOOKUP(I19,$R$1:$T$10,3,FALSE) -> U | BE20: 20 | BF20: disribbon | BG20: Disable Ribbon Interface | BH20: FALSE
BE21: 21 | BF21: alwaysask | BG21: Always ask for Key | BH21: FALSE
E22: =E19 -> 3 | F22: =F19 -> 0 | G22: =E20 -> H | H22: =G19 -> 3 | I22: =H19 -> 8 | J22: =F20 -> A | K22: =I19 -> 9 | L22: =J19 -> 5 | M22: =G20 -> H | N22: =K19 -> 4 | O22: =L19 -> 7 | P22: =H20 -> M | Q22: =M19 -> 9 | R22: =N19 -> 4 | S22: =I20 -> U | U22: =E22&F22&G22&H22&"-"&I22&J22&K22&L22&"-"&M22&N22&O22&P22&"-"&Q22&R22&S22&E12&"-"&J12&I12&F12&G12 -> 30H3-8A95-H47M-94UK-KQXQ | BE22: 22 | BF22: opauto | BG22: Cells Autoprotection | BH22: FALSE
Y23: =MID(U22,1,14) -> 30H3-8A95-H47M | AX23: A. | AY23: =IF(ISBLANK(AZ23),"","Author: "&AZ23) -> Author: DYNATUNE-XL | AZ23: DYNATUNE-XL | BE23: 23 | BF23: lockfile | BG23: Lock file to its current location | BH23: FALSE
E24: 2 | F24: 3 | G24: 7 | H24: 1 | I24: 5 | J24: 6 | K24: 9 | L24: 8 | M24: 4 | N24: 10 | AX24: B. | AY24: =IF(ISBLANK(AZ24),"","Description: "&AZ24) -> Description: DYNATUNE "BASE" SUSPENSION DESIGN MODULE DEMO VERSION EXPIRY DATE 31.12.2020 | AZ24: DYNATUNE "BASE" SUSPENSION DESIGN MODULE DEMO VERSION EXPIRY DATE 31.12.2020 | BE24: 24 | BF24: lockfileloc | BG24: Lock file path
E25: =OFFSET($D$18,0,E24) -> 7 | F25: 2 | G25: 9 | H25: 2 | I25: 4 | J25: 3 | K25: 4 | L25: 8 | M25: 0 | N25: 9 | AX25: C. | AY25: =IF(ISBLANK(AZ25),"","Date created: "&TEXT(AZ25,"dd/mm/yyyy")) -> Date created: 12/10/2014 | AZ25: 2014-10-12 | BE25: 25 | BF25: lockfilename | BG25: Lock file name
E26: =VLOOKUP(E25,$R$1:$T$10,3,FALSE) -> V | F26: =VLOOKUP(F25,$R$1:$T$10,3,FALSE) -> P | G26: =VLOOKUP(G25,$R$1:$T$10,3,FALSE) -> U | H26: =VLOOKUP(H25,$R$1:$T$10,3,FALSE) -> P | I26: =VLOOKUP(I25,$R$1:$T$10,3,FALSE) -> X | AX26: D. | AY26: info@dynatune-xl.com | BE26: 26 | BF26: forauto | BG26: Cells Autocalculation | BH26: TRUE
AX27: E. | BE27: 27 | BG27: Manual Activation | BH27: TRUE
E28: =E25 -> 7 | F28: =F25 -> 2 | G28: =E26 -> V | H28: =G25 -> 9 | I28: =H25 -> 2 | J28: =F26 -> P | K28: =I25 -> 4 | L28: =J25 -> 3 | M28: =G26 -> U | N28: =K25 -> 4 | O28: =L25 -> 8 | P28: =H26 -> P | Q28: =M25 -> 0 | R28: =N25 -> 9 | S28: =I26 -> X | U28: =E28&F28&G28&H28&"-"&I28&J28&K28&L28&"-"&M28&N28&O28&P28&"-"&Q28&R28&S28&E13&"-"&F13&G13&I13&J13 -> 72V9-2P43-U48P-09X2-9112 | AG28: =E13 -> 2 | AH28: =F13 -> 9 | AI28: =G13 -> 1 | AK28: =I13 -> 1 | AL28: =J13 -> 2 | AX28: F. | BE28: 28 | BG28: Column Hide | BH28: FALSE
AG29: =INDEX($BD$34:$BD$43,MATCH(AG30,$BC$34:$BC$43,0)) -> P | AH29: =INDEX($BD$34:$BD$43,MATCH(AH30,$BC$34:$BC$43,0)) -> U | AI29: =INDEX($BD$34:$BD$43,MATCH(AI30,$BC$34:$BC$43,0)) -> C | AK29: =INDEX($BD$34:$BD$43,MATCH(AK30,$BC$34:$BC$43,0)) -> C | AL29: =INDEX($BD$34:$BD$43,MATCH(AL30,$BC$34:$BC$43,0)) -> P | AX29: G. | BE29: 29 | BG29: Colleague Use | BH29: FALSE
H30: FALSE | I30: FALSE | J30: AUTO | AG30: =VLOOKUP(AG$28,$BB$34:$BD$43,2,FALSE) -> 3 | AH30: =VLOOKUP(AH$28,$BB$34:$BD$43,2,FALSE) -> 4 | AI30: =VLOOKUP(AI$28,$BB$34:$BD$43,2,FALSE) -> 6 | AK30: =VLOOKUP(AK$28,$BB$34:$BD$43,2,FALSE) -> 6 | AL30: =VLOOKUP(AL$28,$BB$34:$BD$43,2,FALSE) -> 3 | AX30: H. | BE30: 30
H31: FALSE | J31: AUTO | AW31: p18910sd8dqapyaa
H32: FALSE | J32: =J30=J31 -> TRUE | Y32: =IF(OR(Z1-Y33>5,AC1+1<0),"CHANGE","VALID") -> CHANGE
H33: =BH21 -> FALSE | P33: 0 | Q33: =INDEX($Q$44:$Q$69,MIN(24,MAX(1,INT(RAND()*100/4)))) -> B | S33: =S1 -> 6 | T33: =T1 -> C | AF33: =IF(LEN(MID(SNuR(),2,LEN(SNuR()-1)))<10,MID(SNuR(),2,LEN(SNuR()-1))&"391756182398",MID(SNuR(),2,LEN(SNuR()-1))) -> 1630539938097117108 | AG33: 1 | AH33: 2 | AI33: 3 | AJ33: 4 | AK33: 5 | AL33: 6 | AM33: 7 | AN33: 8 | AO33: 9 | AP33: 10 | AW33: d78qwdH83Jo8da1
H34: =BH6 -> TRUE | J34: WARN | P34: 1 | Q34: =INDEX($Q$44:$Q$69,MIN(24,MAX(1,INT(RAND()*100/4)))) -> Q | S34: =S2 -> 3 | T34: P | AG34: 1 | AH34: 1 | AI34: -1 | AJ34: 0 | AK34: -1 | AL34: 0 | AM34: 1 | AN34: -1 | AO34: 1 | AP34: 1 | AW34: a71rfdj13vo7dk1 | BB34: 1 | BC34: =BC1 -> 6 | BD34: =BD1 -> C
H35: =BH11 -> TRUE | I35: post | P35: 2 | Q35: N | S35: 5 | T35: H | AG35: =MIN(9,MAX(VALUE(MID($AF$33,AG33,1))+AG34,0)) -> 2 | AH35: 7 | AI35: 2 | AJ35: 0 | AK35: 4 | AL35: 3 | AM35: 9 | AN35: 8 | AO35: 4 | AP35: 9 | BB35: 2 | BC35: =BC2 -> 3 | BD35: P
H36: HOST | P36: 3 | Q36: X | S36: 9 | T36: X | AG36: =VLOOKUP(AG35,$BB$34:$BC$43,2,FALSE) -> 3 | AH36: 0 | AI36: 3 | AJ36: 8 | AK36: 9 | AL36: 5 | AM36: 4 | AN36: 7 | AO36: 9 | AP36: 4 | BB36: 3 | BC36: 5 | BD36: H | BG36: Protect all formulae | BH36: TRUE | BK36: Sheet Name | BL36: XLSafe | BM36: XLKey Generator | BN36: EULA | BO36: READ ME | BP36: USER 1 | BQ36: DSDM EXPORT | BR36: MASTER DASHBOARD | BS36: DASHBOARD | BT36: REBOUND | BU36: SPRINGLINK REBOUND | BV36: COMPRESSION | BW36: SPRINGLINK COMPRESSION | BX36: LEFT STEER | BY36: RIGHT STEER | BZ36: RESULTS | CA36: REF1 | CB36: REF2 | CC36: REF3 | CD36: REF4 | CE36: TEMPLATES
H37: =VALUE(SNuR()) -> -1.630539938e+18 | P37: 4 | Q37: E | S37: 1 | T37: Q | AG37: =VLOOKUP(AG36,$BB$34:$BD$43,3,FALSE) -> H | AH37: =VLOOKUP(AH36,$BB$34:$BD$43,3,FALSE) -> A | AI37: =VLOOKUP(AI36,$BB$34:$BD$43,3,FALSE) -> H | AJ37: =VLOOKUP(AJ36,$BB$34:$BD$43,3,FALSE) -> M | AK37: =VLOOKUP(AK36,$BB$34:$BD$43,3,FALSE) -> U | BB37: 4 | BC37: 9 | BD37: X | BG37: Hide all formulae | BH37: TRUE | BJ37: s1 | BK37: Select locked cells | BL37: TRUE | BM37: TRUE | BN37: FALSE | BO37: FALSE | BP37: TRUE | BQ37: TRUE | BR37: TRUE | BS37: TRUE | BT37: TRUE | BU37: TRUE | BV37: TRUE | BW37: TRUE | BX37: TRUE | BY37: TRUE | BZ37: TRUE | CA37: TRUE | CB37: TRUE | CC37: TRUE | CD37: TRUE | CE37: TRUE
H38: -1.630539938e+18 | P38: 5 | Q38: U | S38: 2 | T38: K | AW38: =AG39&AH39&AI39&AJ39&"-"&AK39&AL39&AM39&AN39&"-"&AO39&AP39&AQ39&AR39&"-"&AS39&AT39&AU39&AG29&"-"&AL29&AK29&AH29&AI29 -> 30H3-8A95-H47M-94UP-PCUC | BB38: 5 | BC38: 1 | BD38: Q | BG38: Protect text labels | BH38: TRUE | BJ38: s2 | BK38: Select unlocked cells | BL38: TRUE | BM38: TRUE | BN38: FALSE | BO38: FALSE | BP38: TRUE | BQ38: TRUE | BR38: TRUE | BS38: TRUE | BT38: TRUE | BU38: TRUE | BV38: TRUE | BW38: TRUE | BX38: TRUE | BY38: TRUE | BZ38: TRUE | CA38: TRUE | CB38: TRUE | CC38: TRUE | CD38: TRUE | CE38: TRUE
H39: -1.630539938e+18 | P39: 6 | Q39: U | S39: 0 | T39: V | AG39: =AG36 -> 3 | AH39: =AH36 -> 0 | AI39: =AG37 -> H | AJ39: =AI36 -> 3 | AK39: =AJ36 -> 8 | AL39: =AH37 -> A | AM39: =AK36 -> 9 | AN39: =AL36 -> 5 | AO39: =AI37 -> H | AP39: =AM36 -> 4 | AQ39: =AN36 -> 7 | AR39: =AJ37 -> M | AS39: =AO36 -> 9 | AT39: =AP36 -> 4 | AU39: =AK37 -> U | BB39: 6 | BC39: 2 | BD39: K | BG39: Protect constants | BH39: FALSE | BJ39: s3 | BK39: format cells | BL39: FALSE | BM39: FALSE | BN39: FALSE | BO39: FALSE | BP39: TRUE | BQ39: FALSE | BR39: FALSE | BS39: FALSE | BT39: FALSE | BU39: FALSE | BV39: FALSE | BW39: FALSE | BX39: FALSE | BY39: FALSE | BZ39: TRUE | CA39: TRUE | CB39: TRUE | CC39: TRUE | CD39: TRUE | CE39: FALSE
H40: =H39=H37 -> TRUE | P40: 7 | Q40: V | S40: 7 | T40: M | BB40: 7 | BC40: 0 | BD40: V | BG40: Protect blanks | BH40: FALSE | BJ40: s4 | BK40: format columns | BL40: FALSE | BM40: FALSE | BN40: FALSE | BO40: FALSE | BP40: TRUE | BQ40: FALSE | BR40: FALSE | BS40: FALSE | BT40: FALSE | BU40: FALSE | BV40: FALSE | BW40: FALSE | BX40: FALSE | BY40: FALSE | BZ40: TRUE | CA40: TRUE | CB40: TRUE | CC40: TRUE | CD40: TRUE | CE40: FALSE
H41: =H37=H38 -> TRUE | P41: 8 | Q41: M | S41: 4 | T41: U | AG41: 2 | AH41: 3 | AI41: 7 | AJ41: 1 | AK41: 5 | AL41: 6 | AM41: 9 | AN41: 8 | AO41: 4 | AP41: 10 | BB41: 8 | BC41: 7 | BD41: M | BG41: Disable hardware act | BH41: TRUE | BJ41: s5 | BK41: format rows | BL41: FALSE | BM41: FALSE | BN41: FALSE | BO41: FALSE | BP41: TRUE | BQ41: FALSE | BR41: FALSE | BS41: FALSE | BT41: FALSE | BU41: FALSE | BV41: FALSE | BW41: FALSE | BX41: FALSE | BY41: FALSE | BZ41: TRUE | CA41: TRUE | CB41: TRUE | CC41: TRUE | CD41: TRUE | CE41: FALSE
H42: iniapp_host | P42: 9 | Q42: Q | S42: 8 | T42: A | AG42: =OFFSET($D$18,0,AG41) -> 7 | AH42: 2 | AI42: 9 | AJ42: 2 | AK42: 4 | AL42: 3 | AM42: 4 | AN42: 8 | AO42: 0 | AP42: 9 | BB42: 9 | BC42: 4 | BD42: U | BG42: Protect charts | BH42: FALSE | BJ42: s6 | BK42: insert columns | BL42: FALSE | BM42: FALSE | BN42: FALSE | BO42: FALSE | BP42: TRUE | BQ42: FALSE | BR42: FALSE | BS42: FALSE | BT42: FALSE | BU42: FALSE | BV42: FALSE | BW42: FALSE | BX42: FALSE | BY42: FALSE | BZ42: TRUE | CA42: TRUE | CB42: TRUE | CC42: TRUE | CD42: TRUE | CE42: FALSE
H43: ufcaej2 | AG43: =VLOOKUP(AG42,$R$1:$T$10,3,FALSE) -> V | AH43: =VLOOKUP(AH42,$R$1:$T$10,3,FALSE) -> P | AI43: =VLOOKUP(AI42,$R$1:$T$10,3,FALSE) -> U | AJ43: =VLOOKUP(AJ42,$R$1:$T$10,3,FALSE) -> P | AK43: =VLOOKUP(AK42,$R$1:$T$10,3,FALSE) -> X | BB43: 0 | BC43: 8 | BD43: A | BG43: Protect objects | BH43: TRUE | BJ43: s7 | BK43: insert rows | BL43: FALSE | BM43: FALSE | BN43: FALSE | BO43: FALSE | BP43: TRUE | BQ43: FALSE | BR43: FALSE | BS43: FALSE | BT43: FALSE | BU43: FALSE | BV43: FALSE | BW43: FALSE | BX43: FALSE | BY43: FALSE | BZ43: TRUE | CA43: TRUE | CB43: TRUE | CC43: TRUE | CD43: TRUE | CE43: FALSE
H44: =IF(H32=TRUE,FALSE,IF(OR(H34=TRUE,H40=TRUE),TRUE,IF(AND(H41=TRUE,H43="ufcaej2"),TRUE,FALSE))) -> TRUE | J44: mailserver@datasafexl.com | Q44: A | AW44: =AG45&AH45&AI45&AJ45&"-"&AK45&AL45&AM45&AN45&"-"&AO45&AP45&AQ45&AR45&"-"&AS45&AT45&AU45&AG30&"-"&AH30&AI30&AK30&AL30 -> 72V9-2P43-U48P-09X3-4663 | BG44: Disable cut/copy | BH44: FALSE | BJ44: s8 | BK44: insert hyperlinks | BL44: FALSE | BM44: FALSE | BN44: FALSE | BO44: FALSE | BP44: TRUE | BQ44: FALSE | BR44: FALSE | BS44: FALSE | BT44: FALSE | BU44: FALSE | BV44: FALSE | BW44: FALSE | BX44: FALSE | BY44: FALSE | BZ44: TRUE | CA44: TRUE | CB44: TRUE | CC44: TRUE | CD44: TRUE | CE44: FALSE
H45: SINGLE | J45: tofeshsmata99 | Q45: B | AG45: =AG42 -> 7 | AH45: =AH42 -> 2 | AI45: =AG43 -> V | AJ45: =AI42 -> 9 | AK45: =AJ42 -> 2 | AL45: =AH43 -> P | AM45: =AK42 -> 4 | AN45: =AL42 -> 3 | AO45: =AI43 -> U | AP45: =AM42 -> 4 | AQ45: =AN42 -> 8 | AR45: =AJ43 -> P | AS45: =AO42 -> 0 | AT45: =AP42 -> 9 | AU45: =AK43 -> X | BG45: Disable printing | BH45: FALSE | BJ45: s9 | BK45: delete columns | BL45: FALSE | BM45: FALSE | BN45: FALSE | BO45: FALSE | BP45: TRUE | BQ45: FALSE | BR45: FALSE | BS45: FALSE | BT45: FALSE | BU45: FALSE | BV45: FALSE | BW45: FALSE | BX45: FALSE | BY45: FALSE | BZ45: TRUE | CA45: TRUE | CB45: TRUE | CC45: TRUE | CD45: TRUE | CE45: FALSE
H46: XLSAFE PRO APP | J46: auth.smtp.1and1.co.uk | Q46: C | BG46: Activate time Exp | BH46: TRUE | BJ46: s10 | BK46: delete rows | BL46: FALSE | BM46: FALSE | BN46: FALSE | BO46: FALSE | BP46: TRUE | BQ46: FALSE | BR46: FALSE | BS46: FALSE | BT46: FALSE | BU46: FALSE | BV46: FALSE | BW46: FALSE | BX46: FALSE | BY46: FALSE | BZ46: TRUE | CA46: TRUE | CB46: TRUE | CC46: TRUE | CD46: TRUE | CE46: FALSE
Q47: D | BG47: Password to open | BH47: TRUE | BJ47: s11 | BK47: sort | BL47: FALSE | BM47: FALSE | BN47: FALSE | BO47: FALSE | BP47: TRUE | BQ47: TRUE | BR47: FALSE | BS47: TRUE | BT47: TRUE | BU47: TRUE | BV47: TRUE | BW47: TRUE | BX47: TRUE | BY47: TRUE | BZ47: TRUE | CA47: TRUE | CB47: TRUE | CC47: TRUE | CD47: TRUE | CE47: TRUE
Q48: E | BG48: Protect workbook str | BH48: TRUE | BJ48: s12 | BK48: use autofilter | BL48: FALSE | BM48: FALSE | BN48: FALSE | BO48: FALSE | BP48: TRUE | BQ48: TRUE | BR48: FALSE | BS48: TRUE | BT48: TRUE | BU48: TRUE | BV48: TRUE | BW48: TRUE | BX48: TRUE | BY48: TRUE | BZ48: TRUE | CA48: TRUE | CB48: TRUE | CC48: TRUE | CD48: TRUE | CE48: TRUE
Q49: F | BG49: Password panel | BH49: FALSE | BJ49: s13 | BK49: use pivottable reports | BL49: FALSE | BM49: FALSE | BN49: FALSE | BO49: FALSE | BP49: TRUE | BQ49: TRUE | BR49: FALSE | BS49: TRUE | BT49: TRUE | BU49: TRUE | BV49: TRUE | BW49: TRUE | BX49: TRUE | BY49: TRUE | BZ49: TRUE | CA49: TRUE | CB49: TRUE | CC49: TRUE | CD49: TRUE | CE49: TRUE
Q50: G | BG50: Expiration period in days | BJ50: s14 | BK50: edit objects | BL50: TRUE | BM50: TRUE | BN50: FALSE | BO50: FALSE | BP50: TRUE | BQ50: TRUE | BR50: FALSE | BS50: TRUE | BT50: TRUE | BU50: TRUE | BV50: TRUE | BW50: TRUE | BX50: TRUE | BY50: TRUE | BZ50: TRUE | CA50: TRUE | CB50: TRUE | CC50: TRUE | CD50: TRUE | CE50: TRUE
Q51: H | BG51: Expiry Date | BH51: 2020-12-31 | BJ51: s15 | BK51: edit scenarios | BL51: TRUE | BM51: TRUE | BN51: FALSE | BO51: FALSE | BP51: TRUE | BQ51: TRUE | BR51: FALSE | BS51: TRUE | BT51: TRUE | BU51: TRUE | BV51: TRUE | BW51: TRUE | BX51: TRUE | BY51: TRUE | BZ51: TRUE | CA51: TRUE | CB51: TRUE | CC51: TRUE | CD51: TRUE | CE51: TRUE
Q52: I | BG52: Password open string | BH52: Dyn@4xlSDMDemo2015
Q53: J | BG53: Password panel string
Q54: K | BG54: Disable Right click | BH54: FALSE
Q55: L | BG55: Disable Ribbon Interface | BH55: FALSE
Q56: M | BG56: Always ask for Key | BH56: FALSE
Q57: N | BG57: Cells Autoprotection | BH57: FALSE
Q58: O | BG58: Lock file to its current location | BH58: FALSE
Q59: P | BG59: Lock file path
Q60: Q | BG60: Lock file name
Q61: R | BG61: Cells Autocalculation | BH61: TRUE
Q62: S | BG62: Manual Activation | BH62: TRUE
Q63: T | BG63: Column Hide | BH63: FALSE
Q64: U | BG64: Colleague Use | BH64: FALSE
Q65: V
Q66: W
Q67: X
Q68: Y | BG68: Permission Set
Q69: Z | BG69: FALSE
AW70: sheet | AX70: col width | AY70: row | AZ70: col | BC70: START | BD70: Start Logs | BE70: COL | BG70: Sheet Name | BH70: Col
AW71: xloader | AX71: 10 | BB71: 1 | BC71: DSDM EXPORT | BD71: Paul on Tuesday, October 14, 2014 4:26 PM
AW72: xlsafe | AX72: 10 | BB72: 2 | BC72: REBOUND | BD72: Paul on Tuesday, October 14, 2014 5:59 PM
AW73: xlkey | AX73: 10 | BB73: 3 | BC73: SPRINGLINK REBOUND | BD73: Paul on Tuesday, October 14, 2014 6:04 PM
AW74: sheet1 | AX74: 10 | BB74: 4 | BC74: COMPRESSION | BD74: Paul on Tuesday, October 14, 2014 6:14 PM
AW75: sheet2 | AX75: 10 | BB75: 5 | BC75: SPRINGLINK COMPRESSION | BD75: Paul on Tuesday, October 14, 2014 6:37 PM
AW76: sheet3 | AX76: 10 | BB76: 6 | BC76: LEFT STEER | BD76: Paul on Tuesday, October 14, 2014 6:38 PM
BB77: 7 | BC77: RIGHT STEER | BD77: Paul on Wednesday, October 15, 2014 9:27 AM
BB78: 8 | BC78: TEMPLATES | BD78: Paul on Saturday, December 13, 2014 1:26 PM
BB79: 9 | BC79: DASHBOARD | BD79: Paul on Saturday, December 13, 2014 4:35 PM
BB80: 10 | BD80: Paul on Saturday, December 13, 2014 4:43 PM
BB81: 11 | BD81: Paul on Saturday, December 13, 2014 5:04 PM
BB82: 12 | BD82: Paul on Saturday, December 13, 2014 5:06 PM
BB83: 13 | BD83: Paul on Saturday, December 13, 2014 7:22 PM
BB84: 14 | BD84: Paul on Tuesday, January 27, 2015 7:27 PM
BB85: 15 | BD85: Paul on Tuesday, January 27, 2015 7:28 PM
BB86: 16 | BD86: Paul on Wednesday, March 25, 2015 2:19 PM
BB87: 17 | BD87: Paul on Sunday, June 28, 2015 7:28 PM
BB88: 18 | BD88: Paul on Sunday, June 28, 2015 7:30 PM
BB89: 19 | BD89: Paul on Friday, July 24, 2015 7:45 PM
BB90: 20 | BD90: Paul on Saturday, September 26, 2015 11:49 AM
BB91: 21 | BD91: Paul on Saturday, September 26, 2015 1:05 PM
BB92: 22 | BD92: Paul on Saturday, September 26, 2015 1:29 PM
BB93: 23 | BD93: Paul on Saturday, September 26, 2015 1:31 PM
BB94: 24 | BD94: Paul on Saturday, September 26, 2015 4:28 PM
BB95: 25 | BD95: Paul on Saturday, September 26, 2015 6:02 PM
BB96: 26 | BD96: Paul on Saturday, September 26, 2015 6:40 PM
BB97: 27 | BD97: Paul on Sunday, September 27, 2015 1:32 PM
BB98: 28 | BD98: Paul on Sunday, September 27, 2015 1:44 PM
BB99: 29 | BD99: Paul on Sunday, January 3, 2016 2:57 PM
BB100: 30 | BD100: Paul on Sunday, January 3, 2016 3:09 PM
BB101: 31 | BD101: Paul on Tuesday, April 12, 2016 5:52 PM
BB102: 32 | BD102: Paul on Tuesday, April 12, 2016 5:54 PM
BB103: 33 | BD103: Paul on Tuesday, April 12, 2016 5:55 PM
BB104: 34 | BD104: Paul on Tuesday, January 3, 2017 4:35 PM
BB105: 35 | BD105: Paul on Tuesday, January 3, 2017 5:08 PM
BB106: 36 | BD106: Paul on Thursday, December 28, 2017 3:23 PM
BB107: 37 | BD107: Paul on Thursday, December 28, 2017 3:25 PM
BB108: 38 | BD108: Paul on Monday, February 4, 2019 3:36 PM
BB109: 39 | BD109: Paul on Monday, February 4, 2019 3:42 PM
BB110: 40 | BD110: Paul on Thursday, January 2, 2020 8:09 PM
BB111: 41 | BD111: Paul on Saturday, January 11, 2020 11:06 AM
BB112: 42 | BD112: Paul on Saturday, January 11, 2020 11:15 AM
BB113: 43 | BD113: Paul on Saturday, January 11, 2020 11:39 AM
BB114: 44
BB115: 45
BB116: 46
BB117: 47
BB118: 48
BB119: 49
BB120: 50
BB121: 51
BB122: 52
BB123: 53
BB124: 54
BB125: 55
BB126: 56
BB127: 57
BB128: 58
BB129: 59
BB130: 60
BB131: 61
BB132: 62
BB133: 63
BB134: 64
BB135: 65
BB136: 66
BB137: 67
BB138: 68
BB139: 69
BB140: 70
BB141: 71
BB142: 72
BB143: 73
BB144: 74
BB145: 75
BB146: 76
BB147: 77
BB148: 78
BB149: 79
BB150: 80
BB151: 81
BB152: 82
BB153: 83
BB154: 84
BB155: 85
BB156: 86
BB157: 87
BB158: 88
BB159: 89
BB160: 90
BB161: 91
BB162: 92
BB163: 93
BB164: 94
BB165: 95
BB166: 96
BB167: 97
BB168: 98
BB169: 99
BB170: 100

Sheet XLKey Generator (hidden)
H4: No. | I4: Request Key | J4: Activation Key | K4: Date Created | L4: Reference
D8: Enter Request Key:

Sheet XLSafe
C8: Please enter your activation key in the field below:
C13: Request key:
C15: =Xl0ader!U29 -> 0
A402: Help Instructions
A566: Microsoft Excel 97 - 2003
A568: You must enable macros in order to access this spreadsheet. To do this:
A570: 1. Close down this file and Microsoft Excel application
A571: 2. Re-open the file and click on the button "Enable Macros" on the security warning
A573: Note: If you still happen to see this screen after enabling macros, please close down all instances of the
A574: Microsoft Excel application and open the XLSafe file by double clicking on the file icon from Windows Explorer.
A592: Microsoft Excel 2007
A594: You must enable macros in order to access this spreadsheet. To do this:
A596: 1. Click on the 'Options' button on the security warning
A597: 2. Select the option 'Enable this content' and press OK to proceed
A599: Note: If you still happen to see this screen after enabling macros, please close down all instances of the
A600: Microsoft Excel application and open the XLSafe file by double clicking on the file icon from Windows Explorer.

Sheet EULA (hidden)

Sheet READ ME (hidden)
A1: DYNATUNE "BASE" SUSPENSION DESIGN MODULE 7.1 | N1: Copyright DYNATUNE-XL

Sheet USER 1 (hidden)
A1: FREELY CUSTOMIZABLE SHEET

Sheet DSDM EXPORT (hidden)
B2: FRONT SUSPENSION Y/N | C2: 1
B3: Static Toe | C3: ='MASTER DASHBOARD'!D30 -> 0.000
B4: Bump Steer | C4: ='MASTER DASHBOARD'!D51 -> 0.867
B5: Static Camber | C5: ='MASTER DASHBOARD'!D31 -> 0.000
B6: Camber Gain | C6: ='MASTER DASHBOARD'!E51 -> -19.802
B7: Roll Center Height | C7: ='MASTER DASHBOARD'!F51 -> 43.406
B8: Roll Center Height / Wheeltravel Ratio | C8: ='MASTER DASHBOARD'!G51 -> 1.013
B9: Spring/Damper Motion Ratio | C9: ='MASTER DASHBOARD'!I51 -> 0.746
B10: Wheel Center Anti Angle | C10: =IF(C2=1,-'MASTER DASHBOARD'!K51,'MASTER DASHBOARD'!K51) -> -0.115
B11: Contact Patch Anti Angle | C11: =IF(C2=1,-'MASTER DASHBOARD'!L51,'MASTER DASHBOARD'!L51) -> 2.528
B12: Static Loaded Radius | C12: ='MASTER DASHBOARD'!D29 -> 300.000
B13: Steering Ratio | C13: =IF(C2=1,'MASTER DASHBOARD'!K54,"N/A") -> 19.622
B14: Camber Gain With Steer | C14: =IF(C2=1,'RIGHT STEER'!EJ2,"N/A") -> -0.143

Sheet MASTER DASHBOARD (hidden)
A1: DYNATUNE "BASE" SUSPENSION DESIGN MODULE 7.1 - MASTER CONTROL SHEET | N1: 0 | O1: Copyright DYNATUNE-XL
A2: This worksheet contains all relevant Suspension Geometry Data. Based on the "Generic 5-Link" approach geometry data have to be entered for 5 separate links, a spring/damper unit and some additional wheel and vehicle date. By combining the ends of two links one can create wishbone type links. By cleverly combining all links one can create almost all existing independent suspension systems. Beyond the "Generic 5-Link" Suspension one can select a "McPherson" type suspension in which 2 of the original 5 links will be substituted by the McPherson Strut or one can create a so called "Integral Link" Suspension in which one of the 5 links is not attached to ground but to another link. There are 2 Coordinate Systems available, Dynatune and OEM. It is recommended to always use the Dynatune Coordinate System (DSDM). The OEM coordinate system assumes typically the origin at Car Center Line significantly in Front and Below of the front end of the car with positive X-Axis pointing Rearward. If the OEM coordinate system is used the data will be internally converted to Dynatune Coordinate System with all of it signs conventions. NOTE THAT THE LEFT WHEEL IS ALWAYS USED AS REFERENCE. The software assumes a suspension layout in which compression of the spring/damper unit leads to jounce travel at the wheel. In case of not being so, you can change the sign on the input data. Jounce/Roll Motion, Steering Motion or Combined Jounce/Roll & Steering Motions can be calculated. Results are shown on this sheet and on the customizable Results Sheets. All Results are calculated by applied vector algebra. This means that especially for suspension with virtual steer axis all parameters will be calculated correctly.
A3: DATA CAN ONLY BE ENTERED IN THE BLUE/GREY CELLS. RESULTS ARE SHOWN IN THE YELLOW/RED CELLS
A4: SIGN CONVENTIONS IN DYNATUNE SUSPENSION DESIGN MODULE COORDINATE SYSTEM | N4: The Suspension Module Design Coordinate System's Origin is located at Ground Level "0" in the center line of the AXLE with the Positive X-Axis pointing Forward, the Y-Axis pointing to the Left and the Z-Axis pointing Up. Reference Wheel is always the Left Wheel. The various definitions for suspension angle's are aligned with their commonly used definitions in suspension analysis literature. Body Roll Angle Sign Convention follows Right Hand Rule around X-Axis
B8: SELECT SUSPENSION TYPE | D8: SELECT COORDINATE SYSTEM | G8: Enter Project Name / ID
C9: GENERIC 5-LINK | E9: DSDM | G9: GENERIC 5-LINK
B10: Link ID Nr. | C10: DESCRIPTION | D10: X [mm] | E10: Y [mm] | F10: Z [mm] | G10: Link Length [mm] | J10: =IF(iMcPherson=1,"Knuckle",IF(iintegral=1,"Link","Knuckle")) -> Knuckle | K10: GENERIC 5-LINK | L10: DSDM | M10: =iMcPherson -> 0
B11: 1 | C11: Tie Rod @ Chassis Joint | D11: 100.000 | E11: 300.000 | F11: 300.000 | G11: =SQRT((D12-D11)^2+(E11-E12)^2+(F11-F12)^2) -> 301.413 | J11: =IF(iMcPherson=1,"Knuckle",IF(iintegral=1,"Link","Link")) -> Link | K11: MC PHERSON | L11: OEM
B12: 2 | C12: Tie Rod @ Knuckle Joint | D12: 125.000 | E12: 600.000 | F12: 315.000 | K12: INTEGRAL COUPLING LINK
B13: 3 | C13: =IF(ifederlenker=1,"Lower Link 1 @ Chassis Joint","Spring Link @ Chassis Joint") -> Spring Link @ Chassis Joint | D13: -60.000 | E13: 230.000 | F13: 185.000 | G13: =SQRT((D14-D13)^2+(E13-E14)^2+(F13-F14)^2) -> 422.966
B14: 4 | C14: =IF(ifederlenker=1,"Lower Link 1 @ Knuckle Joint","Spring Link @ Knuckle Joint") -> Spring Link @ Knuckle Joint | D14: -10.000 | E14: 650.000 | F14: 185.000
B15: 5 | C15: =IF(iintegral=0,"Lower Link 2 (or 2nd A-Arm Leg) @ Chassis Joint","Integral Support Link @ Chassis Joint") -> Lower Link 2 (or 2nd A-Arm Leg) @ Chassis Joint | D15: 300.000 | E15: 230.000 | F15: 180.000 | G15: =SQRT((D16-D15)^2+(E15-E16)^2+(F15-F16)^2) -> 482.623
B16: 6 | C16: =IF(iintegral=0,"Lower Link 2 @ Knuckle Joint","Integral Support Link @ Knuckle Joint") -> Lower Link 2 @ Knuckle Joint | D16: 30.000 | E16: 630.000 | F16: 185.000
B17: 7 | C17: =IF(iMcPherson=0,IF(iintegral=0,"Upper Link 1 @ Chassi Joint","Integral Link @ Support Link Joint"),"") -> Upper Link 1 @ Chassi Joint | D17: 150.000 | E17: 320.000 | F17: 405.000 | G17: =SQRT((D18-D17)^2+(E17-E18)^2+(F17-F18)^2) -> 314.484
B18: 8 | C18: =IF(iMcPherson=0,IF(iintegral=0,"Upper Link 1 @ Knuckle Joint","Integral Link @ Knuckle Joint"),"") -> Upper Link 1 @ Knuckle Joint | D18: -10.000 | E18: 590.000 | F18: 425.000
B19: 9 | C19: =IF(iMcPherson=0,"Upper Link 2 @ Chassis Joint","") -> Upper Link 2 @ Chassis Joint | D19: -100.000 | E19: 320.000 | F19: 400.000 | G19: =SQRT((D20-D19)^2+(E19-E20)^2+(F19-F20)^2) -> 275.726
B20: 10 | C20: =IF(iMcPherson=0,"Upper Link 2 (or 2nd A-Arm Leg) @ Knuckle Joint","") -> Upper Link 2 (or 2nd A-Arm Leg) @ Knuckle Joint | D20: -50.000 | E20: 590.000 | F20: 425.000
B21: 11 | C21: =IF(iMcPherson=0,"Spring/Damper @ Chassis Joint","Upper Strut @ Chassis Joint") -> Spring/Damper @ Chassis Joint | D21: -20.000 | E21: 500.000 | F21: 800.000 | G21: =SQRT((D22-D21)^2+(E21-E22)^2+(F21-F22)^2) -> 617.029
B22: 12 | C22: =IF(iMcPherson=0,IF(ifederlenker=1,"Spring/Damper @ Knuckle Joint","Spring/Damper @ Springlink Joint"),"Lower Strut @ Knuckle Joint") -> Spring/Damper @ Springlink Joint | D22: -20.000 | E22: 550.000 | F22: 185.000
B23: WC | C23: Wheel Center Point | D23: 0.000 | E23: 700.000 | F23: 300.000
B24: WC ALIGN | C24: Calculated Wheel Center Alignment Point | D24: =IF(idsdm=1,D23-SIN(D30/180*PI())*100,D23+SIN(D30/180*PI())*100) -> 0.000 | E24: =E23-100/COS(D31/180*PI()) -> 600.000 | F24: =F23+SIN(D31/180*PI())*100 -> 300.000 | G24: =SQRT((D24-D23)^2+(E23-E24)^2+(F23-F24)^2) -> 100.000
B25: CP | C25: Calculated Contact Patch | D25: =D23+D29*SIN(D30/180*PI())*SIN(D31/180*PI()) -> 0.000 | E25: =E23-D29*SIN(D31/180*PI())*COS(D30/180*PI()) -> 700.000 | F25: =F23-D29*COS(D31/180*PI()) -> 0.000
C28: Select Spring/Damper Wheelside Attachment | D28: Link | E28: =IF(iMcPherson=1,"Mc Pherson Suspension always set to @ Knuckle",IF(iintegral=1,"Integral Link Suspension always set to @ Link","")) ->  | M28: Angles of Rotation for Chart
C29: Static Loaded Tire Radius | D29: 300.000 | E29: mm | F29: =IF(D34<0,"Steering Motion Inversed !","") -> 
C30: Static Toe | D30: 0.000 | E30: ° | F30: =IF(ABS(D32)<>ABS(D33),"Roll Motion only valid until lower Jounce/Rebound Travel Limit !","") ->  | N30: 290.0 | O30: X Angle [°]
C31: Static Camber | D31: 0.000 | E31: ° | N31: 0.0 | O31: Y Angle [°]
C32: Max. Jounce Travel @ Spring/Damper | D32: 50.000 | E32: mm | N32: 250.0 | O32: Z Angle [°]
C33: Max. Rebound Travel @ Spring/Damper | D33: -50.000 | E33: mm | F33: Steering Rack Ratio
C34: Max. Steering Rack Travel | D34: 25.000 | E34: mm | F34: 50.000 | G34: mm / 360° SWA | J34: Animation Step Size | K34: 25 | L34: -
C35: Wheelbase | D35: 2500.000 | E35: mm | F35: *enter 0 for Rear Suspension
J36: Tire Width (grahics) | K36: 200 | L36: mm
C37: TRUE | D37: FALSE
C39: TRUE | J39: Scaling Factor | K39: 1 | L39: -
J40: (changes axis scaling to avoid automatic graph adjustments during animation)
K42: =RESULTS!C2 -> GENERIC 5-LINK
K43: ='REF1'!C2 -> REF 1
K44: ='REF2'!C2 -> REF 2
K45: ='REF3'!C2 -> REF 3
K46: ='REF4'!C2 -> REF 4
L47: Name Ref. Set
D48: RESULTS
D49: CALCULATION RESULTS - STATIC SUSPENSION SYSTEM PARAMETERS | J49: =IF(ilenk_combined=1, "COMBINED JOUNCE & STEERING MOTION !","") -> 
D50: Bump Steer [°/m] | E50: Camber Gain [°/m] | F50: Roll Center Height [mm] | G50: Roll Center Height Movement / Wheel Travel Ratio [-] | I50: Spring/Damper Travel / Wheel Travel Ratio [-] | K50: Wheel Center Anti Angle [°] | L50: Contact Patch Anti Angle [°]
D51: =IFERROR(IF(ifeder=1,REBOUND!EJ1,"N/A"),"N/A") -> 0.87 | E51: =IFERROR(IF(ifeder=1,REBOUND!EM1,"N/A"),"N/A") -> -19.80 | F51: =IFERROR(IF(ifeder=1,REBOUND!EO1,"N/A"),"N/A") -> 43.41 | G51: =IFERROR(IF(ifeder=1,REBOUND!EP1,"N/A"),"N/A") -> 1.01 | I51: =IFERROR(IF(ifeder=1,REBOUND!EH1,"N/A"),"N/A") -> 0.746 | K51: =IFERROR(IF(ifeder=1,REBOUND!EQ1,"N/A"),"N/A") -> 0.12 | L51: =IFERROR(IF(ifeder=1,REBOUND!ER1,"N/A"),"N/A") -> -2.53
C53: TRUE | D53: CALCULATION RESULTS - STATIC STEERINGSYSTEM PARAMETERS
J54: Steering Ratio | K54: =IF(RACK_RATIO>0,IF(ifeder=1,COMPRESSION!FT2,IF(ilenk=1,'RIGHT STEER'!FF2,"N/A")),"N/A") -> 19.62 | L54: -
C55: TRUE
D56: Toe [°] | E56: Camber [°] | F56: Caster [°] | G56: Caster Trail [mm] | H56: KPI [°] | J56: Scrub Radius [mm] | K56: KPI Off. [mm] | L56: Caster Off. [mm]
D58: =ROUND(D30,3) -> 0.00 | E58: =ROUND(D31,3) -> 0.00 | F58: =IFERROR(IF(ifeder=1,ROUND(REBOUND!FO1,3),IF(ilenk=1,ROUND('LEFT STEER'!FA1,3),"N/A")),"N/A") -> 8.11 | G58: =IFERROR(IF(ifeder=1,ROUND(REBOUND!FS1,3),IF(ilenk=1,ROUND('LEFT STEER'!FE1,3),"N/A")),"N/A") -> 20.36 | H58: =IFERROR(IF(ifeder=1,ROUND(REBOUND!FM1,3),IF(ilenk=1,ROUND('LEFT STEER'!EY1,3),"N/A")),"N/A") -> 9.81 | J58: =IFERROR(IF(ifeder=1,ROUND(REBOUND!FR1,3),IF(ilenk=1,ROUND('LEFT STEER'!FD1,3),"N/A")),"N/A") -> -15.50 | K58: =IFERROR(IF(ifeder=1,ROUND(REBOUND!FN1,3),IF(ilenk=1,ROUND('LEFT STEER'!EZ1,3),"N/A")),"N/A") -> 36.35 | L58: =IFERROR(IF(ifeder=1,ROUND(REBOUND!FP1,3),IF(ilenk=1,ROUND('LEFT STEER'!FB1,3),"N/A")),"N/A") -> -22.40
B61: GRAPHIC RESULTS SECTION. GRAPHS CAN BE ENLARGED | D61: Set Zoom Amount | G61: =IF(ilenk_combined=0,"Jounce/Roll Motion Results","Combined Jounce/Roll Motion & Steering Motion Results") -> Jounce/Roll Motion Results | L61: =IF(ilenk_combined=1,"WARNING ! Combined Jounce/Roll Motion & Steering Motion does change the Jounce/Roll Characteristics significantly with the amount of total steering angle imposed (more or less steering angle per wheeltravel) . Pay attention to this !","") -> 
D62: Width: | E62: 200%
D63: Height: | E63: 200%
G126: Steering Motion Results
B177: PERCENTAGE ANTI-LIFT / ANTI-DIVE USER TOOL
D179: Front | E179: Rear
C180: Wheel Center Anti Lift Angle / Anti Squat Angle* | D180: -2.000 | E180: 5.000 | F180: ° | J180: FALSE | K180: =IF(J180=TRUE,1,0) -> 0
C181: Contact Patch Anti Dive Angle / Anti Lift Angle* | D181: -5.000 | E181: 15.000 | F181: °
C182: Percentage Front Brake Distribution | D182: 60.000 | E182: % Front
C183: Percentage Rear Drive Torque | D183: 50.000 | E183: % Rear | J183: FALSE | K183: =IF(J183=TRUE,1,0) -> 0
C184: Vehicle Center of Gravity Height | D184: 556.000 | E184: mm
C185: Wheelbase | D185: 2800.000 | E185: mm
C186: * Front Suspension Anti-Angles Change Sign from DSDM to Vehicle Coordinate System
E196: Anti-Lift Angle | F196: =IF(J180=FALSE,-D180,-K51) -> 2.00 | G196: ° | J196: Anti-Squat Angle | K196: =IF(J183=FALSE,E180,K51) -> 5.00 | L196: °
E200: Anti-Dive Angle | F200: =IF(J180=FALSE,-D181,-L51) -> 5.00 | G200: ° | J200: Anti-Lift Angle | K200: =IF(J183=FALSE,E181,L51) -> 15.00 | L200: °
F204: Wheelbase | G204: =IF(J180=TRUE,D35,IF(J183=TRUE,D35,D185)) -> 2800.000 | H204: mm
C206: Front Anti Dive % | D206: =(D212*(D218+D211)*D214)/(D217*D215)*100 -> 26.42 | E206: % | J206: Rear Anti Squat % | L206: =(D212*(D220)*D216)/(D219*D215)*100 -> 22.02 | M206: %
C207: Front Anti Lift % | D207: =(D212*(D218)*(1-D216))/(D217*D215)*100 -> 8.79 | E207: % | J207: Rear Anti Lift % | L207: =(D212*(D220+D213)*(1-D214))/(D219*D215)*100 -> 53.95 | M207: %
C211: slr_fr | D211: =D222 -> 300.000
C212: wb | D212: =G204 -> 2800.000
C213: slr_rr | D213: =E222 -> 300.000
C214: brake | D214: =D182/100 -> 0.600
C215: cog | D215: =D184 -> 556.000
C216: trac | D216: =D183/100 -> 0.500
C217: Length S-Arm | D217: =-D211/(TAN(F196/180*3.14)-TAN((F200+0.000001)/180*3.14)) -> 5709.821
C218: Height S-Arm (Relative to Wheel Center) | D218: =TAN(F200/180*3.14)*D217-D211 -> 199.290
C219: Length S-Arm | D219: =-D213/(TAN(K196/180*3.14)-TAN((K200+0.000001)/180*3.14)) -> 1663.313
C220: Height S-Arm (Relative to Wheel Center) | D220: =TAN(K200/180*3.14)*D219-D213 -> 145.447
D221: 300.000 | E221: 300.000
D222: =IF(J180=TRUE,D29,D221) -> 300.00 | E222: =IF(J183=TRUE,D29,E221) -> 300.000

Sheet DASHBOARD (hidden)
D8: No | F8: X | G8: Y | H8: Z | I8: length
A9: ifederbewegung | D9: 1 | E9: TRACK ROD INNER JOINT | F9: =IF($F$29<>1,-('MASTER DASHBOARD'!D11-$F$50),'MASTER DASHBOARD'!D11) -> 100.00 | G9: ='MASTER DASHBOARD'!E11 -> 300.00 | H9: =IF($F$29<>1,'MASTER DASHBOARD'!F11-$H$50,'MASTER DASHBOARD'!F11) -> 300.00 | I9: =SQRT((F10-F9)^2+(G9-G10)^2+(H9-H10)^2) -> 301.4133375
A10: =IF('MASTER DASHBOARD'!C37=TRUE,1,0) -> 1 | B10: springtravel | D10: 2 | E10: TRACK ROD OUTER JOINT | F10: =IF($F$29<>1,-('MASTER DASHBOARD'!D12-$F$50),'MASTER DASHBOARD'!D12) -> 125.00 | G10: ='MASTER DASHBOARD'!E12 -> 600.00 | H10: =IF($F$29<>1,'MASTER DASHBOARD'!F12-$H$50,'MASTER DASHBOARD'!F12) -> 315.00
A11: ='MASTER DASHBOARD'!D32 -> 50.00 | B11: ='MASTER DASHBOARD'!D33 -> -50.00 | C11: 500 | D11: 3 | E11: =IF(ifederlenker=1,"LOWER LINK 1 INNER JOINT","SPRING LINK INNER JOINT") -> SPRING LINK INNER JOINT | F11: =IF($F$29<>1,-('MASTER DASHBOARD'!D13-$F$50),'MASTER DASHBOARD'!D13) -> -60.00 | G11: ='MASTER DASHBOARD'!E13 -> 230.00 | H11: =IF($F$29<>1,'MASTER DASHBOARD'!F13-$H$50,'MASTER DASHBOARD'!F13) -> 185.00 | I11: =SQRT((F12-F11)^2+(G11-G12)^2+(H11-H12)^2) -> 422.9657197
A12: zivfe | C12: 500 | D12: 4 | E12: =IF(ifederlenker=1,"LOWER LINK 1 OUTER JOINT","SPRING LINK OUTER JOINT") -> SPRING LINK OUTER JOINT | F12: =IF($F$29<>1,-('MASTER DASHBOARD'!D14-$F$50),'MASTER DASHBOARD'!D14) -> -10.00 | G12: ='MASTER DASHBOARD'!E14 -> 650.00 | H12: =IF($F$29<>1,'MASTER DASHBOARD'!F14-$H$50,'MASTER DASHBOARD'!F14) -> 185.00
A13: -0.01 | B13: -0.1 | D13: 5 | E13: =IF(iintegral=0,"LOWER LINK 2 INNER JOINT","INTEGRAL SUPPORT LINK INNER JOINT") -> LOWER LINK 2 INNER JOINT | F13: =IF($F$29<>1,-('MASTER DASHBOARD'!D15-$F$50),'MASTER DASHBOARD'!D15) -> 300.00 | G13: ='MASTER DASHBOARD'!E15 -> 230.00 | H13: =IF($F$29<>1,'MASTER DASHBOARD'!F15-$H$50,'MASTER DASHBOARD'!F15) -> 180.00 | I13: =SQRT((F14-F13)^2+(G13-G14)^2+(H13-H14)^2) -> 482.6230413
D14: 6 | E14: =IF(iintegral=0,"LOWER LINK 2 OUTER JOINT","INTEGRAL SUPPORT LINK OUTER JOINT") -> LOWER LINK 2 OUTER JOINT | F14: =IF($F$29<>1,-('MASTER DASHBOARD'!D16-$F$50),'MASTER DASHBOARD'!D16) -> 30.00 | G14: ='MASTER DASHBOARD'!E16 -> 630.00 | H14: =IF($F$29<>1,'MASTER DASHBOARD'!F16-$H$50,'MASTER DASHBOARD'!F16) -> 185.00
A15: ='MASTER DASHBOARD'!D34 -> 25.00 | B15: 250 | C15: =IF(racktravel>=0,1,-1) -> 1 | D15: 7 | E15: =IF(iMcPherson=0,IF(iintegral=0,"UPPER LINK 1 INNER JOINT","INTEGRAL LINK JOINT"),"") -> UPPER LINK 1 INNER JOINT | F15: =IF(iMcPherson=0,IF($F$29<>1,-('MASTER DASHBOARD'!D17-$F$50),'MASTER DASHBOARD'!D17),0) -> 150.00 | G15: =IF(iMcPherson=0,'MASTER DASHBOARD'!E17,0) -> 320.00 | H15: =IF(iMcPherson=0,IF($F$29<>1,'MASTER DASHBOARD'!F17-$H$50,'MASTER DASHBOARD'!F17),0) -> 405.00 | I15: =SQRT((F16-F15)^2+(G15-G16)^2+(H15-H16)^2) -> 314.48
A16: steering data | B16: 0 | D16: 8 | E16: =IF(iMcPherson=0,IF(iintegral=0,"UPPER LINK 1 OUTER JOINT","INTEGRAL HUB JOINT"),"") -> UPPER LINK 1 OUTER JOINT | F16: =IF(iMcPherson=0,IF($F$29<>1,-('MASTER DASHBOARD'!D18-$F$50),'MASTER DASHBOARD'!D18),0) -> -10.00 | G16: =IF(iMcPherson=0,'MASTER DASHBOARD'!E18,0) -> 590.00 | H16: =IF(iMcPherson=0,IF($F$29<>1,'MASTER DASHBOARD'!F18-$H$50,'MASTER DASHBOARD'!F18),0) -> 425.00
A17: =IF('MASTER DASHBOARD'!C39=TRUE,1,0) -> 1 | B17: =IF('MASTER DASHBOARD'!C39=TRUE,1,0) -> 1 | D17: 9 | E17: =IF(iMcPherson=0,"UPPER LINK 2 INNER JOINT","") -> UPPER LINK 2 INNER JOINT | F17: =IF(iMcPherson=0,IF($F$29<>1,-('MASTER DASHBOARD'!D19-$F$50),'MASTER DASHBOARD'!D19),0) -> -100.00 | G17: =IF(iMcPherson=0,'MASTER DASHBOARD'!E19,0) -> 320.00 | H17: =IF(iMcPherson=0,IF($F$29<>1,'MASTER DASHBOARD'!F19-$H$50,'MASTER DASHBOARD'!F19),0) -> 400.00 | I17: =SQRT((F18-F17)^2+(G17-G18)^2+(H17-H18)^2) -> 275.73
A18: zivl | D18: 10 | E18: =IF(iMcPherson=0,"UPPER LINK 2 OUTER JOINT","") -> UPPER LINK 2 OUTER JOINT | F18: =IF(iMcPherson=0,IF($F$29<>1,-('MASTER DASHBOARD'!D20-$F$50),'MASTER DASHBOARD'!D20),0) -> -50.00 | G18: =IF(iMcPherson=0,'MASTER DASHBOARD'!E20,0) -> 590.00 | H18: =IF(iMcPherson=0,IF($F$29<>1,'MASTER DASHBOARD'!F20-$H$50,'MASTER DASHBOARD'!F20),0) -> 425.00
A19: -0.1 | D19: 11 | E19: =IF(iMcPherson=0,"SPRING/DAMPER INNER JOINT","UPPER STRUT JOINT") -> SPRING/DAMPER INNER JOINT | F19: =IF($F$29<>1,-('MASTER DASHBOARD'!D21-$F$50),'MASTER DASHBOARD'!D21) -> -20.00 | G19: ='MASTER DASHBOARD'!E21 -> 500.00 | H19: =IF($F$29<>1,'MASTER DASHBOARD'!F21-$H$50,'MASTER DASHBOARD'!F21) -> 800.00 | I19: =SQRT((F20-F19)^2+(G19-G20)^2+(H19-H20)^2) -> 617.0291727
D20: 12 | E20: =IF(iMcPherson=0,IF(ifederlenker=1,"SPRING/DAMPER OUTER HUB JOINT","SPRING/DAMPER OUTER LINK JOINT"),"LOWER STRUT JOINT") -> SPRING/DAMPER OUTER LINK JOINT | F20: =IF($F$29<>1,-('MASTER DASHBOARD'!D22-$F$50),'MASTER DASHBOARD'!D22) -> -20.00 | G20: ='MASTER DASHBOARD'!E22 -> 550.00 | H20: =IF($F$29<>1,'MASTER DASHBOARD'!F22-$H$50,'MASTER DASHBOARD'!F22) -> 185.00
D21: WC | E21: WHEEL CENTER POINT | F21: =IF($F$29<>1,-('MASTER DASHBOARD'!D23-$F$50),'MASTER DASHBOARD'!D23) -> 0.00 | G21: ='MASTER DASHBOARD'!E23 -> 700.00 | H21: =IF($F$29<>1,'MASTER DASHBOARD'!F23-$H$50,'MASTER DASHBOARD'!F23) -> 300.00
D22: WC ALIGN | E22: WHEEL CENTER ALIGNMENT POINT | F22: =IF($F$29<>1,-('MASTER DASHBOARD'!D24-'MASTER DASHBOARD'!$D$23),'MASTER DASHBOARD'!D24) -> 0 | G22: ='MASTER DASHBOARD'!E24 -> 600 | H22: =IF($F$29<>1,'MASTER DASHBOARD'!F24-'MASTER DASHBOARD'!$F$25,'MASTER DASHBOARD'!F24) -> 300 | I22: =SQRT((F22-F21)^2+(G21-G22)^2+(H21-H22)^2) -> 100
D23: CP | E23: CONTACT PATCH | F23: =IF($F$29<>1,-('MASTER DASHBOARD'!D25-'MASTER DASHBOARD'!$D$23),'MASTER DASHBOARD'!D25) -> 0 | G23: ='MASTER DASHBOARD'!E25 -> 700 | H23: =IF($F$29<>1,'MASTER DASHBOARD'!F25-'MASTER DASHBOARD'!$F$25,'MASTER DASHBOARD'!F25) -> 0
E25: static toe | F25: ='MASTER DASHBOARD'!D30 -> 0 | H25: federdaempferbein an radtraeger ?
E26: static camber | F26: ='MASTER DASHBOARD'!D31 -> 0 | H26: =IF(iMcPherson=1,1,IF(iintegral=1,0,IF('MASTER DASHBOARD'!D28="Link",0,1))) -> 0
E27: slr | F27: ='MASTER DASHBOARD'!D29 -> 300 | H27: combined lenken
E28: tw | F28: =2*G21 -> 1400 | H28: =IF('MASTER DASHBOARD'!D37=TRUE,1,0) -> 0
E29: dynatune coordinates | F29: =IF('MASTER DASHBOARD'!E9="OEM",0,1) -> 1 | H29: macpherson
E30: idir | F30: =IF(F10>=F21,1,-1) -> 1 | H30: =IF('MASTER DASHBOARD'!C9="MC PHERSON",1,0) -> 0
E31: animation step | F31: ='MASTER DASHBOARD'!K34 -> 25 | H31: integral
E32: lwb | F32: ='MASTER DASHBOARD'!D35 -> 2500 | H32: =IF('MASTER DASHBOARD'!C9="INTEGRAL COUPLING LINK",1,0) -> 0
K46: 1 | M46: =F9 -> 100.00 | N46: 300.00 | O46: 300.00 | Q46: =F9 -> 100.00 | R46: =G9 -> 300.00 | S46: 300.00
K47: 2 | M47: 125.00 | N47: 600.00 | O47: 315.00 | Q47: =F10 -> 125.00 | R47: 600.00 | S47: 315.00
K48: 4 | M48: =F12 -> -10.00 | N48: =G12 -> 650.00 | O48: =H12 -> 185.00 | Q48: =F12 -> -10.00 | R48: =G12 -> 650.00 | S48: 185.00
K49: 6 | M49: =F14 -> 30.00 | N49: =G14 -> 630.00 | O49: =H14 -> 185.00 | Q49: =F14 -> 30.00 | R49: =G14 -> 630.00 | S49: 185.00
E50: ZERO POINT FOR ALL GRAPHICS | F50: =IF($F$29<>1,'MASTER DASHBOARD'!$D$23,0) -> 0 | G50: =IF($F$29<>1,0,0) -> 0 | H50: =IF($F$29<>1,'MASTER DASHBOARD'!$F$25,0) -> 0 | K50: 8 | M50: =F16 -> -10.00 | N50: =G16 -> 590.00 | O50: =H16 -> 425.00 | Q50: =F16 -> -10.00 | R50: =G16 -> 590.00 | S50: 425.00
K51: 10 | M51: =F18 -> -50.00 | N51: =G18 -> 590.00 | O51: =H18 -> 425.00 | Q51: =F18 -> -50.00 | R51: =G18 -> 590.00 | S51: 425.00
K52: 12 | M52: =F20 -> -20.00 | N52: 550.00 | O52: 185.00 | Q52: =F20 -> -20.00 | R52: =G20 -> 550.00 | S52: 185.00
K53: WC | M53: 0.00 | N53: 700.00 | O53: 300.00 | Q53: =F21 -> 0.00 | R53: =G21 -> 700.00 | S53: 300.00
K54: WC ALIGN | M54: 0.00 | N54: 600.00 | O54: 300.00 | Q54: =F22 -> 0.00 | R54: 600.00 | S54: 300.00
K55: CP | M55: 0.00 | N55: 700.00 | O55: 0.00 | Q55: =F23 -> 0.00 | R55: 700.00 | S55: 0.00
M56: =F15 -> 150.00 | N56: =G15 -> 320.00 | O56: =H15 -> 405.00 | Q56: =F15 -> 150.00 | R56: =G15 -> 320.00 | S56: 405.00
K64: toe = | L64: camber =
K65: =F25 -> 0 | L65: =F26 -> 0 | N65: =F25 -> 0 | O65: =F26 -> 0
U89: toe | V89: camber
B90: ax | C90: ay | D90: US | E90: Xcoord | F90: Ycoord | G90: Calculated Angles | L90: 1 | M90: 100 | N90: 300 | O90: 300 | P90: =F25 -> 0 | Q90: =F26 -> 0 | R90: 100 | S90: 300 | T90: 300 | U90: =F25 -> 0 | V90: =F26 -> 0
A91: tire | B91: =B207 -> 0.00 | C91: 800.00 | D91: 0.00 | E91: =(B91*ROTMX1)+(C91*ROTMY1)+(D91*ROTMZ1) -> 751.7540966 | F91: =(B91*ROTMX2)+(C91*ROTMY2)+(D91*ROTMZ2) -> -93.58222275 | G91: =SIN(RADIANS(XROTATE)) -> -0.9396926208 | H91: =SIN(RADIANS(YROTATE)) -> 0 | I91: =SIN(RADIANS(ZROTATE)) -> -0.9396926208 | L91: 2 | M91: 125 | N91: 600 | O91: 315 | P91: -1.162503122e-05 | Q91: 0.0002656095597 | R91: 125 | S91: 600 | T91: 315 | U91: 1.162503122e-05 | V91: -0.0002656095597
B92: -150.00 | C92: 800.00 | D92: 40.19 | E92: 803.0571181 | F92: -7.604670195 | G92: =COS(RADIANS(XROTATE)) -> 0.3420201433 | H92: =COS(RADIANS(YROTATE)) -> 1 | I92: =COS(RADIANS(ZROTATE)) -> -0.3420201433 | L92: 4 | M92: -10 | N92: 650 | O92: 185 | P92: -0.03670567567 | Q92: 0.005494622684 | R92: -10 | S92: 650 | T92: 185 | U92: 0.03670525741 | V92: -0.005494709672
B93: -259.81 | C93: 800.00 | D93: 150.00 | E93: 840.6135364 | F93: 130.8722302 | G93: Rotation Matrix | L93: 6 | M93: 30 | N93: 630 | O93: 185 | P93: -0.0733975221 | Q93: 0.01072512526 | R93: 30 | S93: 630 | T93: 185 | U93: 0.07340110064 | V93: -0.01072232162
B94: -300.00 | C94: 800.00 | D94: 300.00 | E94: 854.3601396 | F94: 284.7437049 | G94: =YCOS*ZCOS -> -0.3420201433 | H94: =-ZSIN * YCOS -> 0.9396926208 | I94: =YSIN -> 0 | L94: 8 | M94: -10 | N94: 590 | O94: 425 | P94: -0.1100871886 | Q94: 0.01595712684 | R94: -10 | S94: 590 | T94: 425 | U94: 0.1100991789 | V94: -0.01594845368
B95: -259.81 | C95: 800.00 | D95: 450.00 | E95: 840.6135364 | F95: 412.7800165 | G95: =ZCOS * -YSIN * -XSIN + ZSIN * XCOS -> -0.3213938048 | H95: =-ZSIN * -YSIN * -XSIN + ZCOS*XCOS -> -0.1169777784 | I95: =YCOS * -XSIN -> 0.9396926208 | L95: 10 | M95: -50 | N95: 590 | O95: 425 | P95: -0.1467746993 | Q95: 0.02119063636 | R95: -50 | S95: 590 | T95: 425 | U95: 0.1467995166 | V95: -0.02117311471
B96: -150.00 | C96: 800.00 | D96: 559.81 | E96: 803.0571181 | F96: 480.6739386 | G96: =ZCOS * -YSIN * XCOS + ZSIN * XSIN -> 0.8830222216 | H96: =-ZSIN * -YSIN * XCOS + ZCOS * XSIN -> 0.3213938048 | I96: =YCOS * XCOS -> 0.3420201433 | L96: 12 | M96: -20 | N96: 550 | O96: 185 | P96: -0.1834600784 | Q96: 0.02642566275 | R96: -20 | S96: 550 | T96: 185 | U96: 0.1835021378 | V96: -0.02639631359
B97: -0.00 | C97: 800.00 | D97: 600.00 | E97: 751.7540966 | F97: 470.2333497 | G97: Axes | L97: WC | M97: 0 | N97: 700 | O97: 300 | P97: -0.22014335 | Q97: 0.03166221498 | R97: 0 | S97: 700 | T97: 300 | U97: 0.220207067 | V97: -0.03161805919
B98: 150.00 | C98: 800.00 | D98: 559.81 | E98: 700.4510751 | F98: 384.2557972 | G98: X | H98: Y | I98: Z | J98: Coordinati ISO | L98: WC ALIGN | M98: 0 | N98: 600 | O98: 300 | P98: -0.2568245382 | Q98: 0.03690030202 | R98: 0 | S98: 600 | T98: 300 | U98: 0.2569143286 | V98: -0.03683836034
B99: 259.81 | C99: 800.00 | D99: 450.00 | E99: 662.8946568 | F99: 245.7788967 | G99: =MIN(axis_scale*MIN(F9:F23),0) -> -100 | H99: 0 | I99: 0 | J99: =(G99*ROTMX1)+(H99*ROTMY1)+(I99*ROTMZ1) -> 34.20201433 | K99: =(G99*ROTMX2)+(H99*ROTMY2)+(I99*ROTMZ2) -> 32.13938048 | L99: CP | M99: 0 | N99: 700 | O99: 0 | P99: -0.2935036671 | Q99: 0.04213993284 | R99: 0 | S99: 700 | T99: 0 | U99: 0.2936239468 | V99: -0.04205722587
B100: 300.00 | C100: 800.00 | D100: 300.00 | E100: 649.1480536 | F100: 91.90742203 | G100: =axis_scale*MAX(F9:F21) -> 300 | H100: 0 | I100: 0 | J100: -102.606043 | K100: -96.41814145 | L100: INT | M100: 150 | N100: 320 | O100: 405 | P100: -0.3301807609 | Q100: 0.04738111644 | R100: 150 | S100: 320 | T100: 405 | U100: 0.3303359461 | V100: -0.0472746646
B101: 259.81 | C101: 800.00 | D101: 150.00 | E101: 662.8946568 | F101: -36.12888952 | J101: 0 | K101: 0 | L101: 1 | M101: 100 | N101: 300.1 | O101: 300 | P101: -0.3668558434 | Q101: 0.05262386184 | R101: 100 | S101: 299.9 | T101: 300 | U101: 0.3670503509 | V101: -0.05249068534
B102: 150.00 | C102: 800.00 | D102: 40.19 | E102: 700.4510751 | F102: -104.0228116 | G102: 0 | H102: 0 | I102: 0 | J102: 0 | K102: 0 | L102: 2 | M102: 125.0391041 | N102: 600.095766 | O102: 315.0195057 | P102: -0.4035289388 | Q102: 0.05786817806 | R102: 124.9608959 | S102: 599.904234 | T102: 314.9804943 | U102: 0.4037671857 | V102: -0.05770529687
B103: 0.00 | C103: 800.00 | D103: 0.00 | E103: 751.7540966 | F103: -93.58222275 | G103: 0 | H103: =axis_scale*MAX(G9:G23) -> 700 | I103: 0 | J103: 657.7848346 | K103: -81.88444491 | L103: 4 | M103: -9.978528351 | N103: 649.9974439 | O103: 185 | P103: -0.440200071 | Q103: 0.06311407414 | R103: -10.02147165 | S103: 650.0025561 | T103: 185 | U103: 0.4404864749 | V103: -0.06291850797
B104: =E207 -> 0.00 | C104: =F207 -> 600.00 | D104: =G207 -> 0.00 | E104: 563.8155725 | F104: -70.18666706 | J104: 0 | K104: 0 | L104: 6 | M104: 30.03428022 | N104: 630.023061 | O104: 185.0062527 | P104: -0.476869264 | Q104: 0.06836155913 | R104: 29.96571978 | S104: 629.976939 | T104: 184.9937473 | U104: 0.4772082431 | V104: -0.06813032742
B105: -150.00 | C105: 600.00 | D105: 40.19 | E105: 615.118594 | F105: 15.79088549 | G105: 0 | H105: 0 | I105: ='MASTER DASHBOARD'!$D$33*2 -> -100 | J105: 0 | K105: -93.96926208 | L105: 8 | M105: -9.966666988 | N105: 590.0193473 | O105: 425.0054759 | P105: -0.5135365417 | Q105: 0.07361064209 | R105: -10.03333301 | S105: 589.9806527 | T105: 424.9945241 | U105: 0.5139325148 | V105: -0.07334076394
B106: -259.81 | C106: 600.00 | D106: 150.00 | E106: 652.6750123 | F106: 154.2677859 | G106: 0 | H106: 0 | I106: =axis_scale*MAX(H9:H23) -> 800 | J106: 0 | K106: 751.7540966 | L106: 10 | M106: -49.96666699 | N106: 589.9937301 | O106: 425.0010485 | P106: -0.550201928 | Q106: 0.07886133211 | R106: -50.03333301 | S106: 590.0062699 | T106: 424.9989515 | U106: 0.5506593146 | V106: -0.0785498263
B107: -300.00 | C107: 600.00 | D107: 300.00 | E107: 666.4216155 | F107: 308.1392606 | L107: 12 | M107: -20 | N107: 550 | O107: 184.989967 | P107: -0.5868654469 | Q107: 0.08411363828 | R107: -20 | S107: 550 | T107: 185.010033 | U107: 0.5873886671 | V107: -0.0837575232
B108: -259.81 | C108: 600.00 | D108: 450.00 | E108: 652.6750123 | F108: 436.1755722 | L108: WC | M108: -0.02327852033 | N108: 700.0143435 | O108: 299.9965436 | P108: -0.6235271221 | Q108: 0.08936756971 | R108: 0.02327852033 | S108: 699.9856565 | T108: 300.0034564 | U108: 0.6241205968 | V108: -0.08896386337
B109: -150.00 | C109: 600.00 | D109: 559.81 | E109: 615.118594 | F109: 504.0694943 | L109: WC ALIGN | M109: 0.04076432348 | N109: 600.0143435 | O109: 300.0056701 | P109: -0.6601869777 | Q109: 0.09462313551 | R109: -0.04076432348 | S109: 599.9856565 | T109: 299.9943299 | U109: 0.6608551285 | V109: -0.09416885549
B110: -0.00 | C110: 600.00 | D110: 600.00 | E110: 563.8155725 | F110: 493.6289054 | L110: CP | M110: 0.009926908696 | N110: 699.9869642 | O110: -0.003456366115 | P110: -0.6968450373 | Q110: 0.09988034483 | R110: -0.009926908696 | S110: 700.0130358 | T110: 0.003456366115 | U110: 0.6975922868 | V110: -0.09937250826
B111: 150.00 | C111: 600.00 | D111: 559.81 | E111: 512.512551 | F111: 407.6513528 | L111: INT | M111: 150 | N111: 320 | O111: 405 | P111: -0.7335013247 | Q111: 0.1051392068 | R111: 150 | S111: 320 | T111: 405 | U111: 0.7343320964 | V111: -0.1045748304
B112: 259.81 | C112: 600.00 | D112: 450.00 | E112: 474.9561327 | F112: 269.1744524 | L112: 1 | M112: 100 | N112: 300.2 | O112: 300 | P112: -0.7701558639 | Q112: 0.1103997306 | R112: 100 | S112: 299.8 | T112: 300 | U112: 0.7710745821 | V112: -0.1097758304
B113: 300.00 | C113: 600.00 | D113: 300.00 | E113: 461.2095295 | F113: 115.3029777 | L113: 2 | M113: 125.0781619 | N113: 600.191531 | O113: 315.0390108 | P113: -0.8068086784 | Q113: 0.1156619254 | R113: 124.9217457 | S113: 599.8084668 | T113: 314.9609881 | U113: 0.8078197686 | V113: -0.1149755171
B114: 259.81 | C114: 600.00 | D114: 150.00 | E114: 474.9561327 | F114: -12.73333383 | L114: 4 | M114: -9.957027958 | N114: 649.9948832 | O114: 185 | P114: -0.8434597921 | Q114: 0.1209258005 | R114: -10.04291456 | S114: 650.0051078 | T114: 185 | U114: 0.8445676807 | V114: -0.1201738991
B115: 150.00 | C115: 600.00 | D115: 40.19 | E115: 512.512551 | F115: -80.62725596 | L115: 6 | M115: 30.06857151 | N115: 630.0461251 | O115: 185.0125061 | P115: -0.8801092286 | Q115: 0.1261913649 | R115: 29.93145064 | S115: 629.9538811 | T115: 184.9874954 | U115: 0.8813183433 | V115: -0.1253709849
B116: 0.00 | C116: 600.00 | D116: 0.00 | E116: 563.8155725 | F116: -70.18666706 | L116: 8 | M116: -9.933337098 | N116: 590.0386873 | O116: 425.0109483 | P116: -0.9167570117 | Q116: 0.1314586279 | R116: -10.06666915 | S116: 589.9612982 | T116: 424.9890449 | U116: 0.9180717811 | V116: -0.1305667832
B117: =B91 -> 0.00 | C117: =C91 -> 800.00 | D117: =D91 -> 0.00 | E117: 751.7540966 | F117: -93.58222275 | L117: 10 | M117: -49.9333202 | N117: 589.9874538 | O117: 425.0020933 | P117: -0.953403165 | Q117: 0.1367275988 | R117: -50.06665225 | S117: 590.0125332 | T117: 424.9978994 | U117: 0.9548280191 | V117: -0.1357613026
B118: =B104 -> 0.00 | C118: =C104 -> 600.00 | D118: =D104 -> 0.00 | E118: 563.8155725 | F118: -70.18666706 | L118: 12 | M118: -20.00000003 | N118: 549.9999997 | O118: 184.979934 | P118: -0.9900477122 | Q118: 0.1419982868 | R118: -20.00000003 | S118: 549.9999997 | T118: 185.020066 | U118: 0.9915870822 | V118: -0.1409545517
B119: -150.00 | C119: =C105 -> 600.00 | D119: 40.19 | E119: 615.118594 | F119: 15.79088549 | L119: WC | M119: -0.04654476051 | N119: 700.0286481 | O119: 299.9930837 | P119: -1.026690677 | Q119: 0.1472707012 | R119: 0.04656932865 | S119: 699.971274 | T119: 300.0069091 | U119: 1.028348995 | V119: -0.146146539
B120: =B92 -> -150.00 | C120: =C92 -> 800.00 | D120: 40.19 | E120: 803.0571181 | F120: -7.604670195 | L120: WC ALIGN | M120: 0.08153707919 | N120: 600.0286899 | O120: 300.0113391 | P120: -1.063332083 | Q120: 0.1525448513 | R120: -0.08152021667 | S120: 599.9713158 | T120: 299.9886589 | U120: 1.065113784 | V120: -0.1513372731
B121: -259.81 | C121: =C93 -> 800.00 | D121: 150.00 | E121: 840.6135364 | F121: 130.8722302 | L121: CP | M121: 0.01990304399 | N121: 699.9739243 | O121: -0.006910163783 | P121: -1.099971953 | Q121: 0.1578207462 | R121: -0.01980459303 | S121: 700.0260673 | T121: 0.006915303748 | U121: 1.101881472 | V121: -0.1565267626
B122: =B106 -> -259.81 | C122: =C106 -> 600.00 | D122: 150.00 | E122: 652.6750123 | F122: 154.2677859 | L122: INT | M122: 150 | N122: 320 | O122: 405 | P122: -1.136610311 | Q122: 0.1630983954 | R122: 150 | S122: 320 | T122: 405 | U122: 1.138652085 | V122: -0.1617150159
B123: -300.00 | C123: 600.00 | D123: 300.00 | E123: =(B123*ROTMX1)+(C123*ROTMY1)+(D123*ROTMZ1) -> 666.4216155 | F123: =(B123*ROTMX2)+(C123*ROTMY2)+(D123*ROTMZ2) -> 308.1392606 | M123: 100 | N123: 300.3 | O123: 300 | P123: -1.173247182 | Q123: 0.1683778082 | R123: 100 | S123: 299.7 | T123: 300 | U123: 1.175425648 | V123: -0.1669020416
B124: =B94 -> -300.00 | C124: 800.00 | D124: 300.00 | E124: 854.3601396 | F124: 284.7437049 | M124: 125.1171735 | N124: 600.2872948 | O124: 315.0585154 | P124: -1.209882587 | Q124: 0.1736589939 | R124: 124.8825492 | S124: 599.7126984 | T124: 314.9414814 | U124: 1.212202187 | V124: -0.1720878482
B125: -259.81 | C125: 800.00 | D125: 450.00 | E125: 840.6135364 | F125: 412.7800165 | M125: -9.935498822 | N125: 649.9923179 | O125: 185 | P125: -1.246516552 | Q125: 0.1789419619 | R125: -10.06432872 | S125: 650.0076549 | T125: 185 | U125: 1.248981725 | V125: -0.1772724442
B126: =B108 -> -259.81 | C126: 600.00 | D126: 450.00 | E126: 652.6750123 | F126: 436.1755722 | M126: 30.10287389 | N126: 630.0691923 | O126: 185.0187604 | P126: -1.283149099 | Q126: 0.1842267214 | R126: 29.89719256 | S126: 629.9308263 | T126: 184.9812443 | U126: 1.28576429 | V126: -0.1824558381
B127: -150.00 | C127: 600.00 | D127: 559.81 | E127: 615.118594 | F127: 504.0694943 | M127: -9.900010334 | N127: 590.0580202 | O127: 425.0164174 | P127: -1.319780251 | Q127: 0.189513282 | R127: -10.1000084 | S127: 589.9419365 | T127: 424.9835623 | U127: 1.322549904 | V127: -0.1876380383
B128: =B96 -> -150.00 | C128: 800.00 | D128: 559.81 | E128: 803.0571181 | F128: 480.6739386 | M128: -49.89995965 | N128: 589.981171 | O128: 425.0031345 | P128: -1.356410032 | Q128: 0.1948016529 | R128: -50.09995771 | S128: 590.0187902 | T128: 424.9968437 | U128: 1.359338595 | V128: -0.1928190533
B129: -0.00 | C129: 800.00 | D129: 600.00 | E129: 751.7540966 | F129: 470.2333497 | M129: -20.00000003 | N129: 549.9999997 | O129: 184.979934 | P129: -1.393038467 | Q129: 0.2000918436 | R129: -20.00000003 | S129: 549.9999997 | T129: 185.020066 | U129: 1.396130387 | V129: -0.1979988916
B130: =B110 -> -0.00 | C130: 600.00 | D130: 600.00 | E130: 563.8155725 | F130: 493.6289054 | M130: -0.06979873224 | N130: 700.0429137 | O130: 299.9896201 | P130: -1.429665577 | Q130: 0.2053838636 | R130: 0.06987243671 | S130: 699.9568525 | T130: 300.0103583 | U130: 1.432925305 | V130: -0.2031775616
B131: 150.00 | C131: 600.00 | D131: 559.81 | E131: 512.512551 | F131: 407.6513528 | M131: 0.1223182698 | N131: 600.0430393 | O131: 300.0170072 | P131: -1.466291386 | Q131: 0.2106777222 | R131: -0.1222676823 | S131: 599.9569781 | T131: 299.9829868 | U131: 1.469723376 | V131: -0.2083550716
B132: =B98 -> 150.00 | C132: 800.00 | D132: 559.81 | E132: 700.4510751 | F132: 384.2557972 | M132: 0.02992840928 | N132: 699.96088 | O132: -0.01036139759 | P132: -1.502915918 | Q132: 0.2159734289 | R132: -0.02963305625 | S132: 700.0390946 | T132: 0.0103768175 | U132: 1.506524623 | V132: -0.2135314302
B133: 259.81 | C133: 800.00 | D133: 450.00 | E133: 662.8946568 | F133: 245.7788967 | M133: 150 | N133: 320 | O133: 405 | P133: -1.539539196 | Q133: 0.2212709932 | R133: 150 | S133: 320 | T133: 405 | U133: 1.543329072 | V133: -0.2187066456
B134: =B112 -> 259.81 | C134: 600.00 | D134: 450.00 | E134: 474.9561327 | F134: 269.1744524 | M134: 100 | N134: 300.4 | O134: 300 | P134: -1.576161244 | Q134: 0.2265704246 | R134: 100 | S134: 299.6 | T134: 300 | U134: 1.58013675 | V134: -0.2238807263
B135: 300.00 | C135: 600.00 | D135: 300.00 | E135: 461.2095295 | F135: 115.3029777 | M135: 125.1561389 | N135: 600.3830575 | O135: 315.0780196 | P135: -1.612782084 | Q135: 0.2318717325 | R135: 124.8433065 | S135: 599.6169289 | T135: 314.921974 | U135: 1.61694768 | V135: -0.2290536807
B136: =B100 -> 300.00 | C136: 800.00 | D136: 300.00 | E136: 649.1480536 | F136: 91.90742203 | M136: -9.913940941 | N136: 649.9897482 | O136: 185 | P136: -1.64940174 | Q136: 0.2371749264 | R136: -10.08571415 | S136: 650.0101974 | T136: 185 | U136: 1.65376189 | V136: -0.2342255171
B137: 259.81 | C137: 800.00 | D137: 150.00 | E137: 662.8946568 | F137: -36.12888952 | M137: 30.13718736 | N137: 630.0922626 | O137: 185.0250154 | P137: -1.686020235 | Q137: 0.242480016 | R137: 29.86294555 | S137: 629.9077747 | T137: 184.9749939 | U137: 1.690579404 | V137: -0.2393962439
B138: =B114 -> 259.81 | C138: 600.00 | D138: 150.00 | E138: 474.9561327 | F138: -12.73333383 | M138: -9.866686698 | N138: 590.0773458 | O138: 425.0218832 | P138: -1.722637592 | Q138: 0.2477870107 | R138: -10.13335077 | S138: 589.9225676 | T138: 424.9780763 | U138: 1.727400247 | V138: -0.2445658693
B139: 150.00 | C139: 600.00 | D139: 40.19 | E139: 512.512551 | F139: -80.62725596 | M139: -49.86658533 | N139: 589.9748817 | O139: 425.0041721 | P139: -1.759253836 | Q139: 0.2530959201 | R139: -50.13324939 | S139: 590.0250406 | T139: 424.9957844 | U139: 1.764224446 | V139: -0.2497344018
B140: =B102 -> 150.00 | C140: =C102 -> 800.00 | D140: =D102 -> 40.19 | E140: 700.4510751 | F140: -104.0228116 | M140: -20.00000003 | N140: 549.9999997 | O140: 184.979934 | P140: -1.795868988 | Q140: 0.2584067537 | R140: -20.00000003 | S140: 549.9999997 | T140: 185.020066 | U140: 1.801052026 | V140: -0.2549018496
A141: spring link 1 | B141: =M53 -> 0.00 | C141: =N53 -> 700.00 | D141: =O53 -> 300.00 | E141: =(B141*ROTMX1)+(C141*ROTMY1)+(D141*ROTMZ1) -> 657.7848346 | F141: =(B141*ROTMX2)+(C141*ROTMY2)+(D141*ROTMZ2) -> 200.0233413 | M141: -0.09304044716 | N141: 700.0571404 | O141: 299.9861529 | P141: -1.832483072 | Q141: 0.2637195212 | R141: 0.09318785626 | S141: 699.9423921 | T141: 300.0138039 | U141: 1.837883013 | V141: -0.260068221
B142: =M48 -> -10.00 | C142: =N48 -> 650.00 | D142: =O48 -> 185.00 | E142: =(B142*ROTMX1)+(C142*ROTMY1)+(D142*ROTMZ1) -> 614.2204049 | F142: =(B142*ROTMX2)+(C142*ROTMY2)+(D142*ROTMZ2) -> 101.0215169 | M142: 0.1631078981 | N142: 600.0573914 | O142: 300.0226743 | P142: -1.869096111 | Q142: 0.2690342321 | R142: -0.163006723 | S142: 599.9426433 | T142: 299.9773137 | U142: 1.874717432 | V142: -0.2652335243
B143: =F11 -> -60.00 | C143: =G11 -> 230.00 | D143: =H11 -> 185.00 | E143: =(B143*ROTMX1)+(C143*ROTMY1)+(D143*ROTMZ1) -> 236.6505114 | F143: =(B143*ROTMX2)+(C143*ROTMY2)+(D143*ROTMZ2) -> 166.2218741 | M143: 0.04000300803 | N143: 699.9478316 | O143: -0.01381007212 | P143: -1.905708129 | Q143: 0.2743508961 | R143: -0.03941230153 | S143: 700.0521177 | T143: 0.01384091197 | U143: 1.91155531 | V143: -0.2703977678
B144: =IF(ifederlenker=0,M52,M48) -> -20.00 | C144: =IF(ifederlenker=0,N52,N48) -> 550.00 | D144: =IF(ifederlenker=0,O52,O48) -> 185.00 | E144: 523.6713443 | F144: 115.9332328 | M144: 150 | N144: 320 | O144: 405 | P144: -1.942319148 | Q144: 0.2796695228 | R144: 150 | S144: 320 | T144: 405 | U144: 1.948396671 | V144: -0.2755609598
B145: =M48 -> -10.00 | C145: =N48 -> 650.00 | D145: =O48 -> 185.00 | E145: 614.2204049 | F145: 101.0215169 | M145: 100 | N145: 300.5 | O145: 300 | P145: -1.978929192 | Q145: 0.2849901218 | R145: 100 | S145: 299.5 | T145: 300 | U145: 1.985241541 | V145: -0.2807231084
A146: Lower 2 | B146: =M53 -> 0.00 | C146: =N53 -> 700.00 | D146: =O53 -> 300.00 | E146: =(B146*ROTMX1)+(C146*ROTMY1)+(D146*ROTMZ1) -> 657.7848346 | F146: =(B146*ROTMX2)+(C146*ROTMY2)+(D146*ROTMZ2) -> 200.0233413 | M146: 125.1950582 | N146: 600.4788191 | O146: 315.0975233 | P146: -2.015538283 | Q146: 0.2903127029 | R146: 124.8040175 | S146: 599.5211582 | T146: 314.902466 | U146: 2.022089947 | V146: -0.285884222
B147: =M49 -> 30.00 | C147: =N49 -> 630.00 | D147: =O49 -> 185.00 | E147: =(B147*ROTMX1)+(C147*ROTMY1)+(D147*ROTMZ1) -> 581.7457468 | F147: =(B147*ROTMX2)+(C147*ROTMY2)+(D147*ROTMZ2) -> 90.50532028 | M147: -9.892354315 | N147: 649.9871738 | O147: 185 | P147: -2.052146446 | Q147: 0.2956372756 | R147: -10.10707083 | S147: 650.0127355 | T147: 185 | U147: 2.058941914 | V147: -0.2910443088
B148: =F13 -> 300.00 | C148: =G13 -> 230.00 | D148: =H13 -> 180.00 | E148: =(B148*ROTMX1)+(C148*ROTMY1)+(D148*ROTMZ1) -> 113.5232598 | F148: =(B148*ROTMX2)+(C148*ROTMY2)+(D148*ROTMZ2) -> 45.82164125 | M148: 30.17151192 | N148: 630.115336 | O148: 185.0312712 | P148: -2.088753702 | Q148: 0.3009638497 | R148: 29.8287096 | S148: 629.8847261 | T148: 184.9687442 | U148: 2.095797469 | V148: -0.2962033769
B149: =IF(iintegral=1,M56,M49) -> 30.00 | C149: =IF(iintegral=1,N56,N49) -> 630.00 | D149: =IF(iintegral=1,O56,O49) -> 185.00 | E149: 581.7457468 | F149: 90.50532028 | M149: -9.833366193 | N149: 590.0966643 | O149: 425.0273456 | P149: -2.125360075 | Q149: 0.3062924349 | R149: -10.16669625 | S149: 589.9031915 | T149: 424.9725868 | U149: 2.132656637 | V149: -0.3013614346
B150: =M49 -> 30.00 | C150: =N49 -> 630.00 | D150: =O49 -> 185.00 | E150: 581.7457468 | F150: 90.50532028 | M150: -49.83319725 | N150: 589.9685858 | O150: 425.0052061 | P150: -2.161965588 | Q150: 0.3116230408 | R150: -50.16652728 | S150: 590.0312846 | T150: 424.9947214 | U150: 2.169519443 | V150: -0.30651849
A151: Upper Link 1 & 2 | B151: =IF(iMcPherson=0,IF(iintegral=0,F15,M56),M52) -> 150.00 | C151: =IF(iMcPherson=0,IF(iintegral=0,G15,N56),N52) -> 320.00 | D151: =IF(iMcPherson=0,IF(iintegral=0,H15,O56),O52) -> 405.00 | E151: 249.3986172 | F151: 294.9335516 | M151: -20.00000003 | N151: 549.9999997 | O151: 184.979934 | P151: -2.198570264 | Q151: 0.3169556773 | R151: -20.00000003 | S151: 549.9999997 | T151: 185.020066 | U151: 2.206385915 | V151: -0.3116745515
B152: =IF(iMcPherson=0,M50,M52) -> -10.00 | C152: =IF(iMcPherson=0,N50,N52) -> 590.00 | D152: =IF(iMcPherson=0,O50,O52) -> 425.00 | E152: 557.8388477 | F152: 333.5664126 | M152: -0.1162699169 | N152: 700.0713281 | O152: 299.982682 | P152: -2.235174125 | Q152: 0.3222903542 | R152: 0.1165155991 | S152: 699.9278927 | T152: 300.0172459 | U152: 2.243256077 | V152: -0.316829627
B153: =DASHBOARD!M53 -> 0.00 | C153: =DASHBOARD!N53 -> 700.00 | D153: =DASHBOARD!O53 -> 300.00 | E153: 657.7848346 | F153: 200.0233413 | M153: 0.2039059666 | N153: 600.0717465 | O153: 300.0283404 | P153: -2.271777196 | Q153: 0.327627081 | R153: -0.2037373416 | S153: 599.9283113 | T153: 299.9716395 | U153: 2.280129957 | V153: -0.3219837248
B154: =IF(iMcPherson=0,M51,M52) -> -50.00 | C154: =IF(iMcPherson=0,N51,N52) -> 590.00 | D154: =IF(iMcPherson=0,O51,O52) -> 425.00 | E154: 571.5196534 | F154: 346.4221648 | M154: 0.05012684381 | N154: 699.9347789 | O154: -0.01725619193 | P154: -2.308379498 | Q154: 0.3329658678 | R154: -0.04914233193 | S154: 700.0651366 | T154: 0.01730759179 | U154: 2.31700758 | V154: -0.327136853
B155: =IF(iMcPherson=0,F17,M52) -> -100.00 | C155: =IF(iMcPherson=0,G17,N52) -> 320.00 | D155: =IF(iMcPherson=0,H17,O52) -> 400.00 | E155: =(B155*ROTMX1)+(C155*ROTMY1)+(D155*ROTMZ1) -> 334.903653 | F155: =(B155*ROTMX2)+(C155*ROTMY2)+(D155*ROTMZ2) -> 370.5835397 | M155: 150 | N155: 320 | O155: 405 | P155: -2.344981056 | Q155: 0.3383067241 | R155: 150 | S155: 320 | T155: 405 | U155: 2.353888973 | V155: -0.3322890198
A156: Track Rod+Spring | B156: =F9 -> 100.00 | C156: =N46 -> 300.00 | D156: =H9 -> 300.00 | E156: 247.7057719 | F156: 214.6750722 | M156: 100 | N156: 300.6 | O156: 300 | P156: -2.381581891 | Q156: 0.34364966 | R156: 100 | S156: 299.4 | T156: 300 | U156: 2.390774161 | V156: -0.3374402332
B157: =DASHBOARD!M47 -> 125.00 | C157: =DASHBOARD!N47 -> 600.00 | D157: =DASHBOARD!O47 -> 315.00 | E157: 521.0630546 | F157: 185.6422829 | M157: 125.2339312 | N157: 600.5745797 | O157: 315.1170266 | P157: -2.418182026 | Q157: 0.3489946851 | R157: 124.7646823 | S157: 599.4253863 | T157: 314.8829574 | U157: 2.427663171 | V157: -0.3425905014
B158: =DASHBOARD!M53 -> 0.00 | C158: =DASHBOARD!N53 -> 700.00 | D158: =DASHBOARD!O53 -> 300.00 | E158: 657.7848346 | F158: 200.0233413 | M158: -9.870738941 | N158: 649.984595 | O158: 185 | P158: -2.454781486 | Q158: 0.3543418094 | R158: -10.12839878 | S158: 650.015269 | T158: 185 | U158: 2.464556029 | V158: -0.3477398325
B159: =IF(ifederlenker=1,M52,M53) -> 0.00 | C159: =IF(ifederlenker=1,N52,N53) -> 700.00 | D159: =IF(ifederlenker=1,O52,O53) -> 300.00 | E159: 657.7848346 | F159: 200.0233413 | M159: 30.20584758 | N159: 630.1384125 | O159: 185.0375278 | P159: -2.491380291 | Q159: 0.3596910427 | R159: 29.7944847 | S159: 629.8616806 | T159: 184.9624953 | U159: 2.501452761 | V159: -0.3528882346
B160: =IF(ifederlenker=1,M54,M53) -> 0.00 | C160: =IF(ifederlenker=1,N54,N53) -> 700.00 | D160: =IF(ifederlenker=1,O54,O53) -> 300.00 | E160: 657.7848346 | F160: 200.0233413 | M160: -9.800048821 | N160: 590.1159755 | O160: 425.0328046 | P160: -2.527978466 | Q160: 0.3650423949 | R160: -10.20004485 | S160: 589.8838081 | T160: 424.967094 | U160: 2.538353394 | V160: -0.3580357157
A161: Knuckle 1 | B161: =DASHBOARD!M53 -> 0.00 | C161: =DASHBOARD!N53 -> 700.00 | D161: =DASHBOARD!O53 -> 300.00 | E161: 657.7848346 | F161: 200.0233413 | M161: -49.79979541 | N161: 589.9622835 | O161: 425.0062364 | P161: -2.564576033 | Q161: 0.3703958759 | R161: -50.19979138 | S161: 590.0375221 | T161: 424.9936547 | U161: 2.575257954 | V161: -0.3631822839
B162: =M47 -> 125.00 | C162: 600.00 | D162: 315.00 | E162: 521.0630546 | F162: 185.6422829 | M162: -20.00000003 | N162: 549.9999997 | O162: 184.979934 | P162: -2.601173015 | Q162: 0.3757514955 | R162: -20.00000003 | S162: 549.9999997 | T162: 185.020066 | U162: 2.612166467 | V162: -0.3683279472
B163: -10.00 | C163: 650.00 | D163: 185.00 | E163: 614.2204049 | F163: 101.0215169 | M163: -0.139487153 | N163: 700.0854769 | O163: 299.9792076 | P163: -2.637769435 | Q163: 0.3811092638 | R163: 0.139855677 | S163: 699.9133544 | T163: 300.0206843 | U163: 2.649078961 | V163: -0.3734727138
B164: 30.00 | C164: 630.00 | D164: 185.00 | E164: 581.7457468 | F164: 90.50532028 | M164: 0.2447124782 | N164: 600.0861045 | O164: 300.0340055 | P164: -2.674365315 | Q164: 0.3864691906 | R164: -0.2444595408 | S164: 599.9139823 | T164: 299.9659644 | U164: 2.68599546 | V164: -0.3786165915
B165: =IF(iMcPherson=0,M50,M52) -> -10.00 | C165: =IF(iMcPherson=0,N50,N52) -> 590.00 | D165: =IF(iMcPherson=0,O50,O52) -> 425.00 | E165: 557.8388477 | F165: 333.5664126 | M165: 0.06029992028 | N165: 699.9217219 | O165: -0.0206997616 | P165: -2.710960679 | Q165: 0.391831286 | R165: -0.05882315043 | S165: 700.0781514 | T165: 0.02077686156 | U165: 2.722915993 | V165: -0.3837595885
A166: Knuckle 2 | B166: =DASHBOARD!M53 -> 0.00 | C166: =DASHBOARD!N53 -> 700.00 | D166: =DASHBOARD!O53 -> 300.00 | E166: 657.7848346 | F166: 200.0233413 | M166: 150 | N166: 320 | O166: 405 | P166: -2.747555549 | Q166: 0.3971955598 | R166: 150 | S166: 320 | T166: 405 | U166: 2.759840585 | V166: -0.3889017128
B167: =M48 -> -10.00 | C167: 650.00 | D167: 185.00 | E167: 614.2204049 | F167: 101.0215169 | M167: 100 | N167: 300.7 | O167: 300 | P167: -2.784149948 | Q167: 0.4025620221 | R167: 100 | S167: 299.3 | T167: 300 | U167: 2.796769263 | V167: -0.3940429723
B168: 30.00 | C168: 630.00 | D168: 185.00 | E168: 581.7457468 | F168: 90.50532028 | M168: 125.2727581 | N168: 600.6703392 | O168: 315.1365295 | P168: -2.820743898 | Q168: 0.4079306829 | R168: 124.7253008 | S168: 599.3296131 | T168: 314.8634481 | U168: 2.833702053 | V168: -0.399183375
B169: =IF(iMcPherson=0,M50,M52) -> -10.00 | C169: =IF(iMcPherson=0,N50,N52) -> 590.00 | D169: =IF(iMcPherson=0,O50,O52) -> 425.00 | E169: 557.8388477 | F169: 333.5664126 | M169: -9.849094819 | N169: 649.9820115 | O169: 185 | P169: -2.857337423 | Q169: 0.4133015522 | R169: -10.14969799 | S169: 650.017798 | T169: 185 | U169: 2.870638983 | V169: -0.4043229289
B170: =IF(iMcPherson=0,M51,M52) -> -50.00 | C170: =IF(iMcPherson=0,N51,N52) -> 590.00 | D170: =IF(iMcPherson=0,O51,O52) -> 425.00 | E170: 571.5196534 | F170: 346.4221648 | M170: 30.24019434 | N170: 630.1614921 | O170: 185.0437853 | P170: -2.893930545 | Q170: 0.4186746401 | R170: 29.76027085 | S170: 629.8386382 | T170: 184.9562471 | U170: 2.907580079 | V170: -0.409461642
A171: Knuckle 3 | B171: =DASHBOARD!M53 -> 0.00 | C171: =DASHBOARD!N53 -> 700.00 | D171: =DASHBOARD!O53 -> 300.00 | E171: 657.7848346 | F171: 200.0233413 | M171: -9.766734584 | N171: 590.1352795 | O171: 425.0382603 | P171: -2.930523287 | Q171: 0.4240499565 | R171: -10.23339656 | S171: 589.8644176 | T171: 424.9615977 | U171: 2.944525368 | V171: -0.4145995222
B172: =M49 -> 30.00 | C172: =N49 -> 630.00 | D172: =O49 -> 185.00 | E172: 581.7457468 | F172: 90.50532028 | M172: -49.76637982 | N172: 589.9559747 | O172: 425.0072631 | P172: -2.967115671 | Q172: 0.4294275116 | R172: -50.23304168 | S172: 590.0437532 | T172: 424.9925845 | U172: 2.981474877 | V172: -0.4197365775
B173: =IF(iMcPherson=0,M50,M52) -> -10.00 | C173: =IF(iMcPherson=0,N50,N52) -> 590.00 | D173: =IF(iMcPherson=0,O50,O52) -> 425.00 | E173: 557.8388477 | F173: 333.5664126 | M173: -20.00000003 | N173: 549.9999997 | O173: 184.979934 | P173: -3.003707721 | Q173: 0.4348073155 | R173: -20.00000003 | S173: 549.9999997 | T173: 185.020066 | U173: 3.018428632 | V173: -0.4248728157
B174: =IF(iMcPherson=0,M51,M52) -> -50.00 | C174: =IF(iMcPherson=0,N51,N52) -> 590.00 | D174: =IF(iMcPherson=0,O51,O52) -> 425.00 | E174: 571.5196534 | F174: 346.4221648 | M174: -0.1626921672 | N174: 700.0995868 | O174: 299.9757294 | P174: -3.040299458 | Q174: 0.4401893782 | R174: 0.1632081019 | S174: 699.898777 | T174: 300.0241192 | U174: 3.05538666 | V174: -0.4300082448
B175: =M47 -> 125.00 | C175: =N47 -> 600.00 | D175: =O47 -> 315.00 | E175: 521.0630546 | F175: 185.6422829 | M175: 0.2855274355 | N175: 600.1004653 | O175: 300.0396697 | P175: -3.076890906 | Q175: 0.4455737098 | R175: -0.2851733234 | S175: 599.8996561 | T175: 299.9602881 | U175: 3.092348989 | V175: -0.4351428728
A176: Knuckle 4 | B176: =DASHBOARD!M53 -> 0.00 | C176: =DASHBOARD!N53 -> 700.00 | D176: =DASHBOARD!O53 -> 300.00 | E176: 657.7848346 | F176: 200.0233413 | M176: 0.0705222412 | N176: 699.9086607 | O176: -0.02414078567 | P176: -3.113482087 | Q176: 0.4509603206 | R176: -0.06845475992 | S176: 700.0911619 | T176: 0.02424872594 | U176: 3.129315644 | V176: -0.4402767074
B177: =IF(iMcPherson=0,M50,M52) -> -10.00 | C177: =IF(iMcPherson=0,N50,N52) -> 590.00 | D177: =IF(iMcPherson=0,O50,O52) -> 425.00 | E177: 557.8388477 | F177: 333.5664126 | M177: 150 | N177: 320 | O177: 405 | P177: -3.150073023 | Q177: 0.4563492207 | R177: 150 | S177: 320 | T177: 405 | U177: 3.166286654 | V177: -0.4454097566
B178: =IF(iMcPherson=0,M51,M52) -> -50.00 | C178: =IF(iMcPherson=0,N51,N52) -> 590.00 | D178: =IF(iMcPherson=0,O51,O52) -> 425.00 | E178: 571.5196534 | F178: 346.4221648 | M178: 100 | N178: 300.8 | O178: 300 | P178: -3.186663738 | Q178: 0.4617404202 | R178: 100 | S178: 299.2 | T178: 300 | U178: 3.203262046 | V178: -0.4505420283
B179: =M47 -> 125.00 | C179: 600.00 | D179: 315.00 | E179: 521.0630546 | F179: 185.6422829 | M179: 125.3115388 | N179: 600.7660977 | O179: 315.156032 | P179: -3.223254254 | Q179: 0.4671339292 | R179: 124.6858731 | S179: 599.2338387 | T179: 314.8439381 | U179: 3.240241845 | V179: -0.4556735303
B180: -10.00 | C180: 650.00 | D180: 185.00 | E180: 614.2204049 | F180: 101.0215169 | M180: -9.827421947 | N180: 649.9794235 | O180: 185 | P180: -3.259844594 | Q180: 0.4725297581 | R180: -10.17096846 | S180: 650.0203225 | T180: 185 | U180: 3.27722608 | V180: -0.4608042705
A181: knuckle 5 | B181: =DASHBOARD!M53 -> 0.00 | C181: =DASHBOARD!N53 -> 700.00 | D181: =DASHBOARD!O53 -> 300.00 | E181: 657.7848346 | F181: 200.0233413 | M181: 30.27455221 | N181: 630.1845748 | O181: 185.0500435 | P181: -3.296434779 | Q181: 0.477927917 | R181: 29.72606805 | S181: 629.8155989 | T181: 184.9499996 | U181: 3.314214778 | V181: -0.4659342566
B182: =IF(iMcPherson=0,M51,M52) -> -50.00 | C182: =IF(iMcPherson=0,N51,N52) -> 590.00 | D182: =IF(iMcPherson=0,O51,O52) -> 425.00 | E182: 571.5196534 | F182: 346.4221648 | M182: -9.733423485 | N182: 590.1545763 | O182: 425.0437127 | P182: -3.333024834 | Q182: 0.4833284162 | R182: -10.26675137 | S182: 589.8450198 | T182: 424.9560981 | U182: 3.351207966 | V182: -0.4710634967
B183: =M47 -> 125.00 | C183: 600.00 | D183: 315.00 | E183: 521.0630546 | F183: 185.6422829 | M183: -49.73295048 | N183: 589.9496594 | O183: 425.0082862 | P183: -3.369614779 | Q183: 0.4887312659 | R183: -50.26627819 | S183: 590.0499778 | T183: 424.9915106 | U183: 3.388205671 | V183: -0.4761919984
B184: -10.00 | C184: 650.00 | D184: 185.00 | E184: 614.2204049 | F184: 101.0215169 | M184: -20.00000003 | N184: 549.9999997 | O184: 184.979934 | P184: -3.406204638 | Q184: 0.4941364763 | R184: -20.00000003 | S184: 549.9999997 | T184: 185.020066 | U184: 3.42520792 | V184: -0.4813197695
B185: 30.00 | C185: 630.00 | D185: 185.00 | E185: 581.7457468 | F185: 90.50532028 | M185: -0.1858849708 | N185: 700.1136577 | O185: 299.9722477 | P185: -3.442794433 | Q185: 0.4995440578 | R185: 0.1865728856 | S185: 699.8841607 | T185: 300.0275505 | U185: 3.462214741 | V185: -0.4864468179
A186: Integral link support | B186: =IF(iintegral=1,F13,0) -> 0 | C186: =IF(iintegral=1,G13,0) -> 0 | D186: =IF(iintegral=1,H13,0) -> 0 | E186: 0 | F186: 0 | M186: 0.3263508412 | N186: 600.1148291 | O186: 300.0453329 | P186: -3.479384188 | Q186: 0.5049540206 | R186: -0.3258786921 | S186: 599.8853329 | T186: 299.9546109 | U186: 3.499226161 | V186: -0.4915731514
B187: =IF(iintegral=1,M56,0) -> 0 | C187: =IF(iintegral=1,N56,0) -> 0 | D187: =IF(iintegral=1,O56,0) -> 0 | E187: =(B187*ROTMX1)+(C187*ROTMY1)+(D187*ROTMZ1) -> 0 | F187: =(B187*ROTMX2)+(C187*ROTMY2)+(D187*ROTMZ2) -> 0 | M187: 0.08079381041 | N187: 699.8955952 | O187: -0.02757926868 | P187: -3.515973923 | Q187: 0.5103663752 | R187: -0.07803716319 | S187: 700.1041682 | T187: 0.02772318956 | U187: 3.536242207 | V187: -0.4966987777
B188: =IF(iintegral=1,M49,0) -> 0 | C188: =IF(iintegral=1,N49,0) -> 0 | D188: =IF(iintegral=1,O49,0) -> 0 | E188: 0 | F188: 0 | M188: 150 | N188: 320 | O188: 405 | P188: -3.552563662 | Q188: 0.5157811317 | R188: 150 | S188: 320 | T188: 405 | U188: 3.573262908 | V188: -0.5018237046
E189: 0 | F189: 0 | M189: 100 | N189: 300.9 | O189: 300 | P189: -3.589153427 | Q189: 0.5211983006 | R189: 100 | S189: 299.1 | T189: 300 | U189: 3.61028829 | V189: -0.5069479399
E190: 0 | F190: 0 | M190: 125.3502733 | N190: 600.8618552 | O190: 315.1755342 | P190: -3.625743241 | Q190: 0.5266178922 | R190: 124.6463992 | S190: 599.138063 | T190: 314.8244274 | U190: 3.647318382 | V190: -0.5120714912
A191: Spring Damper | B191: =F19 -> -20.00 | C191: =G19 -> 500.00 | D191: =H19 -> 800.00 | E191: 476.6867133 | F191: 699.6930835 | M191: -9.805720325 | N191: 649.976831 | O191: 185 | P191: -3.662333126 | Q191: 0.5320399169 | R191: -10.1922102 | S191: 650.0228425 | T191: 185 | U191: 3.68435321 | V191: -0.5171943664
B192: =B194 -> -20.00 | C192: =C194 -> 525.00 | D192: 492.50 | E192: 500.1790288 | F192: 407.8131582 | M192: 30.30892119 | N192: 630.2076606 | O192: 185.0563026 | P192: -3.698923105 | Q192: 0.537464385 | R192: 29.69187628 | S192: 629.7925628 | T192: 184.9437528 | U192: 3.721392802 | V192: -0.5223165732
B193: =F19 -> -20.00 | C193: =G19 -> 500.00 | D193: =H19 -> 800.00 | E193: 476.6867133 | F193: 699.6930835 | M193: -9.700115527 | N193: 590.1738659 | O193: 425.0491617 | P193: -3.7355132 | Q193: 0.5428913072 | R193: -10.30010929 | S193: 589.8256148 | T193: 424.9505949 | U193: 3.758437187 | V193: -0.5274381192
B194: =(B191+B195)/2 -> -20.00 | C194: =(C191+C195)/2 -> 525.00 | D194: =(D191+D195)/2 -> 492.50 | E194: 500.1790288 | F194: 407.8131582 | M194: -49.69950739 | N194: 589.9433375 | O194: 425.0093057 | P194: -3.772103433 | Q194: 0.5483206936 | R194: -50.2995009 | S194: 590.056196 | T194: 424.990433 | U194: 3.795486391 | V194: -0.5325590122
B195: =DASHBOARD!M52 -> -20.00 | C195: =DASHBOARD!N52 -> 550.00 | D195: =DASHBOARD!O52 -> 185.00 | E195: 523.6713443 | F195: 115.9332328 | M195: -20.00000003 | N195: 549.9999997 | O195: 184.979934 | P195: -3.808693827 | Q195: 0.5537525549 | R195: -20.00000003 | S195: 549.9999997 | T195: 185.020066 | U195: 3.832540443 | V195: -0.5376792598
A196: wheel | B196: =DASHBOARD!M53 -> 0 | C196: =DASHBOARD!N53 -> 700 | D196: =DASHBOARD!O53 -> 300 | E196: 657.7848346 | F196: 200.0233413 | M196: -0.2090655754 | N196: 700.1276898 | O196: 299.9687622 | P196: -3.845284404 | Q196: 0.5591869014 | R196: 0.2099500401 | S196: 699.8695053 | T196: 300.0309782 | U196: 3.869599371 | V196: -0.5427988698
B197: =DASHBOARD!M54 -> 0 | C197: =DASHBOARD!N54 -> 600 | D197: =DASHBOARD!O54 -> 300 | E197: 563.8155725 | F197: 211.7211192 | M197: 0.3671826979 | N197: 600.1291957 | O197: 300.0509952 | P197: -3.881875186 | Q197: 0.5646237437 | R197: -0.3665756496 | S197: 599.8710125 | T197: 299.9489325 | U197: 3.906663201 | V197: -0.5479178498
B198: 1000 | C198: 1000 | D198: 1000 | E198: 597.6724775 | F198: 501.3210375 | M198: 0.09111463184 | N198: 699.8825255 | O198: -0.03101521518 | P198: -3.918466197 | Q198: 0.5700630923 | R198: -0.08757036294 | S198: 700.1171704 | T198: 0.03120025708 | U198: 3.943731963 | V198: -0.5530362074
E199: 0 | F199: 0 | M199: 150 | N199: 320 | O199: 405 | P199: -3.955057458 | Q199: 0.5755049576 | R199: 150 | S199: 320 | T199: 405 | U199: 3.980805684 | V199: -0.5581539504
B200: -0.4363309285 | C200: 649.8627654 | D200: 294.7664044 | E200: 610.8204791 | F200: 201.1105465 | M200: 100 | N200: 301 | O200: 300 | P200: -3.991648991 | Q200: 0.5809493502 | R200: 100 | S200: 299 | T200: 300 | U200: 4.017884392 | V200: -0.5632710864
M201: 125.3889616 | N201: 600.9576117 | O201: 315.1950361 | P201: -4.02824082 | Q201: 0.5863962807 | R201: 124.6068789 | S201: 599.0422861 | T201: 314.8049159 | U201: 4.054968116 | V201: -0.5683876229
B202: -81.30395639 | C202: 626.1146373 | D202: 300 | M202: -9.783989952 | N202: 649.9742338 | O202: 185 | P202: -4.064832966 | Q202: 0.5918457596 | R202: -10.21342319 | S202: 650.025358 | T202: 185 | U202: 4.092056883 | V202: -0.5735035677
M203: 30.3433013 | N203: 630.2307495 | O203: 185.0625626 | P203: -4.101425452 | Q203: 0.5972977976 | R203: 29.65769554 | S203: 629.7695297 | T203: 184.9375067 | U203: 4.129150721 | V203: -0.5786189283
B204: R | C204: =F27 -> 300 | M204: -9.666810713 | N204: 590.1931483 | O204: 425.0546074 | P204: -4.138018299 | Q204: 0.6027524051 | R204: -10.33347031 | S204: 589.8062025 | T204: 424.9450884 | U204: 4.166249659 | V204: -0.5837337123
B205: width | C205: ='MASTER DASHBOARD'!K36/2 -> 100 | M205: -49.66605056 | N205: 589.9370092 | O205: 425.0103215 | P205: -4.174611531 | Q205: 0.608209593 | R205: -50.3327098 | S205: 590.0624077 | T205: 424.9893518 | U205: 4.203353726 | V205: -0.5888479273
B206: x | C206: y | D206: z | E206: x | F206: y | G206: z | M206: -20.00000003 | N206: 549.9999997 | O206: 184.979934 | P206: -4.21120517 | Q206: 0.6136693717 | R206: -20.00000003 | S206: 549.9999997 | T206: 185.020066 | U206: 4.240462948 | V206: -0.5939615809
A207: 180 | B207: =$B$196+$C$205*SIN($K$65/180*PI())+$C$204*SIN(A207/180*PI())*COS($K$65/180*PI()) -> 0.00 | C207: =$C$196+$C$205+$C$205*SIN($L$65/180*PI())-(B207-$B$196)*(SIN($K$65/180*PI()))+$C$204*COS(A207/180*PI())*SIN($L$65/180*PI()) -> 800.00 | D207: =$D$196+$C$204*COS(A207/180*PI())*COS($L$65/180*PI()) -> 0.00 | E207: =$B$196-$C$205*SIN($K$65/180*PI())+$C$204*SIN(A207/180*PI())*COS($K$65/180*PI()) -> 0.00 | F207: =$C$196-$C$205-$C$205*SIN($L$65/180*PI())-(E207-$B$196)*(SIN($K$65/180*PI()))+$C$204*COS(A207/180*PI())*SIN($L$65/180*PI()) -> 600.00 | G207: =$D$196+$C$204*COS(A207/180*PI())*COS($L$65/180*PI()) -> 0.00 | H207: =$D$196+$C$204*COS(B207/180*PI())*COS($L$65/180*PI()) -> 600.00 | M207: -0.2322339925 | N207: 700.1416829 | O207: 299.9652732 | P207: -4.247799237 | Q207: 0.6191317519 | R207: 0.2333395773 | S207: 699.854811 | T207: 300.0344025 | U207: 4.277577355 | V207: -0.5990746807
A208: 210 | B208: -150.00 | C208: 800.00 | D208: 40.19 | E208: -150.00 | F208: 600.00 | G208: =$D$196+$C$204*COS(A208/180*PI())*COS($L$65/180*PI()) -> 40.19 | M208: 0.4080230083 | N208: 600.1435651 | O208: 300.0566565 | P208: -4.284393755 | Q208: 0.6245967444 | R208: -0.4072641988 | S208: 599.8566951 | T208: 299.9432531 | U208: 4.314696975 | V208: -0.6041872342
A209: 240 | B209: -259.81 | C209: 800.00 | D209: 150.00 | E209: -259.81 | F209: 600.00 | G209: 150.00 | M209: 0.1014847095 | N209: 699.8694514 | O209: -0.03444862969 | P209: -4.320988747 | Q209: 0.6300643598 | R209: -0.09705436177 | S209: 700.1301685 | T209: 0.03467993314 | U209: 4.351821837 | V209: -0.6092992489
A210: 270 | B210: -300.00 | C210: 800.00 | D210: 300.00 | E210: -300.00 | F210: 600.00 | G210: 300.00 | H210: =($C$204*COS(A210/180*PI())*COS($L$65/180*PI())*SIN($L$65/180*PI())) -> 0 | M210: 150 | N210: 320 | O210: 405 | P210: -4.357584235 | Q210: 0.6355346088 | R210: 150 | S210: 320 | T210: 405 | U210: 4.388951968 | V210: -0.6144107325
A211: 300 | B211: -259.81 | C211: 800.00 | D211: 450.00 | E211: -259.81 | F211: 600.00 | G211: 450.00 | M211: 100 | N211: 301.1 | O211: 300 | P211: -4.39418024 | Q211: 0.6410075022 | R211: 100 | S211: 298.9 | T211: 300 | U211: 4.426087398 | V211: -0.6195216924
A212: 330 | B212: -150.00 | C212: 800.00 | D212: 559.81 | E212: -150.00 | F212: 600.00 | G212: 559.81 | M212: 125.4276038 | N212: 601.0533672 | O212: 315.2145377 | P212: -4.430776786 | Q212: 0.6464830507 | R212: 124.5673124 | S212: 598.9465079 | T212: 314.7854037 | U212: 4.463228156 | V212: -0.6246321362
A213: 360 | B213: -0.00 | C213: 800.00 | D213: 600.00 | E213: -0.00 | F213: 600.00 | G213: 600.00 | M213: -9.762230825 | N213: 649.9716321 | O213: 185 | P213: -4.467373894 | Q213: 0.651961265 | R213: -10.23460746 | S213: 650.0278691 | T213: 185 | U213: 4.500374269 | V213: -0.6297420713
A214: 30 | B214: 150.00 | C214: 800.00 | D214: 559.81 | E214: 150.00 | F214: 600.00 | G214: 559.81 | M214: 30.37769252 | N214: 630.2538415 | O214: 185.0688234 | P214: -4.503971587 | Q214: 0.657442156 | R214: 29.62352583 | S214: 629.7464997 | T214: 184.9312613 | U214: 4.537525766 | V214: -0.6348515053
A215: 60 | B215: 259.81 | C215: 800.00 | D215: 450.00 | E215: 259.81 | F215: 600.00 | G215: 450.00 | M215: -9.633509044 | N215: 590.2124235 | O215: 425.0600498 | P215: -4.540569886 | Q215: 0.6629257344 | R215: -10.36683443 | S215: 589.7867831 | T215: 424.9395784 | U215: 4.574682677 | V215: -0.6399604456
A216: 90 | B216: 300.00 | C216: 800.00 | D216: 300.00 | E216: 300.00 | F216: 600.00 | G216: 300.00 | M216: -49.63257999 | N216: 589.9306743 | O216: 425.0113338 | P216: -4.577168815 | Q216: 0.668412011 | R216: -50.36590489 | S216: 590.068613 | T216: 424.988267 | U216: 4.611845029 | V216: -0.6450688998
A217: 120 | B217: 259.81 | C217: 800.00 | D217: 150.00 | E217: 259.81 | F217: 600.00 | G217: 150.00 | M217: -20.00000003 | N217: 549.9999997 | O217: 184.979934 | P217: -4.613768394 | Q217: 0.6739009968 | R217: -20.00000003 | S217: 549.9999997 | T217: 185.020066 | U217: 4.649012852 | V217: -0.6501768753
A218: 150 | B218: 150.00 | C218: 800.00 | D218: 40.19 | E218: 150.00 | F218: 600.00 | G218: 40.19 | M218: -0.2553902335 | N218: 700.155637 | O218: 299.9617804 | P218: -4.650368648 | Q218: 0.6793927024 | R218: 0.2567415091 | S218: 699.8400777 | T218: 300.0378231 | U218: 4.686186176 | V218: -0.6552843795
A219: 180 | B219: 0.00 | C219: 800.00 | D219: 0.00 | E219: 0.00 | F219: 600.00 | G219: 0.00 | M219: 0.4488717751 | N219: 600.1579375 | O219: 300.0623169 | P219: -4.686969596 | Q219: 0.6848871389 | R219: -0.4479443424 | S219: 599.8423806 | T219: 299.9375726 | U219: 4.723365027 | V219: -0.6603914199
M220: 0.1119040476 | N220: 699.8563731 | O220: -0.03787951673 | P220: -4.723571263 | Q220: 0.6903843171 | R220: -0.1064891622 | S220: 700.1431623 | T220: 0.03816222243 | U220: 4.760549437 | V220: -0.665498004
M221: 150 | N221: 320 | O221: 405 | P221: -4.76017367 | Q221: 0.6958842479 | R221: 150 | S221: 320 | T221: 405 | U221: 4.797739433 | V221: -0.6706041392
M222: 100 | N222: 301.2 | O222: 300 | P222: -4.796776838 | Q222: 0.7013869422 | R222: 100 | S222: 298.8 | T222: 300 | U222: 4.834935045 | V222: -0.6757098329
A223: 0 | B223: =$B$196+$C$204*SIN(A223/180*PI())*COS($K$65/180*PI()) -> 0.00 | C223: =$C$196+$C$205-B223*(SIN($K$65/180*PI())) -> 800.00 | D223: =$D$196+$C$204*COS(A223/180*PI())*COS($L$65/180*PI()) -> 600.00 | M223: 125.4661998 | N223: 601.1491217 | O223: 315.234039 | P223: -4.833380791 | Q223: 0.706892411 | R223: 124.5276996 | S223: 598.8507283 | T223: 314.7658906 | U223: 4.872136302 | V223: -0.6808150925
B224: 125 | C224: =C204-50 -> 250 | M224: -9.740442943 | N224: 649.9690258 | O224: 185 | P224: -4.869985551 | Q224: 0.7124006651 | R224: -10.25576298 | S224: 650.0303756 | T224: 185 | U224: 4.909343233 | V224: -0.6859199254
A225: 180 | B225: =$B$196+$B$224*SIN($K$65/180*PI())+$C$224*SIN(A225/180*PI())*COS($K$65/180*PI()) -> 3.062871137e-14 | C225: =$C$196+$B$224+$B$224*SIN($L$65/180*PI())-(B225-$B$196)*(SIN($K$65/180*PI()))+$C$224*COS(A225/180*PI())*SIN($L$65/180*PI()) -> 825 | D225: =$D$196+$C$224*COS(A207/180*PI())*COS($L$65/180*PI()) -> 50 | E225: =$B$196-$B$224*SIN($K$65/180*PI())+$C$224*SIN(A225/180*PI())*COS($K$65/180*PI()) -> 3.062871137e-14 | F225: =$C$196-$B$224-$B$224*SIN($L$65/180*PI())-(E225-$B$196)*(SIN($K$65/180*PI()))+$C$224*COS(A225/180*PI())*SIN($L$65/180*PI()) -> 575 | G225: =$D$196+$C$224*COS(A225/180*PI())*COS($L$65/180*PI()) -> 50.00 | M225: 30.41209488 | N225: 630.2769366 | O225: 185.075085 | P225: -4.906591139 | Q225: 0.7179117157 | R225: 29.58936715 | S225: 629.7234728 | T225: 184.9250165 | U225: 4.946555868 | V225: -0.691024339
A226: 210 | B226: -125 | C226: 825 | D226: 83.49364905 | E226: -125 | F226: 575 | G226: 83.49 | M226: -9.600210525 | N226: 590.2316915 | O226: 425.0654889 | P226: -4.943197577 | Q226: 0.7234255737 | R226: -10.40020165 | S226: 589.7673564 | T226: 424.934065 | U226: 4.983774235 | V226: -0.6961283407
A227: 240 | B227: -216.5063509 | C227: 825 | D227: 175 | E227: -216.5063509 | F227: 575 | G227: 175.00 | M227: -49.59909568 | N227: 589.9243328 | O227: 425.0123424 | P227: -4.979804889 | Q227: 0.7289422501 | R227: -50.39908617 | S227: 590.0748119 | T227: 424.9871786 | U227: 5.020998365 | V227: -0.7012319379
A228: 270 | B228: -250 | C228: 825 | D228: 300 | E228: -250 | F228: 575 | G228: 300.00 | M228: -20.00000003 | N228: 549.9999997 | O228: 184.979934 | P228: -5.016413095 | Q228: 0.734461756 | R228: -20.00000003 | S228: 549.9999997 | T228: 185.020066 | U228: 5.058228286 | V228: -0.7063351379
A229: 300 | B229: -216.5063509 | C229: 825 | D229: 425 | E229: -216.5063509 | F229: 575 | G229: 425.00 | M229: -0.2785343099 | N229: 700.1695523 | O229: 299.9582839 | P229: -5.053022219 | Q229: 0.7399841023 | R229: 0.2801558476 | S229: 699.8253053 | T229: 300.0412403 | U229: 5.095464028 | V229: -0.7114379481
A230: 330 | B230: -125 | C230: 825 | D230: 516.5063509 | E230: -125 | F230: 575 | G230: 516.51 | M230: 0.4897290009 | N230: 600.1723127 | O230: 300.0679764 | P230: -5.089632281 | Q230: 0.7455093003 | R230: -0.4886160831 | S230: 599.828069 | T230: 299.931891 | U230: 5.132705621 | V230: -0.7165403759
A231: 360 | B231: -6.125742275e-14 | C231: 825 | D231: 550 | E231: -6.125742275e-14 | F231: 575 | G231: 550.00 | M231: 0.1223726502 | N231: 699.8432904 | O231: -0.04130788081 | P231: -5.126243305 | Q231: 0.7510373608 | R231: -0.1158747667 | S231: 700.156152 | T231: 0.04164712962 | U231: 5.169953093 | V231: -0.7216424285
A232: 30 | B232: 125 | C232: 825 | D232: 516.5063509 | E232: 125 | F232: 575 | G232: 516.51 | M232: 150 | N232: 320 | O232: 405 | P232: -5.162855312 | Q232: 0.7565682951 | R232: 150 | S232: 320 | T232: 405 | U232: 5.207206476 | V232: -0.7267441132
A233: 60 | B233: 216.5063509 | C233: 825 | D233: 425 | E233: 216.5063509 | F233: 575 | G233: 425.00 | M233: 100 | N233: 301.3 | O233: 300 | P233: -5.199468325 | Q233: 0.7621021143 | R233: 100 | S233: 298.7 | T233: 300 | U233: 5.244465798 | V233: -0.7318454375
A234: 90 | B234: 250 | C234: 825 | D234: 300 | E234: 250 | F234: 575 | G234: 300.00 | M234: 125.5047496 | N234: 601.2448753 | O234: 315.25354 | P234: -5.236082365 | Q234: 0.7676388296 | R234: 124.4880405 | S234: 598.7549474 | T234: 314.7463767 | U234: 5.281731089 | V234: -0.7369464086
A235: 120 | B235: 216.5063509 | C235: 825 | D235: 175 | E235: 216.5063509 | F235: 575 | G235: 175.00 | M235: -9.718626306 | N235: 649.9664149 | O235: 185 | P235: -5.272697455 | Q235: 0.773178452 | R235: -10.27688978 | S235: 650.0328776 | T235: 185 | U235: 5.31900238 | V235: -0.7420470338
A236: 150 | B236: 125 | C236: 825 | D236: 83.49364905 | E236: 125 | F236: 575 | G236: 83.49 | M236: 30.44650837 | N236: 630.3000348 | O236: 185.0813476 | P236: -5.309313617 | Q236: 0.7787209928 | R236: 29.55521948 | S236: 629.7004491 | T236: 184.9187725 | U236: 5.356279699 | V236: -0.7471473204
A237: 180 | B237: 3.062871137e-14 | C237: 825 | D237: 50 | E237: 3.062871137e-14 | F237: 575 | G237: 50.00 | M237: -9.566915157 | N237: 590.2509523 | O237: 425.0709247 | P237: -5.345930872 | Q237: 0.7842664631 | R237: -10.43357197 | S237: 589.7479225 | T237: 424.928548 | U237: 5.393563077 | V237: -0.7522472757
M238: -49.56559765 | N238: 589.9179849 | O238: 425.0133474 | P238: -5.382549243 | Q238: 0.7898148742 | R238: -50.43225363 | S238: 590.0810043 | T238: 424.9860865 | U238: 5.430852543 | V238: -0.757346907
M239: -20.00000003 | N239: 549.9999997 | O239: 184.979934 | P239: -5.419168752 | Q239: 0.7953662374 | R239: -20.00000003 | S239: 549.9999997 | T239: 185.020066 | U239: 5.468148129 | V239: -0.7624462215
M240: -0.3016662329 | N240: 700.1834287 | O240: 299.9547838 | P240: -5.455789421 | Q240: 0.8009205638 | R240: 0.3035826048 | S240: 699.810494 | T240: 300.0446539 | U240: 5.505449863 | V240: -0.7675452264
M241: 0.5305946884 | N241: 600.1866908 | O241: 300.073635 | P241: -5.492411272 | Q241: 0.8064778647 | R241: -0.5292794238 | S241: 599.8137603 | T241: 299.9262083 | U241: 5.542757777 | V241: -0.772643929
M242: 0.1328905217 | N242: 699.8302035 | O242: -0.04473372643 | P242: -5.529034327 | Q242: 0.8120381515 | R242: -0.1252111775 | S242: 700.1691376 | T242: 0.04513465939 | U242: 5.5800719 | V242: -0.7777423366
M243: 150 | N243: 320 | O243: 405 | P243: -5.565658607 | Q243: 0.8176014355 | R243: 150 | S243: 320 | T243: 405 | U243: 5.617392262 | V243: -0.7828404564
M244: 100 | N244: 301.4 | O244: 300 | P244: -5.602284136 | Q244: 0.8231677279 | R244: 100 | S244: 298.6 | T244: 300 | U244: 5.654718894 | V244: -0.7879382955
M245: 125.5432533 | N245: 601.340628 | O245: 315.2730409 | P245: -5.638910935 | Q245: 0.8287370402 | R245: 124.4483351 | S245: 598.6591652 | T245: 314.726862 | U245: 5.692051826 | V245: -0.7930358613
M246: -9.696780911 | N246: 649.9637994 | O246: 185 | P246: -5.675539026 | Q246: 0.8343093836 | R246: -10.29798783 | S246: 650.0353752 | T246: 185 | U246: 5.729391089 | V246: -0.7981331608
M247: 30.480933 | N247: 630.3231361 | O247: 185.087611 | P247: -5.712168432 | Q247: 0.8398847697 | R247: 29.52108283 | S247: 629.6774284 | T247: 184.9125291 | U247: 5.766736713 | V247: -0.8032302013
M248: -9.533622943 | N248: 590.2702059 | O248: 425.0763572 | P248: -5.748799173 | Q248: 0.8454632097 | R248: -10.46694538 | S248: 589.7284814 | T248: 424.9230277 | U248: 5.804088729 | V248: -0.80832699
M249: -49.53208588 | N249: 589.9116304 | O249: 425.0143488 | P249: -5.785431273 | Q249: 0.8510447151 | R249: -50.46540727 | S249: 590.0871904 | T249: 424.9849907 | U249: 5.841447166 | V249: -0.813423534
M250: -20.00000003 | N250: 549.9999997 | O250: 184.979934 | P250: -5.822064752 | Q250: 0.8566292974 | R250: -20.00000003 | S250: 549.9999997 | T250: 185.020066 | U250: 5.878812057 | V250: -0.8185198405
M251: -0.324786014 | N251: 700.1972661 | O251: 299.95128 | P251: -5.858699634 | Q251: 0.862216968 | R251: 0.3270217928 | S251: 699.7956436 | T251: 300.048064 | U251: 5.916183432 | V251: -0.8236159166
... 2599 more rows

Sheet REBOUND (hidden)
F1: X | G1: Y | H1: Z | AS1: X | AT1: y | AU1: Z | BJ1: delta springtravel | BK1: WCZ | BL1: delta raktravel | BM1: TOE | BN1: CAMBER | BO1: RCH | BP1: WHEEL CENTER ANTI | BQ1: CONTACT PATCH ANTI | BR1: WCX | BS1: WCY | BT1: CPX | BU1: CPY | BV1: CPZ | BW1: ifeder | BX1: YQP | BY1: ZQP | BZ1: XLP | CA1: ZLP | CB1: HMSA | CC1: KPI | CD1: KPI OFF | CE1: CASTER | CF1: CASTER OFF | CG1: SCRUB RADIUS | CH1: CASTER TRAIL | CI1: ilenk | CJ1: pradlast | CK1: TOGGLE | CL1: slenk | DA1: SPRINGTRAVEL | DB1: WHEELCENTER DISPLACEMENT | DC1: RACKTRAVEL | DD1: TOE | DE1: CAMBER | DF1: RCH | DG1: WHEEL CENTER ANTI | DH1: CONTACT PATCH ANTI | DI1: WCX | DJ1: WCY | DK1: CPX | DL1: CPY | DM1: CPZ | DN1: SPRING RATIO | DO1: YQP | DP1: ZQP | DQ1: XLP | DR1: ZLP | DS1: HMSA | DT1: KPI | DU1: KPI OFF | DV1: CASTER | DW1: CASTER OFF | DX1: SCRUB RADIUS | DY1: CASTER TRAIL | DZ1: ilenk | EA1: pradlast | EB1: TOGGLE | EC1: slenk | EE1: =(EE2+COMPRESSION!EE2)/2 -> 0.000 | EF1: =(EF2+COMPRESSION!EF2)/2 -> 0.000 | EG1: =(EG2+COMPRESSION!EG2)/2 -> 0.000 | EH1: =(EH2+COMPRESSION!EH2)/2 -> 0.746 | EI1: =(EI2+COMPRESSION!EI2)/2 -> 0.000 | EJ1: =(EJ2+COMPRESSION!EJ2)/2 -> 0.867 | EK1: =(EK2+COMPRESSION!EK2)/2 -> 0.011 | EL1: =(EL2+COMPRESSION!EL2)/2 -> 0.000 | EM1: =(EM2+COMPRESSION!EM2)/2 -> -19.802 | EN1: =(EN2+COMPRESSION!EN2)/2 -> -0.242 | EO1: =(EO2+COMPRESSION!EO2)/2 -> 43.406 | EP1: =(EP2+COMPRESSION!EP2)/2 -> 1.013 | EQ1: =(EQ2+COMPRESSION!EQ2)/2 -> 0.115 | ER1: =(ER2+COMPRESSION!ER2)/2 -> -2.528 | ES1: =(ES2+COMPRESSION!ES2)/2 -> 0.000 | ET1: =(ET2+COMPRESSION!ET2)/2 -> 0.000 | EU1: =(EU2+COMPRESSION!EU2)/2 -> 0.000 | EV1: =(EV2+COMPRESSION!EV2)/2 -> 0.000 | EW1: =(EW2+COMPRESSION!EW2)/2 -> 0.000 | EX1: =(EX2+COMPRESSION!EX2)/2 -> 0.000 | EY1: =(EY2+COMPRESSION!EY2)/2 -> 700.000 | EZ1: =(EZ2+COMPRESSION!EZ2)/2 -> 300.000 | FA1: =(FA2+COMPRESSION!FA2)/2 -> 0.000 | FB1: =(FB2+COMPRESSION!FB2)/2 -> 700.000 | FC1: =(FC2+COMPRESSION!FC2)/2 -> 0.000 | FD1: =(FD2+COMPRESSION!FD2)/2 -> -2193.493 | FE1: =(FE2+COMPRESSION!FE2)/2 -> 179.420 | FF1: =(FF2+COMPRESSION!FF2)/2 -> 2200.818 | FG1: =(FG2+COMPRESSION!FG2)/2 -> -6498.005 | FH1: =(FH2+COMPRESSION!FH2)/2 -> 286.924 | FI1: =(FI2+COMPRESSION!FI2)/2 -> 6504.336 | FJ1: =(FJ2+COMPRESSION!FJ2)/2 -> 0.000 | FK1: =(FK2+COMPRESSION!FK2)/2 -> 43.406 | FL1: =(FL2+COMPRESSION!FL2)/2 -> 0.000 | FM1: =(FM2+COMPRESSION!FM2)/2 -> 9.806 | FN1: =(FN2+COMPRESSION!FN2)/2 -> 36.348 | FO1: =(FO2+COMPRESSION!FO2)/2 -> 8.110 | FP1: =(FP2+COMPRESSION!FP2)/2 -> -22.397 | FQ1: =(FQ2+COMPRESSION!FQ2)/2 -> 0.011 | FR1: =(FR2+COMPRESSION!FR2)/2 -> -15.500 | FS1: =(FS2+COMPRESSION!FS2)/2 -> 20.355 | FT1: =(FT2+COMPRESSION!FT2)/2 -> 19.622 | FU1: =(FU2+COMPRESSION!FU2)/2 -> 5.397 | FV1: =(FV2+COMPRESSION!FV2)/2 -> 0.000 | FW1: =(FW2+COMPRESSION!FW2)/2 -> 0.000 | FX1: =(FX2+COMPRESSION!FX2)/2 -> 0.000 | FY1: =(FY2+COMPRESSION!FY2)/2 -> 0.000 | FZ1: =(FZ2+COMPRESSION!FZ2)/2 -> 0.000 | GJ1: toggle | GK1: hmsa | GL1: x1 | GM1: y1 | GN1: x2 | GO1: y2 | GP1: x3 | GQ1: y3 | GR1: x4 | GS1: y4 | GU1: =MAX(GU2:GU1009)-0.001 -> 1.072039255
B2: REF WC | D2: TR | F2: =DASHBOARD!F9 -> 100.00 | G2: =DASHBOARD!G9 -> 300.00 | H2: =DASHBOARD!H9 -> 300 | K2: RiX0 | L2: RiY0 | M2: RiZ0 | N2: XL | O2: YL | P2: ZL | S2: 1 | T2: 2 | U2: 3 | V2: 4 | W2: 5 | X2: 6 | AC2: 1 | AD2: 2 | AE2: 3 | AF2: 4 | AG2: 5 | AH2: 6 | AJ2: X | AN2: VX | AO2: VY | AP2: VZ | AR2: 1 | AS2: =DASHBOARD!F9 -> 100.00 | AT2: =IF(ilenk_combined=0,DASHBOARD!$G$9,DASHBOARD!G9-zivl) -> 300.00 | AU2: =DASHBOARD!H9 -> 300.00 | AW2: HHWRT | AX2: =SQRT(MAX(AK6^2+AK7^2+AK8^2,0.0000000001)) -> 0.0006562993746 | AY2: CX | AZ2: =AX4*AX9-AX5*AX8 -> 0 | BA2: HVRTSE | BB2: =SQRT(MAX(AZ5^2+AZ6^2+AZ7^2,0.0000000001)) -> 0.0004007573086 | BC2: XQP | BD2: 0 | BE2: T6 | BF2: =H9-BD10*F9 -> 300 | BG2: SIGMA | BH2: =ATAN(-AK7/AK8) -> 0.1711386418 | BJ2: =IF(ilenk=0,ZIVF,0) -> 0 | BK2: =AP9 -> -0.003456366115 | BL2: =IF(ilenk=1,-zivl,IF(ilenk_combined=1,-zivl,0)) -> 0.1 | BM2: =BF9*180/PI() -> -0.03669384157 | BN2: =BF10*180/PI() -> 0.00522905669 | BO2: =BD7 -> 2640.988023 | BP2: =BF8*180/PI() -> -81.55449535 | BQ2: =BF7*180/PI() -> 70.80282728 | BR2: =AN9 -> -0.02327852033 | BS2: =AO9 -> 0.01434352727 | BT2: =AN11 -> 0.009927 | BU2: =AO11 -> -0.013036 | BV2: =AP11 -> -0.003456 | BW2: =BH10 -> 0 | BX2: =BD3 -> 662.1279398 | BY2: =BD4 -> 142.8352466 | BZ2: =BF4 -> 31.22711752 | CA2: =BF6 -> 89.68977263 | CB2: =AX10 -> -24.45811091 | CC2: =ROUND(BH2*180/PI(),3) -> 9.806 | CD2: =BH6 -> 36.3345776 | CE2: =ROUND(BH3*180/PI(),3) -> 8.11 | CF2: =BH7 -> -22.37383817 | CG2: =BH4 -> -15.48762381 | CH2: =BH5 -> 20.34513137 | CI2: =BH9 -> 0.366932675 | CJ2: =BH8 -> 5.397044317 | CK2: =BH11 -> 71.00822685 | CL2: =BI6 -> 663.652 | DA2: -0.1 | DB2: -0.1341354144 | DC2: 0 | DD2: -0.0001162503122 | DE2: 0.002656095595 | DF2: 43.43767922 | DG2: 0.1152945578 | DH2: -2.528295542 | DI2: 0.0002699169869 | DJ2: 0.005589811381 | DK2: -0.00592284921 | DL2: -0.008317472642 | DM2: -0.1341354144 | DN2: 0.7455152721 | DO2: -2193.492667 | DP2: 179.4197766 | DQ2: -6498.004777 | DR2: 287.05838 | DS2: -412.3704066 | DT2: 9.806 | DU2: 36.34697807 | DV2: 8.11 | DW2: -22.39447562 | DX2: -15.49913916 | DY2: 20.35378075 | DZ2: 0.366937887 | EA2: 5.396967657 | EB2: 71.00236637 | EC2: 663.6517184 | EE2: =DA2 -> -0.100 | EF2: =DB2 -> -0.134 | EG2: =DC2 -> 0.000 | EH2: =DN2 -> 0.746 | EI2: =DD2 -> -0.000 | EJ2: =(EI3-EI2)/(EF3-EF2)*1000 -> 0.850 | EK2: =(TAN(PI()/180)*TRACKWIDTH/2)*EJ2/1000 -> 0.010 | EL2: =DE2 -> 0.003 | EM2: =(EL3-EL2)/(EF3-EF2)*1000 -> -19.765 | EN2: =(TAN(PI()/180)*TRACKWIDTH/2)*EM2/1000 -> -0.242 | EO2: =DF2 -> 43.438 | EP2: =ABS((EO3-EO2)/(EF3-EF2)) -> 1.013 | EQ2: =DG2 -> 0.115 | ER2: =DH2 -> -2.528 | ES2: =DI2 -> 0.000 | ET2: =DJ2 -> 0.006 | EU2: =DK2 -> -0.006 | EV2: =DL2 -> -0.008 | EW2: =DM2 -> -0.134 | EX2: ='MASTER DASHBOARD'!$D$23+ES2 -> 0.000 | EY2: ='MASTER DASHBOARD'!$E$23+ET2 -> 700.006 | EZ2: ='MASTER DASHBOARD'!$F$23+EF2 -> 299.866 | FA2: ='MASTER DASHBOARD'!$D$25+EU2 -> -0.006 | FB2: ='MASTER DASHBOARD'!$E$25+EV2 -> 699.992 | FC2: ='MASTER DASHBOARD'!$F$25+EW2 -> -0.134 | FD2: =DO2 -> -2193.493 | FE2: =DP2 -> 179.420 | FF2: =SQRT(FD2^2+FE2^2) -> 2200.818 | FG2: =DQ2 -> -6498.005 | FH2: =DR2 -> 287.058 | FI2: =SQRT(FG2^2+FH2^2) -> 6504.342 | FJ2: =IF(AND(EF2<>0,COMPRESSION!EF2<>0),TAN((EF2-COMPRESSION!EF2-AVERAGE(EF2,COMPRESSION!EF2))/TRACKWIDTH)*180/PI(),"") -> -0.011 | FK2: =IF(AND(EF2<>0,COMPRESSION!EF2<>0),(GM2-GO2)/(GL2-GN2)*FL2+(GM2-(GM2-GO2)/(GL2-GN2)*GL2),"") -> 43.406 | FL2: =IF(AND(EF2<>0,COMPRESSION!EF2<>0),((GQ2-(GQ2-GS2)/(GP2-GR2)*GP2)-(GM2-(GM2-GO2)/(GL2-GN2)*GL2))/((GM2-GO2)/(GL2-GN2)-(GQ2-GS2)/(GP2-GR2)),"") -> 1.646 | FM2: =DT2 -> 9.806 | FN2: =DU2 -> 36.347 | FO2: =DV2 -> 8.110 | FP2: =DW2 -> -22.394 | FQ2: =(FO3-FO2)/(EF3-EF2) -> 0.007 | FR2: =DX2 -> -15.499 | FS2: =DY2 -> 20.354 | FT2: =360/RACK_RATIO/DZ2 -> 19.622 | FU2: =EA2 -> 5.397 | FV2: =IF(ilenk_combined=1,IF(iracktravel=1,ATAN(LWB/(LWB/TAN(COMPRESSION!DD2/180*PI())-2*'MASTER DASHBOARD'!$E$23))/PI()*180,ATAN(LWB/(LWB/TAN(REBOUND!DD2/180*PI())-2*'MASTER DASHBOARD'!$E$23))/PI()*180),0) -> 0.000 | FW2: =IF(ilenk_combined=1,(-iracktravel*REBOUND!DD2+iracktravel*COMPRESSION!DD2)/2,0) -> 0.000 | FX2: =IF(ilenk_combined=1,-REBOUND!DD2-COMPRESSION!DD2,0) -> 0.000 | FY2: =IF(ilenk_combined=1,IF(iracktravel=1,FV2-COMPRESSION!DD2,FV2-REBOUND!DD2),0) -> 0.000 | FZ2: =IF(ilenk_combined=1,MIN(MAX(FX2/FY2*100,-500),500),0) -> 0.000 | GJ2: =EB2 -> 71.002 | GK2: =DS2 -> -412.370 | GL2: =-GW2 -> -699.992 | GM2: =-GT2 -> -0.134 | GN2: =-FD2 -> 2193.493 | GO2: =FE2 -> 179.420 | GP2: =COMPRESSION!GW2 -> 700.008 | GQ2: =COMPRESSION!GT2 -> 0.134 | GR2: =COMPRESSION!FD2 -> -2193.493 | GS2: =COMPRESSION!FE2 -> 179.420 | GT2: =-FJ2/180*PI()*TRACKWIDTH/2 -> 0.1341354161 | GU2: =-EW2 -> 0.1341354144 | GV2: =FB2 -> 699.9916825 | GW2: =IFERROR(IF(GT2<=GU$1,Lin_Interp(GU$2:GV$1009,GT2,1),Lin_Interp(GU$2:GV$1009,GU$1,1)),"") -> 699.9916825
B3: =DASHBOARD!F22 -> 0 | D3: 2 | F3: =DASHBOARD!F10 -> 125.00 | G3: =DASHBOARD!G10 -> 600.00 | H3: =DASHBOARD!H10 -> 315 | J3: 2 | K3: =F3-B3 -> 125 | L3: =G3-B4 -> 0 | M3: =H3-B5 -> 15 | N3: =F3-DASHBOARD!$F$9 -> 25.00 | O3: =G3-DASHBOARD!$G$9 -> 300.00 | P3: =H3-DASHBOARD!$H$9 -> 15.00 | R3: 2 | S3: =N3 -> 25 | T3: 300 | U3: 15 | V3: =L3*P3-M3*O3 -> -4500 | W3: =M3*N3-K3*P3 -> -1500 | X3: =K3*O3-L3*N3 -> 37500 | Y3: vx | Z3: =IF(ilenk=1,-zivl*O3,IF(ilenk_combined=1,-zivl*O3,0)) -> 30 | AB3: 2 | AC3: =MINVERSE(S3:X8) -> 0.001358810783 | AD3: 0.00112928841 | AE3: -0.001649285858 | AF3: -0.00240672303 | AG3: 0.001583648868 | AH3: -0.0003592493548 | AJ3: V0X | AK3: =MMULT(AC3:AH8,Z3:Z8) -> 0.04076432348 | AM3: 2 | AN3: =AK3+(AK7*M3-AK8*L3) -> 0.039104 | AO3: =AK4+(AK8*K3-AK6*M3) -> 0.095766 | AP3: =AK5+(AK6*L3-AK7*K3) -> 0.019506 | AQ3: =SQRT(AP3^2+AO3^2+AN3^2) -> 0.1052650613 | AR3: 2 | AS3: =F3+AN3 -> 125.039 | AT3: 600.096 | AU3: 315.020 | AV3: =SQRT((AS3-DASHBOARD!$F$9)^2+(AT3-DASHBOARD!$G$9)^2+(AU3-DASHBOARD!$H$9)^2) -> 301.513 | AW3: EMSAX | AX3: =AK6/AX2 -> -0.139058909 | AY3: CY | AZ3: =AX5*AX7-AX3*AX8 -> 0.0004065811637 | BA3: PX | BB3: =AS9-AZ8 -> -0.03780732658 | BC3: YQP | BD3: =(BB11-BB10)/(BB8-BB9) -> 662.1279398 | BE3: T8 | BF3: =H11-BD11*F11 -> 0 | BG3: TAU | BH3: =ATAN(-AK6/AK8) -> 0.1415519688 | DA3: -0.1 | DB3: -0.1341346113 | DC3: 0 | DD3: -0.000230309067 | DE3: 0.005307276573 | DF3: 43.57351723 | DG3: 0.1166588475 | DH3: -2.527133539 | DI3: 0.0002731093096 | DJ3: 0.005538060553 | DK3: -0.005920054049 | DL3: -0.008343515486 | DM3: -0.13413384 | DN3: 0.7455197358 | DO3: -2198.826663 | DP3: 180.180808 | DQ3: -6497.519096 | DR3: 286.9046399 | DS3: -403.7004985 | DT3: 9.802 | DU3: 36.34983906 | DV3: 8.109 | DW3: -22.39464563 | DX3: -15.49402738 | DY3: 20.35354838 | DZ3: 0.3669667885 | EA3: 5.395936645 | EB3: 70.9938744 | EC3: 663.6571853 | EE3: =EE2+DA3 -> -0.200 | EF3: =EF2+DB3 -> -0.268 | EG3: =EG2+DC3 -> 0.000 | EH3: =DN3-COMPRESSION!$GI$6/2 -> 0.746 | EI3: -0.000 | EJ3: 0.834 | EK3: 0.010 | EL3: 0.005 | EM3: -19.729 | EN3: -0.241 | EO3: 43.574 | EP3: 1.013 | EQ3: =DG3-COMPRESSION!$GI$2/2 -> 0.117 | ER3: =DH3-COMPRESSION!$GI$4/2 -> -2.527 | ES3: =DI3+ES2 -> 0.001 | ET3: 0.011 | EU3: -0.012 | EV3: -0.017 | EW3: -0.268 | EX3: ='MASTER DASHBOARD'!$D$23+ES3 -> 0.001 | EY3: ='MASTER DASHBOARD'!$E$23+ET3 -> 700.011 | EZ3: ='MASTER DASHBOARD'!$F$23+EF3 -> 299.732 | FA3: ='MASTER DASHBOARD'!$D$25+EU3 -> -0.012 | FB3: ='MASTER DASHBOARD'!$E$25+EV3 -> 699.983 | FC3: ='MASTER DASHBOARD'!$F$25+EW3 -> -0.268 | FD3: -2198.827 | FE3: 180.181 | FF3: 2206.197 | FG3: -6497.519 | FH3: 286.905 | FI3: 6503.850 | FJ3: =FJ2+FJ$2 -> -0.022 | FK3: =IF(AND(EF3<>0,COMPRESSION!EF3<>0),(GM3-GO3)/(GL3-GN3)*FL3+(GM3-(GM3-GO3)/(GL3-GN3)*GL3),"") -> 43.303 | FL3: =IF(AND(EF3<>0,COMPRESSION!EF3<>0),((GQ3-(GQ3-GS3)/(GP3-GR3)*GP3)-(GM3-(GM3-GO3)/(GL3-GN3)*GL3))/((GM3-GO3)/(GL3-GN3)-(GQ3-GS3)/(GP3-GR3))-COMPRESSION!$GH$2/2,"") -> -0.028 | FM3: 9.802 | FN3: 36.350 | FO3: 8.109 | FP3: -22.395 | FQ3: 0.007 | FR3: -15.494 | FS3: 20.354 | FT3: 19.620 | FU3: 5.396 | FV3: =IF(ilenk_combined=1,IF(iracktravel=1,ATAN(LWB/(LWB/TAN(COMPRESSION!DD3/180*PI())-2*'MASTER DASHBOARD'!$E$23))/PI()*180,ATAN(LWB/(LWB/TAN(REBOUND!DD3/180*PI())-2*'MASTER DASHBOARD'!$E$23))/PI()*180),0) -> 0.000 | FW3: =IF(ilenk_combined=1,(-iracktravel*REBOUND!DD3+iracktravel*COMPRESSION!DD3)/2,0) -> 0.000 | FX3: =IF(ilenk_combined=1,-REBOUND!DD3-COMPRESSION!DD3,0) -> 0.000 | FY3: =IF(ilenk_combined=1,IF(iracktravel=1,FV3-COMPRESSION!DD3,FV3-REBOUND!DD3),0) -> 0.000 | FZ3: 0.000 | GJ3: 70.994 | GK3: -403.700 | GL3: =-GW3 -> -699.983 | GM3: =-GT3 -> -0.268 | GN3: =-FD3 -> 2198.827 | GO3: 180.181 | GP3: =COMPRESSION!GW3 -> 700.017 | GQ3: =COMPRESSION!GT3 -> 0.268 | GR3: =COMPRESSION!FD3 -> -2188.179 | GS3: =COMPRESSION!FE3 -> 178.662 | GT3: =GT2+GT$2 -> 0.2682708322 | GU3: =-EW3 -> 0.2682692544 | GV3: =FB3 -> 699.983339 | GW3: =IFERROR(IF(GT3<=GU$1,Lin_Interp(GU$2:GV$1009,GT3,1),Lin_Interp(GU$2:GV$1009,GU$1,1)),"") -> 699.9833389
B4: =DASHBOARD!G22 -> 600 | D4: 4 | F4: =DASHBOARD!F12 -> -10.00 | G4: =DASHBOARD!G12 -> 650.00 | H4: =DASHBOARD!H12 -> 185 | J4: 4 | K4: =F4-B3 -> -10 | L4: =G4-B4 -> 50 | M4: =H4-B5 -> -115 | N4: =F4-DASHBOARD!$F$11 -> 50.00 | O4: =G4-DASHBOARD!$G$11 -> 420.00 | P4: =H4-DASHBOARD!$H$11 -> 0.00 | Q4: =SQRT(N4^2+O4^2+P4^2) -> 422.9657197 | R4: 4 | S4: 50 | T4: 420 | U4: 0 | V4: 48300 | W4: -5750 | X4: -6700 | Y4: vy | Z4: 0 | AB4: 4 | AC4: 0.0004781175756 | AD4: 0.0009260597566 | AE4: 0.0001907682954 | AF4: 0.0003772082395 | AG4: 0.001072096617 | AH4: -0.004247218534 | AJ4: V0Y | AK4: 0.01434352727 | AM4: 4 | AN4: =AK3+(AK7*M4-AK8*L4) -> 0.021472 | AO4: =AK4+(AK8*K4-AK6*M4) -> -0.002556 | AP4: =AK5+(AK6*L4-AK7*K4) -> 0.000000 | AQ4: 0.02162326578 | AR4: 4 | AS4: -9.979 | AT4: 649.997 | AU4: 185.000 | AV4: =SQRT((AS4-DASHBOARD!$F$11)^2+(AT4-DASHBOARD!$G$11)^2+(AU4-DASHBOARD!$H$11)^2) -> 422.966 | AW4: EMSAY | AX4: =AK7/AX2 -> -0.1686498078 | AY4: CZ | AZ4: =AX3*AX8-AX4*AX7 -> 0 | BA4: PY | BB4: =AT9-AZ9 -> 700.6162287 | BC4: ZQP | BD4: =BB9*BD3+BB11 -> 142.8352466 | BE4: XLP | BF4: =(BF3-BF2)/(BD10-BD11) -> 31.22711752 | BG4: RS | BH4: =-(AN11*COS(-BF9)+AO11*SIN(-BF9))/BF11 -> -15.48762381 | BJ4: HIGH | BK4: LOW | BL4: TRO | BM4: TRI | BN4: z=ax+b | BO4: a= | BP4: b= | BQ4: -1/a= | BR4: z=cy+d | BS4: c= | BT4: d= | BU4: -1/c= | BW4: SPRING UP | BX4: SPRING LOW | BY4: LINK OUT | BZ4: LINK IN | CA4: z=ax+b | CB4: a= | CC4: b= | CD4: -1/a= | CE4: z=cy+d | CF4: c= | CG4: d= | CH4: -1/c= | CJ4: COUPLING KNUCKLE | CK4: COUPLING LINK | CL4: LINK OUT | CM4: LINK IN | CN4: z=ax+b | CO4: a= | CP4: b= | CQ4: -1/a= | CR4: z=cy+d | CS4: c= | CT4: d= | CU4: -1/c= | DA4: -0.1 | DB4: -0.1341338051 | DC4: 0 | DD4: -0.0003421750416 | DE4: 0.007953542596 | DF4: 43.70935914 | DG4: 0.1180240353 | DH4: -2.525969914 | DI4: 0.0002763036906 | DJ4: 0.005486306102 | DK4: -0.00591725517 | DL4: -0.008369559425 | DM4: -0.1341322659 | DN4: 0.7455242168 | DO4: -2204.180964 | DP4: 180.9452184 | DQ4: -6497.035245 | DR4: 286.7508165 | DS4: -394.9668343 | DT4: 9.799 | DU4: 36.35270857 | DV4: 8.108 | DW4: -22.3948209 | DX4: -15.48891183 | DY4: 20.35331575 | DZ4: 0.3669956818 | EA4: 5.394906942 | EB4: 70.9853603 | EC4: 663.659854 | EE4: =EE3+DA4 -> -0.300 | EF4: -0.402 | EG4: 0.000 | EH4: =DN4-COMPRESSION!$GI$6/2 -> 0.746 | EI4: -0.000 | EJ4: 0.818 | EK4: 0.010 | EL4: 0.008 | EM4: -19.692 | EN4: -0.241 | EO4: 43.709 | EP4: 1.013 | EQ4: =DG4-COMPRESSION!$GI$2/2 -> 0.118 | ER4: =DH4-COMPRESSION!$GI$4/2 -> -2.526 | ES4: =DI4+ES3 -> 0.001 | ET4: =DJ4+ET3 -> 0.017 | EU4: =DK4+EU3 -> -0.018 | EV4: =DL4+EV3 -> -0.025 | EW4: =DM4+EW3 -> -0.402 | EX4: ='MASTER DASHBOARD'!$D$23+ES4 -> 0.001 | EY4: ='MASTER DASHBOARD'!$E$23+ET4 -> 700.017 | EZ4: ='MASTER DASHBOARD'!$F$23+EF4 -> 299.598 | FA4: ='MASTER DASHBOARD'!$D$25+EU4 -> -0.018 | FB4: ='MASTER DASHBOARD'!$E$25+EV4 -> 699.975 | FC4: ='MASTER DASHBOARD'!$F$25+EW4 -> -0.402 | FD4: -2204.181 | FE4: 180.945 | FF4: 2211.596 | FG4: -6497.035 | FH4: 286.751 | FI4: 6503.360 | FJ4: =FJ3+FJ$2 -> -0.033 | FK4: =IF(AND(EF4<>0,COMPRESSION!EF4<>0),(GM4-GO4)/(GL4-GN4)*FL4+(GM4-(GM4-GO4)/(GL4-GN4)*GL4)-COMPRESSION!$GH$4/2,"") -> 43.405 | FL4: =IF(AND(EF4<>0,COMPRESSION!EF4<>0),((GQ4-(GQ4-GS4)/(GP4-GR4)*GP4)-(GM4-(GM4-GO4)/(GL4-GN4)*GL4))/((GM4-GO4)/(GL4-GN4)-(GQ4-GS4)/(GP4-GR4))-COMPRESSION!$GH$2/2,"") -> -0.057 | FM4: 9.799 | FN4: 36.353 | FO4: 8.108 | FP4: -22.395 | FQ4: 0.007 | FR4: -15.489 | FS4: 20.353 | FT4: 19.619 | FU4: 5.395 | FV4: =IF(ilenk_combined=1,IF(iracktravel=1,ATAN(LWB/(LWB/TAN(COMPRESSION!DD4/180*PI())-2*'MASTER DASHBOARD'!$E$23))/PI()*180,ATAN(LWB/(LWB/TAN(REBOUND!DD4/180*PI())-2*'MASTER DASHBOARD'!$E$23))/PI()*180),0) -> 0.000 | FW4: =IF(ilenk_combined=1,(-iracktravel*REBOUND!DD4+iracktravel*COMPRESSION!DD4)/2,0) -> 0.000 | FX4: =IF(ilenk_combined=1,-REBOUND!DD4-COMPRESSION!DD4,0) -> 0.000 | FY4: =IF(ilenk_combined=1,IF(iracktravel=1,FV4-COMPRESSION!DD4,FV4-REBOUND!DD4),0) -> 0.000 | FZ4: 0.000 | GJ4: 70.985 | GK4: -394.967 | GL4: -699.975 | GM4: -0.402 | GN4: 2204.181 | GO4: 180.945 | GP4: =COMPRESSION!GW4 -> 700.025 | GQ4: =COMPRESSION!GT4 -> 0.402 | GR4: =COMPRESSION!FD4 -> -2182.885 | GS4: =COMPRESSION!FE4 -> 177.908 | GT4: =GT3+GT$2 -> 0.4024062483 | GU4: 0.4024015204 | GV4: 699.9749695 | GW4: =IFERROR(IF(GT4<=GU$1,Lin_Interp(GU$2:GV$1009,GT4,1),Lin_Interp(GU$2:GV$1009,GU$1,1)),"") -> 699.9749692
B5: =DASHBOARD!H22 -> 300 | D5: 6 | F5: =DASHBOARD!F14 -> 30.00 | G5: =DASHBOARD!G14 -> 630.00 | H5: =DASHBOARD!H14 -> 185 | J5: 6 | K5: =F5-B3 -> 30 | L5: =G5-B4 -> 30 | M5: =H5-B5 -> -115 | N5: =F5-DASHBOARD!$F$13 -> -270.00 | O5: =G5-DASHBOARD!$G$13 -> 400.00 | P5: =H5-DASHBOARD!$H$13 -> 5.00 | Q5: =SQRT(N5^2+O5^2+P5^2) -> 482.6230413 | R5: 6 | S5: -270 | T5: 400 | U5: 5 | V5: 46150 | W5: 30900 | X5: 20100 | Y5: vz | Z5: 0 | AB5: 6 | AC5: 0.0001890020461 | AD5: -0.0003483413839 | AE5: -0.0002098754477 | AF5: 0.0003624466065 | AG5: 0.0002803420842 | AH5: 0.09839568623 | AJ5: V0Z | AK5: 0.005670061383 | AM5: 6 | AN5: =AK3+(AK7*M5-AK8*L5) -> 0.034280 | AO5: =AK4+(AK8*K5-AK6*M5) -> 0.023061 | AP5: =AK5+(AK6*L5-AK7*K5) -> 0.006253 | AQ5: 0.04178562572 | AR5: 6 | AS5: 30.034 | AT5: 630.023 | AU5: 185.006 | AV5: =SQRT((AS5-DASHBOARD!$F$13)^2+(AT5-DASHBOARD!$G$13)^2+(AU5-DASHBOARD!$H$13)^2) -> 482.623 | AW5: EMSAZ | AX5: =AK8/AX2 -> 0.9758175353 | AY5: VRTSEX | AZ5: =AZ3*AX5-AZ4*AX4 -> 0.000396749029 | BA5: PZ | BB5: =AU9-AZ10 -> 300.0984966 | BC5: XWP | BD5: =F9 -> 0 | BE5: YLP | BF5: =AT11 -> 699.9869642 | BG5: SNACH | BH5: =-(AN11*SIN(-BF9)+AO11*COS(-BF9))/BF11 -> 20.34513137 | BI5: x | BJ5: =AS6 -> -9.967 | BK5: =AS4 -> -9.979 | BL5: =AS3 -> 125.039 | BM5: =AS2 -> 100.00 | BN5: z2=ax2+b | BO5: =(BJ7-BK7)/(BJ5-BK5) -> 20234.22388 | BP5: =BJ7-(BO5*BJ5) -> 202092.7766 | BQ5: =-1/BO5 -> -4.942121852e-05 | BR5: z2=cy2+d | BS5: =(BJ7-BK7)/(BJ6-BK6) -> -4.001552059 | BT5: =BJ7-BS5*BJ6 -> 2785.99861 | BU5: =-1/BS5 -> 0.2499030339 | BW5: =DASHBOARD!$F$19+0.001 -> -20.00 | BX5: =F8-0.001 -> -20.001 | BY5: =F4+0.001 -> -9.999 | BZ5: =DASHBOARD!F$11-0.001 -> -60.00 | CA5: z2=ax2+b | CB5: =(BW7-BX7)/(BW5-BX5) -> 307501 | CC5: =BW7-(CB5*BW5) -> 6150512.5 | CD5: =-1/CB5 -> -3.252021945e-06 | CE5: z2=cy2+d | CF5: =(BW7-BX7)/(BW6-BX6) -> -12.30053202 | CG5: =BW7-CF5*BW6 -> 6950.279311 | CH5: =-1/CF5 -> 0.08129729659 | CJ5: =F6+0.001 -> -9.999 | CK5: =F12-0.001 -> 149.999 | CL5: =F5+0.001 -> 30.001 | CM5: =DASHBOARD!F$13-0.001 -> 300.00 | CN5: z2=ax2+b | CO5: =(CJ7-CK7)/(CJ5-CK5) -> -0.1250140627 | CP5: =CJ7-(CO5*CJ5) -> 423.7509844 | CQ5: =-1/CO5 -> 7.99910009 | CR5: z2=cy2+d | CS5: =(CJ7-CK7)/(CJ6-CK6) -> 0.07408093273 | CT5: =CJ7-CS5*CJ6 -> 381.2931756 | CU5: =-1/CS5 -> -13.49875012 | DA5: -0.1 | DB5: -0.1341329958 | DC5: 0 | DD5: -0.0004518470114 | DE5: 0.01059489332 | DF5: 43.84520488 | DG5: 0.1193901225 | DH5: -2.524804665 | DI5: 0.0002795001328 | DJ5: 0.005434548004 | DK5: -0.00591445257 | DL5: -0.008395604453 | DM5: -0.1341306924 | DN5: 0.745528715 | DO5: -2209.555691 | DP5: 181.7130274 | DQ5: -6496.553223 | DR5: 286.5969095 | DS5: -386.1689746 | DT5: 9.796 | DU5: 36.3555866 | DV5: 8.107 | DW5: -22.39500144 | DX5: -15.4837925 | DY5: 20.35308286 | DZ5: 0.367024567 | EA5: 5.393878549 | EB5: 70.97682405 | EC5: 663.6624624 | EE5: -0.400 | EF5: -0.537 | EG5: 0.000 | EH5: =DN5-COMPRESSION!$GI$6/2 -> 0.746 | EI5: -0.000 | EJ5: 0.801 | EK5: 0.010 | EL5: 0.011 | EM5: -19.655 | EN5: -0.240 | EO5: 43.845 | EP5: 1.013 | EQ5: =DG5-COMPRESSION!$GI$2/2 -> 0.119 | ER5: =DH5-COMPRESSION!$GI$4/2 -> -2.525 | ES5: 0.001 | ET5: 0.022 | EU5: -0.024 | EV5: -0.033 | EW5: -0.537 | EX5: ='MASTER DASHBOARD'!$D$23+ES5 -> 0.001 | EY5: ='MASTER DASHBOARD'!$E$23+ET5 -> 700.022 | EZ5: ='MASTER DASHBOARD'!$F$23+EF5 -> 299.463 | FA5: ='MASTER DASHBOARD'!$D$25+EU5 -> -0.024 | FB5: ='MASTER DASHBOARD'!$E$25+EV5 -> 699.967 | FC5: ='MASTER DASHBOARD'!$F$25+EW5 -> -0.537 | FD5: -2209.556 | FE5: 181.713 | FF5: 2217.015 | FG5: -6496.553 | FH5: 286.597 | FI5: 6502.872 | FJ5: -0.044 | FK5: =IF(AND(EF5<>0,COMPRESSION!EF5<>0),(GM5-GO5)/(GL5-GN5)*FL5+(GM5-(GM5-GO5)/(GL5-GN5)*GL5)-COMPRESSION!$GH$4/2,"") -> 43.405 | FL5: =IF(AND(EF5<>0,COMPRESSION!EF5<>0),((GQ5-(GQ5-GS5)/(GP5-GR5)*GP5)-(GM5-(GM5-GO5)/(GL5-GN5)*GL5))/((GM5-GO5)/(GL5-GN5)-(GQ5-GS5)/(GP5-GR5))-COMPRESSION!$GH$2/2,"") -> -0.085 | FM5: 9.796 | FN5: 36.356 | FO5: 8.107 | FP5: -22.395 | FQ5: 0.015 | FR5: -15.484 | FS5: 20.353 | FT5: 19.617 | FU5: 5.394 | FV5: =IF(ilenk_combined=1,IF(iracktravel=1,ATAN(LWB/(LWB/TAN(COMPRESSION!DD5/180*PI())-2*'MASTER DASHBOARD'!$E$23))/PI()*180,ATAN(LWB/(LWB/TAN(REBOUND!DD5/180*PI())-2*'MASTER DASHBOARD'!$E$23))/PI()*180),0) -> 0.000 | FW5: =IF(ilenk_combined=1,(-iracktravel*REBOUND!DD5+iracktravel*COMPRESSION!DD5)/2,0) -> 0.000 | FX5: =IF(ilenk_combined=1,-REBOUND!DD5-COMPRESSION!DD5,0) -> 0.000 | FY5: =IF(ilenk_combined=1,IF(iracktravel=1,FV5-COMPRESSION!DD5,FV5-REBOUND!DD5),0) -> 0.000 | FZ5: 0.000 | GJ5: 70.977 | GK5: -386.169 | GL5: -699.967 | GM5: -0.537 | GN5: 2209.556 | GO5: 181.713 | GP5: =COMPRESSION!GW5 -> 700.033 | GQ5: =COMPRESSION!GT5 -> 0.537 | GR5: =COMPRESSION!FD5 -> -2177.611 | GS5: =COMPRESSION!FE5 -> 177.157 | GT5: =GT4+GT$2 -> 0.5365416643 | GU5: 0.5365322127 | GV5: 699.9665738 | GW5: =IFERROR(IF(GT5<=GU$1,Lin_Interp(GU$2:GV$1009,GT5,1),Lin_Interp(GU$2:GV$1009,GU$1,1)),"") -> 699.9665733
D6: 8 | F6: =DASHBOARD!F16 -> -10.00 | G6: =DASHBOARD!G16 -> 590.00 | H6: =DASHBOARD!H16 -> 425 | J6: 8 | K6: =F6-B3 -> -10 | L6: =G6-B4 -> -10 | M6: =H6-B5 -> 125 | N6: =IF(iintegral=0,F6-DASHBOARD!$F$15,F6-A12) -> -160.00 | O6: =IF(iintegral=0,G6-DASHBOARD!$G$15,G6-B12) -> 270.00 | P6: =IF(iintegral=0,H6-DASHBOARD!$H$15,H6-C12) -> 20.00 | Q6: =ABS(G4-DASHBOARD!G$11) -> 420 | R6: 8 | S6: =IF(iMcPherson=0,N6,-P8) -> -160 | T6: =IF(iMcPherson=0,O6,0) -> 270 | U6: =IF(iMcPherson=0,P6,N8) -> 20 | V6: =IF(iMcPherson=0,L6*P6-M6*O6,-L10*(-N8)) -> -33950 | W6: =IF(iMcPherson=0,M6*N6-K6*P6,L11*(-P8)+L9*(-N8)) -> -19800 | X6: =IF(iMcPherson=0,K6*O6-L6*N6,-L10*(-P8)) -> -4300 | Y6: wx | Z6: 0 | AB6: 8 | AC6: -3.042142499e-06 | AD6: 9.157256768e-06 | AE6: 1.62849933e-06 | AF6: -3.436848992e-06 | AG6: -9.840205914e-06 | AH6: 3.522317685e-05 | AJ6: OMEGAX | AK6: -9.126427498e-05 | AM6: 8 | AN6: =AK3+(AK7*M6-AK8*L6) -> 0.033333 | AO6: =AK4+(AK8*K6-AK6*M6) -> 0.019347 | AP6: =AK5+(AK6*L6-AK7*K6) -> 0.005476 | AQ6: 0.03892803437 | AR6: 8 | AS6: -9.967 | AT6: 590.019 | AU6: 425.005 | AV6: =SQRT((AS6-F12)^2+(AT6-G12)^2+(AU6-H12)^2) -> 314.484 | AW6: HH1 | AX6: =AX3*AN9+AX4*AO9+AX5*AP9 -> -0.002554730142 | AY6: VRTSEY | AZ6: =AZ4*AX3-AZ2*AX5 -> 0 | BA6: T1 | BB6: =AP9/AO9 -> -0.2409704426 | BC6: YWP | BD6: =0 -> 0 | BE6: ZLP | BF6: =BD11*BF4+BF3-AU11 -> 89.68977263 | BG6: RSIGMA | BH6: =-(AN9*COS(-BF9)+AO9*SIN(-BF9))/BF11 -> 36.3345776 | BI6: =AT11-BH6 -> 663.652 | BJ6: =AT6 -> 590.019 | BK6: =AT4 -> 649.997 | BL6: =AT3 -> 600.096 | BM6: =AT2 -> 300.00 | BN6: (z-z2)/(x-x2)=a | BQ6: (z-z2)/(y-y2)=c | BW6: =DASHBOARD!$G$19+0.001 -> 500.00 | BX6: =G8-0.001 -> 549.999 | BY6: =G4+0.001 -> 650.001 | BZ6: =DASHBOARD!G$11-0.001 -> 230.00 | CA6: (z-z2)/(x-x2)=a | CB6: (z-z2)/(y-y2)=c | CJ6: =G6+0.001 -> 590.001 | CK6: =G12-0.001 -> 319.999 | CL6: =G5+0.001 -> 630.001 | CM6: =DASHBOARD!G$13-0.001 -> 230.00 | CN6: (z-z2)/(x-x2)=a | CO6: (z-z2)/(y-y2)=c | DA6: -0.1 | DB6: -0.1341321834 | DC6: 0 | DD6: -0.0005593237507 | DE6: 0.0132313284 | DF6: 43.98105442 | DG6: 0.1207571107 | DH6: -2.523637791 | DI6: 0.0002826986392 | DJ6: 0.005382786235 | DK6: -0.005911646248 | DL6: -0.008421650564 | DM6: -0.1341291192 | DN6: 0.7455332305 | DO6: -2214.950968 | DP6: 182.4842548 | DQ6: -6496.073027 | DR6: 286.4429188 | DS6: -377.3064771 | DT6: 9.793 | DU6: 36.35847316 | DV6: 8.105 | DW6: -22.39518724 | DX6: -15.47866939 | DY6: 20.35284971 | DZ6: 0.3670534443 | EA6: 5.392851467 | EB6: 70.96826567 | EC6: 663.6650105 | EE6: -0.500 | EF6: -0.671 | EG6: 0.000 | EH6: =DN6-COMPRESSION!$GI$6/2 -> 0.746 | EI6: -0.001 | EJ6: 0.785 | EK6: 0.010 | EL6: 0.013 | EM6: -19.619 | EN6: -0.240 | EO6: 43.981 | EP6: 1.013 | EQ6: =DG6-COMPRESSION!$GI$2/2 -> 0.121 | ER6: =DH6-COMPRESSION!$GI$4/2 -> -2.524 | ES6: 0.001 | ET6: 0.027 | EU6: -0.030 | EV6: -0.042 | EW6: -0.671 | EX6: ='MASTER DASHBOARD'!$D$23+ES6 -> 0.001 | EY6: ='MASTER DASHBOARD'!$E$23+ET6 -> 700.027 | EZ6: ='MASTER DASHBOARD'!$F$23+EF6 -> 299.329 | FA6: ='MASTER DASHBOARD'!$D$25+EU6 -> -0.030 | FB6: ='MASTER DASHBOARD'!$E$25+EV6 -> 699.958 | FC6: ='MASTER DASHBOARD'!$F$25+EW6 -> -0.671 | FD6: -2214.951 | FE6: 182.484 | FF6: 2222.455 | FG6: -6496.073 | FH6: 286.443 | FI6: 6502.385 | FJ6: -0.055 | FK6: =IF(AND(EF6<>0,COMPRESSION!EF6<>0),(GM6-GO6)/(GL6-GN6)*FL6+(GM6-(GM6-GO6)/(GL6-GN6)*GL6)-COMPRESSION!$GH$4/2,"") -> 43.405 | FL6: =IF(AND(EF6<>0,COMPRESSION!EF6<>0),((GQ6-(GQ6-GS6)/(GP6-GR6)*GP6)-(GM6-(GM6-GO6)/(GL6-GN6)*GL6))/((GM6-GO6)/(GL6-GN6)-(GQ6-GS6)/(GP6-GR6))-COMPRESSION!$GH$2/2,"") -> -0.114 | FM6: 9.793 | FN6: 36.358 | FO6: 8.105 | FP6: -22.395 | FQ6: 0.007 | FR6: -15.479 | FS6: 20.353 | FT6: 19.616 | FU6: 5.393 | FV6: =IF(ilenk_combined=1,IF(iracktravel=1,ATAN(LWB/(LWB/TAN(COMPRESSION!DD6/180*PI())-2*'MASTER DASHBOARD'!$E$23))/PI()*180,ATAN(LWB/(LWB/TAN(REBOUND!DD6/180*PI())-2*'MASTER DASHBOARD'!$E$23))/PI()*180),0) -> 0.000 | FW6: =IF(ilenk_combined=1,(-iracktravel*REBOUND!DD6+iracktravel*COMPRESSION!DD6)/2,0) -> 0.000 | FX6: =IF(ilenk_combined=1,-REBOUND!DD6-COMPRESSION!DD6,0) -> 0.000 | FY6: =IF(ilenk_combined=1,IF(iracktravel=1,FV6-COMPRESSION!DD6,FV6-REBOUND!DD6),0) -> 0.000 | FZ6: 0.000 | GJ6: 70.968 | GK6: -377.306 | GL6: -699.958 | GM6: -0.671 | GN6: 2214.951 | GO6: 182.484 | GP6: =COMPRESSION!GW6 -> 700.041 | GQ6: =COMPRESSION!GT6 -> 0.671 | GR6: =COMPRESSION!FD6 -> -2172.357 | GS6: =COMPRESSION!FE6 -> 176.409 | GT6: 0.6706770804 | GU6: 0.6706613319 | GV6: 699.9581522 | GW6: =IFERROR(IF(GT6<=GU$1,Lin_Interp(GU$2:GV$1009,GT6,1),Lin_Interp(GU$2:GV$1009,GU$1,1)),"") -> 699.9581512
D7: 10 | F7: =DASHBOARD!F18 -> -50 | G7: =DASHBOARD!G18 -> 590 | H7: =DASHBOARD!H18 -> 425 | J7: 10 | K7: =F7-B3 -> -50 | L7: =G7-B4 -> -10 | M7: =H7-B5 -> 125 | N7: =F7-DASHBOARD!$F$17 -> 50 | O7: =G7-DASHBOARD!$G$17 -> 270.00 | P7: =H7-DASHBOARD!$H$17 -> 25 | Q7: =ABS(G8-DASHBOARD!G$11) -> 320 | R7: 10 | S7: =IF(iMcPherson=0,N7,0) -> 50 | T7: =IF(iMcPherson=0,O7,-P8) -> 270 | U7: =IF(iMcPherson=0,P7,O8) -> 25 | V7: =IF(iMcPherson=0,L7*P7-M7*O7,-L11*(-P8)-L10*(-O8)) -> -34000 | W7: =IF(iMcPherson=0,M7*N7-K7*P7,L9*(-O8)) -> 7500 | X7: =IF(iMcPherson=0,K7*O7-L7*N7,L9*(-P8)) -> -13000 | Y7: wy | Z7: 0 | AB7: 10 | AC7: -3.689492113e-06 | AD7: -1.095214545e-05 | AE7: 1.284504812e-05 | AF7: -1.906041569e-05 | AG7: 2.116682115e-05 | AH7: -1.568450739e-05 | AJ7: OMEGAY | AK7: -0.0001106847634 | AM7: 10 | AN7: =AK3+(AK7*M7-AK8*L7) -> 0.033333 | AO7: =AK4+(AK8*K7-AK6*M7) -> -0.006270 | AP7: =AK5+(AK6*L7-AK7*K7) -> 0.001048 | AQ7: 0.03393376117 | AR7: 10 | AS7: -49.967 | AT7: 589.994 | AU7: 425.001 | AV7: =SQRT((AS7-DASHBOARD!$F$17)^2+(AT7-DASHBOARD!$G$17)^2+(AU7-DASHBOARD!$H$17)^2) -> 275.726 | AW7: VRTPAX | AX7: =AX6*AX3 -> 0.0003552579863 | AY7: VRTSEZ | AZ7: =AZ2*AX4-AZ3*AX3 -> 5.653873303e-05 | BA7: T3 | BB7: =AP11/AO11 -> 0.2651450611 | BC7: ZWP | BD7: =(BD4-AU11)/(AT11-BD3)*AT11 -> 2640.988023 | BE7: EPSBR | BF7: =-ATAN(AN11/AP11) -> 1.235742456 | BG7: RNACH | BH7: =-(AN9*SIN(-BF9)+AO9*COS(-BF9))/BF11 -> -22.37383817 | BI7: z | BJ7: =AU6 -> 425.005 | BK7: =AU4 -> 185.000 | BL7: =AU3 -> 315.020 | BM7: =AU2 -> 300.00 | BN7: z=ex+f | BO7: e= | BP7: f= | BR7: z=gy+h | BT7: g= | BU7: h= | BW7: =DASHBOARD!$H$19+0.001 -> 800.00 | BX7: =H8-0.001 -> 184.999 | BY7: =H4+0.001 -> 185.001 | BZ7: =DASHBOARD!H$11-0.001 -> 185.00 | CA7: z=ex+f | CB7: e= | CC7: f= | CE7: z=gy+h | CG7: g= | CH7: h= | CJ7: =H6+0.001 -> 425.001 | CK7: =H12-0.001 -> 404.999 | CL7: =H5+0.001 -> 185.001 | CM7: =DASHBOARD!H$13-0.001 -> 180.00 | CN7: z=ex+f | CO7: e= | CP7: f= | CR7: z=gy+h | CT7: g= | CU7: h= | DA7: -0.1 | DB7: -0.1341313679 | DC7: 0 | DD7: -0.0006646040322 | DE7: 0.01586284747 | DF7: 44.11690771 | DG7: 0.122125001 | DH7: -2.522469292 | DI7: 0.0002858992126 | DJ7: 0.005331020771 | DK7: -0.005908836201 | DL7: -0.008447697749 | DM7: -0.1341275465 | DN7: 0.7455377634 | DO7: -2220.366918 | DP7: 183.2589204 | DQ7: -6495.594656 | DR7: 286.288844 | DS7: -368.3788966 | DT7: 9.79 | DU7: 36.36136826 | DV7: 8.104 | DW7: -22.39537832 | DX7: -15.4735425 | DY7: 20.35261629 | DZ7: 0.3670823135 | EA7: 5.391825695 | EB7: 70.95968517 | EC7: 663.6674984 | EE7: -0.600 | EF7: -0.805 | EG7: 0.000 | EH7: =DN7-COMPRESSION!$GI$6/2 -> 0.746 | EI7: -0.001 | EJ7: 0.769 | EK7: 0.009 | EL7: 0.016 | EM7: -19.582 | EN7: -0.239 | EO7: 44.117 | EP7: 1.013 | EQ7: =DG7-COMPRESSION!$GI$2/2 -> 0.122 | ER7: =DH7-COMPRESSION!$GI$4/2 -> -2.522 | ES7: 0.002 | ET7: 0.033 | EU7: -0.035 | EV7: -0.050 | EW7: -0.805 | EX7: ='MASTER DASHBOARD'!$D$23+ES7 -> 0.002 | EY7: ='MASTER DASHBOARD'!$E$23+ET7 -> 700.033 | EZ7: ='MASTER DASHBOARD'!$F$23+EF7 -> 299.195 | FA7: ='MASTER DASHBOARD'!$D$25+EU7 -> -0.035 | FB7: ='MASTER DASHBOARD'!$E$25+EV7 -> 699.950 | FC7: ='MASTER DASHBOARD'!$F$25+EW7 -> -0.805 | FD7: -2220.367 | FE7: 183.259 | FF7: 2227.917 | FG7: -6495.595 | FH7: 286.289 | FI7: 6501.901 | FJ7: -0.066 | FK7: =IF(AND(EF7<>0,COMPRESSION!EF7<>0),(GM7-GO7)/(GL7-GN7)*FL7+(GM7-(GM7-GO7)/(GL7-GN7)*GL7)-COMPRESSION!$GH$4/2,"") -> 43.405 | FL7: =IF(AND(EF7<>0,COMPRESSION!EF7<>0),((GQ7-(GQ7-GS7)/(GP7-GR7)*GP7)-(GM7-(GM7-GO7)/(GL7-GN7)*GL7))/((GM7-GO7)/(GL7-GN7)-(GQ7-GS7)/(GP7-GR7))-COMPRESSION!$GH$2/2,"") -> -0.142 | FM7: 9.790 | FN7: 36.361 | FO7: 8.104 | FP7: -22.395 | FQ7: 0.007 | FR7: -15.474 | FS7: 20.353 | FT7: 19.614 | FU7: 5.392 | FV7: =IF(ilenk_combined=1,IF(iracktravel=1,ATAN(LWB/(LWB/TAN(COMPRESSION!DD7/180*PI())-2*'MASTER DASHBOARD'!$E$23))/PI()*180,ATAN(LWB/(LWB/TAN(REBOUND!DD7/180*PI())-2*'MASTER DASHBOARD'!$E$23))/PI()*180),0) -> 0.000 | FW7: =IF(ilenk_combined=1,(-iracktravel*REBOUND!DD7+iracktravel*COMPRESSION!DD7)/2,0) -> 0.000 | FX7: =IF(ilenk_combined=1,-REBOUND!DD7-COMPRESSION!DD7,0) -> 0.000 | FY7: =IF(ilenk_combined=1,IF(iracktravel=1,FV7-COMPRESSION!DD7,FV7-REBOUND!DD7),0) -> 0.000 | FZ7: 0.000 | GJ7: 70.960 | GK7: -368.379 | GL7: -699.950 | GM7: -0.805 | GN7: 2220.367 | GO7: 183.259 | GP7: =COMPRESSION!GW7 -> 700.050 | GQ7: =COMPRESSION!GT7 -> 0.805 | GR7: =COMPRESSION!FD7 -> -2167.122 | GS7: =COMPRESSION!FE7 -> 175.665 | GT7: 0.8048124965 | GU7: 0.8047888784 | GV7: 699.9497045 | GW7: =IFERROR(IF(GT7<=GU$1,Lin_Interp(GU$2:GV$1009,GT7,1),Lin_Interp(GU$2:GV$1009,GU$1,1)),"") -> 699.949703
D8: 12 | F8: =DASHBOARD!F20 -> -20 | G8: =DASHBOARD!G20 -> 550 | H8: =DASHBOARD!H20 -> 185 | J8: 12 | K8: =F8-B3 -> -20 | L8: =G8-B4 -> -50 | M8: =H8-B5 -> -115 | N8: =IF(ifederlenker=1,F8-DASHBOARD!$F$19,0) -> 0 | O8: =IF(ifederlenker=1,G8-DASHBOARD!$G$19,0) -> 0 | P8: =IF(ifederlenker=1,H8-DASHBOARD!$H$19,10) -> 10 | Q8: =IF(ABS(G8)<ABS(DASHBOARD!G$11),-1,1) -> 1 | R8: 12 | S8: 0 | T8: 0 | U8: 10 | V8: =IF(ifederlenker=1,L8*P8-M8*O8,L4*P8-M4*O8) -> 500 | W8: =IF(ifederlenker=1,M8*N8-K8*P8,M4*N8-K4*P8) -> 100 | X8: =IF(ifederlenker=1,K8*O8-L8*N8,K4*O8-L4*N8) -> 0 | Y8: wz | Z8: =IF(ilenk=0,IF(ifederlenker=1,-ZIVF*SQRT(N8^2+O8^2+P8^2),N8*'SPRINGLINK REBOUND'!AN9+O8*'SPRINGLINK REBOUND'!AO9+P8*'SPRINGLINK REBOUND'!AP9),0) -> 0 | AB8: 12 | AC8: 2.13476146e-05 | AD8: -7.361215445e-06 | AE8: 3.665495656e-07 | AF8: -2.733001046e-06 | AG8: -1.007882755e-05 | AH8: -1.541625727e-06 | AJ8: OMEGAZ | AK8: 0.0006404284381 | AM8: 12 | AN8: =AK3+(AK7*M8-AK8*L8) -> 0.085514 | AO8: =AK4+(AK8*K8-AK6*M8) -> -0.008960 | AP8: =AK5+(AK6*L8-AK7*K8) -> 0.008020 | AQ8: 0.08635584269 | AR8: 12 | AS8: =IF(ifederlenker=1,F8+AN8,'SPRINGLINK REBOUND'!AS10) -> -20.000 | AT8: =IF(ifederlenker=1,G8+AO8,'SPRINGLINK REBOUND'!AT10) -> 550.000 | AU8: =IF(ifederlenker=1,H8+AP8,'SPRINGLINK REBOUND'!AU10) -> 184.990 | AV8: =SQRT((AS8-DASHBOARD!$F$11)^2+(AT8-DASHBOARD!$G$11)^2+(AU8-DASHBOARD!$H$11)^2) -> 322.490 | AW8: VRTPAY | AX8: =AX6*AX4 -> 0.0004308547476 | AY8: RPNX | AZ8: =(AZ6*AX5-AZ7*AX4)/AX2 -> 0.01452880626 | BA8: T1 90 | BB8: =-1/BB6 -> 4.149886555 | BC8: T5 | BD8: =AP9/AN9 -> 0.1484787721 | BE8: EPSANT | BF8: =-ATAN(AN9/AP9) -> -1.423394464 | BG8: P radlast | BH8: =-AP11/BF11 -> 5.397044317 | BI8: X= | BJ8: =(BP8-BP5)/(BO5-BO8) -> -9.972102298 | BK8: Y= | BL8: =(BU8-BT5)/(BS5-BT8) -> 616.4818396 | BM8: Z= | BN8: =BO8*BJ8+BP8 -> 315.0261781 | BO8: =BQ5 -> -4.942121852e-05 | BP8: =BL7-BO8*BL5 -> 315.0256852 | BT8: =BU5 -> 0.2499030339 | BU8: =BL7-BT8*BL6 -> 165.0537531 | BW8: =(CC8-CC5)/(CB5-CB8) -> -20.00099999 | BX8: Y= | BY8: =(CH8-CG5)/(CF5-CG8) -> 550.6554371 | BZ8: Z= | CA8: =CB8*BW8+CC8 -> 185.0010325 | CB8: =CD5 -> -3.252021945e-06 | CC8: =BY7-CB8*BY5 -> 185.0009675 | CG8: =CH5 -> 0.08129729659 | CH8: =BY7-CG8*BY6 -> 132.1576759 | CJ8: =(CP8-CP5)/(CO5-CO8) -> 58.92716143 | CK8: Y= | CL8: =(CU8-CT5)/(CS5-CT8) -> 612.1002956 | CM8: Z= | CN8: =CO8*CJ8+CP8 -> 416.3842605 | CO8: =CQ5 -> 7.99910009 | CP8: =CL7-CO8*CL5 -> -54.9800018 | CT8: =CU5 -> -13.49875012 | CU8: =CL7-CT8*CL6 -> 8689.227077 | DA8: -0.1 | DB8: -0.1341305492 | DC8: 0 | DD8: -0.0007676866272 | DE8: 0.01848945017 | DF8: 44.25276469 | DG8: 0.123493795 | DH8: -2.521299166 | DI8: 0.000289101856 | DJ8: 0.005279251588 | DK8: -0.005906022426 | DL8: -0.008473746002 | DM8: -0.1341259741 | DN8: 0.7455423137 | DO8: -2225.803668 | DP8: 184.0370443 | DQ8: -6495.118107 | DR8: 286.1346849 | DS8: -359.3857845 | DT8: 9.787 | DU8: 36.3642719 | DV8: 8.103 | DW8: -22.39557467 | DX8: -15.46841181 | DY8: 20.35238261 | DZ8: 0.3671111748 | EA8: 5.390801236 | EB8: 70.95108254 | EC8: 663.6699259 | EE8: -0.700 | EF8: -0.939 | EG8: 0.000 | EH8: =DN8-COMPRESSION!$GI$6/2 -> 0.746 | EI8: -0.001 | EJ8: 0.752 | EK8: 0.009 | EL8: 0.018 | EM8: -19.546 | EN8: -0.239 | EO8: 44.253 | EP8: 1.013 | EQ8: =DG8-COMPRESSION!$GI$2/2 -> 0.123 | ER8: =DH8-COMPRESSION!$GI$4/2 -> -2.521 | ES8: 0.002 | ET8: 0.038 | EU8: -0.041 | EV8: -0.059 | EW8: -0.939 | EX8: ='MASTER DASHBOARD'!$D$23+ES8 -> 0.002 | EY8: ='MASTER DASHBOARD'!$E$23+ET8 -> 700.038 | EZ8: ='MASTER DASHBOARD'!$F$23+EF8 -> 299.061 | FA8: ='MASTER DASHBOARD'!$D$25+EU8 -> -0.041 | FB8: ='MASTER DASHBOARD'!$E$25+EV8 -> 699.941 | FC8: ='MASTER DASHBOARD'!$F$25+EW8 -> -0.939 | FD8: -2225.804 | FE8: 184.037 | FF8: 2233.399 | FG8: -6495.118 | FH8: 286.135 | FI8: 6501.418 | FJ8: -0.077 | FK8: =IF(AND(EF8<>0,COMPRESSION!EF8<>0),(GM8-GO8)/(GL8-GN8)*FL8+(GM8-(GM8-GO8)/(GL8-GN8)*GL8)-COMPRESSION!$GH$4/2,"") -> 43.405 | FL8: =IF(AND(EF8<>0,COMPRESSION!EF8<>0),((GQ8-(GQ8-GS8)/(GP8-GR8)*GP8)-(GM8-(GM8-GO8)/(GL8-GN8)*GL8))/((GM8-GO8)/(GL8-GN8)-(GQ8-GS8)/(GP8-GR8))-COMPRESSION!$GH$2/2,"") -> -0.171 | FM8: 9.787 | FN8: 36.364 | FO8: 8.103 | FP8: -22.396 | FQ8: 0.007 | FR8: -15.468 | FS8: 20.352 | FT8: 19.613 | FU8: 5.391 | FV8: =IF(ilenk_combined=1,IF(iracktravel=1,ATAN(LWB/(LWB/TAN(COMPRESSION!DD8/180*PI())-2*'MASTER DASHBOARD'!$E$23))/PI()*180,ATAN(LWB/(LWB/TAN(REBOUND!DD8/180*PI())-2*'MASTER DASHBOARD'!$E$23))/PI()*180),0) -> 0.000 | FW8: =IF(ilenk_combined=1,(-iracktravel*REBOUND!DD8+iracktravel*COMPRESSION!DD8)/2,0) -> 0.000 | FX8: =IF(ilenk_combined=1,-REBOUND!DD8-COMPRESSION!DD8,0) -> 0.000 | FY8: =IF(ilenk_combined=1,IF(iracktravel=1,FV8-COMPRESSION!DD8,FV8-REBOUND!DD8),0) -> 0.000 | FZ8: 0.000 | GJ8: 70.951 | GK8: -359.386 | GL8: -699.941 | GM8: -0.939 | GN8: 2225.804 | GO8: 184.037 | GP8: =COMPRESSION!GW8 -> 700.058 | GQ8: =COMPRESSION!GT8 -> 0.939 | GR8: =COMPRESSION!FD8 -> -2161.907 | GS8: =COMPRESSION!FE8 -> 174.923 | GT8: 0.9389479126 | GU8: 0.9389148526 | GV8: 699.9412308 | GW8: =IFERROR(IF(GT8<=GU$1,Lin_Interp(GU$2:GV$1009,GT8,1),Lin_Interp(GU$2:GV$1009,GU$1,1)),"") -> 699.9412287
D9: WC | F9: =DASHBOARD!F21 -> 0 | G9: =DASHBOARD!G21 -> 700 | H9: =DASHBOARD!H21 -> 300 | K9: McPherson | L9: =DASHBOARD!F$19-B3 -> -20.00 | N9: =F8-DASHBOARD!$F$11 -> 40.00 | O9: =G8-DASHBOARD!$G$11 -> 320.00 | P9: =H8-DASHBOARD!$H$11 -> 0.00 | Q9: =SQRT(N9^2+O9^2+P9^2) -> 322.4903099 | AM9: WC | AN9: =AK3+AK7*(H9-B5)-AK8*(G9-B4) -> -0.023279 | AO9: =AK4+AK8*(F9-B3)-AK6*(H9-B5) -> 0.014344 | AP9: =AK5+AK6*(G9-B4)-AK7*(F9-B3) -> -0.003456 | AQ9: 0.02756034742 | AR9: WC | AS9: =F9+AN9 -> -0.023 | AT9: 700.014 | AU9: 299.997 | AW9: VRTPAZ | AX9: =AX6*AX5 -> -0.002492950471 | AY9: RPNY | AZ9: =(AZ7*AX3-AZ5*AX5)/AX2 -> -0.6018851906 | BA9: T3 90 | BB9: =-1/BB7 -> -3.771520375 | BC9: T7 | BD9: =AP11/AN11 -> -0.3481815156 | BE9: DELTA | BF9: =-ASIN((AS10-AS9)/SQRT((AS10-AS9)^2+(AT10-AT9)^2)) -> -0.0006404283505 | BG9: iLENK | BH9: =ABS(BF11*180/PI()/zivl) -> 0.366932675 | BJ9: e1 | BK9: e2 | BL9: e3 | BW9: e1 | BX9: e2 | BY9: e3 | CA9: =SQRT((BW8-BZ5)^2+(BY8-BZ6)^2+(CA8-BZ7)^2) -> 323.1416882 | CJ9: e1 | CK9: e2 | CL9: e3 | CN9: =SQRT((CJ8-CM5)^2+(CL8-CM6)^2+(CN8-CM7)^2) -> 509.8970708 | DA9: -0.1 | DB9: -0.1341297274 | DC9: 0 | DD9: -0.0008685703055 | DE9: 0.02111113614 | DF9: 44.38862531 | DG9: 0.1248634939 | DH9: -2.520127413 | DI9: 0.0002923065723 | DJ9: 0.00522747866 | DK9: -0.00590320492 | DL9: -0.008499795316 | DM9: -0.1341244022 | DN9: 0.7455468814 | DO9: -2231.261342 | DP9: 184.8186467 | DQ9: -6494.64338 | DR9: 285.9804412 | DS9: -350.3266892 | DT9: 9.784 | DU9: 36.36718409 | DV9: 8.102 | DW9: -22.3957763 | DX9: -15.46327734 | DY9: 20.35214866 | DZ9: 0.3671400282 | EA9: 5.389778089 | EB9: 70.9424578 | EC9: 663.6722931 | EE9: =EE8+DA9 -> -0.800 | EF9: =EF8+DB9 -> -1.073 | EG9: =EG8+DC9 -> 0.000 | EH9: =DN9-COMPRESSION!$GI$6/2 -> 0.746 | EI9: =DD9 -> -0.001 | EJ9: =(EI10-EI9)/(EF10-EF9)*1000 -> 0.809 | EK9: =(TAN(PI()/180)*TRACKWIDTH/2)*EJ9/1000 -> 0.010 | EL9: =DE9 -> 0.021 | EM9: =(EL10-EL9)/(EF10-EF9)*1000 -> -19.674 | EN9: =(TAN(PI()/180)*TRACKWIDTH/2)*EM9/1000 -> -0.240 | EO9: =DF9 -> 44.389 | EP9: =ABS((EO10-EO9)/(EF10-EF9)) -> 41.366 | EQ9: =DG9-COMPRESSION!$GI$2/2 -> 0.125 | ER9: =DH9-COMPRESSION!$GI$4/2 -> -2.520 | ES9: =DI9+ES8 -> 0.002 | ET9: =DJ9+ET8 -> 0.043 | EU9: =DK9+EU8 -> -0.047 | EV9: =DL9+EV8 -> -0.067 | EW9: =DM9+EW8 -> -1.073 | EX9: ='MASTER DASHBOARD'!$D$23+ES9 -> 0.002 | EY9: ='MASTER DASHBOARD'!$E$23+ET9 -> 700.043 | EZ9: ='MASTER DASHBOARD'!$F$23+EF9 -> 298.927 | FA9: ='MASTER DASHBOARD'!$D$25+EU9 -> -0.047 | FB9: ='MASTER DASHBOARD'!$E$25+EV9 -> 699.933 | FC9: ='MASTER DASHBOARD'!$F$25+EW9 -> -1.073 | FD9: =DO9 -> -2231.261 | FE9: =DP9 -> 184.819 | FF9: =SQRT(FD9^2+FE9^2) -> 2238.903 | FG9: =DQ9 -> -6494.643 | FH9: =DR9 -> 285.980 | FI9: =SQRT(FG9^2+FH9^2) -> 6500.937 | FJ9: =FJ8+FJ$2 -> -0.088 | FK9: =IF(AND(EF9<>0,COMPRESSION!EF9<>0),(GM9-GO9)/(GL9-GN9)*FL9+(GM9-(GM9-GO9)/(GL9-GN9)*GL9)-COMPRESSION!$GH$4/2,"") -> 43.405 | FL9: =IF(AND(EF9<>0,COMPRESSION!EF9<>0),((GQ9-(GQ9-GS9)/(GP9-GR9)*GP9)-(GM9-(GM9-GO9)/(GL9-GN9)*GL9))/((GM9-GO9)/(GL9-GN9)-(GQ9-GS9)/(GP9-GR9))-COMPRESSION!$GH$2/2,"") -> -0.199 | FM9: =DT9 -> 9.784 | FN9: =DU9 -> 36.367 | FO9: =DV9 -> 8.102 | FP9: =DW9 -> -22.396 | FQ9: =(FO10-FO9)/(EF10-EF9) -> -7.550 | FR9: =DX9 -> -15.463 | FS9: =DY9 -> 20.352 | FT9: =360/RACK_RATIO/DZ9 -> 19.611 | FU9: =EA9 -> 5.390 | FV9: =IF(ilenk_combined=1,IF(iracktravel=1,ATAN(LWB/(LWB/TAN(COMPRESSION!DD9/180*PI())-2*'MASTER DASHBOARD'!$E$23))/PI()*180,ATAN(LWB/(LWB/TAN(REBOUND!DD9/180*PI())-2*'MASTER DASHBOARD'!$E$23))/PI()*180),0) -> 0.000 | FW9: =IF(ilenk_combined=1,(-iracktravel*REBOUND!DD9+iracktravel*COMPRESSION!DD9)/2,0) -> 0.000 | FX9: =IF(ilenk_combined=1,-REBOUND!DD9-COMPRESSION!DD9,0) -> 0.000 | FY9: =IF(ilenk_combined=1,IF(iracktravel=1,FV9-COMPRESSION!DD9,FV9-REBOUND!DD9),0) -> 0.000 | FZ9: =IF(ilenk_combined=1,MIN(MAX(FX9/FY9*100,-500),500),0) -> 0.000 | GJ9: =EB9 -> 70.942 | GK9: =DS9 -> -350.327 | GL9: =-GW9 -> -699.933 | GM9: =-GT9 -> -1.073 | GN9: =-FD9 -> 2231.261 | GO9: =FE9 -> 184.819 | GP9: =COMPRESSION!GW9 -> 700.066 | GQ9: =COMPRESSION!GT9 -> 1.073 | GR9: =COMPRESSION!FD9 -> -2156.712 | GS9: =COMPRESSION!FE9 -> 174.185 | GT9: =GT8+GT$2 -> 1.073083329 | GU9: =-EW9 -> 1.073 | GV9: =FB9 -> 699.933 | GW9: =IFERROR(IF(GT9<=GU$1,Lin_Interp(GU$2:GV$1009,GT9,1),Lin_Interp(GU$2:GV$1009,GU$1,1)),"") -> 699.9327943
D10: WC ALIGN | F10: =DASHBOARD!F22 -> 0 | G10: =DASHBOARD!G22 -> 600 | H10: =DASHBOARD!H22 -> 300 | L10: =DASHBOARD!G$19-B4 -> -100.00 | N10: Spring on link | Q10: =IFERROR(Q7/Q6*Q8,1) -> 0.7619047619 | AM10: WC ALIGN | AN10: =AK3+AK7*(H10-B5)-AK8*(G10-B4) -> 0.040764 | AO10: =AK4+AK8*(F10-B3)-AK6*(H10-B5) -> 0.014344 | AP10: =AK5+AK6*(G10-B4)-AK7*(F10-B3) -> 0.005670 | AR10: WC ALIGN | AS10: =F10+AN10 -> 0.041 | AT10: 600.014 | AU10: 300.006 | AW10: HMSA | AX10: =2*PI()*AX11/AX2/AX2 -> -24.45811091 | AY10: RPNZ | AZ10: =(AZ5*AX4-AZ6*AX3)/AX2 -> -0.101952935 | BA10: T2 | BB10: =-BB8*G9+H9 -> -2604.920588 | BC10: T5 90 | BD10: =-1/BD8 -> -6.734969488 | BE10: GAMMA | BF10: =ATAN((AU10-AU9)/SQRT((AS10-AS9)^2+(AT10-AT9)^2)) -> 9.126425601e-05 | BG10: iFeder | BH10: =IF(ilenk=0,ABS(ZIVF/AP9),0) -> 0 | BI10: A= | BJ10: =(BJ8-BL5) -> -135.0112064 | BK10: =(BL8-BL6) -> 16.38607357 | BL10: =(BN8-BL7) -> 0.006672418332 | BM10: |A| | BN10: =SQRT((BJ8-BL5)^2+(BL8-BL6)^2+(BN8-BL7)^2) -> 136.0019459 | BO10: |B| | BP10: =SQRT((BL5-BM5)^2+(BL6-BM6)^2+(BL7-BM7)^2) -> 301.5128705 | BQ10: A.B | BR10: =BJ10*BJ11+BK10*BK11+BL10*BL11 -> -1536.931872 | BS10: |A|.|B| | BT10: =BN10*BP10 -> 41006.33711 | BW10: =(BW8-BY5) -> -10.00199999 | BX10: =(BY8-BY6) -> -99.34556289 | BY10: =(CA8-BY7) -> 3.252672346e-05 | BZ10: |A| | CA10: =SQRT((BW8-BY5)^2+(BY8-BY6)^2+(CA8-BY7)^2) -> 99.84778851 | CB10: |B| | CC10: =SQRT((BY5-BZ5)^2+(BY6-BZ6)^2+(BY7-BZ7)^2) -> 422.9679421 | CD10: A.B | CE10: =BW10*BW11+BX10*BX11+BY10*BY11 -> 42225.45511 | CF10: |A|.|B| | CG10: =CA10*CC10 -> 42232.41362 | CJ10: =(CJ8-CL5) -> 28.92616143 | CK10: =(CL8-CL6) -> -17.90070445 | CL10: =(CN8-CL7) -> 231.3832605 | CM10: |A| | CN10: =SQRT((CJ8-CL5)^2+(CL8-CL6)^2+(CN8-CL7)^2) -> 233.8704156 | CO10: |B| | CP10: =SQRT((CL5-CM5)^2+(CL6-CM6)^2+(CL7-CM7)^2) -> 482.6236008 | CQ10: A.B | CR10: =CJ10*CJ11+CK10*CK11+CL10*CL11 -> 13812.94425 | CS10: |A|.|B| | CT10: =CN10*CP10 -> 112871.3821 | DD10: -0.0009672538357 | DE10: 0.023727905
D11: CP | F11: =DASHBOARD!F23 -> 0 | G11: =DASHBOARD!G23 -> 700 | H11: =DASHBOARD!H23 -> 0 | L11: =DASHBOARD!H$19-B5 -> 500.00 | N11: =F12-DASHBOARD!$F$13 -> -150.00 | O11: =G12-DASHBOARD!$G$13 -> 90.00 | P11: =H12-DASHBOARD!$H$13 -> 225.00 | Q11: =SQRT(N11^2+O11^2+P11^2) -> 285 | AM11: CP | AN11: =AK3+AK7*(H11-B5)-AK8*(G11-B4) -> 0.009927 | AO11: =AK4+AK8*(F11-B3)-AK6*(H11-B5) -> -0.013036 | AP11: =AK5+AK6*(G11-B4)-AK7*(F11-B3) -> -0.003456 | AR11: CP | AS11: 0.010 | AT11: 699.987 | AU11: -0.003 | AW11: HH2 | AX11: =AX7*AK6+AX8*AK7+AX9*AK8 -> -1.676667795e-06 | AY11: HVRTPA | AZ11: =SQRT(MAX(AX7^2+AX8^2+AX9^2,0.0000000001)) -> 0.002554730142 | BA11: T4 | BB11: =-BB9*G11+H11 -> 2640.064262 | BC11: T7 90 | BD11: =-1/BD9 -> 2.872065159 | BE11: DELTAD | BF11: =(-AK6*SIN(BF9)+AK7*COS(BF9))*TAN(BF10)+AK8 -> 0.0006404183312 | BG11: Toggle Angle | BH11: =(ASIN(((AS3-AS2)*AN3+(AT3-AT2)*AO3+(AU3-AU2)*AP3)/(MAX(SQRT((AS3-AS2)^2+(AT3-AT2)^2+(AU2-AU3)^2),0.000000001)*MAX(SQRT(AN3^2+AO3^2+AP3^2),0.000000001)))/PI()*180) -> 71.00822685 | BI11: B= | BJ11: =BM5-BL5 -> -25.03910405 | BK11: =BM6-BL6 -> -300.095766 | BL11: =BM7-BL7 -> -15.01950566 | BW11: =BZ5-BY5 -> -50.002 | BX11: =BZ6-BY6 -> -420.002 | BY11: =BZ7-BY7 -> -0.002 | CJ11: =CM5-CL5 -> 269.998 | CK11: =CM6-CL6 -> -400.002 | CL11: =CM7-CL7 -> -5.002 | DD11: -0.001063735985 | DE11: 0.02633975637
A12: =DASHBOARD!F15 -> 150.00 | B12: =DASHBOARD!G15 -> 320.00 | C12: =DASHBOARD!H15 -> 405.00 | D12: INT | F12: 150.00 | G12: 320.00 | H12: 405.00 | N12: Coupling Link | Q12: =IFERROR(CN9/Q5,1) -> 1.056512075 | Z12: =AN12*(AS6-AS12)+AO12*(AT6-AT12)+AP12*(AU6-AU12) -> 0.917379 | AJ12: =AS9+SLR*SIN(BF10)*SIN(BF9) -> -0.02329605479 | AK12: =AT9-SLR*SIN(BF10)*COS(BF9) -> 699.9869643 | AL12: =AU9-SLR*COS(BF10) -> -0.00345511674 | AN12: =$Q12*AN5 -> 0.036217 | AO12: =$Q12*AO5 -> 0.024364 | AP12: 0.006606 | AQ12: =SQRT(AP12^2+AO12^2+AN12^2) -> 0.04414701813 | AR12: INT | AS12: =IF(iintegral=0,F12,A12+Q12*AN5) -> 150 | AT12: =IF(iintegral=0,G12,B12+Q12*AO5) -> 320 | AU12: =IF(iintegral=0,H12,C12+Q12*AP5) -> 405 | AV12: =SQRT((AS12-AS6)^2+(AT12-AT6)^2+(AU12-AU6)^2) -> 314.484 | BM12: =ACOS(BR10/BT10)*180/3.141 -> 92.16535574 | BZ12: =ACOS(CE10/CG10)*180/3.141 -> 1.040305485 | CM12: =ACOS(CR10/CT10)*180/3.141 -> 82.98630671 | DD12: -0.001158015518 | DE12: 0.02894668987
B13: REF WC | D13: TR | F13: 100 | G13: 300 | H13: 300 | K13: RiX0 | L13: RiY0 | M13: RiZ0 | N13: XL | O13: YL | P13: ZL | S13: 1 | T13: 2 | U13: 3 | V13: 4 | W13: 5 | X13: 6 | AC13: 1 | AD13: 2 | AE13: 3 | AF13: 4 | AG13: 5 | AH13: 6 | AJ13: X | AN13: VX | AO13: VY | AP13: VZ | AR13: 1 | AS13: =F13 -> 100.00 | AT13: =IF(ilenk_combined=0,G13,G13-zivl) -> 300.00 | AU13: =H13 -> 300.00 | AW13: HHWRT | AX13: =SQRT(MAX(AK17^2+AK18^2+AK19^2,0.0000000001)) -> 0.0006814589466 | AY13: CX | AZ13: =AX15*AX20-AX16*AX19 -> 0 | BA13: HVRTSE | BB13: =SQRT(MAX(AZ16^2+AZ17^2+AZ18^2,0.0000000001)) -> 0.0003353991101 | BC13: XQP | BD13: 0 | BE13: T6 | BF13: =H20-BD21*F20 -> 237.6329558 | BG13: SIGMA | BH13: =ATAN(-AK18/AK19) -> 0.1570993503 | BJ13: =IF(ilenk=0,ZIVF,0) -> 0 | BK13: =AP20 -> -0.003363959167 | BL13: =IF(ilenk=1,-zivl,IF(ilenk_combined=1,-zivl,0)) -> 0.1 | BM13: =BF20*180/PI() -> 0.2076210215 | BN13: =BF21*180/PI() -> 0.6957035204 | BO13: =BD18 -> 2756.215776 | BP13: =BF19*180/PI() -> -82.60600371 | BQ13: =BF18*180/PI() -> 67.61689179 | BR13: =AN20 -> -0.02592231739 | BS13: =AO20 -> 0.015365692 | BT13: =AN22 -> 0.008189 | BU13: =AO22 -> -0.013415 | BV13: =AP22 -> -0.003372 | BW13: =BH21 -> 0 | BX13: =BD14 -> 659.4193795 | BY13: =BD15 -> 65.12394813 | BZ13: =BF15 -> 29.43946507 | CA13: =BF17 -> 77.62445587 | CB13: =AX21 -> -21.12482083 | CC13: =ROUND(BH13*180/PI(),3) -> 9.001 | CD13: =BH17 -> 39.00459917 | CE13: =ROUND(BH14*180/PI(),3) -> 7.599 | CF13: =BH18 -> -23.21181688 | CG13: =BH15 -> -12.3678429 | CH13: =BH16 -> 20.18606914 | CI13: =BH20 -> 0.3816011178 | CJ13: =BH19 -> 5.063367345 | CK13: =BH22 -> 64.15804798 | CL13: =BI17 -> 657.208 | DD13: -0.0012500912 | DE13: 0.0315487051
B14: =AS10 -> 0.04076432348 | D14: 2 | F14: 125.3049207 | G14: 595.8340592 | H14: 248.0296793 | J14: 2 | K14: =F14-B14 -> 125.2641564 | L14: =G14-B15 -> -4.180284278 | M14: =H14-B16 -> -51.97599074 | N14: =F14-DASHBOARD!$F$9 -> 25.30 | O14: =G14-DASHBOARD!$G$9 -> 295.83 | P14: =H14-DASHBOARD!$H$9 -> -51.97 | R14: 2 | S14: =N14 -> 25.30492071 | T14: 295.8340592 | U14: -51.97032068 | V14: =L14*P14-M14*O14 -> 15593.51904 | W14: =M14*N14-K14*P14 -> 5194.770052 | X14: =K14*O14-L14*N14 -> 37163.18562 | Y14: vx | Z14: =IF(ilenk=1,-zivl*O14,IF(ilenk_combined=1,-zivl*O14,0)) -> 29.58340592 | AB14: 2 | AC14: =MINVERSE(S14:X19) -> 0.001054315049 | AD14: 0.0004253208755 | AE14: -0.0007991836907 | AF14: -0.003662836613 | AG14: 0.003015014057 | AH14: -0.001186077677 | AJ14: V0X | AK14: =MMULT(AC14:AH19,Z14:Z19) -> 0.03119023007 | AM14: 2 | AN14: =AK14+(AK18*M14-AK19*L14) -> 0.03947376424 | AO14: =AK15+(AK19*K14-AK17*M14) -> 0.09991805673 | AP14: =AK16+(AK17*L14-AK18*K14) -> 0.0187537589 | AQ14: =SQRT(AP14^2+AO14^2+AN14^2) -> 0.1090573225 | AR14: 2 | AS14: =F14+AN14 -> 125.3443945 | AT14: 595.9339773 | AU14: 248.0484331 | AV14: =SQRT((AS14-DASHBOARD!$F$9)^2+(AT14-DASHBOARD!$G$9)^2+(AU14-DASHBOARD!$H$9)^2) -> 301.526 | AW14: EMSAX | AX14: =AK17/AX13 -> -0.1306340226 | AY14: CY | AZ14: =AX16*AX18-AX14*AX19 -> 0.0003395082815 | BA14: PX | BB14: =AS20-AZ19 -> 0.5500553176 | BC14: YQP | BD14: =(BB22-BB21)/(BB19-BB20) -> 659.4193795 | BE14: T8 | BF14: =H22-BD22*F22 -> -60.70978933 | BG14: TAU | BH14: =ATAN(-AK17/AK19) -> 0.1326229356 | DD14: -0.001339961793 | DE14: 0.03414580167
B15: =AT10 -> 600.0143435 | D15: 4 | F15: -10.8210607 | G15: 644.8647144 | H15: 118.8371042 | J15: 4 | K15: =F15-B14 -> -10.86182503 | L15: =G15-B15 -> 44.85037089 | M15: =H15-B16 -> -181.1685658 | N15: =F15-DASHBOARD!$F$11 -> 49.18 | O15: =G15-DASHBOARD!$G$11 -> 414.86 | P15: =H15-DASHBOARD!$H$11 -> -66.16 | Q15: =SQRT(N15^2+O15^2+P15^2) -> 422.9761555 | R15: 4 | S15: 49.1789393 | T15: 414.8647144 | U15: -66.16289575 | V15: 72193.0149 | W15: -9628.327698 | X15: -6711.881605 | Y15: vy | Z15: 0 | AB15: 4 | AC15: 0.0007083827993 | AD15: 0.000250058854 | AE15: 3.778194205e-05 | AF15: 0.0007091560314 | AG15: 0.001798637833 | AH15: 0.01599698748 | AJ15: V0Y | AK15: 0.0209563759 | AM15: 4 | AN15: =AK14+(AK18*M15-AK19*L15) -> 0.02041172813 | AO15: =AK15+(AK19*K15-AK17*M15) -> -0.002419649355 | AP15: =AK16+(AK17*L15-AK18*K15) -> 0 | AQ15: 0.02055464299 | AR15: 4 | AS15: -10.80064897 | AT15: 644.8622948 | AU15: 118.8371042 | AV15: =SQRT((AS15-DASHBOARD!$F$11)^2+(AT15-DASHBOARD!$G$11)^2+(AU15-DASHBOARD!$H$11)^2) -> 422.976 | AW15: EMSAY | AX15: =AK18/AX13 -> -0.1551132328 | AY15: CZ | AZ15: =AX14*AX19-AX15*AX18 -> 0 | BA15: PY | BB15: =AT20-AZ20 -> 696.6990619 | BC15: ZQP | BD15: =BB20*BD14+BB22 -> 65.12394813 | BE15: XLP | BF15: =(BF14-BF13)/(BD21-BD22) -> 29.43946507 | BG15: RS | BH15: =-(AN22*COS(-BF20)+AO22*SIN(-BF20))/BF22 -> -12.3678429 | BJ15: HIGH | BK15: LOW | BL15: TRO | BM15: TRI | BN15: z=ax+b | BO15: a= | BP15: b= | BQ15: -1/a= | BR15: z=cy+d | BS15: c= | BT15: d= | BU15: -1/c= | BW15: SPRING UP | BX15: SPRING LOW | BY15: LINK OUT | BZ15: LINK IN | CA15: z=ax+b | CB15: a= | CC15: b= | CD15: -1/a= | CE15: z=cy+d | CF15: c= | CG15: d= | CH15: -1/c= | CJ15: COUPLING KNUCKLE | CK15: COUPLING LINK | CL15: LINK OUT | CM15: LINK IN | CN15: z=ax+b | CO15: a= | CP15: b= | CQ15: -1/a= | CR15: z=cy+d | CS15: c= | CT15: d= | CU15: -1/c= | DD15: -0.001427626058 | DE15: 0.03673797917
B16: =AU10 -> 300.0056701 | D16: 6 | F16: 29.09063596 | G16: 624.6898009 | H16: 118.6652065 | J16: 6 | K16: =F16-B14 -> 29.04987164 | L16: =G16-B15 -> 24.67545741 | M16: =H16-B16 -> -181.3404636 | N16: =F16-DASHBOARD!$F$13 -> -270.91 | O16: =G16-DASHBOARD!$G$13 -> 394.69 | P16: =H16-DASHBOARD!$H$13 -> -61.33 | Q16: =SQRT(N16^2+O16^2+P16^2) -> 482.6322403 | R16: 6 | S16: -270.909364 | T16: 394.6898009 | U16: -61.3347935 | V16: 70059.76738 | W16: 50908.59754 | X16: 18150.50053 | Y16: vz | Z16: 0 | AB16: 6 | AC16: 0.0001737726912 | AD16: -0.0003125240808 | AE16: -0.0002214280285 | AF16: 0.0003848234822 | AG16: 0.0002336655613 | AH16: 0.1001630058 | AJ16: V0Z | AK16: 0.005140788063 | AM16: 6 | AN16: =AK14+(AK18*M16-AK19*L16) -> 0.0338926022 | AO16: =AK15+(AK19*K16-AK17*M16) -> 0.02419809182 | AP16: =AK16+(AK17*L16-AK18*K16) -> 0.006014803621 | AQ16: 0.04207652545 | AR16: 6 | AS16: 29.12452856 | AT16: 624.713999 | AU16: 118.6712213 | AV16: =SQRT((AS16-DASHBOARD!$F$13)^2+(AT16-DASHBOARD!$G$13)^2+(AU16-DASHBOARD!$H$13)^2) -> 482.632 | AW16: EMSAZ | AX16: =AK19/AX13 -> 0.9792214444 | AY16: VRTSEX | AZ16: =AZ14*AX16-AZ15*AX15 -> 0.0003324537898 | BA16: PZ | BB16: =AU20-AZ21 -> 233.1890486 | BC16: XWP | BD16: =F20 -> 0.5860728559 | BE16: YLP | BF16: =AT22 -> 692.5815074 | BG16: SNACH | BH16: =-(AN22*SIN(-BF20)+AO22*COS(-BF20))/BF22 -> 20.18606914 | BJ16: =AS17 -> -8.555 | BK16: =AS15 -> -10.801 | BL16: =AS14 -> 125.344 | BM16: =AS13 -> 100.00 | BN16: z2=ax2+b | BO16: =(BJ18-BK18)/(BJ16-BK16) -> 107.1837785 | BP16: =BJ18-(BO16*BJ16) -> 1276.491472 | BQ16: =-1/BO16 -> -0.009329769989 | BR16: z2=cy2+d | BS16: =(BJ18-BK18)/(BJ17-BK17) -> -4.216110871 | BT16: =BJ18-BS16*BJ17 -> 2837.648035 | BU16: =-1/BS16 -> 0.2371854135 | BW16: =DASHBOARD!$F$19+0.001 -> -20.00 | BX16: =F19-0.001 -> -20.36736823 | BY16: =F15+0.001 -> -10.8200607 | BZ16: =DASHBOARD!F$11-0.001 -> -60.00 | CA16: z2=ax2+b | CB16: =(BW18-BX18)/(BW16-BX16) -> 1806.451605 | CC16: =BW18-(CB16*BW16) -> 36927.22666 | CD16: =-1/CB16 -> -0.0005535714308 | CE16: z2=cy2+d | CF16: =(BW18-BX18)/(BW17-BX17) -> -14.44961754 | CG16: =BW18-CF16*BW17 -> 8024.824218 | CH16: =-1/CF16 -> 0.06920598399 | CJ16: =F17+0.001 -> -8.587069703 | CK16: =F23-0.001 -> 149.999 | CL16: =F16+0.001 -> 29.09163596 | CM16: =DASHBOARD!F$13-0.001 -> 300.00 | CN16: z2=ax2+b | CO16: =(CJ18-CK18)/(CJ16-CK16) -> 0.286707678 | CP16: =CJ18-(CO16*CJ16) -> 361.993135 | CQ16: =-1/CO16 -> -3.487873108 | CR16: z2=cy2+d | CS16: =(CJ18-CK18)/(CJ17-CK17) -> -0.169812225 | CT16: =CJ18-CS16*CJ17 -> 459.3387422 | CU16: =-1/CS16 -> 5.888857531 | DD16: -0.001513082756 | DE16: 0.0393252372
D17: 8 | F17: -8.588069703 | G17: 587.7516545 | H17: 359.5301562 | J17: 8 | K17: =F17-B14 -> -8.628834027 | L17: =G17-B15 -> -12.26268904 | M17: =H17-B16 -> 59.52448612 | N17: =IF(iintegral=0,F17-DASHBOARD!$F$15,F17-A23) -> -158.59 | O17: =IF(iintegral=0,G17-DASHBOARD!$G$15,G17-B23) -> 267.75 | P17: =IF(iintegral=0,H17-DASHBOARD!$H$15,H17-C23) -> -45.47 | Q17: =ABS(G15-DASHBOARD!G$11) -> 414.8647144 | R17: 8 | S17: =IF(iMcPherson=0,N17,-P19) -> -158.5880697 | T17: =IF(iMcPherson=0,O17,0) -> 267.7516545 | U17: =IF(iMcPherson=0,P17,N19) -> -45.46984382 | V17: =IF(iMcPherson=0,L17*P17-M17*O17,-L21*(-N19)) -> -15380.19709 | W17: =IF(iMcPherson=0,M17*N17-K17*P17,L22*(-P19)+L20*(-N19)) -> -9832.22509 | X17: =IF(iMcPherson=0,K17*O17-L17*N17,-L21*(-P19)) -> -4255.100771 | Y17: wx | Z17: 0 | AB17: 8 | AC17: -3.009177633e-06 | AD17: 9.797483553e-06 | AE17: 1.674504052e-06 | AF17: -3.733607287e-06 | AG17: -1.058359336e-05 | AH17: 8.350809489e-08 | AJ17: OMEGAX | AK17: -8.90217234e-05 | AM17: 8 | AN17: =AK14+(AK18*M17-AK19*L17) -> 0.0330811782 | AO17: =AK15+(AK19*K17-AK17*M17) -> 0.02049733408 | AP17: =AK16+(AK17*L17-AK18*K17) -> 0.005320337542 | AQ17: 0.03927863347 | AR17: 8 | AS17: -8.554988525 | AT17: 587.7721518 | AU17: 359.5354765 | AV17: =SQRT((AS17-F23)^2+(AT17-G23)^2+(AU17-H23)^2) -> 314.497 | AW17: HH1 | AX17: =AX14*AN20+AX15*AO20+AX16*AP20 -> -0.002291146519 | AY17: VRTSEY | AZ17: =AZ15*AX14-AZ13*AX16 -> 0 | BA17: T1 | BB17: =AP20/AO20 -> -0.2189266301 | BC17: YWP | BD17: =0 -> 0 | BE17: ZLP | BF17: =BD22*BF15+BF14-AU22 -> 77.62445587 | BG17: RSIGMA | BH17: =-(AN20*COS(-BF20)+AO20*SIN(-BF20))/BF22 -> 39.00459917 | BI17: =AT20-BH17*COS(-BF20) -> 657.2084978 | BJ17: =AT17 -> 587.772 | BK17: =AT15 -> 644.862 | BL17: =AT14 -> 595.934 | BM17: =AT13 -> 300.00 | BN17: (z-z2)/(x-x2)=a | BR17: (z-z2)/(y-y2)=c | BW17: =DASHBOARD!$G$19+0.001 -> 500.00 | BX17: =G19-0.001 -> 546.0533873 | BY17: =G15+0.001 -> 644.8657144 | BZ17: =DASHBOARD!G$11-0.001 -> 230.00 | CA17: (z-z2)/(x-x2)=a | CB17: (z-z2)/(y-y2)=c | CJ17: =G17+0.001 -> 587.7526545 | CK17: =G23-0.001 -> 319.999 | CL17: =G16+0.001 -> 624.6908009 | CM17: =DASHBOARD!G$13-0.001 -> 230.00 | CN17: (z-z2)/(x-x2)=a | CO17: (z-z2)/(y-y2)=c | DD17: -0.001596330643 | DE17: 0.04190757533
D18: 10 | F18: -48.58555372 | G18: 587.9282005 | H18: 359.9431232 | J18: 10 | K18: =F18-B14 -> -48.62631804 | L18: =G18-B15 -> -12.08614301 | M18: =H18-B16 -> 59.93745313 | N18: =F18-DASHBOARD!$F$17 -> 51.41444628 | O18: =G18-DASHBOARD!$G$17 -> 267.93 | P18: =H18-DASHBOARD!$H$17 -> -40.05687681 | Q18: =ABS(G19-DASHBOARD!G$11) -> 316.0543873 | R18: 10 | S18: =IF(iMcPherson=0,N18,0) -> 51.41444628 | T18: =IF(iMcPherson=0,O18,-P19) -> 267.9282005 | U18: =IF(iMcPherson=0,P18,O19) -> -40.05687681 | V18: =IF(iMcPherson=0,L18*P18-M18*O18,-L22*(-P19)-L21*(-O19)) -> -15574.80082 | W18: =IF(iMcPherson=0,M18*N18-K18*P18,L20*(-O19)) -> 1133.832533 | X18: =IF(iMcPherson=0,K18*O18-L18*N18,L20*(-P19)) -> -12406.95954 | Y18: wy | Z18: 0 | AB18: 10 | AC18: -3.573060535e-06 | AD18: -1.168281481e-05 | AE18: 1.347157595e-05 | AF18: -2.001227327e-05 | AG18: 2.218895312e-05 | AH18: -1.535204097e-05 | AJ18: OMEGAY | AK18: -0.0001057033002 | AM18: 10 | AN18: =AK14+(AK18*M18-AK19*L18) -> 0.0329197172 | AO18: =AK15+(AK19*K18-AK17*M18) -> -0.006156192532 | AP18: =AK16+(AK17*L18-AK18*K18) -> 0.001076755049 | AQ18: 0.03350769894 | AR18: 10 | AS18: -48.552634 | AT18: 587.9220443 | AU18: 359.9441999 | AV18: =SQRT((AS18-DASHBOARD!$F$17)^2+(AT18-DASHBOARD!$G$17)^2+(AU18-DASHBOARD!$H$17)^2) -> 275.742 | AW18: VRTPAX | AX18: =AX17*AX14 -> 0.0002993016861 | AY18: VRTSEZ | AZ18: =AZ13*AX15-AZ14*AX14 -> 4.43513325e-05 | BA18: T3 | BB18: =AP22/AO22 -> 0.2513879288 | BC18: ZWP | BD18: =(BD15-AU22)/(AT22-BD14)*AT22 -> 2756.215776 | BE18: EPSBR | BF18: =-ATAN(AN22/AP22) -> 1.180137392 | BG18: RNACH | BH18: =-(AN20*SIN(-BF20)+AO20*COS(-BF20))/BF22 -> -23.21181688 | BJ18: =AU17 -> 359.535 | BK18: =AU15 -> 118.837 | BL18: =AU14 -> 248.048 | BM18: =AU13 -> 300.00 | BN18: z=ex+f | BO18: e= | BP18: f= | BR18: z=gy+h | BT18: g= | BU18: h= | BW18: =DASHBOARD!$H$19+0.001 -> 800.00 | BX18: =H19-0.001 -> 134.5616175 | BY18: =H15+0.001 -> 118.8381042 | BZ18: =DASHBOARD!H$11-0.001 -> 185.00 | CA18: z=ex+f | CB18: e= | CC18: f= | CE18: z=gy+h | CG18: g= | CH18: h= | CJ18: =H17+0.001 -> 359.5311562 | CK18: =H23-0.001 -> 404.999 | CL18: =H16+0.001 -> 118.6662065 | CM18: =DASHBOARD!H$13-0.001 -> 180.00 | CN18: z=ex+f | CO18: e= | CP18: f= | CR18: z=gy+h | CT18: g= | CU18: h= | DD18: -0.001677368478 | DE18: 0.04448499315
D19: 12 | F19: -20.36636823 | G19: 546.0543873 | H19: 134.5626175 | J19: 12 | K19: =F19-B14 -> -20.40713255 | L19: =G19-B15 -> -53.95995627 | M19: =H19-B16 -> -165.4430526 | N19: =IF(ifederlenker=1,F19-DASHBOARD!$F$19,0) -> 0 | O19: =IF(ifederlenker=1,G19-DASHBOARD!$G$19,0) -> 0 | P19: =IF(ifederlenker=1,H19-DASHBOARD!$H$19,10) -> 10 | Q19: =IF(ABS(G19)<ABS(DASHBOARD!G$11),-1,1) -> 1 | R19: 12 | S19: 0 | T19: 0 | U19: 10 | V19: =IF(ifederlenker=1,L19*P19-M19*O19,L15*P19-M15*O19) -> 448.5037089 | W19: =IF(ifederlenker=1,M19*N19-K19*P19,M15*N19-K15*P19) -> 108.6182503 | X19: =IF(ifederlenker=1,K19*O19-L19*N19,K15*O19-L15*N19) -> 0 | Y19: wz | Z19: =IF(ilenk=0,IF(ifederlenker=1,-ZIVF*SQRT(N19^2+O19^2+P19^2),N19*'SPRINGLINK REBOUND'!AN20+O19*'SPRINGLINK REBOUND'!AO20+P19*'SPRINGLINK REBOUND'!AP20),0) -> 0 | AB19: 12 | AC19: 2.25565378e-05 | AD19: -5.195149988e-06 | AE19: -2.651945452e-06 | AF19: 1.751031713e-06 | AG19: -1.470488561e-05 | AH19: 1.564751564e-05 | AJ19: OMEGAZ | AK19: 0.000667299214 | AM19: 12 | AN19: =AK14+(AK18*M19-AK19*L19) -> 0.08468554313 | AO19: =AK15+(AK19*K19-AK17*M19) -> -0.007389313277 | AP19: =AK16+(AK17*L19-AK18*K19) -> 0.007787295107 | AQ19: 0.08536325399 | AR19: 12 | AS19: =IF(ifederlenker=1,F19+AN19,'SPRINGLINK REBOUND'!AS21) -> -20.000 | AT19: =IF(ifederlenker=1,G19+AO19,'SPRINGLINK REBOUND'!AT21) -> 550.000 | AU19: =IF(ifederlenker=1,H19+AP19,'SPRINGLINK REBOUND'!AU21) -> 184.980 | AV19: =SQRT((AS19-DASHBOARD!$F$11)^2+(AT19-DASHBOARD!$G$11)^2+(AU19-DASHBOARD!$H$11)^2) -> 322.490 | AW19: VRTPAY | AX19: =AX17*AX15 -> 0.0003553871434 | AY19: RPNX | AZ19: =(AZ17*AX16-AZ18*AX15)/AX13 -> 0.01009522084 | BA19: T1 90 | BB19: =-1/BB17 -> 4.567740342 | BC19: T5 | BD19: =AP20/AN20 -> 0.1297707731 | BE19: EPSANT | BF19: =-ATAN(AN20/AP20) -> -1.441746747 | BG19: P radlast | BH19: =-AP22/BF22 -> 5.063367345 | BI19: X= | BJ19: =(BP19-BP16)/(BO16-BO19) -> -9.583392261 | BK19: Y= | BL19: =(BU19-BT16)/(BS16-BT19) -> 613.2415799 | BM19: Z= | BN19: =BO19*BJ19+BP19 -> 249.3072783 | BO19: =BQ16 -> -0.009329769989 | BP19: =BL18-BO19*BL16 -> 249.2178675 | BT19: =BU16 -> 0.2371854135 | BU19: =BL18-BT19*BL17 -> 106.7015863 | BW19: =(CC19-CC16)/(CB16-CB19) -> -20.37606939 | BX19: Y= | BY19: =(CH19-CG16)/(CF16-CG19) -> 547.6073642 | BZ19: Z= | CA19: =CB19*BW19+CC19 -> 118.8433942 | CB19: =CD16 -> -0.0005535714308 | CC19: =BY18-CB19*BY16 -> 118.8321146 | CG19: =CH16 -> 0.06920598399 | CH19: =BY18-CG19*BY17 -> 74.20953794 | CJ19: =(CP19-CP16)/(CO16-CO19) -> -37.58271497 | CK19: Y= | CL19: =(CU19-CT16)/(CS16-CT19) -> 663.4109178 | CM19: Z= | CN19: =CO19*CJ19+CP19 -> 351.2178821 | CO19: =CQ16 -> -3.487873108 | CP19: =CL18-CO19*CL16 -> 220.1341412 | CT19: =CU16 -> 5.888857531 | CU19: =CL18-CT19*CL17 -> -3560.048921 | DD19: -0.001756195014 | DE19: 0.04705749022
D20: WC | F20: 0.5860728559 | G20: 696.1974752 | H20: 233.1167397 | K20: McPherson | L20: =DASHBOARD!F$19-B14 -> -20.04 | N20: =F19-DASHBOARD!$F$11 -> 39.63 | O20: =G19-DASHBOARD!$G$11 -> 316.05 | P20: =H19-DASHBOARD!$H$11 -> -50.44 | Q20: =SQRT(N20^2+O20^2+P20^2) -> 322.4982636 | AM20: WC | AN20: =AK14+AK18*(H20-B16)-AK19*(G20-B15) -> -0.02592231739 | AO20: =AK15+AK19*(F20-B14)-AK17*(H20-B16) -> 0.015365692 | AP20: =AK16+AK17*(G20-B15)-AK18*(F20-B14) -> -0.003363959167 | AR20: WC | AS20: =F20+AN20 -> 0.5601505385 | AT20: 696.2128409 | AU20: 233.1133757 | AW20: VRTPAZ | AX20: =AX17*AX16 -> -0.002243539804 | AY20: RPNY | AZ20: =(AZ18*AX14-AZ16*AX16)/AX13 -> -0.4862210333 | BA20: T3 90 | BB20: =-1/BB18 -> -3.977915744 | BC20: T7 | BD20: =AP22/AN22 -> -0.4118253968 | BE20: DELTA | BF20: =-ASIN((AS21-AS20)/SQRT((AS21-AS20)^2+(AT21-AT20)^2)) -> 0.003623670422 | BG20: iLENK | BH20: =ABS(BF22*180/PI()/zivl) -> 0.3816011178 | BJ20: e1 | BK20: e2 | BL20: e3 | BW20: e1 | BX20: e2 | BY20: e3 | CA20: =SQRT((BW19-BZ16)^2+(BY19-BZ17)^2+(CA19-BZ18)^2) -> 326.8360022 | CJ20: e1 | CK20: e2 | CL20: e3 | CN20: =SQRT((CJ19-CM16)^2+(CL19-CM17)^2+(CN19-CM18)^2) -> 575.4330633 | DD20: -0.001832809007 | DE20: 0.04962506612
D21: WC ALIGN | F21: 0.1571360932 | G21: 596.2056379 | H21: 234.322086 | L21: =DASHBOARD!G$19-B15 -> -100.01 | N21: Spring on link | Q21: =IFERROR(Q18/Q17*Q19,1) -> 0.7618251837 | AM21: WC ALIGN | AN21: =AK14+AK18*(H21-B16)-AK19*(G21-B15) -> 0.04067474792 | AO21: =AK15+AK19*(F21-B14)-AK17*(H21-B16) -> 0.01518676484 | AP21: =AK16+AK17*(G21-B15)-AK18*(F21-B14) -> 0.005492146478 | AR21: WC ALIGN | AS21: =F21+AN21 -> 0.1978108411 | AT21: 596.2208247 | AU21: 234.3275781 | AW21: HMSA | AX21: =2*PI()*AX22/AX13/AX13 -> -21.12482083 | AY21: RPNZ | AZ21: =(AZ16*AX15-AZ17*AX14)/AX13 -> -0.0756729108 | BA21: T2 | BB21: =-BB19*G20+H20 -> -2946.932554 | BC21: T5 90 | BD21: =-1/BD19 -> -7.705895375 | BE21: GAMMA | BF21: =ATAN((AU21-AU20)/SQRT((AS21-AS20)^2+(AT21-AT20)^2)) -> 0.01214231705 | BG21: iFeder | BH21: =IF(ilenk=0,ABS(ZIVF/AP20),0) -> 0 | BI21: A= | BJ21: =(BJ19-BL16) -> -134.9277867 | BK21: =(BL19-BL17) -> 17.30760259 | BL21: =(BN19-BL18) -> 1.258845215 | BM21: |A| | BN21: =SQRT((BJ19-BL16)^2+(BL19-BL17)^2+(BN19-BL18)^2) -> 136.039132 | BO21: |B| | BP21: =SQRT((BL16-BM16)^2+(BL17-BM17)^2+(BL18-BM18)^2) -> 301.5264873 | BQ21: A.B | BR21: =BJ21*BJ22+BK21*BK22+BL21*BL22 -> -1636.845638 | BS21: |A|.|B| | BT21: =BN21*BP21 -> 41019.40161 | BW21: =(BW19-BY16) -> -9.556008687 | BX21: =(BY19-BY17) -> -97.25835018 | BY21: =(CA19-BY18) -> 0.005289933402 | BZ21: |A| | CA21: =SQRT((BW19-BY16)^2+(BY19-BY17)^2+(CA19-BY18)^2) -> 97.72668013 | CB21: |B| | CC21: =SQRT((BY16-BZ16)^2+(BY17-BZ17)^2+(BY18-BZ18)^2) -> 422.9780368 | CD21: A.B | CE21: =BW21*BW22+BX21*BX22+BY21*BY22 -> 40819.57566 | CF21: |A|.|B| | CG21: =CA21*CC21 -> 41336.23931 | CJ21: =(CJ19-CL16) -> -66.67435093 | CK21: =(CL19-CL17) -> 38.72011684 | CL21: =(CN19-CL18) -> 232.5516756 | CM21: |A| | CN21: =SQRT((CJ19-CL16)^2+(CL19-CL17)^2+(CN19-CL18)^2) -> 244.9999966 | CO21: |B| | CP21: =SQRT((CL16-CM16)^2+(CL17-CM17)^2+(CL18-CM18)^2) -> 482.6324991 | CQ21: A.B | CR21: =CJ21*CJ22+CK21*CK22+CL21*CL22 -> -19082.04141 | CS21: |A|.|B| | CT21: =CN21*CP21 -> 118244.9606 | DD21: -0.001907209208 | DE21: 0.0521877204
D22: CP | F22: -2.526868466 | G22: 692.5949222 | H22: -66.84556553 | L22: =DASHBOARD!H$19-B16 -> 499.99 | N22: =F23-DASHBOARD!$F$13 -> -150.00 | O22: =G23-DASHBOARD!$G$13 -> 90.00 | P22: =H23-DASHBOARD!$H$13 -> 225.00 | Q22: =SQRT(N22^2+O22^2+P22^2) -> 285 | AM22: CP | AN22: =AK14+AK18*(H22-B16)-AK19*(G22-B15) -> 0.008188669001 | AO22: =AK15+AK19*(F22-B14)-AK17*(H22-B16) -> -0.01341473266 | AP22: =AK16+AK17*(G22-B15)-AK18*(F22-B14) -> -0.00337230186 | AR22: CP | AS22: -2.518679797 | AT22: 692.5815074 | AU22: -66.84893783 | AW22: HH2 | AX22: =AX18*AK17+AX19*AK18+AX20*AK19 -> -1.561322294e-06 | AY22: HVRTPA | AZ22: =SQRT(MAX(AX18^2+AX19^2+AX20^2,0.0000000001)) -> 0.002291146519 | BA22: T4 | BB22: =-BB20*G22+H22 -> 2688.23868 | BC22: T7 90 | BD22: =-1/BD20 -> 2.428213529 | BE22: DELTAD | BF22: =(-AK17*SIN(BF20)+AK18*COS(BF20))*TAN(BF21)+AK19 -> 0.0006660195935 | BG22: Toggle Angle | BH22: =(ASIN(((AS14-AS13)*AN14+(AT14-AT13)*AO14+(AU14-AU13)*AP14)/(MAX(SQRT((AS14-AS13)^2+(AT14-AT13)^2+(AU13-AU14)^2),0.000000001)*MAX(SQRT(AN14^2+AO14^2+AP14^2),0.000000001)))/PI()*180) -> 64.15804798 | BI22: B= | BJ22: =BM16-BL16 -> -25.34439447 | BK22: =BM17-BL17 -> -295.9339773 | BL22: =BM18-BL18 -> 51.95156692 | BW22: =BZ16-BY16 -> -49.1809393 | BX22: =BZ17-BY17 -> -414.8667144 | BY22: =BZ18-BY18 -> 66.16089575 | CJ22: =CM16-CL16 -> 270.907364 | CK22: =CM17-CL17 -> -394.6918009 | CL22: =CM18-CL18 -> 61.3327935 | DD22: -0.001979394369 | DE22: 0.05474545262
A23: 150 | B23: 320 | C23: 405 | D23: INT | F23: 150 | G23: 320 | H23: 405 | N23: Coupling Link | Q23: =IFERROR(CN20/Q16,1) -> 1.192280613 | Z23: =AN23*(AS17-AS23)+AO23*(AT17-AT23)+AP23*(AU17-AU23) -> 0.992304 | AJ23: =AS20+SLR*SIN(BF21)*SIN(BF20) -> 0.5733501118 | AK23: =AT20-SLR*SIN(BF21)*COS(BF20) -> 692.5702592 | AL23: =AU20-SLR*COS(BF21) -> -66.86450918 | AN23: =$Q23*AN16 -> 0.040409 | AO23: =$Q23*AO16 -> 0.028851 | AP23: 0.007171 | AQ23: =SQRT(AP23^2+AO23^2+AN23^2) -> 0.05016702556 | AR23: INT | AS23: =IF(iintegral=0,F23,A23+Q23*AN16) -> 150 | AT23: =IF(iintegral=0,G23,B23+Q23*AO16) -> 320 | AU23: =IF(iintegral=0,H23,C23+Q23*AP16) -> 405 | AV23: =SQRT((AS23-AS17)^2+(AT23-AT17)^2+(AU23-AU17)^2) -> 314.497 | BM23: =ACOS(BR21/BT21)*180/3.141 -> 92.30436137 | BZ23: =ACOS(CE21/CG21)*180/3.141 -> 9.070086629 | CM23: =ACOS(CR21/CT21)*180/3.141 -> 99.30557699 | DD23: -0.002049363237 | DE23: 0.05729826233
B24: REF WC | D24: 1 | F24: =AS13 -> 100 | G24: 300 | H24: 300 | DD24: -0.002117114562 | DE24: 0.05984614907
B25: =AS21 -> 0.1978108411 | D25: 2 | F25: =AS14 -> 125.3443945 | G25: =AT14 -> 595.9339773 | H25: 248.0484331 | DD25: -0.00218264709 | DE25: 0.06238911237
B26: =AT21 -> 596.2208247 | D26: 4 | F26: =AS15 -> -10.80064897 | G26: 644.8622948 | H26: 118.8371042 | DD26: -0.002245959564 | DE26: 0.06492715176
B27: =AU21 -> 234.3275781 | D27: 6 | F27: 29.12452856 | G27: 624.713999 | H27: 118.6712213 | DD27: -0.002307050729 | DE27: 0.06746026678
D28: 8 | F28: -8.554988525 | G28: 587.7721518 | H28: 359.5354765 | DD28: -0.002365919327 | DE28: 0.06998845693
D29: 10 | F29: -48.552634 | G29: 587.9220443 | H29: 359.9441999 | DD29: -0.002422564096 | DE29: 0.07251172173
D30: 12 | F30: -20.00000003 | G30: 549.9999997 | H30: 184.979934 | DD30: -0.002476983776 | DE30: 0.07503006068
D31: WC | F31: 0.5601505385 | G31: 696.2128409 | H31: 233.1133757 | DD31: -0.002529177105 | DE31: 0.07754347328
D32: WC ALIGN | F32: 0.1978108411 | G32: 596.2208247 | H32: 234.3275781 | DD32: -0.002579142817 | DE32: 0.08005195903
D33: CP | F33: -2.518679797 | G33: 692.5815074 | H33: -66.84893783 | DD33: -0.002626879646 | DE33: 0.08255551742
D34: INT | F34: =AS23 -> 150.00 | G34: =AT23 -> 320.00 | H34: =AU23 -> 405.00 | DD34: -0.002672386325 | DE34: 0.08505414792
DD35: -0.002715661585 | DE35: 0.08754785002
DD36: -0.002756704155 | DE36: 0.09003662317
DD37: -0.002795512763 | DE37: 0.09252046684
DD38: -0.002832086135 | DE38: 0.0949993805
DD39: -0.002866422995 | DE39: 0.09747336358
D40: 1 | F40: 100 | G40: 300 | H40: 300 | DD40: -0.002898522066 | DE40: 0.09994241554
D41: 2 | F41: 125 | G41: 600 | H41: 315 | DD41: -0.00292838207 | DE41: 0.1024065358
D42: 4 | F42: -10 | G42: 650 | H42: 185 | DD42: -0.002956001726 | DE42: 0.1048657238
D43: 6 | F43: 30 | G43: 630 | H43: 185 | DD43: -0.002981379753 | DE43: 0.107319979
D44: 8 | F44: -10 | G44: 590 | H44: 425 | DD44: -0.003004514867 | DE44: 0.1097693008
D45: 10 | F45: -50 | G45: 590 | H45: 425 | DD45: -0.003025405783 | DE45: 0.1122136886
D46: 12 | F46: -20 | G46: 550 | H46: 185 | DD46: -0.003044051214 | DE46: 0.1146531418
D47: WC | F47: 0 | G47: 700 | H47: 300 | DD47: -0.003060449872 | DE47: 0.1170876598
D48: WC ALIGN | F48: 0 | G48: 600 | H48: 300 | DD48: -0.003074600467 | DE48: 0.119517242
D49: CP | F49: 0 | G49: 700 | H49: 0 | DD49: -0.003086501707 | DE49: 0.1219418879
D50: INT | F50: 150 | G50: 320 | H50: 405 | DD50: -0.003096152299 | DE50: 0.1243615967
D51: 1 | F51: 100 | G51: 300 | H51: 300 | DD51: -0.003103550949 | DE51: 0.1267763678
D52: 2 | F52: 125.0007825 | G52: 600.0065388 | H52: 314.86792 | DD52: -0.003108696359 | DE52: 0.1291862007
D53: 4 | F53: -10.00200253 | G53: 650.0002384 | H53: 184.8683889 | DD53: -0.003111587231 | DE53: 0.1315910947
D54: 6 | F54: 29.99803805 | G54: 630.0003196 | H54: 184.8684903 | DD54: -0.003112222265 | DE54: 0.1339910491
D55: 8 | F55: -9.996926579 | G55: 590.0113642 | H55: 424.8711703 | DD55: -0.003110600161 | DE55: 0.1363860634
D56: 10 | F56: -49.99692658 | G56: 590.0112831 | H56: 424.8719961 | DD56: -0.003106719614 | DE56: 0.1387761368
D57: 12 | F57: -20 | G57: 550 | H57: 184.8996701 | DD57: -0.00310057932 | DE57: 0.1411612686
D58: WC | F58: 0.0002699169869 | G58: 700.0055898 | H58: 299.8658646 | DD58: -0.003092177971 | DE58: 0.1435414583
D59: WC ALIGN | F59: 0.0004728120572 | G59: 600.0055898 | H59: 299.8705003 | DD59: -0.003081514261 | DE59: 0.1459167052
D60: CP | F60: -0.00592284921 | G60: 699.9916825 | H60: -0.1341354144 | DD60: -0.003068586878 | DE60: 0.1482870085
D61: INT | F61: 150 | G61: 320 | H61: 405 | DD61: -0.003053394511 | DE61: 0.1506523676
D62: 1 | F62: 100 | G62: 300 | H62: 300 | DD62: -0.003035935847 | DE62: 0.1530127817
D63: 2 | F63: 125.0015642 | G63: 600.0130197 | H63: 314.7358321 | DD63: -0.00301620957 | DE63: 0.1553682503
D64: 4 | F64: -10.00400393 | G64: 650.0004354 | H64: 184.7367746 | DD64: -0.002994214363 | DE64: 0.1577187725
D65: 6 | F65: 29.99607645 | G65: 630.0005962 | H65: 184.7369757 | DD65: -0.002969948909 | DE65: 0.1600643478
D66: 8 | F66: -9.993854004 | G66: 590.0226666 | H66: 424.7423318 | DD66: -0.002943411886 | DE66: 0.1624049752
D67: 10 | F67: -49.99385399 | G67: 590.0225059 | H67: 424.7439832 | DD67: -0.002914601973 | DE67: 0.1647406543
D68: 12 | F68: -20.00000289 | G68: 549.9999689 | H68: 184.7993377 | DD68: -0.002883517846 | DE68: 0.1670713841
D69: WC | F69: 0.0005430262965 | G69: 700.0111279 | H69: 299.73173 | DD69: -0.002850158178 | DE69: 0.1693971639
D70: WC ALIGN | F70: 0.0009449914473 | G70: 600.0111281 | H70: 299.7409929 | DD70: -0.002814521644 | DE70: 0.1717179932
D71: CP | F71: -0.01184290326 | G71: 699.983339 | H71: -0.2682692544 | DD71: -0.002776606913 | DE71: 0.1740338709
D72: INT | F72: 150 | G72: 320 | H72: 405 | DD72: -0.002736412656 | DE72: 0.1763447965
D73: 1 | F73: 100 | G73: 300 | H73: 300 | DD73: -0.002693937539 | DE73: 0.1786507692
D74: 2 | F74: 125.0023454 | G74: 600.0194429 | H74: 314.6037361 | DD74: -0.002649180227 | DE74: 0.1809517881
D75: 4 | F75: -10.00600419 | G75: 650.000591 | H75: 184.6051572 | DD75: -0.002602139386 | DE75: 0.1832478526
D76: 6 | F76: 29.9941152 | G76: 630.0008298 | H76: 184.6054562 | DD76: -0.002552813676 | DE76: 0.1855389618
D77: 8 | F77: -9.990782275 | G77: 590.0339072 | H77: 424.6134842 | DD77: -0.002501201759 | DE77: 0.1878251149
D78: 10 | F78: -49.99078222 | G78: 590.0336685 | H78: 424.6159615 | DD78: -0.002447302292 | DE78: 0.1901063112
D79: 12 | F79: -20.00000866 | G79: 549.9999067 | H79: 184.6990029 | DD79: -0.002391113932 | DE79: 0.1923825499
D80: WC | F80: 0.0008193299871 | G80: 700.0166142 | H80: 299.5975962 | DD80: -0.002332635335 | DE80: 0.1946538301
D81: WC ALIGN | F81: 0.001416538093 | G81: 600.0166148 | H81: 299.6114777 | DD81: -0.002271865152 | DE81: 0.196920151
D82: CP | F82: -0.01776015843 | G82: 699.9749695 | H82: -0.4024015204 | DD82: -0.002208802035 | DE82: 0.1991815118
D83: INT | F83: 150 | G83: 320 | H83: 405 | DD83: -0.002143444634 | DE83: 0.2014379117
D84: 1 | F84: 100 | G84: 300 | H84: 300 | DD84: -0.002075791596 | DE84: 0.2036893499
D85: 2 | F85: 125.0031258 | G85: 600.0258081 | H85: 314.4716321 | DD85: -0.002005841567 | DE85: 0.2059358255
D86: 4 | F86: -10.00800332 | G86: 650.0007053 | H86: 184.4735365 | DD86: -0.00193359319 | DE86: 0.2081773377
D87: 6 | F87: 29.9921543 | G87: 630.0010205 | H87: 184.4739317 | DD87: -0.001859045108 | DE87: 0.2104138856
D88: 8 | F88: -9.987711393 | G88: 590.0450859 | H88: 424.4846278 | DD88: -0.001782195961 | DE88: 0.2126454683
D89: 10 | F89: -49.98771129 | G89: 590.0447709 | H89: 424.4879309 | DD89: -0.001703044386 | DE89: 0.2148720851
D90: 12 | F90: -20.00001733 | G90: 549.9998134 | H90: 184.5986657 | DD90: -0.001621589021 | DE90: 0.2170937349
D91: WC | F91: 0.00109883012 | G91: 700.0220487 | H91: 299.4634632 | DD91: -0.001537828499 | DE91: 0.2193104171
D92: WC ALIGN | F92: 0.001887451916 | G92: 600.02205 | H92: 299.4819548 | DD92: -0.001451761454 | DE92: 0.2215221305
D93: CP | F93: -0.023674611 | G93: 699.9665738 | H93: -0.5365322127 | DD93: -0.001363386517 | DE93: 0.2237288745
D94: INT | F94: 150 | G94: 320 | H94: 405 | DD94: -0.001272702315 | DE94: 0.225930648
F95: 100 | G95: 300 | H95: 300 | DD95: -0.001179707476 | DE95: 0.2281274502
F96: 125.0039056 | G96: 600.0321155 | H96: 314.3395202 | DD96: -0.001084400625 | DE96: 0.2303192802
F97: -10.01000131 | G97: 650.0007781 | H97: 184.3419127 | DD97: -0.0009867803852 | DE97: 0.232506137
F98: 29.99019376 | G98: 630.0011682 | H98: 184.3424022 | DD98: -0.0008868453777 | DE98: 0.2346880197
F99: -9.98464136 | G99: 590.0562028 | H99: 424.3557624 | DD99: -0.0007845942218 | DE99: 0.2368649275
F100: -49.98464119 | G100: 590.0558131 | H100: 424.3598915 | DD100: -0.0006800255349 | DE100: 0.2390368592
F101: -20.00002888 | G101: 549.999689 | H101: 184.4983261 | DD101: -0.0005731379323 | DE101: 0.2412038141
F102: 0.001381528759 | G102: 700.0274315 | H102: 299.329331 | DD102: -0.0004639300275 | DE102: 0.2433657912
F103: 0.002357732842 | G103: 600.0274336 | H103: 299.352424 | DD103: -0.0003524004321 | DE103: 0.2455227894
F104: -0.02958625725 | G104: 699.9581522 | H104: -0.6706613319 | DD104: -0.0002385477556 | DE104: 0.2476748079
F105: 150 | G105: 320 | H105: 405 | DD105: -0.0001223706057 | DE105: 0.2498218457
F106: 100 | G106: 300 | H106: 300 | DD106: -3.867587865e-06 | DE106: 0.2519639018
F107: 125.0046847 | G107: 600.038365 | H107: 314.2074002 | DD107: 0.0001169626941 | DE107: 0.2541009752
F108: -10.01199816 | G108: 650.0008095 | H108: 184.2102858 | DD108: 0.0002401216386 | DE108: 0.2562330649
F109: 29.98823357 | G109: 630.001273 | H109: 184.2108678 | DD109: 0.0003656106458 | DE109: 0.2583601699
F110: -9.981572176 | G110: 590.0672579 | H110: 424.2268881 | DD110: 0.0004934311182 | DE110: 0.2604822893
F111: -49.98157192 | G111: 590.066795 | H111: 424.2318432 | DD111: 0.0006235844599 | DE111: 0.2625994219
F112: -20.00004332 | G112: 549.9995335 | H112: 184.397984 | DD112: 0.0007560720772 | DE112: 0.2647115669
F113: 0.001667427972 | G113: 700.0327625 | H113: 299.1951996 | DD113: 0.0008908953785 | DE113: 0.2668187232
F114: 0.002827380793 | G114: 600.0327657 | H114: 299.2228855 | DD114: 0.001028055774 | DE114: 0.2689208897
F115: -0.03549509345 | G115: 699.9497045 | H115: -0.8047888784 | DD115: 0.001167554676 | DE115: 0.2710180654
F116: 150 | G116: 320 | H116: 405 | DD116: 0.0013093935 | DE116: 0.2731102493
F117: 100 | G117: 300 | H117: 300 | DD117: 0.00145357366 | DE117: 0.2751974403
F118: 125.0054631 | G118: 600.0445566 | H118: 314.0752723 | DD118: 0.001600096577 | DE118: 0.2772796374
F119: -10.01399388 | G119: 650.0007995 | H119: 184.0786556 | DD119: 0.001748963669 | DE119: 0.2793568395
F120: 29.98627373 | G120: 630.0013348 | H120: 184.0793285 | DD120: 0.001900176361 | DE120: 0.2814290455
F121: -9.978503842 | G121: 590.078251 | H121: 424.0980049 | DD121: 0.002053736077 | DE121: 0.2834962543
F122: -49.97850348 | G122: 590.0777167 | H122: 424.103786 | DD122: 0.002209644242 | DE122: 0.285558465
F123: -20.00006064 | G123: 549.9993469 | H123: 184.2976396 | DD123: 0.002367902286 | DE123: 0.2876156763
F124: 0.001956529828 | G124: 700.0380418 | H124: 299.0610691 | DD124: 0.002528511641 | DE124: 0.2896678872
F125: 0.003296395695 | G125: 600.0380463 | H125: 299.0933393 | DD125: 0.002691473738 | DE125: 0.2917150965
F126: -0.04140111587 | G126: 699.9412308 | H126: -0.9389148526 | DD126: 0.002856790012 | DE126: 0.2937573033
F127: 150 | G127: 320 | H127: 405 | DD127: 0.003024461902 | DE127: 0.2957945063
F128: 100 | G128: 300 | H128: 300 | DD128: 0.003194490845 | DE128: 0.2978267044
F129: 125.0062409 | G129: 600.0506904 | H129: 313.9431364 | DD129: 0.003366878284 | DE129: 0.2998538965
F130: -10.01598845 | G130: 650.0007482 | H130: 183.9470223 | DD130: 0.003541625662 | DE130: 0.3018760815
F131: 29.98431426 | G131: 630.0013536 | H131: 183.9477842 | DD131: 0.003718734425 | DE131: 0.3038932582
F132: -9.975436359 | G132: 590.0891824 | H132: 423.9691127 | DD132: 0.003898206019 | DE132: 0.3059054255
F133: -49.97543588 | G133: 590.0885781 | H133: 423.97572 | DD133: 0.004080041896 | DE133: 0.3079125822
F134: -20.00008086 | G134: 549.9991292 | H134: 184.1972927 | DD134: 0.004264243506 | DE134: 0.3099147271
F135: 0.0022488364 | G135: 700.0432693 | H135: 298.9269393 | DD135: 0.004450812305 | DE135: 0.3119118591
F136: 0.003764777472 | G136: 600.0432752 | H136: 298.9637852 | DD136: 0.004639749748 | DE136: 0.3139039769
F137: -0.0473043208 | G137: 699.932731 | H137: -1.073039255 | DD137: 0.004831057294 | DE137: 0.3158910795
F138: 150 | G138: 320 | H138: 405 | DD138: 0.005024736403 | DE138: 0.3178731656
F139: 100 | G139: 300 | H139: 300 | DD139: 0.005220788539 | DE139: 0.319850234
F140: 125.007018 | G140: 600.0567663 | H140: 313.8109925 | DD140: 0.005419215167 | DE140: 0.3218222835
F141: -10.01798188 | G141: 650.0006554 | H141: 183.8153858 | DD141: 0.005620017753 | DE141: 0.3237893129
F142: 29.98235514 | G142: 630.0013294 | H142: 183.816235 | DD142: 0.005823197767 | DE142: 0.325751321
F143: -9.972369729 | G143: 590.1000518 | H143: 423.8402117 | DD143: 0.00602875668 | DE143: 0.3277083065
F144: -49.97236911 | G144: 590.0993793 | H144: 423.8476451 | DD144: 0.006236695967 | DE144: 0.3296602682
F145: -20.00010397 | G145: 549.9988803 | H145: 184.0969434 | DD145: 0.006447017104 | DE145: 0.3316072049
F146: 0.002544349765 | G146: 700.048445 | H146: 298.7928104 | DD146: 0.006659721568 | DE146: 0.3335491154
F147: 0.004232526049 | G147: 600.0484526 | H147: 298.8342234 | DD147: 0.006874810841 | DE147: 0.3354859982
F148: -0.05320470448 | G148: 699.9242051 | H148: -1.207162085 | DD148: 0.007092286404 | DE148: 0.3374178523
F149: 150 | G149: 320 | H149: 405 | DD149: 0.007312149743 | DE149: 0.3393446763
F150: 100 | G150: 300 | H150: 300 | DD150: 0.007534402346 | DE150: 0.341266469
F151: 125.0077945 | G151: 600.0627842 | H151: 313.6788407 | DD151: 0.007759045701 | DE151: 0.3431832291
F152: -10.01997416 | G152: 650.0005212 | H152: 183.6837462 | DD152: 0.007986081301 | DE152: 0.3450949552
F153: 29.98039638 | G153: 630.0012623 | H153: 183.6846808 | DD153: 0.008215510639 | DE153: 0.3470016461
F154: -9.969303952 | G154: 590.1108594 | H154: 423.7113017 | DD154: 0.008447335212 | DE154: 0.3489033005
F155: -49.96930318 | G155: 590.1101202 | H155: 423.7195614 | DD155: 0.008681556518 | DE155: 0.3507999171
F156: -20.00012996 | G156: 549.9986004 | H156: 183.9965917 | DD156: 0.008918176059 | DE156: 0.3526914945
F157: 0.002843072 | G157: 700.0535689 | H157: 298.6586824 | DD157: 0.009157195337 | DE157: 0.3545780315
F158: 0.004699641354 | G158: 600.0535784 | H158: 298.7046539 | DD158: 0.009398615858 | DE158: 0.3564595266
F159: -0.05910226318 | G159: 699.9156532 | H159: -1.341283345 | DD159: 0.009642439131 | DE159: 0.3583359786
F160: 150 | G160: 320 | H160: 405 | DD160: 0.009888666664 | DE160: 0.3602073861
F161: 100 | G161: 300 | H161: 300 | DD161: 0.01013729997 | DE161: 0.3620737477
F162: 125.0085703 | G162: 600.0687443 | H162: 313.5466809 | DD162: 0.01038834057 | DE162: 0.3639350622
F163: -10.0219653 | G163: 650.0003456 | H163: 183.5521034 | DD163: 0.01064178997 | DE163: 0.365791328
F164: 29.97843798 | G164: 630.0011522 | H164: 183.5531217 | DD164: 0.01089764969 | DE164: 0.3676425439
F165: -9.966239029 | G165: 590.1216051 | H165: 423.5823828 | DD165: 0.01115592126 | DE165: 0.3694887085
F166: -49.96623808 | G166: 590.1208009 | H166: 423.5914688 | DD166: 0.01141660621 | DE166: 0.3713298204
F167: -20.00015884 | G167: 549.9982893 | H167: 183.8962376 | DD167: 0.01167970605 | DE167: 0.3731658781
F168: 0.003145005189 | G168: 700.058641 | H168: 298.5245551 | DD168: 0.01194522231 | DE168: 0.3749968803
F169: 0.005166123312 | G169: 600.0586526 | H169: 298.5750766 | DD169: 0.01221315654 | DE169: 0.3768228255
F170: -0.06499699318 | G170: 699.9070753 | H170: -1.475403033 | DD170: 0.01248351026 | DE170: 0.3786437124
F171: 150 | G171: 320 | H171: 405 | DD171: 0.012756285 | DE171: 0.3804595395
F172: 100 | G172: 300 | H172: 300 | DD172: 0.01303148232 | DE172: 0.3822703054
F173: 125.0093454 | G173: 600.0746464 | H173: 313.4145131 | DD173: 0.01330910374 | DE173: 0.3840760086
F174: -10.02395529 | G174: 650.0001285 | H174: 183.4204574 | DD174: 0.01358915081 | DE174: 0.3858766477
F175: 29.97647994 | G175: 630.000999 | H175: 183.4215577 | DD175: 0.01387162508 | DE175: 0.3876722213
F176: -9.963174962 | G176: 590.132289 | H176: 423.4534551 | DD176: 0.01415652809 | DE176: 0.3894627278
F177: -49.96317383 | G177: 590.1314212 | H177: 423.4633674 | DD177: 0.0144438614 | DE177: 0.3912481658
F178: -20.00019062 | G178: 549.9979471 | H178: 183.7958811 | DD178: 0.01473362656 | DE178: 0.3930285339
F179: 0.003450151415 | G179: 700.0636614 | H179: 298.3904287 | DD179: 0.01502582512 | DE179: 0.3948038304
F180: 0.005631971851 | G180: 600.0636753 | H180: 298.4454916 | DD180: 0.01532045865 | DE180: 0.3965740541
F181: -0.07088889072 | G181: 699.8984713 | H181: -1.609521151 | DD181: 0.0156175287 | DE181: 0.3983392033
F182: 150 | G182: 320 | H182: 405 | DD182: 0.01591703683 | DE182: 0.4000992765
F183: 100 | G183: 300 | H183: 300 | DD183: 0.01621898462 | DE183: 0.4018542723
F184: 125.0101198 | G184: 600.0804907 | H184: 313.2823374 | DD184: 0.01652337363 | DE184: 0.4036041891
F185: -10.02594413 | G185: 649.9998701 | H185: 183.2888083 | DD185: 0.01683020543 | DE185: 0.4053490254
F186: 29.97452227 | G186: 630.0008029 | H186: 183.2899888 | DD186: 0.0171394816 | DE186: 0.4070887796
F187: -9.96011175 | G187: 590.1429109 | H187: 423.3245184 | DD187: 0.0174512037 | DE187: 0.4088234502
F188: -49.96011041 | G188: 590.1419813 | H188: 423.3352571 | DD188: 0.01776537332 | DE188: 0.4105530356
F189: -20.00022528 | G189: 549.9975738 | H189: 183.6955222 | DD189: 0.01808199204 | DE189: 0.4122775344
F190: 0.003758512767 | G190: 700.0686299 | H190: 298.2563031 | DD190: 0.01840106145 | DE190: 0.4139969449
F191: 0.006097186897 | G191: 600.0686463 | H191: 298.3158988 | DD191: 0.01872258312 | DE191: 0.4157112655
F192: -0.07677795206 | G192: 699.8898412 | H192: -1.743637699 | DD192: 0.01904655864 | DE192: 0.4174204947
F193: 150 | G193: 320 | H193: 405 | DD193: 0.01937298961 | DE193: 0.4191246309
F194: 100 | G194: 300 | H194: 300 | DD194: 0.01970187763 | DE194: 0.4208236725
F195: 125.0108936 | G195: 600.086277 | H195: 313.1501537 | DD195: 0.02003322428 | DE195: 0.4225176178
F196: -10.02793181 | G196: 649.9995702 | H196: 183.1571561 | DD196: 0.02036703116 | DE196: 0.4242064653
F197: 29.97256496 | G197: 630.0005638 | H197: 183.1584149 | DD197: 0.02070329988 | DE197: 0.4258902134
F198: -9.957049396 | G198: 590.1534709 | H198: 423.1955728 | DD198: 0.02104203204 | DE198: 0.4275688605
F199: -49.95704783 | G199: 590.1524812 | H199: 423.207138 | DD199: 0.02138322925 | DE199: 0.4292424048
F200: -20.00026283 | G200: 549.9971694 | H200: 183.5951609 | DD200: 0.02172689311 | DE200: 0.4309108447
... 5350 more rows

Sheet SPRINGLINK REBOUND (hidden)
F1: X | G1: Y | H1: Z | AS1: X | AT1: y | AU1: Z
B2: REF ROTATION AXIS | K2: RiX0 | L2: RiY0 | M2: RiZ0 | N2: XL | O2: YL | P2: ZL | S2: 1 | T2: 2 | U2: 3 | V2: 4 | W2: 5 | X2: 6 | AC2: 1 | AD2: 2 | AE2: 3 | AF2: 4 | AG2: 5 | AH2: 6 | AJ2: X | AN2: VX | AO2: VY | AP2: VZ | AQ2: V | AV2: 393.435
B3: =DASHBOARD!F11 -> -60.00 | C3: spring at link | D3: 2 | F3: =DASHBOARD!F20 -> -20.00 | G3: =DASHBOARD!G20 -> 550.00 | H3: =DASHBOARD!H20 -> 185.00 | J3: 2 | K3: =F3-B3 -> 40 | L3: =G3-B4 -> 320 | M3: =H3-B5 -> 0 | N3: =F3-DASHBOARD!F$19 -> 0.00 | O3: =G3-DASHBOARD!G$19 -> 50.00 | P3: =H3-DASHBOARD!H$19 -> -615.00 | R3: 2 | S3: =N3 -> 0 | T3: 50 | U3: -615 | V3: =L3*P3-M3*O3 -> -196800 | W3: =M3*N3-K3*P3 -> 24600 | X3: =K3*O3-L3*N3 -> 2000 | Y3: vx | Z3: =IF(ifederlenker =0,-ZIVF*SQRT(N3^2+O3^2+P3^2),0) -> 6.170291727 | AB3: 2 | AC3: =MINVERSE(S3:X8) -> -3.183444208e-17 | AD3: -6.833333333 | AE3: -6.447223707e-14 | AF3: 6.666666667 | AG3: 5.45595315e-14 | AH3: -0.7424242424 | AJ3: V0X | AK3: =MMULT(AC3:AH8,Z3:Z8) -> -1.964277946e-16 | AM3: 2 | AN3: =AK3+(AK7*M3-AK8*L3) -> -0.000000 | AO3: =AK4+(AK8*K3-AK6*M3) -> 0.000000 | AP3: =AK5+(AK6*L3-AK7*K3) -> -0.010033 | AQ3: =SQRT(AP3^2+AO3^2+AN3^2) -> 0.01003299468 | AR3: 2 | AS3: =F3+AN3 -> -20.000 | AT3: 550.000 | AU3: 184.990 | AV3: 594.805
B4: =DASHBOARD!G11 -> 230.00 | D4: 4 | F4: =DASHBOARD!F11 -> -60.00 | G4: =DASHBOARD!G11 -> 230.00 | H4: =DASHBOARD!H11 -> 185.00 | J4: 4 | K4: =F4-B3 -> 0 | L4: =G4-B4 -> 0 | M4: =H4-B5 -> 0 | N4: 1.10 | O4: 2.20 | P4: 1.30 | R4: 4 | S4: 1.1 | T4: 2.2 | U4: 1.3 | V4: 0 | W4: 0 | X4: 0 | Y4: vy | Z4: 0 | AB4: 4 | AC4: 1.876773157e-17 | AD4: 4.166666667 | AE4: 3.240074875e-14 | AF4: -3.333333333 | AG4: -2.50111043e-14 | AH4: 0.07575757576 | AJ4: V0Y | AK4: 1.158023788e-16 | AM4: 4 | AN4: =AK3+(AK7*M4-AK8*L4) -> -0.000000 | AO4: =AK4+(AK8*K4-AK6*M4) -> 0.000000 | AP4: =AK5+(AK6*L4-AK7*K4) -> -0.000000 | AQ4: 2.280727816e-16 | AR4: 4 | AS4: -60.000 | AT4: 230.000 | AU4: 185.000 | AV4: 410.893
B5: =DASHBOARD!H11 -> 185.00 | D5: 6 | F5: =B7 -> -50.00 | G5: =B8 -> 229.07 | H5: =B9 -> 185.00 | J5: 6 | K5: =F5-B3 -> 10 | L5: =G5-B4 -> -0.9285458429 | M5: =H5-B5 -> 0 | N5: 2.40 | O5: 1.50 | P5: 2.60 | R5: 6 | S5: 2.4 | T5: 1.5 | U5: 2.6 | V5: -2.414219191 | W5: -26 | X5: 17.22851002 | Y5: vz | Z5: 0 | AB5: 6 | AC5: -7.79342464e-19 | AD5: -0.5 | AE5: 1.437237281e-15 | AF5: -2.090526954e-15 | AG5: -1.959869019e-15 | AH5: 0.5 | AJ5: V0Z | AK5: -4.808770358e-18 | AM5: 6 | AN5: =AK3+(AK7*M5-AK8*L5) -> -0.000000 | AO5: =AK4+(AK8*K5-AK6*M5) -> 0.000000 | AP5: =AK5+(AK6*L5-AK7*K5) -> 0.000000 | AQ5: 3.0228552e-16 | AR5: 6 | AS5: -50.000 | AT5: 229.071 | AU5: 185.000 | AV5: 413.570
B6: Alignment point | C6: =IFERROR((F9-DASHBOARD!F11)/('SPRINGLINK REBOUND'!G9-DASHBOARD!G11),0) -> 0.119047619 | D6: 8 | F6: =DASHBOARD!F11 -> -60.00 | G6: =DASHBOARD!G11 -> 230.00 | H6: =DASHBOARD!H11 -> 185.00 | J6: 8 | K6: =F6-B3 -> 0 | L6: =G6-B4 -> 0 | M6: =H6-B5 -> 0 | N6: 1.40 | O6: 2.50 | P6: 1.70 | R6: 8 | S6: 1.4 | T6: 2.5 | U6: 1.7 | V6: 0 | W6: 0 | X6: 0 | Y6: wx | Z6: 0 | AB6: 8 | AC6: -5.022999744e-06 | AD6: -0.01428363703 | AE6: -0.01322379193 | AF6: 0.008801986758 | AG6: 0.01101263983 | AH6: 0.003900843994 | AJ6: OMEGAX | AK6: -3.099337377e-05 | AM6: 8 | AN6: =AK3+(AK7*M6-AK8*L6) -> -0.000000 | AO6: =AK4+(AK8*K6-AK6*M6) -> 0.000000 | AP6: =AK5+(AK6*L6-AK7*K6) -> -0.000000 | AQ6: 2.280727816e-16 | AR6: 8 | AS6: -60.000 | AT6: 230.000 | AU6: 185.000 | AV6: 410.893
B7: =IF(SQRT((DASHBOARD!F12-DASHBOARD!F14)^2+(DASHBOARD!G12-DASHBOARD!G14)^2+(DASHBOARD!H12-DASHBOARD!H14)^2)<10,DASHBOARD!F13,B3+10) -> -50.0000 | C7: =SIN(C6*10) -> 0.9285458429 | D7: 10 | F7: =B7 -> -50 | G7: =B8 -> 229.0714542 | H7: =B9 -> 185 | J7: 10 | K7: =F7-B3 -> 10 | L7: =G7-B4 -> -0.9285458429 | M7: =H7-B5 -> 0 | N7: 2.8 | O7: 1.90 | P7: 2 | R7: 10 | S7: 2.8 | T7: 1.9 | U7: 2 | V7: -1.857091686 | W7: -20 | X7: 21.59992836 | Y7: wy | Z7: 0 | AB7: 10 | AC7: 4.664085531e-07 | AD7: -0.1684408548 | AE7: -0.09829813754 | AF7: 0.1149016914 | AG7: 0.07836126132 | AH7: 0.03720597334 | AJ7: OMEGAY | AK7: 2.877876837e-06 | AM7: 10 | AN7: =AK3+(AK7*M7-AK8*L7) -> -0.000000 | AO7: =AK4+(AK8*K7-AK6*M7) -> 0.000000 | AP7: =AK5+(AK6*L7-AK7*K7) -> 0.000000 | AQ7: 3.0228552e-16 | AR7: 10 | AS7: -50.000 | AT7: 229.071 | AU7: 185.000 | AV7: 413.570
B8: =IF(SQRT((DASHBOARD!F12-DASHBOARD!F14)^2+(DASHBOARD!G12-DASHBOARD!G14)^2+(DASHBOARD!H12-DASHBOARD!H14)^2)<10,DASHBOARD!G13,B4-C7) -> 229.0715 | D8: 12 | F8: =DASHBOARD!F11 -> -60.00 | G8: =DASHBOARD!G11 -> 230.00 | H8: =DASHBOARD!H11 -> 185.00 | J8: 12 | K8: =F8-B3 -> 0 | L8: =G8-B4 -> 0 | M8: =H8-B5 -> 0 | N8: 1.1 | O8: 2.2 | P8: 3.3 | R8: 12 | S8: 1.1 | T8: 2.2 | U8: 3.3 | V8: 0 | W8: 0 | X8: 0 | Y8: wz | Z8: 0 | AB8: 12 | AC8: 1.953348045e-18 | AD8: 0.4083959632 | AE8: -0.09215403457 | AF8: -0.463841974 | AG8: 0.1198002449 | AH8: 0.07806563747 | AJ8: OMEGAZ | AK8: 1.205272728e-17 | AM8: 12 | AN8: =AK3+(AK7*M8-AK8*L8) -> -0.000000 | AO8: =AK4+(AK8*K8-AK6*M8) -> 0.000000 | AP8: =AK5+(AK6*L8-AK7*K8) -> -0.000000 | AQ8: 2.280727816e-16 | AR8: 12 | AS8: =F8+AN8 -> -60.000 | AT8: =G8+AO8 -> 230.000 | AU8: =H8+AP8 -> 185.000 | AV8: 410.893
B9: =IF(SQRT((DASHBOARD!F12-DASHBOARD!F14)^2+(DASHBOARD!G12-DASHBOARD!G14)^2+(DASHBOARD!H12-DASHBOARD!H14)^2)<10,DASHBOARD!H13,B5) -> 185.0000 | C9: springlink to knuckle | F9: =DASHBOARD!F12 -> -10.00 | G9: =DASHBOARD!G12 -> 650.00 | H9: =DASHBOARD!H20 -> 185.00 | AM9: springlink | AN9: =AK3+AK7*(H9-B5)-AK8*(G9-B4) -> -0.000000 | AO9: =AK4+AK8*(F9-B3)-AK6*(H9-B5) -> 0.000000 | AP9: =AK5+AK6*(G9-B4)-AK7*(F9-B3) -> -0.013161 | AQ9: 0.01316111082 | AR9: springlink | AS9: =F9+AN9 -> -10.000 | AT9: 650.000 | AU9: 184.987 | AV9: 665.141
C10: spring to link | F10: =DASHBOARD!F20 -> -20.00 | G10: =DASHBOARD!G20 -> 550.00 | H10: =DASHBOARD!H20 -> 185.00 | AN10: =AK3+AK7*(H10-B5)-AK8*(G10-B4) -> -0.000000 | AO10: =AK4+AK8*(F10-B3)-AK6*(H10-B5) -> 0.000000 | AP10: =AK5+AK6*(G10-B4)-AK7*(F10-B3) -> -0.010033 | AQ10: 0.01003299468 | AS10: =F10+AN10 -> -20.000 | AT10: 550.000 | AU10: 184.990 | AV10: 594.805
B13: REF ROTATION AXIS | K13: RiX0 | L13: RiY0 | M13: RiZ0 | N13: XL | O13: YL | P13: ZL | S13: 1 | T13: 2 | U13: 3 | V13: 4 | W13: 5 | X13: 6 | AC13: 1 | AD13: 2 | AE13: 3 | AF13: 4 | AG13: 5 | AH13: 6 | AJ13: X | AN13: VX | AO13: VY | AP13: VZ | AV13: 393.435
B14: =AS4 -> -60.000 | C14: spring at link | D14: 2 | F14: -20.000 | G14: 550.000 | H14: 184.990 | J14: 2 | K14: =F14-B14 -> 40 | L14: =G14-B15 -> 320 | M14: =H14-B16 -> -0.01003299468 | N14: =F14-DASHBOARD!F$19 -> 0.00 | O14: =G14-DASHBOARD!G$19 -> 50.00 | P14: =H14-DASHBOARD!H$19 -> -615.01 | R14: 2 | S14: =N14 -> 0 | T14: 50 | U14: -615.010033 | V14: =L14*P14-M14*O14 -> -196802.7089 | W14: =M14*N14-K14*P14 -> 24600.40132 | X14: =K14*O14-L14*N14 -> 2000 | Y14: vx | Z14: =IF(ifederlenker =0,-ZIVF*SQRT(N14^2+O14^2+P14^2),0) -> 6.170391727 | AB14: 2 | AC14: =MINVERSE(S14:X19) -> -2.423224586e-17 | AD14: -6.833333333 | AE14: -1.192696735e-13 | AF14: 6.666666667 | AG14: 1.057883939e-13 | AH14: -0.7424242424 | AJ14: V0X | AK14: =MMULT(AC14:AH19,Z14:Z19) -> -1.495224494e-16 | AM14: 2 | AN14: =AK14+(AK18*M14-AK19*L14) -> -2.887379542e-08 | AO14: =AK15+(AK19*K14-AK17*M14) -> -3.109571039e-07 | AP14: =AK16+(AK17*L14-AK18*K14) -> -0.01003301888 | AQ14: =SQRT(AP14^2+AO14^2+AN14^2) -> 0.01003301889 | AR14: 2 | AS14: =F14+AN14 -> -20.00000003 | AT14: 549.9999997 | AU14: 184.979934 | AV14: 594.805
B15: =AT4 -> 230.000 | D15: 4 | F15: -60.000 | G15: 230.000 | H15: 185.000 | J15: 4 | K15: =F15-B14 -> 0 | L15: =G15-B15 -> 0 | M15: =H15-B16 -> 0 | N15: 1.10 | O15: 2.20 | P15: 1.30 | R15: 4 | S15: 1.1 | T15: 2.2 | U15: 1.3 | V15: 0 | W15: 0 | X15: 0 | Y15: vy | Z15: 0 | AB15: 4 | AC15: 1.578196721e-17 | AD15: 4.166666667 | AE15: 6.025402399e-14 | AF15: -3.333333333 | AG15: -5.911715562e-14 | AH15: 0.07575757576 | AJ15: V0Y | AK15: 9.738091993e-17 | AM15: 4 | AN15: =AK14+(AK18*M15-AK19*L15) -> -1.495224494e-16 | AO15: =AK15+(AK19*K15-AK17*M15) -> 9.738091993e-17 | AP15: =AK16+(AK17*L15-AK18*K15) -> -8.70751304e-18 | AQ15: 1.786500132e-16 | AR15: 4 | AS15: -60 | AT15: 230 | AU15: 185 | AV15: 410.893
B16: =AU4 -> 185.000 | D16: 6 | F16: -50.000 | G16: 229.071 | H16: 185.000 | J16: 6 | K16: =F16-B14 -> 10 | L16: =G16-B15 -> -0.9285458429 | M16: =H16-B16 -> 0 | N16: 2.40 | O16: 1.50 | P16: 2.60 | R16: 6 | S16: 2.4 | T16: 1.5 | U16: 2.6 | V16: -2.414219191 | W16: -26 | X16: 17.22851002 | Y16: vz | Z16: 0 | AB16: 6 | AC16: -1.411176701e-18 | AD16: -0.5 | AE16: -2.046945033e-15 | AF16: 1.393664703e-15 | AG16: 1.437216725e-15 | AH16: 0.5 | AJ16: V0Z | AK16: -8.70751304e-18 | AM16: 6 | AN16: =AK14+(AK18*M16-AK19*L16) -> -1.419234447e-16 | AO16: =AK15+(AK19*K16-AK17*M16) -> 1.792186099e-16 | AP16: =AK16+(AK17*L16-AK18*K16) -> 2.843657576e-17 | AQ16: 2.303697314e-16 | AR16: 6 | AS16: -50 | AT16: 229.0714542 | AU16: 185 | AV16: 413.570
D17: 8 | F17: -60.000 | G17: 230.000 | H17: 185.000 | J17: 8 | K17: =F17-B14 -> 0 | L17: =G17-B15 -> 0 | M17: =H17-B16 -> 0 | N17: 1.40 | O17: 2.50 | P17: 1.70 | R17: 8 | S17: 1.4 | T17: 2.5 | U17: 1.7 | V17: 0 | W17: 0 | X17: 0 | Y17: wx | Z17: 0 | AB17: 8 | AC17: -5.022930457e-06 | AD17: -0.01428375702 | AE17: -0.01322381015 | AF17: 0.008802098611 | AG17: 0.01101264794 | AH17: 0.003900840719 | AJ17: OMEGAX | AK17: -3.099344854e-05 | AM17: 8 | AN17: =AK14+(AK18*M17-AK19*L17) -> -1.495224494e-16 | AO17: =AK15+(AK19*K17-AK17*M17) -> 9.738091993e-17 | AP17: =AK16+(AK17*L17-AK18*K17) -> -8.70751304e-18 | AQ17: 1.786500132e-16 | AR17: 8 | AS17: -60 | AT17: 230 | AU17: 185 | AV17: 410.893
D18: 10 | F18: -50.000 | G18: 229.071 | H18: 185.000 | J18: 10 | K18: =F18-B14 -> 10 | L18: =G18-B15 -> -0.9285458429 | M18: =H18-B16 -> 0 | N18: 2.8 | O18: 1.90 | P18: 2 | R18: 10 | S18: 2.8 | T18: 1.9 | U18: 2 | V18: -1.857091686 | W18: -20 | X18: 21.59992836 | Y18: wy | Z18: 0 | AB18: 10 | AC18: 4.664021195e-07 | AD18: -0.1684408436 | AE18: -0.09829813585 | AF18: 0.114901681 | AG18: 0.07836126057 | AH18: 0.03720597365 | AJ18: OMEGAY | AK18: 2.87788378e-06 | AM18: 10 | AN18: =AK14+(AK18*M18-AK19*L18) -> -1.419234447e-16 | AO18: =AK15+(AK19*K18-AK17*M18) -> 1.792186099e-16 | AP18: =AK16+(AK17*L18-AK18*K18) -> 2.843657576e-17 | AQ18: 2.303697314e-16 | AR18: 10 | AS18: -50 | AT18: 229.0714542 | AU18: 185 | AV18: 413.570
D19: 12 | F19: -60.000 | G19: 230.000 | H19: 185.000 | J19: 12 | K19: =F19-B14 -> 0 | L19: =G19-B15 -> 0 | M19: =H19-B16 -> 0 | N19: 1.1 | O19: 2.2 | P19: 3.3 | R19: 12 | S19: 1.1 | T19: 2.2 | U19: 3.3 | V19: 0 | W19: 0 | X19: 0 | Y19: wz | Z19: 0 | AB19: 12 | AC19: 1.326296508e-18 | AD19: 0.4083959632 | AE19: -0.09215403457 | AF19: -0.463841974 | AG19: 0.1198002449 | AH19: 0.07806563747 | AJ19: OMEGAZ | AK19: 8.183769e-18 | AM19: 12 | AN19: =AK14+(AK18*M19-AK19*L19) -> -1.495224494e-16 | AO19: =AK15+(AK19*K19-AK17*M19) -> 9.738091993e-17 | AP19: =AK16+(AK17*L19-AK18*K19) -> -8.70751304e-18 | AQ19: 1.786500132e-16 | AR19: 12 | AS19: =F19+AN19 -> -60.000 | AT19: =G19+AO19 -> 230.000 | AU19: =H19+AP19 -> 185.000 | AV19: 410.893
C20: springlink to knuckle | F20: -10.000 | G20: 650.000 | H20: 184.987 | AM20: springlink | AN20: =AK14+AK18*(H20-B16)-AK19*(G20-B15) -> -3.787615095e-08 | AO20: =AK15+AK19*(F20-B14)-AK17*(H20-B16) -> -4.079082105e-07 | AP20: =AK16+AK17*(G20-B15)-AK18*(F20-B14) -> -0.01316114258 | AQ20: 0.01316114258 | AR20: springlink | AS20: =F20+AN20 -> -10.00000004 | AT20: 649.9999996 | AU20: 184.9736777 | AV20: 665.141
F21: -20.000 | G21: 550.000 | H21: 184.990 | AN21: =AK14+AK18*(H21-B16)-AK19*(G21-B15) -> -2.887379542e-08 | AO21: =AK15+AK19*(F21-B14)-AK17*(H21-B16) -> -3.109571039e-07 | AP21: =AK16+AK17*(G21-B15)-AK18*(F21-B14) -> -0.01003301888 | AQ21: 0.01003301889 | AS21: =F21+AN21 -> -20.00000003 | AT21: 549.9999997 | AU21: 184.979934 | AV21: 594.805
B24: REF ROTATION AXIS
B25: =AS15 -> -60 | D25: 2 | F25: =AS14 -> -20.00 | G25: 550.00 | H25: 184.98
B26: =AT15 -> 230 | D26: 4 | F26: -60.00 | G26: 230.00 | H26: 185.00
B27: =AU15 -> 185 | D27: 6 | F27: -50.00 | G27: 229.07 | H27: 185.00
D28: 8 | F28: -60.00 | G28: 230.00 | H28: 185.00
D29: 10 | F29: -50.00 | G29: 229.07 | H29: 185.00
D30: 12 | F30: -60.00 | G30: 230.00 | H30: 185.00
D31: Pushrod | F31: -10.00 | G31: 650.00 | H31: 184.97
F32: =AS21 -> -20.00 | G32: =AT21 -> 550.00 | H32: =AU21 -> 184.98

Sheet COMPRESSION (hidden)
F1: X | G1: Y | H1: Z | AS1: X | AT1: y | AU1: Z | BJ1: delta springtravel | BK1: WCZ | BL1: delta raktravel | BM1: TOE | BN1: CAMBER | BO1: RCH | BP1: WHEEL CENTER ANTI | BQ1: CONTACT PATCH ANTI | BR1: WCX | BS1: WCY | BT1: CPX | BU1: CPY | BV1: CPZ | BW1: ifeder | BX1: YQP | BY1: ZQP | BZ1: XLP | CA1: ZLP | CB1: HMSA | CC1: KPI | CD1: KPI OFF | CE1: CASTER | CF1: CASTER OFF | CG1: SCRUB RADIUS | CH1: CASTER TRAIL | CI1: ilenk | CJ1: pradlast | CK1: TOGGLE | CL1: slenk | DA1: delta springtravel | DB1: WCZ | DC1: delta raktravel | DD1: TOE | DE1: CAMBER | DF1: RCH | DG1: WHEEL CENTER ANTI | DH1: CONTACT PATCH ANTI | DI1: WCX | DJ1: WCY | DK1: CPX | DL1: CPY | DM1: CPZ | DN1: ifeder | DO1: YQP | DP1: ZQP | DQ1: XLP | DR1: ZLP | DS1: HMSA | DT1: KPI | DU1: KPI OFF | DV1: CASTER | DW1: CASTER OFF | DX1: SCRUB RADIUS | DY1: CASTER TRAIL | DZ1: ilenk | EA1: pradlast | EB1: TOGGLE | EC1: slenk | EE1: SPRINGTRAVEL [mm] | EF1: WHEELTRAVEL [mm] | EG1: RACKTRAVEL [mm] | EH1: SPRING TO WHEEL RATIO [-] | EI1: TOE ANGLE [°] | EJ1: BUMPSTEER GRADIENT [°/m] | EK1: ROLL STEER GRADIENT [°/°] | EL1: CAMBER ANGLE [°] | EM1: CAMBER GAIN [°/m] | EN1: ROLL CAMBER GRADIENT [°/°] | EO1: ROLLCENTER HEIGHT [mm] | EP1: ROLLCENTER / WHEELTRAVEL RATIO [mm/mm] | EQ1: WHEEL CENTER ANTI-ANGLE [°] | ER1: CONTACT PATCH ANTI-ANGLE [°] | ES1: WHEEL CENTER RECESSION [mm] | ET1: WHEEL CENTER LATERAL DISPLACEMENT [mm] | EU1: CONTACT PATCH LONGITUDINAL DISPLACEMENT [mm] | EV1: CONTACT PATCH LATERAL DISPLACEMENT [mm] | EW1: CONTACT PATCH VERTICAL DISPLACEMENT [mm] | EX1: WHEEL CENTER X POSITION [mm] | EY1: WHEEL CENTER Y POSITION [mm] | EZ1: WHEELCENTER Z POSITION [mm] | FA1: CONTACT PATCH X POSITION [mm] | FB1: CONTACT PATCH Y POSITION [mm] | FC1: CONTACT PATCH Z POSTION [mm] | FD1: Y POSITION LATERAL SWING ARM [mm] | FE1: Z POSITION LATERAL SWING ARM [mm] | FF1: LATERAL SWING ARM LENGTH [mm] | FG1: X POSITION LONGITUDINAL SWING ARM [mm] | FH1: Z POSITION LONGITUDINAL SWING ARM [mm] | FI1: LONGITUDINAL SWING ARM LENGTH [mm] | FJ1: ROLL ANGLE [°] | FK1: ROLLCENTER VERTICAL POSITION IN ROLL [mm] | FL1: ROLLCENTER LATERAL POSITION IN ROLL [mm] | FM1: KING PIN INCLINATION ANGLE [°] | FN1: KPI OFFSET [mm] | FO1: CASTER ANGLE [°] | FP1: CASTER ANGLE OFFSET [mm] | FQ1: CASTER ANGLE GAIN [°/mm] | FR1: SCRUB RADIUS [mm] | FS1: CASTER TRAIL [mm] | FT1: STEERING RATIO [°/mm] | FU1: WHEEL LOAD LEVERARM [mm] | FV1: IDEAL ACKERMANN ANGLE [°] | FW1: AVERAGE STEERING ANGLE [°] | FX1: REAL ACKERMANN DIFFERENCE ANGLE [°] | FY1: IDEAL ACKERMANN DIFFERENCE ANGLE [°] | FZ1: %ACKERMANN [%] | GH1: rch lateral | GI1: anti wheel center | GJ1: =EB1 -> TOGGLE | GK1: HMSA | GL1: x1 | GM1: y1 | GN1: x2 | GO1: y2 | GP1: x3 | GQ1: y3 | GR1: x4 | GS1: y4 | GU1: =MAX(GU2:GU1009)-0.001 -> 1.072127438
B2: REF WC | D2: TR | F2: =DASHBOARD!F9 -> 100.00 | G2: =DASHBOARD!G9 -> 300.00 | H2: =DASHBOARD!H9 -> 300 | K2: RiX0 | L2: RiY0 | M2: RiZ0 | N2: XL | O2: YL | P2: ZL | S2: 1 | T2: 2 | U2: 3 | V2: 4 | W2: 5 | X2: 6 | AC2: 1 | AD2: 2 | AE2: 3 | AF2: 4 | AG2: 5 | AH2: 6 | AJ2: X | AN2: VX | AO2: VY | AP2: VZ | AR2: 1 | AS2: =DASHBOARD!F9 -> 100.00 | AT2: =IF(ilenk_combined=0,DASHBOARD!$G$9,DASHBOARD!G9+zivl) -> 300.00 | AU2: =DASHBOARD!H9 -> 300.00 | AW2: HHWRT | AX2: =SQRT(MAX(AK6^2+AK7^2+AK8^2,0.0000000001)) -> 0.0006562993746 | AY2: CX | AZ2: =AX4*AX9-AX5*AX8 -> 0 | BA2: HVRTSE | BB2: =SQRT(MAX(AZ5^2+AZ6^2+AZ7^2,0.0000000001)) -> 0.0004007573086 | BC2: XQP | BD2: 0 | BE2: T6 | BF2: =H9-BD10*F9 -> 300 | BG2: SIGMA | BH2: =ATAN(-AK7/AK8) -> 0.1711386418 | BJ2: =IF(ilenk=0,-ZIVF,0) -> 0 | BK2: =AP9 -> 0.003456366115 | BL2: =IF(ilenk=1,zivl,IF(ilenk_combined=1,zivl,0)) -> -0.1 | BM2: =BF9*180/PI() -> 0.03669384157 | BN2: =BF10*180/PI() -> -0.00522905669 | BO2: =BD7 -> 2639.141135 | BP2: =BF8*180/PI() -> -81.55449535 | BQ2: =BF7*180/PI() -> 70.80282728 | BR2: =AN9 -> 0.02327852033 | BS2: =AO9 -> -0.01434352727 | BT2: =AN11 -> -0.009927 | BU2: =AO11 -> 0.013036 | BV2: =AP11 -> 0.003456 | BW2: =BH10 -> 0 | BX2: =BD3 -> 662.1279398 | BY2: =BD4 -> 142.8352466 | BZ2: =BF4 -> 31.22711752 | CA2: =BF6 -> 89.68285989 | CB2: =AX10 -> -24.45811091 | CC2: =ROUND(BH2*180/PI(),3) -> 9.806 | CD2: =BH6 -> 36.36211799 | CE2: =ROUND(BH3*180/PI(),3) -> 8.11 | CF2: =BH7 -> -22.41968867 | CG2: =BH4 -> -15.51320633 | CH2: =BH5 -> 20.36434307 | CI2: =BH9 -> 0.3669442505 | CJ2: =BH8 -> 5.396874063 | CK2: =BH11 -> -70.99519882 | CL2: =BI6 -> 663.651 | DA2: 0.1 | DB2: 0.1341354144 | DC2: 0 | DD2: 0.0001162503122 | DE2: -0.002656095595 | DF2: 43.37356052 | DG2: 0.1152945578 | DH2: -2.528295542 | DI2: -0.0002699169869 | DJ2: -0.005589811381 | DK2: 0.00592284921 | DL2: 0.008317472642 | DM2: 0.1341354144 | DN2: 0.7455152721 | DO2: -2193.492667 | DP2: 179.4197766 | DQ2: -6498.004777 | DR2: 286.7901092 | DS2: -412.3704066 | DT2: 9.806 | DU2: 36.34973211 | DV2: 8.11 | DW2: -22.39906067 | DX2: -15.50169742 | DY2: 20.35570192 | DZ2: 0.3669390446 | EA2: 5.396950632 | EB2: -71.00106356 | EC2: 663.6515715 | EE2: =DA2 -> 0.100 | EF2: =DB2 -> 0.134 | EG2: =DC2 -> 0.000 | EH2: =DN2 -> 0.746 | EI2: =DD2 -> 0.000 | EJ2: =(EI3-EI2)/(EF3-EF2)*1000 -> 0.883 | EK2: =(TAN(PI()/180)*TRACKWIDTH/2)*EJ2/1000 -> 0.011 | EL2: =DE2 -> -0.003 | EM2: =(EL3-EL2)/(EF3-EF2)*1000 -> -19.838 | EN2: =(TAN(PI()/180)*TRACKWIDTH/2)*EM2/1000 -> -0.242 | EO2: =DF2 -> 43.374 | EP2: =ABS((EO3-EO2)/(EF3-EF2)) -> 1.014 | EQ2: =DG2 -> 0.115 | ER2: =DH2 -> -2.528 | ES2: =DI2 -> -0.000 | ET2: =DJ2 -> -0.006 | EU2: =DK2 -> 0.006 | EV2: =DL2 -> 0.008 | EW2: =DM2 -> 0.134 | EX2: ='MASTER DASHBOARD'!$D$23+ES2 -> -0.000 | EY2: ='MASTER DASHBOARD'!$E$23+ET2 -> 699.994 | EZ2: ='MASTER DASHBOARD'!$F$23+EF2 -> 300.134 | FA2: ='MASTER DASHBOARD'!$D$25+EU2 -> 0.006 | FB2: ='MASTER DASHBOARD'!$E$25+EV2 -> 700.008 | FC2: ='MASTER DASHBOARD'!$F$25+EW2 -> 0.134 | FD2: =DO2 -> -2193.493 | FE2: =DP2 -> 179.420 | FF2: =SQRT(FD2^2+FE2^2) -> 2200.818 | FG2: =DQ2 -> -6498.005 | FH2: =DR2 -> 286.790 | FI2: =SQRT(FG2^2+FH2^2) -> 6504.330 | FJ2: =IF(AND(EF2<>0,REBOUND!EF2<>0),TAN((EF2-REBOUND!EF2-AVERAGE(EF2,REBOUND!EF2))/TRACKWIDTH)*180/PI(),"") -> 0.011 | FK2: =IF(AND(EF2<>0,REBOUND!EF2<>0),(GM2-GO2)/(GL2-GN2)*FL2+(GM2-(GM2-GO2)/(GL2-GN2)*GL2),"") -> 43.406 | FL2: =IF(AND(EF2<>0,REBOUND!EF2<>0),((GQ2-(GQ2-GS2)/(GP2-GR2)*GP2)-(GM2-(GM2-GO2)/(GL2-GN2)*GL2))/((GM2-GO2)/(GL2-GN2)-(GQ2-GS2)/(GP2-GR2)),"") -> -1.646 | FM2: =DT2 -> 9.806 | FN2: =DU2 -> 36.34973211 | FO2: =DV2 -> 8.11 | FP2: =DW2 -> -22.39906067 | FQ2: =(FO3-FO2)/(EF3-EF2) -> 0.0149102164 | FR2: =DX2 -> -15.50169742 | FS2: =DY2 -> 20.35570192 | FT2: =360/RACK_RATIO/DZ2 -> 19.62178761 | FU2: =EA2 -> 5.396950632 | FV2: =IF(ilenk_combined=1,IF(iracktravel=1,ATAN(LWB/(LWB/TAN(COMPRESSION!DD2/180*PI())-2*'MASTER DASHBOARD'!$E$23))/PI()*180,ATAN(LWB/(LWB/TAN(REBOUND!DD2/180*PI())-2*'MASTER DASHBOARD'!$E$23))/PI()*180),0) -> 0.000 | FW2: =IF(ilenk_combined=1,(-iracktravel*REBOUND!DD2+iracktravel*COMPRESSION!DD2)/2,0) -> 0.000 | FX2: =IF(ilenk_combined=1,-REBOUND!DD2-COMPRESSION!DD2,0) -> 0.000 | FY2: =IF(ilenk_combined=1,IF(iracktravel=1,FV2-COMPRESSION!DD2,FV2-REBOUND!DD2),0) -> 0.000 | FZ2: =IF(ilenk_combined=1,MIN(MAX(FX2/FY2*100,-500),500),0) -> 0.000 | GH2: =IFERROR(-(FL2-REBOUND!FL2),0) -> 3.292349935 | GI2: =IFERROR(-(EQ2-REBOUND!EQ2),0) -> 0 | GJ2: =EB2 -> -71.00106356 | GK2: =DS2 -> -412.3704066 | GL2: =-GW2 -> -700.008 | GM2: =GT2 -> 0.134 | GN2: =-FD2 -> 2193.493 | GO2: =FE2 -> 179.420 | GP2: =REBOUND!GW2 -> 699.992 | GQ2: =-REBOUND!GT2 -> -0.134 | GR2: =REBOUND!FD2 -> -2193.493 | GS2: =REBOUND!FE2 -> 179.420 | GT2: =FJ2/180*PI()*TRACKWIDTH/2 -> 0.1341354161 | GU2: =EW2 -> 0.134 | GV2: =FB2 -> 700.008 | GW2: =IFERROR(IF(GT2<=GU$1,Lin_Interp(GU$2:GV$1009,GT2,1),Lin_Interp(GU$2:GV$1009,GU$1,1)),"") -> 700.008
B3: =DASHBOARD!F22 -> 0 | D3: 2 | F3: =DASHBOARD!F10 -> 125.00 | G3: =DASHBOARD!G10 -> 600.00 | H3: =DASHBOARD!H10 -> 315 | J3: 2 | K3: =F3-B3 -> 125 | L3: =G3-B4 -> 0 | M3: =H3-B5 -> 15 | N3: =F3-DASHBOARD!$F$9 -> 25.00 | O3: =G3-DASHBOARD!$G$9 -> 300.00 | P3: =H3-DASHBOARD!$H$9 -> 15.00 | R3: 2 | S3: =N3 -> 25 | T3: 300 | U3: 15 | V3: =L3*P3-M3*O3 -> -4500 | W3: =M3*N3-K3*P3 -> -1500 | X3: =K3*O3-L3*N3 -> 37500 | Y3: vx | Z3: =IF(ilenk=1,zivl*O3,IF(ilenk_combined=1,zivl*O3,0)) -> -30 | AB3: 2 | AC3: =MINVERSE(S3:X8) -> 0.001358810783 | AD3: 0.00112928841 | AE3: -0.001649285858 | AF3: -0.00240672303 | AG3: 0.001583648868 | AH3: -0.0003592493548 | AJ3: V0X | AK3: =MMULT(AC3:AH8,Z3:Z8) -> -0.04076432348 | AM3: 2 | AN3: =AK3+(AK7*M3-AK8*L3) -> -0.039104 | AO3: =AK4+(AK8*K3-AK6*M3) -> -0.095766 | AP3: =AK5+(AK6*L3-AK7*K3) -> -0.019506 | AQ3: =SQRT(AP3^2+AO3^2+AN3^2) -> 0.1052650613 | AR3: 2 | AS3: =F3+AN3 -> 124.961 | AT3: 599.904 | AU3: 314.980 | AV3: =SQRT((AS3-DASHBOARD!$F$9)^2+(AT3-DASHBOARD!$G$9)^2+(AU3-DASHBOARD!$H$9)^2) -> 301.314 | AW3: EMSAX | AX3: =AK6/AX2 -> 0.139058909 | AY3: CY | AZ3: =AX5*AX7-AX3*AX8 -> 0.0004065811637 | BA3: PX | BB3: =AS9-AZ8 -> 0.008749714068 | BC3: YQP | BD3: =(BB11-BB10)/(BB8-BB9) -> 662.1279398 | BE3: T8 | BF3: =H11-BD11*F11 -> 0 | BG3: TAU | BH3: =ATAN(-AK6/AK8) -> 0.1415519688 | DA3: 0.1 | DB3: 0.1341362155 | DC3: 0 | DD3: 0.0002346913674 | DE3: -0.00531710558 | DF3: 43.23760007 | DG3: 0.1139308717 | DH3: -2.529456454 | DI3: -0.0002667260352 | DJ3: -0.005641559806 | DK3: 0.005925641896 | DL3: 0.008291430535 | DM3: 0.1341369893 | DN3: 0.7455108198 | DO3: -2188.178659 | DP3: 178.6620852 | DQ3: -6498.491724 | DR3: 286.9437983 | DS3: -420.9785172 | DT3: 9.809 | DU3: 36.3468687 | DV3: 8.112 | DW3: -22.39888964 | DX3: -15.50681053 | DY3: 20.35593494 | DZ3: 0.3669101303 | EA3: 5.397981565 | EB3: -71.00953476 | EC3: 663.6461073 | EE3: =EE2+DA3 -> 0.200 | EF3: =EF2+DB3 -> 0.268 | EG3: =EG2+DC3 -> 0.000 | EH3: =DN3+$GI$6/2 -> 0.746 | EI3: 0.000 | EJ3: 0.899 | EK3: 0.011 | EL3: -0.005 | EM3: -19.875 | EN3: -0.243 | EO3: 43.238 | EP3: 1.014 | EQ3: =DG3+$GI$2/2 -> 0.114 | ER3: =DH3+$GI$4/2 -> -2.529 | ES3: =DI3+ES2 -> -0.001 | ET3: =DJ3+ET2 -> -0.011 | EU3: =DK3+EU2 -> 0.012 | EV3: =DL3+EV2 -> 0.017 | EW3: =DM3+EW2 -> 0.268 | EX3: ='MASTER DASHBOARD'!$D$23+ES3 -> -0.001 | EY3: ='MASTER DASHBOARD'!$E$23+ET3 -> 699.989 | EZ3: ='MASTER DASHBOARD'!$F$23+EF3 -> 300.268 | FA3: ='MASTER DASHBOARD'!$D$25+EU3 -> 0.012 | FB3: ='MASTER DASHBOARD'!$E$25+EV3 -> 700.017 | FC3: ='MASTER DASHBOARD'!$F$25+EW3 -> 0.268 | FD3: -2188.179 | FE3: 178.662 | FF3: 2195.460 | FG3: -6498.492 | FH3: 286.944 | FI3: 6504.824 | FJ3: =FJ2+FJ$2 -> 0.022 | FK3: =IF(AND(EF3<>0,REBOUND!EF3<>0),(GM3-GO3)/(GL3-GN3)*FL3+(GM3-(GM3-GO3)/(GL3-GN3)*GL3),"") -> 43.508 | FL3: =IF(AND(EF3<>0,REBOUND!EF3<>0),((GQ3-(GQ3-GS3)/(GP3-GR3)*GP3)-(GM3-(GM3-GO3)/(GL3-GN3)*GL3))/((GM3-GO3)/(GL3-GN3)-(GQ3-GS3)/(GP3-GR3))+$GH$2/2,"") -> 0.028 | FM3: 9.809 | FN3: 36.3468687 | FO3: 8.112 | FP3: -22.39888964 | FQ3: 0.007455063846 | FR3: -15.50681053 | FS3: 20.35593494 | FT3: 19.62333391 | FU3: 5.397981565 | FV3: =IF(ilenk_combined=1,IF(iracktravel=1,ATAN(LWB/(LWB/TAN(COMPRESSION!DD3/180*PI())-2*'MASTER DASHBOARD'!$E$23))/PI()*180,ATAN(LWB/(LWB/TAN(REBOUND!DD3/180*PI())-2*'MASTER DASHBOARD'!$E$23))/PI()*180),0) -> 0.000 | FW3: =IF(ilenk_combined=1,(-iracktravel*REBOUND!DD3+iracktravel*COMPRESSION!DD3)/2,0) -> 0.000 | FX3: =IF(ilenk_combined=1,-REBOUND!DD3-COMPRESSION!DD3,0) -> 0.000 | FY3: =IF(ilenk_combined=1,IF(iracktravel=1,FV3-COMPRESSION!DD3,FV3-REBOUND!DD3),0) -> 0.000 | FZ3: 0.000 | GH3: rch in roll | GI3: anti contact patch | GJ3: -71.00953476 | GK3: -420.9785172 | GL3: =-GW3 -> -700.017 | GM3: =GT3 -> 0.268 | GN3: =-FD3 -> 2188.179 | GO3: =FE3 -> 178.662 | GP3: =REBOUND!GW3 -> 699.983 | GQ3: =-REBOUND!GT3 -> -0.268 | GR3: =REBOUND!FD3 -> -2198.827 | GS3: =REBOUND!FE3 -> 180.181 | GT3: =GT2+GT2 -> 0.2682708322 | GU3: =EW3 -> 0.268 | GV3: =FB3 -> 700.017 | GW3: =IFERROR(IF(GT3<=GU$1,Lin_Interp(GU$2:GV$1009,GT3,1),Lin_Interp(GU$2:GV$1009,GU$1,1)),"") -> 700.017
B4: =DASHBOARD!G22 -> 600 | D4: 4 | F4: =DASHBOARD!F12 -> -10.00 | G4: =DASHBOARD!G12 -> 650.00 | H4: =DASHBOARD!H12 -> 185 | J4: 4 | K4: =F4-B3 -> -10 | L4: =G4-B4 -> 50 | M4: =H4-B5 -> -115 | N4: =F4-DASHBOARD!$F$11 -> 50.00 | O4: =G4-DASHBOARD!$G$11 -> 420.00 | P4: =H4-DASHBOARD!$H$11 -> 0.00 | Q4: =SQRT(N4^2+O4^2+P4^2) -> 422.9657197 | R4: 4 | S4: 50 | T4: 420 | U4: 0 | V4: 48300 | W4: -5750 | X4: -6700 | Y4: vy | Z4: 0 | AB4: 4 | AC4: 0.0004781175756 | AD4: 0.0009260597566 | AE4: 0.0001907682954 | AF4: 0.0003772082395 | AG4: 0.001072096617 | AH4: -0.004247218534 | AJ4: V0Y | AK4: -0.01434352727 | AM4: 4 | AN4: =AK3+(AK7*M4-AK8*L4) -> -0.021472 | AO4: =AK4+(AK8*K4-AK6*M4) -> 0.002556 | AP4: =AK5+(AK6*L4-AK7*K4) -> -0.000000 | AQ4: 0.02162326578 | AR4: 4 | AS4: -10.021 | AT4: 650.003 | AU4: 185.000 | AV4: =SQRT((AS4-DASHBOARD!$F$11)^2+(AT4-DASHBOARD!$G$11)^2+(AU4-DASHBOARD!$H$11)^2) -> 422.966 | AW4: EMSAY | AX4: =AK7/AX2 -> 0.1686498078 | AY4: CZ | AZ4: =AX3*AX8-AX4*AX7 -> 0 | BA4: PY | BB4: =AT9-AZ9 -> 700.5875417 | BC4: ZQP | BD4: =BB9*BD3+BB11 -> 142.8352466 | BE4: XLP | BF4: =(BF3-BF2)/(BD10-BD11) -> 31.22711752 | BG4: RS | BH4: =-(AN11*COS(-BF9)+AO11*SIN(-BF9))/BF11 -> -15.51320633 | BJ4: HIGH | BK4: LOW | BL4: TRO | BM4: TRI | BN4: z=ax+b | BO4: a= | BP4: b= | BQ4: -1/a= | BR4: z=cy+d | BS4: c= | BT4: d= | BU4: -1/c= | BW4: SPRING UP | BX4: SPRING LOW | BY4: LINK OUT | BZ4: LINK IN | CA4: z=ax+b | CB4: a= | CC4: b= | CD4: -1/a= | CE4: z=cy+d | CF4: c= | CG4: d= | CH4: -1/c= | CJ4: COUPLING KNUCKLE | CK4: COUPLING LINK | CL4: LINK OUT | CM4: LINK IN | CN4: z=ax+b | CO4: a= | CP4: b= | CQ4: -1/a= | CR4: z=cy+d | CS4: c= | CT4: d= | CU4: -1/c= | DA4: 0.1 | DB4: 0.1341370135 | DC4: 0 | DD4: 0.0003553219444 | DE4: -0.007983029626 | DF4: 43.1016436 | DG4: 0.112568082 | DH4: -2.530615744 | DI4: -0.0002635371382 | DJ4: -0.005693304641 | DK4: 0.005928430867 | DL4: 0.008265389532 | DM4: 0.1341385645 | DN4: 0.7455063846 | DO4: -2182.88472 | DP4: 177.9077346 | DQ4: -6498.980504 | DR4: 287.0974045 | DS4: -429.5237244 | DT4: 9.812 | DU4: 36.3440138 | DV4: 8.113 | DW4: -22.39872387 | DX4: -15.51191988 | DY4: 20.3561677 | DZ4: 0.3668812078 | EA4: 5.399013806 | EB4: -71.01798377 | EC4: 663.6433208 | EE4: =EE3+DA4 -> 0.300 | EF4: 0.402 | EG4: 0.000 | EH4: =DN4+$GI$6/2 -> 0.746 | EI4: 0.000 | EJ4: 0.916 | EK4: 0.011 | EL4: -0.008 | EM4: -19.911 | EN4: -0.243 | EO4: 43.102 | EP4: 1.014 | EQ4: =DG4+$GI$2/2 -> 0.113 | ER4: =DH4+$GI$4/2 -> -2.531 | ES4: =DI4+ES3 -> -0.001 | ET4: =DJ4+ET3 -> -0.017 | EU4: =DK4+EU3 -> 0.018 | EV4: =DL4+EV3 -> 0.025 | EW4: =DM4+EW3 -> 0.402 | EX4: ='MASTER DASHBOARD'!$D$23+ES4 -> -0.001 | EY4: ='MASTER DASHBOARD'!$E$23+ET4 -> 699.983 | EZ4: ='MASTER DASHBOARD'!$F$23+EF4 -> 300.402 | FA4: ='MASTER DASHBOARD'!$D$25+EU4 -> 0.018 | FB4: ='MASTER DASHBOARD'!$E$25+EV4 -> 700.025 | FC4: ='MASTER DASHBOARD'!$F$25+EW4 -> 0.402 | FD4: -2182.885 | FE4: 177.908 | FF4: 2190.123 | FG4: -6498.981 | FH4: 287.097 | FI4: 6505.319 | FJ4: =FJ3+FJ$2 -> 0.033 | FK4: =IF(AND(EF4<>0,REBOUND!EF4<>0),(GM4-GO4)/(GL4-GN4)*FL4+(GM4-(GM4-GO4)/(GL4-GN4)*GL4),"") -> 43.508 | FL4: =IF(AND(EF4<>0,REBOUND!EF4<>0),((GQ4-(GQ4-GS4)/(GP4-GR4)*GP4)-(GM4-(GM4-GO4)/(GL4-GN4)*GL4))/((GM4-GO4)/(GL4-GN4)-(GQ4-GS4)/(GP4-GR4))+$GH$2/2,"") -> 0.057 | FM4: 9.812 | FN4: 36.3440138 | FO4: 8.113 | FP4: -22.39872387 | FQ4: 0.007455019666 | FR4: -15.51191988 | FS4: 20.3561677 | FT4: 19.62488088 | FU4: 5.399013806 | FV4: =IF(ilenk_combined=1,IF(iracktravel=1,ATAN(LWB/(LWB/TAN(COMPRESSION!DD4/180*PI())-2*'MASTER DASHBOARD'!$E$23))/PI()*180,ATAN(LWB/(LWB/TAN(REBOUND!DD4/180*PI())-2*'MASTER DASHBOARD'!$E$23))/PI()*180),0) -> 0.000 | FW4: =IF(ilenk_combined=1,(-iracktravel*REBOUND!DD4+iracktravel*COMPRESSION!DD4)/2,0) -> 0.000 | FX4: =IF(ilenk_combined=1,-REBOUND!DD4-COMPRESSION!DD4,0) -> 0.000 | FY4: =IF(ilenk_combined=1,IF(iracktravel=1,FV4-COMPRESSION!DD4,FV4-REBOUND!DD4),0) -> 0.000 | FZ4: 0.000 | GH4: =IFERROR(-((FK2+FK3)-(REBOUND!FK2+REBOUND!FK3)),0) -> -0.2041518686 | GI4: =IFERROR(-(ER2-REBOUND!ER2),0) -> 0 | GJ4: -71.01798377 | GK4: -429.5237244 | GL4: -700.025 | GM4: 0.402 | GN4: 2182.885 | GO4: 177.908 | GP4: =REBOUND!GW4 -> 699.975 | GQ4: =-REBOUND!GT4 -> -0.402 | GR4: =REBOUND!FD4 -> -2204.181 | GS4: =REBOUND!FE4 -> 180.945 | GT4: =GT3+GT$2 -> 0.4024062483 | GU4: 0.402 | GV4: 700.025 | GW4: =IFERROR(IF(GT4<=GU$1,Lin_Interp(GU$2:GV$1009,GT4,1),Lin_Interp(GU$2:GV$1009,GU$1,1)),"") -> 700.025
B5: =DASHBOARD!H22 -> 300 | D5: 6 | F5: =DASHBOARD!F14 -> 30.00 | G5: =DASHBOARD!G14 -> 630.00 | H5: =DASHBOARD!H14 -> 185 | J5: 6 | K5: =F5-B3 -> 30 | L5: =G5-B4 -> 30 | M5: =H5-B5 -> -115 | N5: =F5-DASHBOARD!$F$13 -> -270.00 | O5: =G5-DASHBOARD!$G$13 -> 400.00 | P5: =H5-DASHBOARD!$H$13 -> 5.00 | Q5: =SQRT(N5^2+O5^2+P5^2) -> 482.6230413 | R5: 6 | S5: -270 | T5: 400 | U5: 5 | V5: 46150 | W5: 30900 | X5: 20100 | Y5: vz | Z5: 0 | AB5: 6 | AC5: 0.0001890020461 | AD5: -0.0003483413839 | AE5: -0.0002098754477 | AF5: 0.0003624466065 | AG5: 0.0002803420842 | AH5: 0.09839568623 | AJ5: V0Z | AK5: -0.005670061383 | AM5: 6 | AN5: =AK3+(AK7*M5-AK8*L5) -> -0.034280 | AO5: =AK4+(AK8*K5-AK6*M5) -> -0.023061 | AP5: =AK5+(AK6*L5-AK7*K5) -> -0.006253 | AQ5: 0.04178562572 | AR5: 6 | AS5: 29.966 | AT5: 629.977 | AU5: 184.994 | AV5: =SQRT((AS5-DASHBOARD!$F$13)^2+(AT5-DASHBOARD!$G$13)^2+(AU5-DASHBOARD!$H$13)^2) -> 482.623 | AW5: EMSAZ | AX5: =AK8/AX2 -> -0.9758175353 | AY5: VRTSEX | AZ5: =AZ3*AX5-AZ4*AX4 -> -0.000396749029 | BA5: PZ | BB5: =AU9-AZ10 -> 300.1054093 | BC5: XWP | BD5: =F9 -> 0 | BE5: YLP | BF5: =AT11 -> 700.0130358 | BG5: SNACH | BH5: =-(AN11*SIN(-BF9)+AO11*COS(-BF9))/BF11 -> 20.36434307 | BI5: x | BJ5: =BK5-100*SIN(BH3) -> 6.246 | BK5: =AS11+BH5 -> 20.354 | BL5: =AS3 -> 124.961 | BM5: =AS2 -> 100.00 | BN5: z2=ax2+b | BO5: =(BJ7-BK7)/(BJ5-BK5) -> -6.914538835 | BP5: =BJ7-(BO5*BJ5) -> 140.7448574 | BQ5: =-1/BO5 -> 0.1446228048 | BR5: z2=cy2+d | BS5: =(BJ7-BK7)/(BJ6-BK6) -> -5.727984065 | BT5: =BJ7-BS5*BJ6 -> 4098.526369 | BU5: =-1/BS5 -> 0.1745814913 | BW5: =DASHBOARD!$F$19+0.001 -> -20.00 | BX5: =F8-0.001 -> -20.001 | BY5: =F4+0.001 -> -9.999 | BZ5: =DASHBOARD!F$11-0.001 -> -60.00 | CA5: z2=ax2+b | CB5: =(BW7-BX7)/(BW5-BX5) -> 307501 | CC5: =BW7-(CB5*BW5) -> 6150512.5 | CD5: =-1/CB5 -> -3.252021945e-06 | CE5: z2=cy2+d | CF5: =(BW7-BX7)/(BW6-BX6) -> -12.30053202 | CG5: =BW7-CF5*BW6 -> 6950.279311 | CH5: =-1/CF5 -> 0.08129729659 | CJ5: =F6+0.001 -> -9.999 | CK5: =F12-0.001 -> 149.999 | CL5: =F5+0.001 -> 30.001 | CM5: =DASHBOARD!F$13-0.001 -> 300.00 | CN5: z2=ax2+b | CO5: =(CJ7-CK7)/(CJ5-CK5) -> -0.1250140627 | CP5: =CJ7-(CO5*CJ5) -> 423.7509844 | CQ5: =-1/CO5 -> 7.99910009 | CR5: z2=cy2+d | CS5: =(CJ7-CK7)/(CJ6-CK6) -> 0.07408093273 | CT5: =CJ7-CS5*CJ6 -> 381.2931756 | CU5: =-1/CS5 -> -13.49875012 | DA5: 0.1 | DB5: 0.1341378085 | DC5: 0 | DD5: 0.0004781408234 | DE5: -0.01065386741 | DF5: 42.96569117 | DG5: 0.1112061873 | DH5: -2.531773413 | DI5: -0.000260350293 | DJ5: -0.005745045909 | DK5: 0.005931216127 | DL5: 0.008239349641 | DM5: 0.1341401403 | DN5: 0.7455019666 | DO5: -2177.610729 | DP5: 177.1567056 | DQ5: -6499.471119 | DR5: 287.250928 | DS5: -438.0064584 | DT5: 9.815 | DU5: 36.34116739 | DV5: 8.114 | DW5: -22.39856335 | DX5: -15.51702546 | DY5: 20.3564002 | DZ5: 0.3668522771 | EA5: 5.400047355 | EB5: -71.02641061 | EC5: 663.6404741 | EE5: 0.400 | EF5: 0.537 | EG5: 0.000 | EH5: 0.746 | EI5: 0.000 | EJ5: 0.932 | EK5: 0.011 | EL5: -0.011 | EM5: -19.948 | EN5: -0.244 | EO5: 42.966 | EP5: 1.013 | EQ5: 0.111 | ER5: -2.532 | ES5: -0.001 | ET5: -0.023 | EU5: 0.024 | EV5: 0.033 | EW5: 0.537 | EX5: ='MASTER DASHBOARD'!$D$23+ES5 -> -0.001 | EY5: ='MASTER DASHBOARD'!$E$23+ET5 -> 699.977 | EZ5: ='MASTER DASHBOARD'!$F$23+EF5 -> 300.537 | FA5: ='MASTER DASHBOARD'!$D$25+EU5 -> 0.024 | FB5: ='MASTER DASHBOARD'!$E$25+EV5 -> 700.033 | FC5: ='MASTER DASHBOARD'!$F$25+EW5 -> 0.537 | FD5: -2177.611 | FE5: 177.157 | FF5: 2184.805 | FG5: -6499.471 | FH5: 287.251 | FI5: 6505.816 | FJ5: 0.044 | FK5: =IF(AND(EF5<>0,REBOUND!EF5<>0),(GM5-GO5)/(GL5-GN5)*FL5+(GM5-(GM5-GO5)/(GL5-GN5)*GL5),"") -> 43.507 | FL5: =IF(AND(EF5<>0,REBOUND!EF5<>0),((GQ5-(GQ5-GS5)/(GP5-GR5)*GP5)-(GM5-(GM5-GO5)/(GL5-GN5)*GL5))/((GM5-GO5)/(GL5-GN5)-(GQ5-GS5)/(GP5-GR5))+$GH$2/2,"") -> 0.085 | FM5: 9.815 | FN5: 36.34116739 | FO5: 8.114 | FP5: -22.39856335 | FQ5: 0.007454975657 | FR5: -15.51702546 | FS5: 20.3564002 | FT5: 19.62642854 | FU5: 5.400047355 | FV5: =IF(ilenk_combined=1,IF(iracktravel=1,ATAN(LWB/(LWB/TAN(COMPRESSION!DD5/180*PI())-2*'MASTER DASHBOARD'!$E$23))/PI()*180,ATAN(LWB/(LWB/TAN(REBOUND!DD5/180*PI())-2*'MASTER DASHBOARD'!$E$23))/PI()*180),0) -> 0.000 | FW5: =IF(ilenk_combined=1,(-iracktravel*REBOUND!DD5+iracktravel*COMPRESSION!DD5)/2,0) -> 0.000 | FX5: =IF(ilenk_combined=1,-REBOUND!DD5-COMPRESSION!DD5,0) -> 0.000 | FY5: =IF(ilenk_combined=1,IF(iracktravel=1,FV5-COMPRESSION!DD5,FV5-REBOUND!DD5),0) -> 0.000 | FZ5: 0.000 | GI5: motion | GJ5: -71.02641061 | GK5: -438.0064584 | GL5: -700.033 | GM5: 0.537 | GN5: 2177.611 | GO5: 177.157 | GP5: =REBOUND!GW5 -> 699.967 | GQ5: =-REBOUND!GT5 -> -0.537 | GR5: =REBOUND!FD5 -> -2209.556 | GS5: =REBOUND!FE5 -> 181.713 | GT5: =GT4+GT$2 -> 0.5365416643 | GU5: 0.537 | GV5: 700.033 | GW5: =IFERROR(IF(GT5<=GU$1,Lin_Interp(GU$2:GV$1009,GT5,1),Lin_Interp(GU$2:GV$1009,GU$1,1)),"") -> 700.033
D6: 8 | F6: =DASHBOARD!F16 -> -10.00 | G6: =DASHBOARD!G16 -> 590.00 | H6: =DASHBOARD!H16 -> 425 | J6: 8 | K6: =F6-B3 -> -10 | L6: =G6-B4 -> -10 | M6: =H6-B5 -> 125 | N6: =IF(iintegral=0,F6-DASHBOARD!$F$15,F6-A12) -> -160.00 | O6: =IF(iintegral=0,G6-DASHBOARD!$G$15,G6-B12) -> 270.00 | P6: =IF(iintegral=0,H6-DASHBOARD!$H$15,H6-C12) -> 20.00 | Q6: =ABS(G4-DASHBOARD!G$11) -> 420 | R6: 8 | S6: =IF(iMcPherson=0,N6,-P8) -> -160 | T6: =IF(iMcPherson=0,O6,0) -> 270 | U6: =IF(iMcPherson=0,P6,N8) -> 20 | V6: =IF(iMcPherson=0,L6*P6-M6*O6,-L10*(-N8)) -> -33950 | W6: =IF(iMcPherson=0,M6*N6-K6*P6,L11*(-P8)+L9*(-N8)) -> -19800 | X6: =IF(iMcPherson=0,K6*O6-L6*N6,-L10*(-P8)) -> -4300 | Y6: wx | Z6: 0 | AB6: 8 | AC6: -3.042142499e-06 | AD6: 9.157256768e-06 | AE6: 1.62849933e-06 | AF6: -3.436848992e-06 | AG6: -9.840205914e-06 | AH6: 3.522317685e-05 | AJ6: OMEGAX | AK6: 9.126427498e-05 | AM6: 8 | AN6: =AK3+(AK7*M6-AK8*L6) -> -0.033333 | AO6: =AK4+(AK8*K6-AK6*M6) -> -0.019347 | AP6: =AK5+(AK6*L6-AK7*K6) -> -0.005476 | AQ6: 0.03892803437 | AR6: 8 | AS6: -10.033 | AT6: 589.981 | AU6: 424.995 | AV6: =SQRT((AS6-F12)^2+(AT6-G12)^2+(AU6-H12)^2) -> 314.484 | AW6: HH1 | AX6: =AX3*AN9+AX4*AO9+AX5*AP9 -> -0.002554730142 | AY6: VRTSEY | AZ6: =AZ4*AX3-AZ2*AX5 -> 0 | BA6: T1 | BB6: =AP9/AO9 -> -0.2409704426 | BC6: YWP | BD6: =0 -> 0 | BE6: ZLP | BF6: =BD11*BF4+BF3-AU11 -> 89.68285989 | BG6: RSIGMA | BH6: =-(AN9*COS(-BF9)+AO9*SIN(-BF9))/BF11 -> 36.36211799 | BI6: =AT11-BH6 -> 663.651 | BJ6: =BK6-100*SIN(BH2) -> 698.496 | BK6: =AT11-BH4 -> 715.526 | BL6: =AT3 -> 599.904 | BM6: =AT2 -> 300.00 | BN6: (z-z2)/(x-x2)=a | BR6: (z-z2)/(y-y2)=c | BW6: =DASHBOARD!$G$19+0.001 -> 500.00 | BX6: =G8-0.001 -> 549.999 | BY6: =G4+0.001 -> 650.001 | BZ6: =DASHBOARD!G$11-0.001 -> 230.00 | CA6: (z-z2)/(x-x2)=a | CB6: (z-z2)/(y-y2)=c | CJ6: =G6+0.001 -> 590.001 | CK6: =G12-0.001 -> 319.999 | CL6: =G5+0.001 -> 630.001 | CM6: =DASHBOARD!G$13-0.001 -> 230.00 | CN6: (z-z2)/(x-x2)=a | CO6: (z-z2)/(y-y2)=c | DA6: 0.1 | DB6: 0.1341386003 | DC6: 0 | DD6: 0.0006031467859 | DE6: -0.0133296186 | DF6: 42.82974283 | DG6: 0.1098451863 | DH6: -2.532929462 | DI6: -0.0002571654967 | DJ6: -0.005796783634 | DK6: 0.005933997679 | DL6: 0.008213310869 | DM6: 0.1341417166 | DN6: 0.7454975657 | DO6: -2172.356569 | DP6: 176.4089792 | DQ6: -6499.963571 | DR6: 287.4043691 | DS6: -446.4271468 | DT6: 9.818 | DU6: 36.33832948 | DV6: 8.115 | DW6: -22.39840808 | DX6: -15.52212729 | DY6: 20.35663243 | DZ6: 0.366823338 | EA6: 5.401082212 | EB6: -71.03481525 | EC6: 663.6375671 | EE6: 0.500 | EF6: 0.671 | EG6: 0.000 | EH6: 0.745 | EI6: 0.001 | EJ6: 0.948 | EK6: 0.012 | EL6: -0.013 | EM6: -19.984 | EN6: -0.244 | EO6: 42.830 | EP6: 1.013 | EQ6: 0.110 | ER6: -2.533 | ES6: -0.001 | ET6: -0.028 | EU6: 0.030 | EV6: 0.041 | EW6: 0.671 | EX6: ='MASTER DASHBOARD'!$D$23+ES6 -> -0.001 | EY6: ='MASTER DASHBOARD'!$E$23+ET6 -> 699.972 | EZ6: ='MASTER DASHBOARD'!$F$23+EF6 -> 300.671 | FA6: ='MASTER DASHBOARD'!$D$25+EU6 -> 0.030 | FB6: ='MASTER DASHBOARD'!$E$25+EV6 -> 700.041 | FC6: ='MASTER DASHBOARD'!$F$25+EW6 -> 0.671 | FD6: -2172.357 | FE6: 176.409 | FF6: 2179.508 | FG6: -6499.964 | FH6: 287.404 | FI6: 6506.314 | FJ6: 0.055 | FK6: =IF(AND(EF6<>0,REBOUND!EF6<>0),(GM6-GO6)/(GL6-GN6)*FL6+(GM6-(GM6-GO6)/(GL6-GN6)*GL6),"") -> 43.507 | FL6: =IF(AND(EF6<>0,REBOUND!EF6<>0),((GQ6-(GQ6-GS6)/(GP6-GR6)*GP6)-(GM6-(GM6-GO6)/(GL6-GN6)*GL6))/((GM6-GO6)/(GL6-GN6)-(GQ6-GS6)/(GP6-GR6))+$GH$2/2,"") -> 0.114 | FM6: 9.818 | FN6: 36.33832948 | FO6: 8.115 | FP6: -22.39840808 | FQ6: 0.007454931818 | FR6: -15.52212729 | FS6: 20.35663243 | FT6: 19.62797689 | FU6: 5.401082212 | FV6: =IF(ilenk_combined=1,IF(iracktravel=1,ATAN(LWB/(LWB/TAN(COMPRESSION!DD6/180*PI())-2*'MASTER DASHBOARD'!$E$23))/PI()*180,ATAN(LWB/(LWB/TAN(REBOUND!DD6/180*PI())-2*'MASTER DASHBOARD'!$E$23))/PI()*180),0) -> 0.000 | FW6: =IF(ilenk_combined=1,(-iracktravel*REBOUND!DD6+iracktravel*COMPRESSION!DD6)/2,0) -> 0.000 | FX6: =IF(ilenk_combined=1,-REBOUND!DD6-COMPRESSION!DD6,0) -> 0.000 | FY6: =IF(ilenk_combined=1,IF(iracktravel=1,FV6-COMPRESSION!DD6,FV6-REBOUND!DD6),0) -> 0.000 | FZ6: 0.000 | GI6: =IFERROR(-(EH2-REBOUND!EH2),0) -> 0 | GJ6: -71.03481525 | GK6: -446.4271468 | GL6: -700.041 | GM6: 0.671 | GN6: 2172.357 | GO6: 176.409 | GP6: =REBOUND!GW6 -> 699.958 | GQ6: =-REBOUND!GT6 -> -0.671 | GR6: =REBOUND!FD6 -> -2214.951 | GS6: =REBOUND!FE6 -> 182.484 | GT6: 0.6706770804 | GU6: 0.671 | GV6: 700.041 | GW6: =IFERROR(IF(GT6<=GU$1,Lin_Interp(GU$2:GV$1009,GT6,1),Lin_Interp(GU$2:GV$1009,GU$1,1)),"") -> 700.041
D7: 10 | F7: =DASHBOARD!F18 -> -50 | G7: =DASHBOARD!G18 -> 590 | H7: =DASHBOARD!H18 -> 425 | J7: 10 | K7: =F7-B3 -> -50 | L7: =G7-B4 -> -10 | M7: =H7-B5 -> 125 | N7: =F7-DASHBOARD!$F$17 -> 50 | O7: =G7-DASHBOARD!$G$17 -> 270.00 | P7: =H7-DASHBOARD!$H$17 -> 25 | Q7: =ABS(G8-DASHBOARD!G$11) -> 320 | R7: 10 | S7: =IF(iMcPherson=0,N7,0) -> 50 | T7: =IF(iMcPherson=0,O7,-P8) -> 270 | U7: =IF(iMcPherson=0,P7,O8) -> 25 | V7: =IF(iMcPherson=0,L7*P7-M7*O7,-L11*(-P8)-L10*(-O8)) -> -34000 | W7: =IF(iMcPherson=0,M7*N7-K7*P7,L9*(-O8)) -> 7500 | X7: =IF(iMcPherson=0,K7*O7-L7*N7,L9*(-P8)) -> -13000 | Y7: wy | Z7: 0 | AB7: 10 | AC7: -3.689492113e-06 | AD7: -1.095214545e-05 | AE7: 1.284504812e-05 | AF7: -1.906041569e-05 | AG7: 2.116682115e-05 | AH7: -1.568450739e-05 | AJ7: OMEGAY | AK7: 0.0001106847634 | AM7: 10 | AN7: =AK3+(AK7*M7-AK8*L7) -> -0.033333 | AO7: =AK4+(AK8*K7-AK6*M7) -> 0.006270 | AP7: =AK5+(AK6*L7-AK7*K7) -> -0.001048 | AQ7: 0.03393376117 | AR7: 10 | AS7: -50.033 | AT7: 590.006 | AU7: 424.999 | AV7: =SQRT((AS7-DASHBOARD!$F$17)^2+(AT7-DASHBOARD!$G$17)^2+(AU7-DASHBOARD!$H$17)^2) -> 275.726 | AW7: VRTPAX | AX7: =AX6*AX3 -> -0.0003552579863 | AY7: VRTSEZ | AZ7: =AZ2*AX4-AZ3*AX3 -> -5.653873303e-05 | BA7: T3 | BB7: =AP11/AO11 -> 0.2651450611 | BC7: ZWP | BD7: =(BD4-AU11)/(AT11-BD3)*AT11 -> 2639.141135 | BE7: EPSBR | BF7: =-ATAN(AN11/AP11) -> 1.235742456 | BG7: RNACH | BH7: =-(AN9*SIN(-BF9)+AO9*COS(-BF9))/BF11 -> -22.41968867 | BI7: z | BJ7: =100*COS(BH2)*COS(BH3) -> 97.554 | BK7: =AU11 -> 0.003 | BL7: =AU3 -> 314.980 | BM7: =AU2 -> 300.00 | BN7: z=ex+f | BO7: e= | BP7: f= | BR7: z=gy+h | BT7: g= | BU7: h= | BW7: =DASHBOARD!$H$19+0.001 -> 800.00 | BX7: =H8-0.001 -> 184.999 | BY7: =H4+0.001 -> 185.001 | BZ7: =DASHBOARD!H$11-0.001 -> 185.00 | CA7: z=ex+f | CB7: e= | CC7: f= | CE7: z=gy+h | CG7: g= | CH7: h= | CJ7: =H6+0.001 -> 425.001 | CK7: =H12-0.001 -> 404.999 | CL7: =H5+0.001 -> 185.001 | CM7: =DASHBOARD!H$13-0.001 -> 180.00 | CN7: z=ex+f | CO7: e= | CP7: f= | CR7: z=gy+h | CT7: g= | CU7: h= | DA7: 0.1 | DB7: 0.1341393891 | DC7: 0 | DD7: 0.0007303386148 | DE7: -0.01601028291 | DF7: 42.69379862 | DG7: 0.1084850777 | DH7: -2.534083893 | DI7: -0.0002539827464 | DJ7: -0.005848517842 | DK7: 0.005936775523 | DL7: 0.008187273223 | DM7: 0.1341432934 | DN7: 0.7454931818 | DO7: -2167.122121 | DP7: 175.6645366 | DQ7: -6500.457862 | DR7: 287.5577281 | DS7: -454.7862139 | DT7: 9.821 | DU7: 36.33550005 | DV7: 8.116 | DW7: -22.39825806 | DX7: -15.52722535 | DY7: 20.35686441 | DZ7: 0.3667943907 | EA7: 5.402118374 | EB7: -71.04319771 | EC7: 663.6345998 | EE7: 0.600 | EF7: 0.805 | EG7: 0.000 | EH7: 0.745 | EI7: 0.001 | EJ7: 0.964 | EK7: 0.012 | EL7: -0.016 | EM7: -20.021 | EN7: -0.245 | EO7: 42.694 | EP7: 1.013 | EQ7: 0.108 | ER7: -2.534 | ES7: -0.002 | ET7: -0.034 | EU7: 0.036 | EV7: 0.050 | EW7: 0.805 | EX7: ='MASTER DASHBOARD'!$D$23+ES7 -> -0.002 | EY7: ='MASTER DASHBOARD'!$E$23+ET7 -> 699.966 | EZ7: ='MASTER DASHBOARD'!$F$23+EF7 -> 300.805 | FA7: ='MASTER DASHBOARD'!$D$25+EU7 -> 0.036 | FB7: ='MASTER DASHBOARD'!$E$25+EV7 -> 700.050 | FC7: ='MASTER DASHBOARD'!$F$25+EW7 -> 0.805 | FD7: -2167.122 | FE7: 175.665 | FF7: 2174.230 | FG7: -6500.458 | FH7: 287.558 | FI7: 6506.815 | FJ7: 0.066 | FK7: =IF(AND(EF7<>0,REBOUND!EF7<>0),(GM7-GO7)/(GL7-GN7)*FL7+(GM7-(GM7-GO7)/(GL7-GN7)*GL7),"") -> 43.507 | FL7: =IF(AND(EF7<>0,REBOUND!EF7<>0),((GQ7-(GQ7-GS7)/(GP7-GR7)*GP7)-(GM7-(GM7-GO7)/(GL7-GN7)*GL7))/((GM7-GO7)/(GL7-GN7)-(GQ7-GS7)/(GP7-GR7))+$GH$2/2,"") -> 0.142 | FM7: 9.821 | FN7: 36.33550005 | FO7: 8.116 | FP7: -22.39825806 | FQ7: 0.0149097763 | FR7: -15.52722535 | FS7: 20.35686441 | FT7: 19.62952592 | FU7: 5.402118374 | FV7: =IF(ilenk_combined=1,IF(iracktravel=1,ATAN(LWB/(LWB/TAN(COMPRESSION!DD7/180*PI())-2*'MASTER DASHBOARD'!$E$23))/PI()*180,ATAN(LWB/(LWB/TAN(REBOUND!DD7/180*PI())-2*'MASTER DASHBOARD'!$E$23))/PI()*180),0) -> 0.000 | FW7: =IF(ilenk_combined=1,(-iracktravel*REBOUND!DD7+iracktravel*COMPRESSION!DD7)/2,0) -> 0.000 | FX7: =IF(ilenk_combined=1,-REBOUND!DD7-COMPRESSION!DD7,0) -> 0.000 | FY7: =IF(ilenk_combined=1,IF(iracktravel=1,FV7-COMPRESSION!DD7,FV7-REBOUND!DD7),0) -> 0.000 | FZ7: 0.000 | GI7: rch motion | GJ7: -71.04319771 | GK7: -454.7862139 | GL7: -700.050 | GM7: 0.805 | GN7: 2167.122 | GO7: 175.665 | GP7: =REBOUND!GW7 -> 699.950 | GQ7: =-REBOUND!GT7 -> -0.805 | GR7: =REBOUND!FD7 -> -2220.367 | GS7: =REBOUND!FE7 -> 183.259 | GT7: 0.8048124965 | GU7: 0.805 | GV7: 700.050 | GW7: =IFERROR(IF(GT7<=GU$1,Lin_Interp(GU$2:GV$1009,GT7,1),Lin_Interp(GU$2:GV$1009,GU$1,1)),"") -> 700.050
D8: 12 | F8: =DASHBOARD!F20 -> -20 | G8: =DASHBOARD!G20 -> 550 | H8: =DASHBOARD!H20 -> 185 | J8: 12 | K8: =F8-B3 -> -20 | L8: =G8-B4 -> -50 | M8: =H8-B5 -> -115 | N8: =IF(ifederlenker=1,F8-DASHBOARD!$F$19,0) -> 0 | O8: =IF(ifederlenker=1,G8-DASHBOARD!$G$19,0) -> 0 | P8: =IF(ifederlenker=1,H8-DASHBOARD!$H$19,10) -> 10 | Q8: =IF(ABS(G8)<ABS(DASHBOARD!G$11),-1,1) -> 1 | R8: 12 | S8: 0 | T8: 0 | U8: 10 | V8: =IF(ifederlenker=1,L8*P8-M8*O8,L4*P8-M4*O8) -> 500 | W8: =IF(ifederlenker=1,M8*N8-K8*P8,M4*N8-K4*P8) -> 100 | X8: =IF(ifederlenker=1,K8*O8-L8*N8,K4*O8-L4*N8) -> 0 | Y8: wz | Z8: =IF(ilenk=0,IF(ifederlenker=1,ZIVF*SQRT(N8^2+O8^2+P8^2),N8*'SPRINGLINK COMPRESSION'!AN9+O8*'SPRINGLINK COMPRESSION'!AO9+P8*'SPRINGLINK COMPRESSION'!AP9),0) -> 0 | AB8: 12 | AC8: 2.13476146e-05 | AD8: -7.361215445e-06 | AE8: 3.665495656e-07 | AF8: -2.733001046e-06 | AG8: -1.007882755e-05 | AH8: -1.541625727e-06 | AJ8: OMEGAZ | AK8: -0.0006404284381 | AM8: 12 | AN8: =AK3+(AK7*M8-AK8*L8) -> -0.085514 | AO8: =AK4+(AK8*K8-AK6*M8) -> 0.008960 | AP8: =AK5+(AK6*L8-AK7*K8) -> -0.008020 | AQ8: 0.08635584269 | AR8: 12 | AS8: =IF(ifederlenker=1,F8+AN8,'SPRINGLINK COMPRESSION'!AS10) -> -20.000 | AT8: =IF(ifederlenker=1,G8+AO8,'SPRINGLINK COMPRESSION'!AT10) -> 550.000 | AU8: =IF(ifederlenker=1,H8+AP8,'SPRINGLINK COMPRESSION'!AU10) -> 185.010 | AV8: =SQRT((AS8-DASHBOARD!$F$11)^2+(AT8-DASHBOARD!$G$11)^2+(AU8-DASHBOARD!$H$11)^2) -> 322.490 | AW8: VRTPAY | AX8: =AX6*AX4 -> -0.0004308547476 | AY8: RPNX | AZ8: =(AZ6*AX5-AZ7*AX4)/AX2 -> 0.01452880626 | BA8: T1 90 | BB8: =-1/BB6 -> 4.149886555 | BC8: T5 | BD8: =AP9/AN9 -> 0.1484787721 | BE8: EPSANT | BF8: =-ATAN(AN9/AP9) -> -1.423394464 | BG8: P radlast | BH8: =-AP11/BF11 -> 5.396874063 | BI8: X= | BJ8: =(BP8-BP5)/(BO5-BO8) -> -22.12209462 | BK8: Y= | BL8: =(BU8-BT5)/(BS5-BT8) -> 658.7437299 | BM8: Z= | BN8: =BO8*BJ8+BP8 -> 293.7089397 | BO8: =BQ5 -> 0.1446228048 | BP8: =BL7-BO8*BL5 -> 296.9082991 | BT8: =BU5 -> 0.1745814913 | BU8: =BL7-BT8*BL6 -> 210.2483186 | BW8: =(CC8-CC5)/(CB5-CB8) -> -20.00099999 | BX8: Y= | BY8: =(CH8-CG5)/(CF5-CG8) -> 550.6554371 | BZ8: Z= | CA8: =CB8*BW8+CC8 -> 185.0010325 | CB8: =CD5 -> -3.252021945e-06 | CC8: =BY7-CB8*BY5 -> 185.0009675 | CG8: =CH5 -> 0.08129729659 | CH8: =BY7-CG8*BY6 -> 132.1576759 | CJ8: =(CP8-CP5)/(CO5-CO8) -> 58.92716143 | CK8: Y= | CL8: =(CU8-CT5)/(CS5-CT8) -> 612.1002956 | CM8: Z= | CN8: =CO8*CJ8+CP8 -> 416.3842605 | CO8: =CQ5 -> 7.99910009 | CP8: =CL7-CO8*CL5 -> -54.9800018 | CT8: =CU5 -> -13.49875012 | CU8: =CL7-CT8*CL6 -> 8689.227077 | DA8: 0.1 | DB8: 0.1341401749 | DC8: 0 | DD8: 0.0008597150944 | DE8: -0.01869586 | DF8: 42.55785859 | DG8: 0.1071258601 | DH8: -2.535236706 | DI8: -0.0002508020393 | DJ8: -0.005900248555 | DK8: 0.005939549664 | DL8: 0.008161236709 | DM8: 0.1341448707 | DN8: 0.745488815 | DO8: -2161.907269 | DP8: 174.9233592 | DQ8: -6500.953993 | DR8: 287.7110052 | DS8: -463.0840812 | DT8: 9.824 | DU8: 36.3326791 | DV8: 8.118 | DW8: -22.39811328 | DX8: -15.53231966 | DY8: 20.35709612 | DZ8: 0.3667654349 | EA8: 5.403155843 | EB8: -71.05155796 | EC8: 663.6315724 | EE8: 0.700 | EF8: 0.939 | EG8: 0.000 | EH8: 0.745 | EI8: 0.001 | EJ8: 0.981 | EK8: 0.012 | EL8: -0.019 | EM8: -20.057 | EN8: -0.245 | EO8: 42.558 | EP8: 1.013 | EQ8: 0.107 | ER8: -2.535 | ES8: -0.002 | ET8: -0.040 | EU8: 0.042 | EV8: 0.058 | EW8: 0.939 | EX8: ='MASTER DASHBOARD'!$D$23+ES8 -> -0.002 | EY8: ='MASTER DASHBOARD'!$E$23+ET8 -> 699.960 | EZ8: ='MASTER DASHBOARD'!$F$23+EF8 -> 300.939 | FA8: ='MASTER DASHBOARD'!$D$25+EU8 -> 0.042 | FB8: ='MASTER DASHBOARD'!$E$25+EV8 -> 700.058 | FC8: ='MASTER DASHBOARD'!$F$25+EW8 -> 0.939 | FD8: -2161.907 | FE8: 174.923 | FF8: 2168.972 | FG8: -6500.954 | FH8: 287.711 | FI8: 6507.317 | FJ8: 0.077 | FK8: =IF(AND(EF8<>0,REBOUND!EF8<>0),(GM8-GO8)/(GL8-GN8)*FL8+(GM8-(GM8-GO8)/(GL8-GN8)*GL8),"") -> 43.507 | FL8: =IF(AND(EF8<>0,REBOUND!EF8<>0),((GQ8-(GQ8-GS8)/(GP8-GR8)*GP8)-(GM8-(GM8-GO8)/(GL8-GN8)*GL8))/((GM8-GO8)/(GL8-GN8)-(GQ8-GS8)/(GP8-GR8))+$GH$2/2,"") -> 0.171 | FM8: 9.824 | FN8: 36.3326791 | FO8: 8.118 | FP8: -22.39811328 | FQ8: 0.007454844652 | FR8: -15.53231966 | FS8: 20.35709612 | FT8: 19.63107565 | FU8: 5.403155843 | FV8: =IF(ilenk_combined=1,IF(iracktravel=1,ATAN(LWB/(LWB/TAN(COMPRESSION!DD8/180*PI())-2*'MASTER DASHBOARD'!$E$23))/PI()*180,ATAN(LWB/(LWB/TAN(REBOUND!DD8/180*PI())-2*'MASTER DASHBOARD'!$E$23))/PI()*180),0) -> 0.000 | FW8: =IF(ilenk_combined=1,(-iracktravel*REBOUND!DD8+iracktravel*COMPRESSION!DD8)/2,0) -> 0.000 | FX8: =IF(ilenk_combined=1,-REBOUND!DD8-COMPRESSION!DD8,0) -> 0.000 | FY8: =IF(ilenk_combined=1,IF(iracktravel=1,FV8-COMPRESSION!DD8,FV8-REBOUND!DD8),0) -> 0.000 | FZ8: 0.000 | GI8: =IFERROR(-(EP2-REBOUND!EP2),0) -> -0.0009006924622 | GJ8: -71.05155796 | GK8: -463.0840812 | GL8: -700.058 | GM8: 0.939 | GN8: 2161.907 | GO8: 174.923 | GP8: =REBOUND!GW8 -> 699.941 | GQ8: =-REBOUND!GT8 -> -0.939 | GR8: =REBOUND!FD8 -> -2225.804 | GS8: =REBOUND!FE8 -> 184.037 | GT8: 0.9389479126 | GU8: 0.939 | GV8: 700.058 | GW8: =IFERROR(IF(GT8<=GU$1,Lin_Interp(GU$2:GV$1009,GT8,1),Lin_Interp(GU$2:GV$1009,GU$1,1)),"") -> 700.058
D9: WC | F9: =DASHBOARD!F21 -> 0 | G9: =DASHBOARD!G21 -> 700 | H9: =DASHBOARD!H21 -> 300 | K9: McPherson | L9: =DASHBOARD!F$19-B3 -> -20.00 | N9: =F8-DASHBOARD!$F$11 -> 40.00 | O9: =G8-DASHBOARD!$G$11 -> 320.00 | P9: =H8-DASHBOARD!$H$11 -> 0.00 | Q9: =SQRT(N9^2+O9^2+P9^2) -> 322.4903099 | AM9: WC | AN9: =AK3+AK7*(H9-B5)-AK8*(G9-B4) -> 0.023279 | AO9: =AK4+AK8*(F9-B3)-AK6*(H9-B5) -> -0.014344 | AP9: =AK5+AK6*(G9-B4)-AK7*(F9-B3) -> 0.003456 | AQ9: 0.02756034742 | AR9: WC | AS9: =F9+AN9 -> 0.023 | AT9: 699.986 | AU9: 300.003 | AW9: VRTPAZ | AX9: =AX6*AX5 -> 0.002492950471 | AY9: RPNY | AZ9: =(AZ7*AX3-AZ5*AX5)/AX2 -> -0.6018851906 | BA9: T3 90 | BB9: =-1/BB7 -> -3.771520375 | BC9: T7 | BD9: =AP11/AN11 -> -0.3481815156 | BE9: DELTA | BF9: =-ASIN((AS10-AS9)/SQRT((AS10-AS9)^2+(AT10-AT9)^2)) -> 0.0006404283505 | BG9: iLENK | BH9: =ABS(BF11*180/PI()/zivl) -> 0.3669442505 | BJ9: e1 | BK9: e2 | BL9: e3 | BW9: e1 | BX9: e2 | BY9: e3 | CA9: =SQRT((BW8-BZ5)^2+(BY8-BZ6)^2+(CA8-BZ7)^2) -> 323.1416882 | CJ9: e1 | CK9: e2 | CL9: e3 | CN9: =SQRT((CJ8-CM5)^2+(CL8-CM6)^2+(CN8-CM7)^2) -> 509.8970708 | DA9: 0.1 | DB9: 0.1341409576 | DC9: 0 | DD9: 0.0009912750105 | DE9: -0.0213863496 | DF9: 42.42192279 | DG9: 0.1057675321 | DH9: -2.536387901 | DI9: -0.0002476233725 | DJ9: -0.0059519758 | DK9: 0.005942320104 | DL9: 0.008135201336 | DM9: 0.1341464485 | DN9: 0.7454844652 | DO9: -2156.711897 | DP9: 174.1854284 | DQ9: -6501.451966 | DR9: 287.8642007 | DS9: -471.3211672 | DT9: 9.827 | DU9: 36.32986662 | DV9: 8.119 | DW9: -22.39797374 | DX9: -15.53741022 | DY9: 20.35732756 | DZ9: 0.3667364707 | EA9: 5.404194616 | EB9: -71.05989602 | EC9: 663.6284848 | EE9: =EE8+DA9 -> 0.800 | EF9: =EF8+DB9 -> 1.073 | EG9: =EG8+DC9 -> 0.000 | EH9: =DN9+$GI$6/2 -> 0.745 | EI9: =DD9 -> 0.001 | EJ9: =(EI10-EI9)/(EF10-EF9)*1000 -> 0.924 | EK9: =(TAN(PI()/180)*TRACKWIDTH/2)*EJ9/1000 -> 0.011 | EL9: =DE9 -> -0.021 | EM9: =(EL10-EL9)/(EF10-EF9)*1000 -> -19.929 | EN9: =(TAN(PI()/180)*TRACKWIDTH/2)*EM9/1000 -> -0.244 | EO9: =DF9 -> 42.422 | EP9: =ABS((EO10-EO9)/(EF10-EF9)) -> 39.532 | EQ9: =DG9+$GI$2/2 -> 0.106 | ER9: =DH9+$GI$4/2 -> -2.536 | ES9: =DI9+ES8 -> -0.002 | ET9: =DJ9+ET8 -> -0.046 | EU9: =DK9+EU8 -> 0.047 | EV9: =DL9+EV8 -> 0.066 | EW9: =DM9+EW8 -> 1.073 | EX9: ='MASTER DASHBOARD'!$D$23+ES9 -> -0.002 | EY9: ='MASTER DASHBOARD'!$E$23+ET9 -> 699.954 | EZ9: ='MASTER DASHBOARD'!$F$23+EF9 -> 301.073 | FA9: ='MASTER DASHBOARD'!$D$25+EU9 -> 0.047 | FB9: ='MASTER DASHBOARD'!$E$25+EV9 -> 700.066 | FC9: ='MASTER DASHBOARD'!$F$25+EW9 -> 1.073 | FD9: =DO9 -> -2156.712 | FE9: =DP9 -> 174.185 | FF9: =SQRT(FD9^2+FE9^2) -> 2163.734 | FG9: =DQ9 -> -6501.452 | FH9: =DR9 -> 287.864 | FI9: =SQRT(FG9^2+FH9^2) -> 6507.822 | FJ9: =FJ8+FJ$2 -> 0.088 | FK9: =IF(AND(EF9<>0,REBOUND!EF9<>0),(GM9-GO9)/(GL9-GN9)*FL9+(GM9-(GM9-GO9)/(GL9-GN9)*GL9),"") -> 43.507 | FL9: =IF(AND(EF9<>0,REBOUND!EF9<>0),((GQ9-(GQ9-GS9)/(GP9-GR9)*GP9)-(GM9-(GM9-GO9)/(GL9-GN9)*GL9))/((GM9-GO9)/(GL9-GN9)-(GQ9-GS9)/(GP9-GR9))+$GH$2/2,"") -> 0.199 | FM9: =DT9 -> 9.827 | FN9: =DU9 -> 36.32986662 | FO9: =DV9 -> 8.119 | FP9: =DW9 -> -22.39797374 | FQ9: =(FO10-FO9)/(EF10-EF9) -> 7.565891184 | FR9: =DX9 -> -15.53741022 | FS9: =DY9 -> 20.35732756 | FT9: =360/RACK_RATIO/DZ9 -> 19.63262608 | FU9: =EA9 -> 5.404194616 | FV9: =IF(ilenk_combined=1,IF(iracktravel=1,ATAN(LWB/(LWB/TAN(COMPRESSION!DD9/180*PI())-2*'MASTER DASHBOARD'!$E$23))/PI()*180,ATAN(LWB/(LWB/TAN(REBOUND!DD9/180*PI())-2*'MASTER DASHBOARD'!$E$23))/PI()*180),0) -> 0.000 | FW9: =IF(ilenk_combined=1,(-iracktravel*REBOUND!DD9+iracktravel*COMPRESSION!DD9)/2,0) -> 0.000 | FX9: =IF(ilenk_combined=1,-REBOUND!DD9-COMPRESSION!DD9,0) -> 0.000 | FY9: =IF(ilenk_combined=1,IF(iracktravel=1,FV9-COMPRESSION!DD9,FV9-REBOUND!DD9),0) -> 0.000 | FZ9: =IF(ilenk_combined=1,MIN(MAX(FX9/FY9*100,-500),500),0) -> 0.000 | GJ9: =EB9 -> -71.05989602 | GK9: =DS9 -> -471.3211672 | GL9: =-GW9 -> -700.066 | GM9: =GT9 -> 1.073 | GN9: =-FD9 -> 2156.712 | GO9: =FE9 -> 174.185 | GP9: =REBOUND!GW9 -> 699.933 | GQ9: =-REBOUND!GT9 -> -1.073 | GR9: =REBOUND!FD9 -> -2231.261 | GS9: =REBOUND!FE9 -> 184.819 | GT9: =GT8+GT$2 -> 1.073083329 | GU9: =EW9 -> 1.073 | GV9: =FB9 -> 700.066 | GW9: =IFERROR(IF(GT9<=GU$1,Lin_Interp(GU$2:GV$1009,GT9,1),Lin_Interp(GU$2:GV$1009,GU$1,1)),"") -> 700.066
D10: WC ALIGN | F10: =DASHBOARD!F22 -> 0 | G10: =DASHBOARD!G22 -> 600 | H10: =DASHBOARD!H22 -> 300 | L10: =DASHBOARD!G$19-B4 -> -100.00 | N10: Spring on link | Q10: =IFERROR(Q7/Q6*Q8,1) -> 0.7619047619 | AM10: WC ALIGN | AN10: =AK3+AK7*(H10-B5)-AK8*(G10-B4) -> -0.040764 | AO10: =AK4+AK8*(F10-B3)-AK6*(H10-B5) -> -0.014344 | AP10: =AK5+AK6*(G10-B4)-AK7*(F10-B3) -> -0.005670 | AR10: WC ALIGN | AS10: =F10+AN10 -> -0.041 | AT10: 599.986 | AU10: 299.994 | AW10: HMSA | AX10: =2*PI()*AX11/AX2/AX2 -> -24.45811091 | AY10: RPNZ | AZ10: =(AZ5*AX4-AZ6*AX3)/AX2 -> -0.101952935 | BA10: T2 | BB10: =-BB8*G9+H9 -> -2604.920588 | BC10: T5 90 | BD10: =-1/BD8 -> -6.734969488 | BE10: GAMMA | BF10: =ATAN((AU10-AU9)/SQRT((AS10-AS9)^2+(AT10-AT9)^2)) -> -9.126425601e-05 | BG10: iFeder | BH10: =IF(ilenk=0,ABS(-ZIVF/AP9),0) -> 0 | BI10: A= | BJ10: =(BJ8-BL5) -> -147.0829906 | BK10: =(BL8-BL6) -> 58.83949596 | BL10: =(BN8-BL7) -> -21.27155463 | BM10: |A| | BN10: =SQRT((BJ8-BL5)^2+(BL8-BL6)^2+(BN8-BL7)^2) -> 159.837328 | BO10: |B| | BP10: =SQRT((BL5-BM5)^2+(BL6-BM6)^2+(BL7-BM7)^2) -> 301.3138083 | BQ10: A.B | BR10: =BJ10*BJ11+BK10*BK11+BL10*BL11 -> -13656.23234 | BS10: |A|.|B| | BT10: =BN10*BP10 -> 48161.19402 | BW10: =(BW8-BY5) -> -10.00199999 | BX10: =(BY8-BY6) -> -99.34556289 | BY10: =(CA8-BY7) -> 3.252672346e-05 | BZ10: |A| | CA10: =SQRT((BW8-BY5)^2+(BY8-BY6)^2+(CA8-BY7)^2) -> 99.84778851 | CB10: |B| | CC10: =SQRT((BY5-BZ5)^2+(BY6-BZ6)^2+(BY7-BZ7)^2) -> 422.9679421 | CD10: A.B | CE10: =BW10*BW11+BX10*BX11+BY10*BY11 -> 42225.45511 | CF10: |A|.|B| | CG10: =CA10*CC10 -> 42232.41362 | CJ10: =(CJ8-CL5) -> 28.92616143 | CK10: =(CL8-CL6) -> -17.90070445 | CL10: =(CN8-CL7) -> 231.3832605 | CM10: |A| | CN10: =SQRT((CJ8-CL5)^2+(CL8-CL6)^2+(CN8-CL7)^2) -> 233.8704156 | CO10: |B| | CP10: =SQRT((CL5-CM5)^2+(CL6-CM6)^2+(CL7-CM7)^2) -> 482.6236008 | CQ10: A.B | CR10: =CJ10*CJ11+CK10*CK11+CL10*CL11 -> 13812.94425 | CS10: |A|.|B| | CT10: =CN10*CP10 -> 112871.3821 | DD10: 0.00112501715 | DE10: -0.0240817514
D11: CP | F11: =DASHBOARD!F23 -> 0 | G11: =DASHBOARD!G23 -> 700 | H11: =DASHBOARD!H23 -> 0 | L11: =DASHBOARD!H$19-B5 -> 500.00 | N11: =F12-DASHBOARD!$F$13 -> -150.00 | O11: =G12-DASHBOARD!$G$13 -> 90.00 | P11: =H12-DASHBOARD!$H$13 -> 225.00 | Q11: =SQRT(N11^2+O11^2+P11^2) -> 285 | AM11: CP | AN11: =AK3+AK7*(H11-B5)-AK8*(G11-B4) -> -0.009927 | AO11: =AK4+AK8*(F11-B3)-AK6*(H11-B5) -> 0.013036 | AP11: =AK5+AK6*(G11-B4)-AK7*(F11-B3) -> 0.003456 | AR11: CP | AS11: -0.010 | AT11: 700.013 | AU11: 0.003 | AW11: HH2 | AX11: =AX7*AK6+AX8*AK7+AX9*AK8 -> -1.676667795e-06 | AY11: HVRTPA | AZ11: =SQRT(MAX(AX7^2+AX8^2+AX9^2,0.0000000001)) -> 0.002554730142 | BA11: T4 | BB11: =-BB9*G11+H11 -> 2640.064262 | BC11: T7 90 | BD11: =-1/BD9 -> 2.872065159 | BE11: DELTAD | BF11: =(-AK6*SIN(BF9)+AK7*COS(BF9))*TAN(BF10)+AK8 -> -0.0006404385343 | BG11: Toggle Angle | BH11: =(ASIN(((AS3-AS2)*AN3+(AT3-AT2)*AO3+(AU3-AU2)*AP3)/(MAX(SQRT((AS3-AS2)^2+(AT3-AT2)^2+(AU2-AU3)^2),0.000000001)*MAX(SQRT(AN3^2+AO3^2+AP3^2),0.000000001)))/PI()*180) -> -70.99519882 | BI11: B= | BJ11: =BM5-BL5 -> -24.96089595 | BK11: =BM6-BL6 -> -299.904234 | BL11: =BM7-BL7 -> -14.98049434 | BW11: =BZ5-BY5 -> -50.002 | BX11: =BZ6-BY6 -> -420.002 | BY11: =BZ7-BY7 -> -0.002 | CJ11: =CM5-CL5 -> 269.998 | CK11: =CM6-CL6 -> -400.002 | CL11: =CM7-CL7 -> -5.002 | DD11: 0.001260940302 | DE11: -0.0267820651
A12: =DASHBOARD!F15 -> 150.00 | B12: =DASHBOARD!G15 -> 320.00 | C12: =DASHBOARD!H15 -> 405.00 | D12: INT | F12: 150.00 | G12: 320.00 | H12: 405.00 | N12: Coupling Link | Q12: =IFERROR(CN9/Q5,1) -> 1.056512075 | Z12: =(AN12*(AS6-AS12)+AO12*(AT6-AT12)+AP12*(AU6-AU12)) -> -0.913949 | AN12: =$Q12*AN5 -> -0.036217 | AO12: =$Q12*AO5 -> -0.024364 | AP12: -0.006606 | AQ12: =SQRT(AP12^2+AO12^2+AN12^2) -> 0.04414701813 | AR12: INT | AS12: =IF(iintegral=0,F12,A12+Q12*AN5) -> 150 | AT12: =IF(iintegral=0,G12,B12+Q12*AO5) -> 320 | AU12: =IF(iintegral=0,H12,C12+Q12*AP5) -> 405 | AV12: =SQRT((AS12-AS6)^2+(AT12-AT6)^2+(AU12-AU6)^2) -> 314.484 | BM12: =ACOS(BR10/BT10)*180/3.141 -> 106.4924402 | BZ12: =ACOS(CE10/CG10)*180/3.141 -> 1.040305485 | CM12: =ACOS(CR10/CT10)*180/3.141 -> 82.98630671 | DD12: 0.001399043255 | DE12: -0.02948729044
B13: REF WC | D13: TR | F13: 100 | G13: 300 | H13: 300 | K13: RiX0 | L13: RiY0 | M13: RiZ0 | N13: XL | O13: YL | P13: ZL | S13: 1 | T13: 2 | U13: 3 | V13: 4 | W13: 5 | X13: 6 | AC13: 1 | AD13: 2 | AE13: 3 | AF13: 4 | AG13: 5 | AH13: 6 | AJ13: X | AN13: VX | AO13: VY | AP13: VZ | AR13: 1 | AS13: =F13 -> 100.00 | AT13: =IF(ilenk_combined=0,G13,G13+zivl) -> 300.00 | AU13: =H13 -> 300.00 | AW13: HHWRT | AX13: =SQRT(MAX(AK17^2+AK18^2+AK19^2,0.0000000001)) -> 0.0006280685121 | AY13: CX | AZ13: =AX15*AX20-AX16*AX19 -> 0 | BA13: HVRTSE | BB13: =SQRT(MAX(AZ16^2+AZ17^2+AZ18^2,0.0000000001)) -> 0.0004517167804 | BC13: XQP | BD13: 0 | BE13: T6 | BF13: =H20-BD21*F20 -> 368.6936961 | BG13: SIGMA | BH13: =ATAN(-AK18/AK19) -> 0.2098141254 | BJ13: =IF(ilenk=0,-ZIVF,0) -> 0 | BK13: =AP20 -> 0.003142937185 | BL13: =IF(ilenk=1,zivl,IF(ilenk_combined=1,zivl,0)) -> -0.1 | BM13: =BF20*180/PI() -> 0.3437034227 | BN13: =BF21*180/PI() -> -1.953997686 | BO13: =BD18 -> 2350.374687 | BP13: =BF19*180/PI() -> -81.81596033 | BQ13: =BF18*180/PI() -> 70.94064296 | BR13: =AN20 -> 0.02185359321 | BS13: =AO20 -> -0.0138889086 | BT13: =AN22 -> -0.010739 | BU13: =AO22 -> 0.012444 | BV13: =AP22 -> 0.003710 | BW13: =BH21 -> 0 | BX13: =BD14 -> 656.5863062 | BY13: =BD15 -> 216.0975497 | BZ13: =BF15 -> 31.55625233 | CA13: =BF17 -> 81.96267186 | CB13: =AX21 -> -26.32325703 | CC13: =ROUND(BH13*180/PI(),3) -> 12.021 | CD13: =BH17 -> 35.85691771 | CE13: =ROUND(BH14*180/PI(),3) -> 8.791 | CF13: =BH18 -> -22.91636063 | CG13: =BH15 -> -17.67480386 | CH13: =BH16 -> 20.44547809 | CI13: =BH20 -> 0.3505236496 | CJ13: =BH19 -> 6.064365712 | CK13: =BH22 -> -72.48040355 | CL13: =BI17 -> 654.892 | DD13: 0.001539324802 | DE13: -0.03219742713
B14: =AS10 -> -0.04076432348 | D14: 2 | F14: 124.5290446 | G14: 589.5964671 | H14: 379.9430991 | J14: 2 | K14: =F14-B14 -> 124.5698089 | L14: =G14-B15 -> -10.38918938 | M14: =H14-B16 -> 79.94876914 | N14: =F14-DASHBOARD!$F$9 -> 24.53 | O14: =G14-DASHBOARD!$G$9 -> 289.60 | P14: =H14-DASHBOARD!$H$9 -> 79.94 | R14: 2 | S14: =N14 -> 24.5290446 | T14: 289.5964671 | U14: 79.94309908 | V14: =L14*P14-M14*O14 -> -23983.42509 | W14: =M14*N14-K14*P14 -> -7997.429653 | X14: =K14*O14-L14*N14 -> 36329.81346 | Y14: vx | Z14: =IF(ilenk=1,zivl*O14,IF(ilenk_combined=1,zivl*O14,0)) -> -28.95964671 | AB14: 2 | AC14: =MINVERSE(S14:X19) -> 0.001449078836 | AD14: 0.001820904143 | AE14: -0.002415368234 | AF14: -0.001254793479 | AG14: 0.0003897179211 | AH14: 0.0004599943261 | AJ14: V0X | AK14: =MMULT(AC14:AH19,Z14:Z19) -> -0.04196481113 | AM14: 2 | AN14: =AK14+(AK18*M14-AK19*L14) -> -0.03793435012 | AO14: =AK15+(AK19*K14-AK17*M14) -> -0.09059310635 | AP14: =AK16+(AK17*L14-AK18*K14) -> -0.02243733133 | AQ14: =SQRT(AP14^2+AO14^2+AN14^2) -> 0.1007450231 | AR14: 2 | AS14: =F14+AN14 -> 124.4911102 | AT14: 589.505874 | AU14: 379.9206617 | AV14: =SQRT((AS14-DASHBOARD!$F$9)^2+(AT14-DASHBOARD!$G$9)^2+(AU14-DASHBOARD!$H$9)^2) -> 301.332 | AW14: EMSAX | AX14: =AK17/AX13 -> 0.1495580252 | AY14: CY | AZ14: =AX16*AX18-AX14*AX19 -> 0.0004616111626 | BA14: PX | BB14: =AS20-AZ19 -> 0.2253291895 | BC14: YQP | BD14: =(BB22-BB21)/(BB19-BB20) -> 656.5863062 | BE14: T8 | BF14: =H22-BD22*F22 -> 57.93702356 | BG14: TAU | BH14: =ATAN(-AK17/AK19) -> 0.1534352671 | DD14: 0.001681783734 | DE14: -0.0349124749
B15: =AT10 -> 599.9856565 | D15: 4 | F15: -8.887894475 | G15: 644.7525915 | H15: 250.3947145 | J15: 4 | K15: =F15-B14 -> -8.847130152 | L15: =G15-B15 -> 44.766935 | M15: =H15-B16 -> -49.59961542 | N15: =F15-DASHBOARD!$F$11 -> 51.11 | O15: =G15-DASHBOARD!$G$11 -> 414.75 | P15: =H15-DASHBOARD!$H$11 -> 65.39 | Q15: =SQRT(N15^2+O15^2+P15^2) -> 422.9759191 | R15: 4 | S15: 51.11210552 | T15: 414.7525915 | U15: 65.39471452 | V15: 23499.08997 | W15: -1956.585227 | X15: -5957.502463 | Y15: vy | Z15: 0 | AB15: 4 | AC15: 0.0002562661683 | AD15: 0.001556891426 | AE15: 0.0003360318445 | AF15: 0.0001107323733 | AG15: 0.0004635298739 | AH15: -0.01957740421 | AJ15: V0Y | AK15: -0.007421377697 | AM15: 4 | AN15: =AK14+(AK18*M15-AK19*L15) -> -0.02118930964 | AO15: =AK15+(AK19*K15-AK17*M15) -> 0.002611268146 | AP15: =AK16+(AK17*L15-AK18*K15) -> 1.127570259e-17 | AQ15: 0.02134960338 | AR15: 4 | AS15: -8.909083785 | AT15: 644.7552027 | AU15: 250.3947145 | AV15: =SQRT((AS15-DASHBOARD!$F$11)^2+(AT15-DASHBOARD!$G$11)^2+(AU15-DASHBOARD!$H$11)^2) -> 422.976 | AW15: EMSAY | AX15: =AK18/AX13 -> 0.205935591 | AY15: CZ | AZ15: =AX14*AX19-AX15*AX18 -> 0 | BA15: PY | BB15: =AT20-AZ20 -> 691.4515978 | BC15: ZQP | BD15: =BB20*BD14+BB22 -> 216.0975497 | BE15: XLP | BF15: =(BF14-BF13)/(BD21-BD22) -> 31.55625233 | BG15: RS | BH15: =-(AN22*COS(-BF20)+AO22*SIN(-BF20))/BF22 -> -17.67480386 | BJ15: HIGH | BK15: LOW | BL15: TRO | BM15: TRI | BN15: z=ax+b | BO15: a= | BP15: b= | BQ15: -1/a= | BR15: z=cy+d | BS15: c= | BT15: d= | BU15: -1/c= | BW15: SPRING UP | BX15: SPRING LOW | BY15: LINK OUT | BZ15: LINK IN | CA15: z=ax+b | CB15: a= | CC15: b= | CD15: -1/a= | CE15: z=cy+d | CF15: c= | CG15: d= | CH15: -1/c= | CJ15: COUPLING KNUCKLE | CK15: COUPLING LINK | CL15: LINK OUT | CM15: LINK IN | CN15: z=ax+b | CO15: a= | CP15: b= | CQ15: -1/a= | CR15: z=cy+d | CS15: c= | CT15: d= | CU15: -1/c= | DD15: 0.001826418845 | DE15: -0.03763243348
B16: =AU10 -> 299.9943299 | D16: 6 | F16: 31.00183906 | G16: 624.5355766 | H16: 250.1086813 | J16: 6 | K16: =F16-B14 -> 31.04260338 | L16: =G16-B15 -> 24.54992015 | M16: =H16-B16 -> -49.88564859 | N16: =F16-DASHBOARD!$F$13 -> -269.00 | O16: =G16-DASHBOARD!$G$13 -> 394.54 | P16: =H16-DASHBOARD!$H$13 -> 70.11 | Q16: =SQRT(N16^2+O16^2+P16^2) -> 482.6319084 | R16: 6 | S16: -268.9981609 | T16: 394.5355766 | U16: 70.10868134 | V16: 21402.82566 | W16: 11242.79174 | X16: 18851.2948 | Y16: vz | Z16: 0 | AB16: 6 | AC16: 0.000184718447 | AD16: -0.0003023613712 | AE16: -0.0001806385071 | AF16: 0.0003078520088 | AG16: 0.0002498252553 | AH16: 0.09701183437 | AJ16: V0Z | AK16: -0.005349380966 | AM16: 6 | AN16: =AK14+(AK18*M16-AK19*L16) -> -0.03350583224 | AO16: =AK15+(AK19*K16-AK17*M16) -> -0.02159031945 | AP16: =AK16+(AK17*L16-AK18*K16) -> -0.007058442876 | AQ16: 0.04047967767 | AR16: 6 | AS16: 30.96833322 | AT16: 624.5139863 | AU16: 250.1016229 | AV16: =SQRT((AS16-DASHBOARD!$F$13)^2+(AT16-DASHBOARD!$G$13)^2+(AU16-DASHBOARD!$H$13)^2) -> 482.632 | AW16: EMSAZ | AX16: =AK19/AX13 -> -0.9670692475 | AY16: VRTSEX | AZ16: =AZ14*AX16-AZ15*AX15 -> -0.0004464099596 | BA16: PZ | BB16: =AU20-AZ21 -> 367.2709993 | BC16: XWP | BD16: =F20 -> 0.2261121555 | BE16: YLP | BF16: =AT22 -> 700.9587773 | BG16: SNACH | BH16: =-(AN22*SIN(-BF20)+AO22*COS(-BF20))/BF22 -> 20.44547809 | BJ16: =BK16-100*SIN(BH14) -> 5.071 | BK16: =BK5 -> 20.354 | BL16: =AS14 -> 124.491 | BM16: =AS13 -> 100.00 | BN16: z2=ax2+b | BO16: =(BJ18-BK18)/(BJ16-BK16) -> -6.324149119 | BP16: =BJ18-(BO16*BJ16) -> 128.7278194 | BQ16: =-1/BO16 -> 0.1581240387 | BR16: z2=cy2+d | BS16: =(BJ18-BK18)/(BJ17-BK17) -> -4.640644325 | BT16: =BJ18-BS16*BJ17 -> 3320.506251 | BU16: =-1/BS16 -> 0.2154873181 | BW16: =DASHBOARD!$F$19+0.001 -> -20.00 | BX16: =F19-0.001 -> -20.35885898 | BY16: =F15+0.001 -> -8.886894475 | BZ16: =DASHBOARD!F$11-0.001 -> -60.00 | CA16: z2=ax2+b | CB16: =(BW18-BX18)/(BW16-BX16) -> 1570.476916 | CC16: =BW18-(CB16*BW16) -> 32207.96885 | CD16: =-1/CB16 -> -0.0006367492509 | CE16: z2=cy2+d | CF16: =(BW18-BX18)/(BW17-BX17) -> -12.2475268 | CG16: =BW18-CF16*BW17 -> 6923.776649 | CH16: =-1/CF16 -> 0.0816491375 | CJ16: =F17+0.001 -> -11.61939124 | CK16: =F23-0.001 -> 149.999 | CL16: =F16+0.001 -> 31.00283906 | CM16: =DASHBOARD!F$13-0.001 -> 300.00 | CN16: z2=ax2+b | CO16: =(CJ18-CK18)/(CJ16-CK16) -> -0.5148321475 | CP16: =CJ18-(CO16*CJ16) -> 482.2233073 | CQ16: =-1/CO16 -> 1.942380648 | CR16: z2=cy2+d | CS16: =(CJ18-CK18)/(CJ17-CK17) -> 0.3242112512 | CT16: =CJ18-CS16*CJ17 -> 301.2517238 | CU16: =-1/CS16 -> -3.084408688 | DD16: 0.001973228931 | DE16: -0.04035730262
D17: 8 | F17: -11.62039124 | G17: 576.6403686 | H17: 488.2043434 | J17: 8 | K17: =F17-B14 -> -11.57962691 | L17: =G17-B15 -> -23.34528792 | M17: =H17-B16 -> 188.2100135 | N17: =IF(iintegral=0,F17-DASHBOARD!$F$15,F17-A23) -> -161.62 | O17: =IF(iintegral=0,G17-DASHBOARD!$G$15,G17-B23) -> 256.64 | P17: =IF(iintegral=0,H17-DASHBOARD!$H$15,H17-C23) -> 83.20 | Q17: =ABS(G15-DASHBOARD!G$11) -> 414.7525915 | R17: 8 | S17: =IF(iMcPherson=0,N17,-P19) -> -161.6203912 | T17: =IF(iMcPherson=0,O17,0) -> 256.6403686 | U17: =IF(iMcPherson=0,P17,N19) -> 83.20434343 | V17: =IF(iMcPherson=0,L17*P17-M17*O17,-L21*(-N19)) -> -50244.71658 | W17: =IF(iMcPherson=0,M17*N17-K17*P17,L22*(-P19)+L20*(-N19)) -> -29455.10076 | X17: =IF(iMcPherson=0,K17*O17-L17*N17,-L21*(-P19)) -> -6744.874286 | Y17: wx | Z17: 0 | AB17: 8 | AC17: -3.243571556e-06 | AD17: 8.735401041e-06 | AE17: 1.627275024e-06 | AF17: -3.320745317e-06 | AG17: -9.629351443e-06 | AH17: 6.958226484e-05 | AJ17: OMEGAX | AK17: 9.393268634e-05 | AM17: 8 | AN17: =AK14+(AK18*M17-AK19*L17) -> -0.03180101057 | AO17: =AK15+(AK19*K17-AK17*M17) -> -0.01806714956 | AP17: =AK16+(AK17*L17-AK18*K17) -> -0.006044538404 | AQ17: 0.03707104815 | AR17: 8 | AS17: -11.65219225 | AT17: 576.6223014 | AU17: 488.1982989 | AV17: =SQRT((AS17-F23)^2+(AT17-G23)^2+(AU17-H23)^2) -> 314.497 | AW17: HH1 | AX17: =AX14*AN20+AX15*AO20+AX16*AP20 -> -0.002631278256 | AY17: VRTSEY | AZ17: =AZ15*AX14-AZ13*AX16 -> 0 | BA17: T1 | BB17: =AP20/AO20 -> -0.2262911562 | BC17: YWP | BD17: =0 -> 0 | BE17: ZLP | BF17: =BD22*BF15+BF14-AU22 -> 81.96267186 | BG17: RSIGMA | BH17: =-(AN20*COS(-BF20)+AO20*SIN(-BF20))/BF22 -> 35.85691771 | BI17: =AT20-BH17*COS(-BF20) -> 654.8915255 | BJ17: =BK17-100*SIN(BH13) -> 694.698 | BK17: =BK6 -> 715.526 | BL17: =AT14 -> 589.506 | BM17: =AT13 -> 300.00 | BN17: (z-z2)/(x-x2)=a | BT17: (z-z2)/(y-y2)=c | BW17: =DASHBOARD!$G$19+0.001 -> 500.00 | BX17: =G19-0.001 -> 546.1450279 | BY17: =G15+0.001 -> 644.7535915 | BZ17: =DASHBOARD!G$11-0.001 -> 230.00 | CA17: (z-z2)/(x-x2)=a | CB17: (z-z2)/(y-y2)=c | CJ17: =G17+0.001 -> 576.6413686 | CK17: =G23-0.001 -> 319.999 | CL17: =G16+0.001 -> 624.5365766 | CM17: =DASHBOARD!G$13-0.001 -> 230.00 | CN17: (z-z2)/(x-x2)=a | CO17: (z-z2)/(y-y2)=c | DD17: 0.002122212789 | DE17: -0.04308708206
D18: 10 | F18: -51.61780109 | G18: 576.8692148 | H18: 487.8102976 | J18: 10 | K18: =F18-B14 -> -51.57703677 | L18: =G18-B15 -> -23.11644167 | M18: =H18-B16 -> 187.8159677 | N18: =F18-DASHBOARD!$F$17 -> 48.38219891 | O18: =G18-DASHBOARD!$G$17 -> 256.87 | P18: =H18-DASHBOARD!$H$17 -> 87.81029759 | Q18: =ABS(G19-DASHBOARD!G$11) -> 316.1460279 | R18: 10 | S18: =IF(iMcPherson=0,N18,0) -> 48.38219891 | T18: =IF(iMcPherson=0,O18,-P19) -> 256.8692148 | U18: =IF(iMcPherson=0,P18,O19) -> 87.81029759 | V18: =IF(iMcPherson=0,L18*P18-M18*O18,-L22*(-P19)-L21*(-O19)) -> -50274.00176 | W18: =IF(iMcPherson=0,M18*N18-K18*P18,L20*(-O19)) -> 13615.94445 | X18: =IF(iMcPherson=0,K18*O18-L18*N18,L20*(-P19)) -> -12130.12866 | Y18: wy | Z18: 0 | AB18: 10 | AC18: -4.466272035e-06 | AD18: -1.00253707e-05 | AE18: 1.218365617e-05 | AF18: -1.799367889e-05 | AG18: 2.048701576e-05 | AH18: -1.433448975e-05 | AJ18: OMEGAY | AK18: 0.0001293416602 | AM18: 10 | AN18: =AK14+(AK18*M18-AK19*L18) -> -0.03171297916 | AO18: =AK15+(AK19*K18-AK17*M18) -> 0.006263720746 | AP18: =AK16+(AK17*L18-AK18*K18) -> -0.0008497108646 | AQ18: 0.03233680958 | AR18: 10 | AS18: -51.64951407 | AT18: 576.8754785 | AU18: 487.8094479 | AV18: =SQRT((AS18-DASHBOARD!$F$17)^2+(AT18-DASHBOARD!$G$17)^2+(AU18-DASHBOARD!$H$17)^2) -> 275.741 | AW18: VRTPAX | AX18: =AX17*AX14 -> -0.0003935287796 | AY18: VRTSEZ | AZ18: =AZ13*AX15-AZ14*AX14 -> -6.903765387e-05 | BA18: T3 | BB18: =AP22/AO22 -> 0.2981417087 | BC18: ZWP | BD18: =(BD15-AU22)/(AT22-BD14)*AT22 -> 2350.374687 | BE18: EPSBR | BF18: =-ATAN(AN22/AP22) -> 1.238147793 | BG18: RNACH | BH18: =-(AN20*SIN(-BF20)+AO20*COS(-BF20))/BF22 -> -22.91636063 | BJ18: =100*COS(BH13)*COS(BH14) -> 96.658 | BK18: =BK7 -> 0.003 | BL18: =AU14 -> 379.921 | BM18: =AU13 -> 300.00 | BN18: z=ex+f | BO18: e= | BP18: f= | BR18: z=gy+h | BT18: g= | BU18: h= | BW18: =DASHBOARD!$H$19+0.001 -> 800.00 | BX18: =H19-0.001 -> 234.8507816 | BY18: =H15+0.001 -> 250.3957145 | BZ18: =DASHBOARD!H$11-0.001 -> 185.00 | CA18: z=ex+f | CB18: e= | CC18: f= | CE18: z=gy+h | CG18: g= | CH18: h= | CJ18: =H17+0.001 -> 488.2053434 | CK18: =H23-0.001 -> 404.999 | CL18: =H16+0.001 -> 250.1096813 | CM18: =DASHBOARD!H$13-0.001 -> 180.00 | CN18: z=ex+f | CO18: e= | CP18: f= | CR18: z=gy+h | CT18: g= | CU18: h= | DD18: 0.002273369216 | DE18: -0.04582177155
D19: 12 | F19: -20.35785898 | G19: 546.1460279 | H19: 234.8517816 | J19: 12 | K19: =F19-B14 -> -20.31709465 | L19: =G19-B15 -> -53.83962858 | M19: =H19-B16 -> -65.14254831 | N19: =IF(ifederlenker=1,F19-DASHBOARD!$F$19,0) -> 0 | O19: =IF(ifederlenker=1,G19-DASHBOARD!$G$19,0) -> 0 | P19: =IF(ifederlenker=1,H19-DASHBOARD!$H$19,10) -> 10 | Q19: =IF(ABS(G19)<ABS(DASHBOARD!G$11),-1,1) -> 1 | R19: 12 | S19: 0 | T19: 0 | U19: 10 | V19: =IF(ifederlenker=1,L19*P19-M19*O19,L15*P19-M15*O19) -> 447.66935 | W19: =IF(ifederlenker=1,M19*N19-K19*P19,M15*N19-K15*P19) -> 88.47130152 | X19: =IF(ifederlenker=1,K19*O19-L19*N19,K15*O19-L15*N19) -> 0 | Y19: wz | Z19: =IF(ilenk=0,IF(ifederlenker=1,ZIVF*SQRT(N19^2+O19^2+P19^2),N19*'SPRINGLINK COMPRESSION'!AN20+O19*'SPRINGLINK COMPRESSION'!AO20+P19*'SPRINGLINK COMPRESSION'!AP20),0) -> 0 | AB19: 12 | AC19: 2.097352048e-05 | AD19: -9.414745587e-06 | AE19: 3.105972567e-06 | AF19: -6.866137381e-06 | AG19: -6.354813498e-06 | AH19: -1.4945875e-05 | AJ19: OMEGAZ | AK19: -0.0006073857434 | AM19: 12 | AN19: =AK14+(AK18*M19-AK19*L19) -> -0.08309187931 | AO19: =AK15+(AK19*K19-AK17*M19) -> 0.0110379505 | AP19: =AK16+(AK17*L19-AK18*K19) -> -0.007778835157 | AQ19: 0.0841819876 | AR19: 12 | AS19: =IF(ifederlenker=1,F19+AN19,'SPRINGLINK COMPRESSION'!AS21) -> -20.000 | AT19: =IF(ifederlenker=1,G19+AO19,'SPRINGLINK COMPRESSION'!AT21) -> 550.000 | AU19: =IF(ifederlenker=1,H19+AP19,'SPRINGLINK COMPRESSION'!AU21) -> 185.020 | AV19: =SQRT((AS19-DASHBOARD!$F$11)^2+(AT19-DASHBOARD!$G$11)^2+(AU19-DASHBOARD!$H$11)^2) -> 322.490 | AW19: VRTPAY | AX19: =AX17*AX15 -> -0.0005418738427 | AY19: RPNX | AZ19: =(AZ17*AX16-AZ18*AX15)/AX13 -> 0.02263655919 | BA19: T1 90 | BB19: =-1/BB17 -> 4.419085646 | BC19: T5 | BD19: =AP20/AN20 -> 0.1438178681 | BE19: EPSANT | BF19: =-ATAN(AN20/AP20) -> -1.427957888 | BG19: P radlast | BH19: =-AP22/BF22 -> 6.064365712 | BI19: X= | BJ19: =(BP19-BP16)/(BO16-BO19) -> -35.71398484 | BK19: Y= | BL19: =(BU19-BT16)/(BS16-BT19) -> 631.6996438 | BM19: Z= | BN19: =BO19*BJ19+BP19 -> 354.5883851 | BO19: =BQ16 -> 0.1581240387 | BP19: =BL18-BO19*BL16 -> 360.2356246 | BT19: =BU16 -> 0.2154873181 | BU19: =BL18-BT19*BL17 -> 252.8896219 | BW19: =(CC19-CC16)/(CB16-CB19) -> -20.34895611 | BX19: Y= | BY19: =(CH19-CG16)/(CF16-CG19) -> 545.5372315 | BZ19: Z= | CA19: =CB19*BW19+CC19 -> 250.403013 | CB19: =CD16 -> -0.0006367492509 | CC19: =BY18-CB19*BY16 -> 250.3900558 | CG19: =CH16 -> 0.0816491375 | CH19: =BY18-CG19*BY17 -> 197.7521399 | CJ19: =(CP19-CP16)/(CO16-CO19) -> 118.9693221 | CK19: Y= | CL19: =(CU19-CT16)/(CS16-CT19) -> 550.1299745 | CM19: Z= | CN19: =CO19*CJ19+CP19 -> 420.9740757 | CO19: =CQ16 -> 1.942380648 | CP19: =CL18-CO19*CL16 -> 189.8903667 | CT19: =CU16 -> -3.084408688 | CU19: =CL18-CT19*CL17 -> 2176.435724 | DD19: 0.002426697011 | DE19: -0.04856137085
D20: WC | F20: 0.2261121555 | G20: 690.7616869 | H20: 367.1214843 | K20: McPherson | L20: =DASHBOARD!F$19-B14 -> -19.96 | N20: =F19-DASHBOARD!$F$11 -> 39.64 | O20: =G19-DASHBOARD!$G$11 -> 316.15 | P20: =H19-DASHBOARD!$H$11 -> 49.85 | Q20: =SQRT(N20^2+O20^2+P20^2) -> 322.4980782 | AM20: WC | AN20: =AK14+AK18*(H20-B16)-AK19*(G20-B15) -> 0.02185359321 | AO20: =AK15+AK19*(F20-B14)-AK17*(H20-B16) -> -0.0138889086 | AP20: =AK16+AK17*(G20-B15)-AK18*(F20-B14) -> 0.003142937185 | AR20: WC | AS20: =F20+AN20 -> 0.2479657487 | AT20: 690.747798 | AU20: 367.1246272 | AW20: VRTPAZ | AX20: =AX17*AX16 -> 0.002544628283 | AY20: RPNY | AZ20: =(AZ18*AX14-AZ16*AX16)/AX13 -> -0.7037997772 | BA20: T3 90 | BB20: =-1/BB18 -> -3.35410971 | BC20: T7 | BD20: =AP22/AN22 -> -0.3454868298 | BE20: DELTA | BF20: =-ASIN((AS21-AS20)/SQRT((AS21-AS20)^2+(AT21-AT20)^2)) -> 0.005998756376 | BG20: iLENK | BH20: =ABS(BF22*180/PI()/zivl) -> 0.3505236496 | BJ20: e1 | BK20: e2 | BL20: e3 | BW20: e1 | BX20: e2 | BY20: e3 | CA20: =SQRT((BW19-BZ16)^2+(BY19-BZ17)^2+(CA19-BZ18)^2) -> 324.6757537 | CJ20: e1 | CK20: e2 | CL20: e3 | CN20: =SQRT((CJ19-CM16)^2+(CL19-CM17)^2+(CN19-CM18)^2) -> 439.6869025 | DD20: 0.002582194975 | DE20: -0.05130587972
D21: WC ALIGN | F21: -0.3122694713 | G21: 590.820844 | H21: 363.7210892 | L21: =DASHBOARD!G$19-B15 -> -99.99 | N21: Spring on link | Q21: =IFERROR(Q18/Q17*Q19,1) -> 0.7622520857 | AM21: WC ALIGN | AN21: =AK14+AK18*(H21-B16)-AK19*(G21-B15) -> -0.03928886275 | AO21: =AK15+AK19*(F21-B14)-AK17*(H21-B16) -> -0.01324249503 | AP21: =AK16+AK17*(G21-B15)-AK18*(F21-B14) -> -0.006175139498 | AR21: WC ALIGN | AS21: =F21+AN21 -> -0.3515583341 | AT21: 590.8076015 | AU21: 363.7149141 | AW21: HMSA | AX21: =2*PI()*AX22/AX13/AX13 -> -26.32325703 | AY21: RPNZ | AZ21: =(AZ16*AX15-AZ17*AX14)/AX13 -> -0.1463720869 | BA21: T2 | BB21: =-BB19*G20+H20 -> -2685.413571 | BC21: T5 90 | BD21: =-1/BD19 -> -6.953238936 | BE21: GAMMA | BF21: =ATAN((AU21-AU20)/SQRT((AS21-AS20)^2+(AT21-AT20)^2)) -> -0.03410369319 | BG21: iFeder | BH21: =IF(ilenk=0,ABS(-ZIVF/AP20),0) -> 0 | BI21: A= | BJ21: =(BJ19-BL16) -> -160.2050951 | BK21: =(BL19-BL17) -> 42.19376981 | BL21: =(BN19-BL18) -> -25.33227666 | BM21: |A| | BN21: =SQRT((BJ19-BL16)^2+(BL19-BL17)^2+(BN19-BL18)^2) -> 167.5938869 | BO21: |B| | BP21: =SQRT((BL16-BM16)^2+(BL17-BM17)^2+(BL18-BM18)^2) -> 301.3316739 | BQ21: A.B | BR21: =BJ21*BJ22+BK21*BK22+BL21*BL22 -> -6267.171245 | BS21: |A|.|B| | BT21: =BN21*BP21 -> 50501.3465 | BW21: =(BW19-BY16) -> -11.46206163 | BX21: =(BY19-BY17) -> -99.21635998 | BY21: =(CA19-BY18) -> 0.007298459158 | BZ21: |A| | CA21: =SQRT((BW19-BY16)^2+(BY19-BY17)^2+(CA19-BY18)^2) -> 99.87624842 | CB21: |B| | CC21: =SQRT((BY16-BZ16)^2+(BY17-BZ17)^2+(BY18-BZ18)^2) -> 422.9784311 | CD21: A.B | CE21: =BW21*BW22+BX21*BX22+BY21*BY22 -> 41735.83658 | CF21: |A|.|B| | CG21: =CA21*CC21 -> 42245.49886 | CJ21: =(CJ19-CL16) -> 87.96648307 | CK21: =(CL19-CL17) -> -74.40660208 | CL21: =(CN19-CL18) -> 170.8643944 | CM21: |A| | CN21: =SQRT((CJ19-CL16)^2+(CL19-CL17)^2+(CN19-CL18)^2) -> 206.0802898 | CO21: |B| | CP21: =SQRT((CL16-CM16)^2+(CL17-CM17)^2+(CL18-CM18)^2) -> 482.6327192 | CQ21: A.B | CR21: =CJ21*CJ22+CK21*CK22+CL21*CL22 -> 41039.4276 | CS21: |A|.|B| | CT21: =CN21*CP21 -> 99461.09062 | DD21: 0.002739861911 | DE21: -0.05405529794
D22: CP | F22: 3.237946887 | G22: 700.9463334 | H22: 67.30915184 | L22: =DASHBOARD!H$19-B16 -> 500.01 | N22: =F23-DASHBOARD!$F$13 -> -150.00 | O22: =G23-DASHBOARD!$G$13 -> 90.00 | P22: =H23-DASHBOARD!$H$13 -> 225.00 | Q22: =SQRT(N22^2+O22^2+P22^2) -> 285 | AM22: CP | AN22: =AK14+AK18*(H22-B16)-AK19*(G22-B15) -> -0.01073862259 | AO22: =AK15+AK19*(F22-B14)-AK17*(H22-B16) -> 0.01244392371 | AP22: =AK16+AK17*(G22-B15)-AK18*(F22-B14) -> 0.003710052677 | AR22: CP | AS22: 3.227208265 | AT22: 700.9587773 | AU22: 67.31286189 | AW22: HH2 | AX22: =AX18*AK17+AX19*AK18+AX20*AK19 -> -1.652623019e-06 | AY22: HVRTPA | AZ22: =SQRT(MAX(AX18^2+AX19^2+AX20^2,0.0000000001)) -> 0.002631278256 | BA22: T4 | BB22: =-BB20*G22+H22 -> 2418.360055 | BC22: T7 90 | BD22: =-1/BD20 -> 2.89446634 | BE22: DELTAD | BF22: =(-AK17*SIN(BF20)+AK18*COS(BF20))*TAN(BF21)+AK19 -> -0.0006117791791 | BG22: Toggle Angle | BH22: =(ASIN(((AS14-AS13)*AN14+(AT14-AT13)*AO14+(AU14-AU13)*AP14)/(MAX(SQRT((AS14-AS13)^2+(AT14-AT13)^2+(AU13-AU14)^2),0.000000001)*MAX(SQRT(AN14^2+AO14^2+AP14^2),0.000000001)))/PI()*180) -> -72.48040355 | BI22: B= | BJ22: =BM16-BL16 -> -24.49111025 | BK22: =BM17-BL17 -> -289.505874 | BL22: =BM18-BL18 -> -79.92066175 | BW22: =BZ16-BY16 -> -51.11410552 | BX22: =BZ17-BY17 -> -414.7545915 | BY22: =BZ18-BY18 -> -65.39671452 | CJ22: =CM16-CL16 -> 268.9961609 | CK22: =CM17-CL17 -> -394.5375766 | CL22: =CM18-CL18 -> -70.11068134 | DD22: 0.002899696621 | DE22: -0.05680962528
A23: 150 | B23: 320 | C23: 405 | D23: INT | F23: 150 | G23: 320 | H23: 405 | N23: Coupling Link | Q23: =IFERROR(CN20/Q16,1) -> 0.9110191325 | Z23: =(AN23*(AS17-AS23)+AO23*(AT17-AT23)+AP23*(AU17-AU23)) -> -0.648205 | AN23: =$Q23*AN16 -> -0.030524 | AO23: =$Q23*AO16 -> -0.019669 | AP23: -0.006430 | AQ23: =SQRT(AP23^2+AO23^2+AN23^2) -> 0.03687776083 | AR23: INT | AS23: =IF(iintegral=0,F23,A23+Q23*AN16) -> 150 | AT23: =IF(iintegral=0,G23,B23+Q23*AO16) -> 320 | AU23: =IF(iintegral=0,H23,C23+Q23*AP16) -> 405 | AV23: =SQRT((AS23-AS17)^2+(AT23-AT17)^2+(AU23-AU17)^2) -> 314.497 | BM23: =ACOS(BR21/BT21)*180/3.141 -> 97.14705902 | BZ23: =ACOS(CE21/CG21)*180/3.141 -> 8.910625298 | CM23: =ACOS(CR21/CT21)*180/3.141 -> 65.64298897 | DD23: 0.00306169791 | DE23: -0.05956886152
B24: REF WC | D24: TR | F24: =AS13 -> 100 | G24: 300 | H24: 300 | AV24: =SQRT((AS23-AS16)^2+(AT23-AT16)^2+(AU23-AU16)^2) -> 361.788 | DD24: 0.003225864584 | DE24: -0.06233300645
B25: =AS21 -> -0.3515583341 | D25: 2 | F25: =AS14 -> 124.4911102 | G25: =AT14 -> 589.505874 | H25: 379.9206617 | DD25: 0.003392195449 | DE25: -0.06510205985
B26: =AT21 -> 590.8076015 | D26: 4 | F26: =AS15 -> -8.909083785 | G26: =AT15 -> 644.7552027 | H26: =AU15 -> 250.3947145 | DD26: 0.003560689316 | DE26: -0.06787602154
B27: =AU21 -> 363.7149141 | D27: 6 | F27: 30.96833322 | G27: 624.5139863 | H27: 250.1016229 | DD27: 0.003731344992 | DE27: -0.0706548913
D28: 8 | F28: -11.65219225 | G28: 576.6223014 | H28: 488.1982989 | DD28: 0.00390416129 | DE28: -0.07343866897
D29: 10 | F29: -51.64951407 | G29: 576.8754785 | H29: 487.8094479 | DD29: 0.004079137022 | DE29: -0.07622735434
D30: 12 | F30: -20.00000003 | G30: 549.9999997 | H30: 185.020066 | DD30: 0.004256271001 | DE30: -0.07902094724
D31: WC | F31: 0.2479657487 | G31: 690.747798 | H31: 367.1246272 | DD31: 0.004435562043 | DE31: -0.0818194475
D32: WC ALIGN | F32: -0.3515583341 | G32: 590.8076015 | H32: 363.7149141 | DD32: 0.004617008963 | DE32: -0.08462285496
D33: CP | F33: 3.227208265 | G33: 700.9587773 | H33: 67.31286189 | DD33: 0.004800610579 | DE33: -0.08743116944
D34: INT | F34: =AS23 -> 150.00 | G34: =AT23 -> 320.00 | H34: =AU23 -> 405.00 | DD34: 0.00498636571 | DE34: -0.09024439081
DD35: 0.005174273176 | DE35: -0.0930625189
DD36: 0.005364331798 | DE36: -0.09588555357
DD37: 0.005556540399 | DE37: -0.0987134947
DD38: 0.005750897802 | DE38: -0.1015463421
DD39: 0.005947402832 | DE39: -0.1043840958
D40: TR | F40: 100 | G40: 300 | H40: 300 | DD40: 0.006146054316 | DE40: -0.1072267555
D41: 2 | F41: 125 | G41: 600 | H41: 315 | DD41: 0.006346851082 | DE41: -0.1100743211
D42: 4 | F42: -10 | G42: 650 | H42: 185 | DD42: 0.006549791957 | DE42: -0.1129267926
D43: 6 | F43: 30 | G43: 630 | H43: 185 | DD43: 0.006754875772 | DE43: -0.1157841698
D44: 8 | F44: -10 | G44: 590 | H44: 425 | DD44: 0.006962101358 | DE44: -0.1186464527
D45: 10 | F45: -50 | G45: 590 | H45: 425 | DD45: 0.007171467548 | DE45: -0.1215136411
D46: 12 | F46: -20 | G46: 550 | H46: 185 | DD46: 0.007382973174 | DE46: -0.124385735
D47: WC | F47: 0 | G47: 700 | H47: 300 | DD47: 0.007596617072 | DE47: -0.1272627343
D48: WC ALIGN | F48: 0 | G48: 600 | H48: 300 | DD48: 0.007812398078 | DE48: -0.1301446389
D49: CP | F49: 0 | G49: 700 | H49: 0 | DD49: 0.008030315029 | DE49: -0.1330314488
D50: INT | F50: 150 | G50: 320 | H50: 405 | DD50: 0.008250366763 | DE50: -0.1359231638
D51: TR | F51: 100 | G51: 300 | H51: 300 | DD51: 0.00847255212 | DE51: -0.138819784
D52: 2 | F52: 124.9992175 | G52: 599.9934612 | H52: 315.13208 | DD52: 0.008696869941 | DE52: -0.1417213092
D53: 4 | F53: -9.997997471 | G53: 649.9997616 | H53: 185.1316111 | DD53: 0.008923319067 | DE53: -0.1446277394
D54: 6 | F54: 30.00196195 | G54: 629.9996804 | H54: 185.1315097 | DD54: 0.009151898342 | DE54: -0.1475390746
D55: 8 | F55: -10.00307342 | G55: 589.9886358 | H55: 425.1288297 | DD55: 0.00938260661 | DE55: -0.1504553148
D56: 10 | F56: -50.00307342 | G56: 589.9887169 | H56: 425.1280039 | DD56: 0.009615442716 | DE56: -0.1533764599
D57: 12 | F57: -20 | G57: 550 | H57: 185.1003299 | DD57: 0.009850405508 | DE57: -0.1563025099
D58: WC | F58: -0.0002699169869 | G58: 699.9944102 | H58: 300.1341354 | DD58: 0.01008749383 | DE58: -0.1592334648
D59: WC ALIGN | F59: -0.0004728120572 | G59: 599.9944102 | H59: 300.1294997 | DD59: 0.01032670654 | DE59: -0.1621693246
D60: CP | F60: 0.00592284921 | G60: 700.0083175 | H60: 0.1341354144 | DD60: 0.01056804248 | DE60: -0.1651100892
D61: INT | F61: 150 | G61: 320 | H61: 405 | DD61: 0.0108115005 | DE61: -0.1680557587
D62: TR | F62: 100 | G62: 300 | H62: 300 | DD62: 0.01105707945 | DE62: -0.171006333
D63: 2 | F63: 124.9984344 | G63: 599.9868646 | H63: 315.2641519 | DD63: 0.0113047782 | DE63: -0.1739618123
D64: 4 | F64: -9.995993811 | G64: 649.9994818 | H64: 185.263219 | DD64: 0.01155459559 | DE64: -0.1769221964
D65: 6 | F65: 30.00392425 | G65: 629.9993179 | H65: 185.2630144 | DD65: 0.01180653047 | DE65: -0.1798874854
D66: 8 | F66: -10.00614769 | G66: 589.9772097 | H66: 425.2576504 | DD66: 0.01206058172 | DE66: -0.1828576794
D67: 10 | F67: -50.00614767 | G67: 589.9773737 | H67: 425.255999 | DD67: 0.01231674818 | DE67: -0.1858327784
D68: 12 | F68: -20.00000289 | G68: 549.9999689 | H68: 185.2006575 | DD68: 0.01257502871 | DE68: -0.1888127824
D69: WC | F69: -0.0005366430221 | G69: 699.9887686 | H69: 300.2682716 | DD69: 0.01283542217 | DE69: -0.1917976914
D70: WC ALIGN | F70: -0.0009462567299 | G70: 599.9887688 | H70: 300.2589915 | DD70: 0.01309792743 | DE70: -0.1947875056
D71: CP | F71: 0.01184849111 | G71: 700.0166089 | H71: 0.2682724037 | DD71: 0.01336254335 | DE71: -0.1977822249
D72: INT | F72: 150 | G72: 320 | H72: 405 | DD72: 0.01362926879 | DE72: -0.2007818495
F73: 100 | G73: 300 | H73: 300 | DD73: 0.01389810261 | DE73: -0.2037863793
F74: 124.9976506 | G74: 599.9802101 | H74: 315.3962159 | DD74: 0.01416904368 | DE74: -0.2067958146
F75: -9.993989022 | G75: 649.9991607 | H75: 185.3948238 | DD75: 0.01444209088 | DE75: -0.2098101552
F76: 30.0058869 | G76: 629.9989125 | H76: 185.3945141 | DD76: 0.01471724305 | DE76: -0.2128294014
F77: -10.0092228 | G77: 589.9657219 | H77: 425.3864621 | DD77: 0.01499449908 | DE77: -0.2158535533
F78: -50.00922274 | G78: 589.9659702 | H78: 425.3839852 | DD78: 0.01527385784 | DE78: -0.2188826108
F79: -20.00000866 | G79: 549.9999067 | H79: 185.3009826 | DD79: 0.01555531819 | DE79: -0.2219165742
F80: -0.0008001801603 | G80: 699.9830753 | H80: 300.4024086 | DD80: 0.01583887901 | DE80: -0.2249554435
F81: -0.00142033394 | G81: 599.983076 | H81: 300.3884756 | DD81: 0.01612453917 | DE81: -0.2279992189
F82: 0.01777692197 | G82: 700.0248743 | H82: 0.4024109682 | DD82: 0.01641229755 | DE82: -0.2310479004
F83: 150 | G83: 320 | H83: 405 | DD83: 0.01670215302 | DE83: -0.2341014881
F84: 100 | G84: 300 | H84: 300 | DD84: 0.01699410445 | DE84: -0.2371599823
F85: 124.9968662 | G85: 599.9734978 | H85: 315.5282718 | DD85: 0.01728815073 | DE85: -0.240223383
F86: -9.991983105 | G86: 649.9987981 | H86: 185.5264254 | DD86: 0.01758429073 | DE86: -0.2432916905
F87: 30.00784989 | G87: 629.9984641 | H87: 185.5260089 | DD87: 0.01788252333 | DE87: -0.2463649047
F88: -10.01229875 | G88: 589.9541722 | H88: 425.5152649 | DD88: 0.01818284742 | DE88: -0.2494430259
F89: -50.01229864 | G89: 589.9545065 | H89: 425.5119625 | DD89: 0.01848526187 | DE89: -0.2525260543
F90: -20.00001732 | G90: 549.9998134 | H90: 185.4013053 | DD90: 0.01878976557 | DE90: -0.2556139899
F91: -0.001060530453 | G91: 699.9773303 | H91: 300.5365465 | DD91: 0.01909635739 | DE91: -0.258706833
F92: -0.001895043608 | G92: 599.9773316 | H92: 300.5179519 | DD92: 0.01940503623 | DE92: -0.2618045838
F93: 0.0237081381 | G93: 700.0331136 | H93: 0.5365511085 | DD93: 0.01971580098 | DE93: -0.2649072424
F94: 150 | G94: 320 | H94: 405 | DD94: 0.0200286505 | DE94: -0.2680148089
F95: 100 | G95: 300 | H95: 300 | DD95: 0.02034358371 | DE95: -0.2711272837
F96: 124.9960811 | G96: 599.9667277 | H96: 315.6603198 | DD96: 0.02066059947 | DE96: -0.2742446669
F97: -9.989976062 | G97: 649.9983942 | H97: 185.6580238 | DD97: 0.02097969669 | DE97: -0.2773669586
F98: 30.00981323 | G98: 629.9979728 | H98: 185.6574988 | DD98: 0.02130087425 | DE98: -0.2804941592
F99: -10.01537554 | G99: 589.9425607 | H99: 425.6440588 | DD99: 0.02162413105 | DE99: -0.2836262687
F100: -50.01537537 | G100: 589.9429826 | H100: 425.6399309 | DD100: 0.02194946598 | DE100: -0.2867632875
F101: -20.00002887 | G101: 549.9996891 | H101: 185.5016255 | DD101: 0.02227687792 | DE101: -0.2899052157
F102: -0.00131769595 | G102: 699.9715335 | H102: 300.6706851 | DD102: 0.02260636578 | DE102: -0.2930520536
F103: -0.002370385656 | G103: 599.9715357 | H103: 300.6474205 | DD103: 0.02293792845 | DE103: -0.2962038015
F104: 0.02964213578 | G104: 700.041327 | H104: 0.6706928251 | DD104: 0.02327156483 | DE104: -0.2993604594
F105: 150 | G105: 320 | H105: 405 | DD105: 0.02360727381 | DE105: -0.3025220278
F106: 100 | G106: 300 | H106: 300 | DD106: 0.02394505429 | DE106: -0.3056885068
F107: 124.9952953 | G107: 599.9598998 | H107: 315.7923597 | DD107: 0.02428490518 | DE107: -0.3088598968
F108: -9.987967895 | G108: 649.9979489 | H108: 185.789619 | DD108: 0.02462682536 | DE108: -0.3120361979
F109: 30.01177691 | G109: 629.9974385 | H109: 185.7889836 | DD109: 0.02497081376 | DE109: -0.3152174104
F110: -10.01845318 | G110: 589.9308875 | H110: 425.7728437 | DD110: 0.02531686925 | DE110: -0.3184035346
F111: -50.01845292 | G111: 589.9313985 | H111: 425.7678904 | DD111: 0.02566499075 | DE111: -0.3215945709
F112: -20.00004331 | G112: 549.9995336 | H112: 185.6019433 | DD112: 0.02601517717 | DE112: -0.3247905194
F113: -0.001571678696 | G113: 699.965685 | H113: 300.8048244 | DD113: 0.0263674274 | DE113: -0.3279913804
F114: -0.002846360003 | G114: 599.9656882 | H114: 300.7768812 | DD114: 0.02672174036 | DE114: -0.3311971543
F115: 0.0355789113 | G115: 700.0495142 | H115: 0.8048361185 | DD115: 0.02707811494 | DE115: -0.3344078414
F116: 150 | G116: 320 | H116: 405 | DD116: 0.02743655006 | DE116: -0.3376234419
F117: 100 | G117: 300 | H117: 300 | DD117: 0.02779704463 | DE117: -0.3408439562
F118: 124.9945089 | G118: 599.9530141 | H118: 315.9243916 | DD118: 0.02815959755 | DE118: -0.3440693846
F119: -9.985958606 | G119: 649.9974622 | H119: 185.921211 | DD119: 0.02852420774 | DE119: -0.3472997274
F120: 30.01374094 | G120: 629.9968614 | H120: 185.9204636 | DD120: 0.0288908741 | DE120: -0.3505349849
F121: -10.02153165 | G121: 589.9191524 | H121: 425.9016197 | DD121: 0.02925959556 | DE121: -0.3537751575
F122: -50.02153129 | G122: 589.9197542 | H122: 425.895841 | DD122: 0.02963037101 | DE122: -0.3570202456
F123: -20.00006063 | G123: 549.9993471 | H123: 185.7022588 | DD123: 0.03000319938 | DE123: -0.3602702493
F124: -0.001822480736 | G124: 699.9597847 | H124: 300.9389646 | DD124: 0.03037807958 | DE124: -0.3635251692
F125: -0.00332296657 | G125: 599.9597893 | H125: 300.9063342 | DD125: 0.03075501052 | DE125: -0.3667850055
F126: 0.04151846097 | G126: 700.0576755 | H126: 0.9389809891 | DD126: 0.03113399113 | DE126: -0.3700497587
F127: 150 | G127: 320 | H127: 405 | DD127: 0.03151502032 | DE127: -0.373319429
F128: 100 | G128: 300 | H128: 300 | DD128: 0.03189809701 | DE128: -0.376594017
F129: 124.9937217 | G129: 599.9460706 | H129: 316.0564154 | DD129: 0.03228322011 | DE129: -0.3798735228
F130: -9.983948195 | G130: 649.9969342 | H130: 186.0527999 | DD130: 0.03267038855 | DE130: -0.383157947
F131: 30.0157053 | G131: 629.9962412 | H131: 186.0519385 | DD131: 0.03305960125 | DE131: -0.3864472898
F132: -10.02461096 | G132: 589.9073556 | H132: 426.0303866 | DD132: 0.03345085712 | DE132: -0.3897415518
F133: -50.02461048 | G133: 589.9080498 | H133: 426.0237828 | DD133: 0.0338441551 | DE133: -0.3930407332
F134: -20.00008083 | G134: 549.9991295 | H134: 185.8025717 | DD134: 0.03423949411 | DE134: -0.3963448346
F135: -0.002070104108 | G135: 699.9538328 | H135: 301.0731056 | DD135: 0.03463687306 | DE135: -0.3996538563
F136: -0.003800205275 | G136: 599.9538389 | H136: 301.0357794 | DD136: 0.03503629089 | DE136: -0.4029677987
F137: 0.04746078107 | G137: 700.0658107 | H137: 1.073127438 | DD137: 0.03543774653 | DE137: -0.4062866622
F138: 150 | G138: 320 | H138: 405 | DD138: 0.03584123888 | DE138: -0.4096104473
F139: 100 | G139: 300 | H139: 300 | DD139: 0.0362467669 | DE139: -0.4129391544
F140: 124.992934 | G140: 599.9390693 | H140: 316.1884312 | DD140: 0.03665432949 | DE140: -0.416272784
F141: -9.981936665 | G141: 649.9963648 | H141: 186.1843855 | DD141: 0.0370639256 | DE141: -0.4196113365
F142: 30.01767001 | G142: 629.9955782 | H142: 186.1834085 | DD142: 0.03747555415 | DE142: -0.4229548122
F143: -10.02769111 | G143: 589.8954969 | H143: 426.1591447 | DD143: 0.03788921408 | DE143: -0.4263032118
F144: -50.02769049 | G144: 589.8962851 | H144: 426.1517156 | DD144: 0.0383049043 | DE144: -0.4296565356
F145: -20.00010393 | G145: 549.9988808 | H145: 185.9028823 | DD145: 0.03872262377 | DE145: -0.4330147841
F146: -0.002314550851 | G146: 699.9478291 | H146: 301.2072473 | DD146: 0.03914237141 | DE146: -0.4363779578
F147: -0.004278076038 | G147: 599.9478369 | H147: 301.1652167 | DD147: 0.03956414615 | DE147: -0.4397460571
F148: 0.05340586792 | G148: 700.0739198 | H148: 1.207275465 | DD148: 0.03998794693 | DE148: -0.4431190826
F149: 150 | G149: 320 | H149: 405 | DD149: 0.04041377268 | DE149: -0.4464970347
F150: 100 | G150: 300 | H150: 300 | DD150: 0.04084162234 | DE150: -0.4498799139
F151: 124.9921455 | G151: 599.9320102 | H151: 316.320439 | DD151: 0.04127149486 | DE151: -0.4532677207
F152: -9.979924016 | G152: 649.9957541 | H152: 186.315968 | DD152: 0.04170338916 | DE152: -0.4566604556
F153: 30.01963506 | G153: 629.9948723 | H153: 186.3148735 | DD153: 0.04213730418 | DE153: -0.4600581191
F154: -10.0307721 | G154: 589.8835765 | H154: 426.2878937 | DD154: 0.04257323886 | DE154: -0.4634607117
F155: -50.03077133 | G155: 589.8844603 | H155: 426.2796395 | DD155: 0.04301119216 | DE155: -0.466868234
F156: -20.0001299 | G156: 549.998601 | H156: 186.0031904 | DD156: 0.04345116299 | DE156: -0.4702806864
F157: -0.002555823 | G157: 699.9417736 | H157: 301.3413898 | DD157: 0.04389315031 | DE157: -0.4736980696
F158: -0.004756578777 | G158: 599.9417835 | H158: 301.2946463 | DD158: 0.04433715306 | DE158: -0.4771203839
F159: 0.05935371781 | G159: 700.082003 | H159: 1.34142507 | DD159: 0.04478317019 | DE159: -0.4805476301
F160: 150 | G160: 320 | H160: 405 | DD160: 0.04523120063 | DE160: -0.4839798085
F161: 100 | G161: 300 | H161: 300 | DD161: 0.04568124333 | DE161: -0.4874169198
F162: 124.9913564 | G162: 599.9248934 | H162: 316.4524388 | DD162: 0.04613329723 | DE162: -0.4908589646
F163: -9.977910252 | G163: 649.995102 | H163: 186.4475473 | DD163: 0.04658736129 | DE163: -0.4943059433
F164: 30.02160044 | G164: 629.9941234 | H164: 186.4463336 | DD164: 0.04704343445 | DE164: -0.4977578565
F165: -10.03385393 | G165: 589.8715944 | H165: 426.4166338 | DD165: 0.04750151565 | DE165: -0.5012147049
F166: -50.03385298 | G166: 589.8725753 | H166: 426.4075545 | DD166: 0.04796160385 | DE166: -0.504676489
F167: -20.00015877 | G167: 549.9982901 | H167: 186.1034961 | DD167: 0.04842369799 | DE167: -0.5081432093
F168: -0.002793922585 | G168: 699.9356665 | H168: 301.4755331 | DD168: 0.04888779703 | DE168: -0.5116148666
F169: -0.005235713409 | G169: 599.9356786 | H169: 301.4240681 | DD169: 0.04935389991 | DE169: -0.5150914612
F170: 0.06530432705 | G170: 700.0900601 | H170: 1.475576256 | DD170: 0.04982200558 | DE170: -0.518572994
F171: 150 | G171: 320 | H171: 405 | DD171: 0.050292113 | DE171: -0.5220594654
F172: 100 | G172: 300 | H172: 300 | DD172: 0.05076422112 | DE172: -0.5255508761
F173: 124.9905666 | G173: 599.9177187 | H173: 316.5844305 | DD173: 0.0512383289 | DE173: -0.5290472266
F174: -9.975895373 | G174: 649.9944085 | H174: 186.5791234 | DD174: 0.05171443528 | DE174: -0.5325485177
F175: 30.02356616 | G175: 629.9933317 | H175: 186.5777887 | DD175: 0.05219253922 | DE175: -0.5360547499
F176: -10.03693658 | G176: 589.8595504 | H176: 426.5453649 | DD176: 0.05267263968 | DE176: -0.5395659239
F177: -50.03693545 | G177: 589.8606302 | H177: 426.5354605 | DD177: 0.05315473561 | DE177: -0.5430820402
F178: -20.00019052 | G178: 549.9979482 | H178: 186.2037994 | DD178: 0.05363882596 | DE178: -0.5466030996
F179: -0.003028851637 | G179: 699.9295076 | H179: 301.6096772 | DD179: 0.05412490971 | DE179: -0.5501291027
F180: -0.005715479852 | G180: 599.9295222 | H180: 301.5534821 | DD180: 0.0546129858 | DE180: -0.5536600502
F181: 0.07125769195 | G181: 700.0980911 | H181: 1.609729021 | DD181: 0.05510305319 | DE181: -0.5571959426
F182: 150 | G182: 320 | H182: 405 | DD182: 0.05559511084 | DE182: -0.5607367807
F183: 100 | G183: 300 | H183: 300 | DD183: 0.05608915772 | DE183: -0.5642825651
F184: 124.9897762 | G184: 599.9104864 | H184: 316.7164141 | DD184: 0.05658519277 | DE184: -0.5678332965
F185: -9.973879381 | G185: 649.9936737 | H185: 186.7106963 | DD185: 0.05708321498 | DE185: -0.5713889757
F186: 30.02553222 | G186: 629.992497 | H186: 186.7092388 | DD186: 0.05758322328 | DE186: -0.5749496031
F187: -10.04002008 | G187: 589.8474447 | H187: 426.674087 | DD187: 0.05808521666 | DE187: -0.5785151797
F188: -50.04001873 | G188: 589.8486249 | H188: 426.6633577 | DD188: 0.05858919406 | DE188: -0.582085706
F189: -20.00022515 | G189: 549.9975752 | H189: 186.3041002 | DD189: 0.05909515447 | DE189: -0.5856611827
F190: -0.003260612181 | G190: 699.9232971 | H190: 301.743822 | DD190: 0.05960309683 | DE190: -0.5892416106
F191: -0.006195878023 | G191: 599.9233143 | H191: 301.6828882 | DD191: 0.06011302011 | DE191: -0.5928269904
F192: 0.07721380882 | G192: 700.1060962 | H192: 1.743883368 | DD192: 0.06062492329 | DE192: -0.5964173227
F193: 150 | G193: 320 | H193: 405 | DD193: 0.06113880532 | DE193: -0.6000126084
F194: 100 | G194: 300 | H194: 300 | DD194: 0.06165466518 | DE194: -0.6036128481
F195: 124.9889851 | G195: 599.9031962 | H195: 316.8483897 | DD195: 0.06217250182 | DE195: -0.6072180425
F196: -9.971862277 | G196: 649.9928975 | H196: 186.842266 | DD196: 0.06269231423 | DE196: -0.6108281925
F197: 30.02749861 | G197: 629.9916194 | H197: 186.840684 | DD197: 0.06321410136 | DE197: -0.6144432987
F198: -10.0431044 | G198: 589.8352773 | H198: 426.8028001 | DD198: 0.06373786219 | DE198: -0.618063362
F199: -50.04310283 | G199: 589.8365594 | H199: 426.791246 | DD199: 0.06426359569 | DE199: -0.6216883829
F200: -20.00026267 | G200: 549.9971712 | H200: 186.4043986 | DD200: 0.06479130082 | DE200: -0.6253183624
... 5350 more rows

Sheet SPRINGLINK COMPRESSION (hidden)
F1: X | G1: Y | H1: Z | AS1: X | AT1: y | AU1: Z
B2: REF ROTATION AXIS | K2: RiX0 | L2: RiY0 | M2: RiZ0 | N2: XL | O2: YL | P2: ZL | S2: 1 | T2: 2 | U2: 3 | V2: 4 | W2: 5 | X2: 6 | AC2: 1 | AD2: 2 | AE2: 3 | AF2: 4 | AG2: 5 | AH2: 6 | AJ2: X | AN2: VX | AO2: VY | AP2: VZ | AQ2: V
B3: =DASHBOARD!F11 -> -60.00 | C3: spring at link | D3: 2 | F3: =DASHBOARD!F20 -> -20.00 | G3: =DASHBOARD!G20 -> 550.00 | H3: =DASHBOARD!H20 -> 185.00 | J3: 2 | K3: =F3-B3 -> 40 | L3: =G3-B4 -> 320 | M3: =H3-B5 -> 0 | N3: =F3-DASHBOARD!F$19 -> 0.00 | O3: =G3-DASHBOARD!G$19 -> 50.00 | P3: =H3-DASHBOARD!H$19 -> -615.00 | R3: 2 | S3: =N3 -> 0 | T3: 50 | U3: -615 | V3: =L3*P3-M3*O3 -> -196800 | W3: =M3*N3-K3*P3 -> 24600 | X3: =K3*O3-L3*N3 -> 2000 | Y3: vx | Z3: =IF(ifederlenker=0,ZIVF*SQRT(N3^2+O3^2+P3^2),0) -> -6.170291727 | AB3: 2 | AC3: =MINVERSE(S3:X8) -> -3.183444208e-17 | AD3: -6.833333333 | AE3: -6.447223707e-14 | AF3: 6.666666667 | AG3: 5.45595315e-14 | AH3: -0.7424242424 | AJ3: V0X | AK3: =MMULT(AC3:AH8,Z3:Z8) -> 1.964277946e-16 | AM3: 2 | AN3: =AK3+(AK7*M3-AK8*L3) -> 0.000000 | AO3: =AK4+(AK8*K3-AK6*M3) -> -0.000000 | AP3: =AK5+(AK6*L3-AK7*K3) -> 0.010033 | AQ3: =SQRT(AP3^2+AO3^2+AN3^2) -> 0.01003299468 | AR3: 2 | AS3: =F3+AN3 -> -20.000 | AT3: 550.000 | AU3: 185.010 | AV3: 594.805
B4: =DASHBOARD!G11 -> 230.00 | D4: 4 | F4: =DASHBOARD!F11 -> -60.00 | G4: =DASHBOARD!G11 -> 230.00 | H4: =DASHBOARD!H11 -> 185.00 | J4: 4 | K4: =F4-B3 -> 0 | L4: =G4-B4 -> 0 | M4: =H4-B5 -> 0 | N4: 1.10 | O4: 2.20 | P4: 1.30 | R4: 4 | S4: 1.1 | T4: 2.2 | U4: 1.3 | V4: 0 | W4: 0 | X4: 0 | Y4: vy | Z4: 0 | AB4: 4 | AC4: 1.876773157e-17 | AD4: 4.166666667 | AE4: 3.240074875e-14 | AF4: -3.333333333 | AG4: -2.50111043e-14 | AH4: 0.07575757576 | AJ4: V0Y | AK4: -1.158023788e-16 | AM4: 4 | AN4: =AK3+(AK7*M4-AK8*L4) -> 0.000000 | AO4: =AK4+(AK8*K4-AK6*M4) -> -0.000000 | AP4: =AK5+(AK6*L4-AK7*K4) -> 0.000000 | AQ4: 2.280727816e-16 | AR4: 4 | AS4: -60.000 | AT4: 230.000 | AU4: 185.000 | AV4: 410.893
B5: =DASHBOARD!H11 -> 185.00 | D5: 6 | F5: =B7 -> -50.00 | G5: =B8 -> 229.07 | H5: =B9 -> 185.00 | J5: 6 | K5: =F5-B3 -> 10 | L5: =G5-B4 -> -0.9285458429 | M5: =H5-B5 -> 0 | N5: 2.40 | O5: 1.50 | P5: 2.60 | R5: 6 | S5: 2.4 | T5: 1.5 | U5: 2.6 | V5: -2.414219191 | W5: -26 | X5: 17.22851002 | Y5: vz | Z5: 0 | AB5: 6 | AC5: -7.79342464e-19 | AD5: -0.5 | AE5: 1.437237281e-15 | AF5: -2.090526954e-15 | AG5: -1.959869019e-15 | AH5: 0.5 | AJ5: V0Z | AK5: 4.808770358e-18 | AM5: 6 | AN5: =AK3+(AK7*M5-AK8*L5) -> 0.000000 | AO5: =AK4+(AK8*K5-AK6*M5) -> -0.000000 | AP5: =AK5+(AK6*L5-AK7*K5) -> -0.000000 | AQ5: 3.0228552e-16 | AR5: 6 | AS5: -50.000 | AT5: 229.071 | AU5: 185.000 | AV5: 413.570
B6: Alignment point | C6: =IFERROR((F9-DASHBOARD!F11)/('SPRINGLINK COMPRESSION'!G9-DASHBOARD!G11),0) -> 0.119047619 | D6: 8 | F6: =DASHBOARD!F11 -> -60.00 | G6: =DASHBOARD!G11 -> 230.00 | H6: =DASHBOARD!H11 -> 185.00 | J6: 8 | K6: =F6-B3 -> 0 | L6: =G6-B4 -> 0 | M6: =H6-B5 -> 0 | N6: 1.40 | O6: 2.50 | P6: 1.70 | R6: 8 | S6: 1.4 | T6: 2.5 | U6: 1.7 | V6: 0 | W6: 0 | X6: 0 | Y6: wx | Z6: 0 | AB6: 8 | AC6: -5.022999744e-06 | AD6: -0.01428363703 | AE6: -0.01322379193 | AF6: 0.008801986758 | AG6: 0.01101263983 | AH6: 0.003900843994 | AJ6: OMEGAX | AK6: 3.099337377e-05 | AM6: 8 | AN6: =AK3+(AK7*M6-AK8*L6) -> 0.000000 | AO6: =AK4+(AK8*K6-AK6*M6) -> -0.000000 | AP6: =AK5+(AK6*L6-AK7*K6) -> 0.000000 | AQ6: 2.280727816e-16 | AR6: 8 | AS6: -60.000 | AT6: 230.000 | AU6: 185.000 | AV6: 410.893
B7: =IF(SQRT((DASHBOARD!F12-DASHBOARD!F14)^2+(DASHBOARD!G12-DASHBOARD!G14)^2+(DASHBOARD!H12-DASHBOARD!H14)^2)<10,DASHBOARD!F13,B3+10) -> -50.0000 | C7: =SIN(C6*10) -> 0.9285458429 | D7: 10 | F7: =B7 -> -50 | G7: =B8 -> 229.0714542 | H7: =B9 -> 185 | J7: 10 | K7: =F7-B3 -> 10 | L7: =G7-B4 -> -0.9285458429 | M7: =H7-B5 -> 0 | N7: 2.8 | O7: 1.90 | P7: 2 | R7: 10 | S7: 2.8 | T7: 1.9 | U7: 2 | V7: -1.857091686 | W7: -20 | X7: 21.59992836 | Y7: wy | Z7: 0 | AB7: 10 | AC7: 4.664085531e-07 | AD7: -0.1684408548 | AE7: -0.09829813754 | AF7: 0.1149016914 | AG7: 0.07836126132 | AH7: 0.03720597334 | AJ7: OMEGAY | AK7: -2.877876837e-06 | AM7: 10 | AN7: =AK3+(AK7*M7-AK8*L7) -> 0.000000 | AO7: =AK4+(AK8*K7-AK6*M7) -> -0.000000 | AP7: =AK5+(AK6*L7-AK7*K7) -> -0.000000 | AQ7: 3.0228552e-16 | AR7: 10 | AS7: -50.000 | AT7: 229.071 | AU7: 185.000 | AV7: 413.570
B8: =IF(SQRT((DASHBOARD!F12-DASHBOARD!F14)^2+(DASHBOARD!G12-DASHBOARD!G14)^2+(DASHBOARD!H12-DASHBOARD!H14)^2)<10,DASHBOARD!G13,B4-C7) -> 229.0715 | D8: 12 | F8: =DASHBOARD!F11 -> -60.00 | G8: =DASHBOARD!G11 -> 230.00 | H8: =DASHBOARD!H11 -> 185.00 | J8: 12 | K8: =F8-B3 -> 0 | L8: =G8-B4 -> 0 | M8: =H8-B5 -> 0 | N8: 1.1 | O8: 2.2 | P8: 3.3 | R8: 12 | S8: 1.1 | T8: 2.2 | U8: 3.3 | V8: 0 | W8: 0 | X8: 0 | Y8: wz | Z8: 0 | AB8: 12 | AC8: 1.953348045e-18 | AD8: 0.4083959632 | AE8: -0.09215403457 | AF8: -0.463841974 | AG8: 0.1198002449 | AH8: 0.07806563747 | AJ8: OMEGAZ | AK8: -1.205272728e-17 | AM8: 12 | AN8: =AK3+(AK7*M8-AK8*L8) -> 0.000000 | AO8: =AK4+(AK8*K8-AK6*M8) -> -0.000000 | AP8: =AK5+(AK6*L8-AK7*K8) -> 0.000000 | AQ8: 2.280727816e-16 | AR8: 12 | AS8: =F8+AN8 -> -60.000 | AT8: =G8+AO8 -> 230.000 | AU8: =H8+AP8 -> 185.000 | AV8: 410.893
B9: =IF(SQRT((DASHBOARD!F12-DASHBOARD!F14)^2+(DASHBOARD!G12-DASHBOARD!G14)^2+(DASHBOARD!H12-DASHBOARD!H14)^2)<10,DASHBOARD!H13,B5) -> 185.0000 | C9: springlink to knuckle | F9: =DASHBOARD!F12 -> -10.00 | G9: =DASHBOARD!G12 -> 650.00 | H9: =DASHBOARD!H20 -> 185.00 | AM9: springlink | AN9: =AK3+AK7*(H9-B5)-AK8*(G9-B4) -> 0.000000 | AO9: =AK4+AK8*(F9-B3)-AK6*(H9-B5) -> -0.000000 | AP9: =AK5+AK6*(G9-B4)-AK7*(F9-B3) -> 0.013161 | AQ9: 0.01316111082 | AR9: springlink | AS9: =F9+AN9 -> -10.000 | AT9: 650.000 | AU9: 185.013 | AV9: 665.141
C10: spring to link | F10: =DASHBOARD!F20 -> -20.00 | G10: =DASHBOARD!G20 -> 550.00 | H10: =DASHBOARD!H20 -> 185.00 | AN10: =AK3+AK7*(H10-B5)-AK8*(G10-B4) -> 0.000000 | AO10: =AK4+AK8*(F10-B3)-AK6*(H10-B5) -> -0.000000 | AP10: =AK5+AK6*(G10-B4)-AK7*(F10-B3) -> 0.010033 | AQ10: 0.01003299468 | AS10: =F10+AN10 -> -20.000 | AT10: 550.000 | AU10: 185.010 | AV10: 594.805
B13: REF ROTATION AXIS | K13: RiX0 | L13: RiY0 | M13: RiZ0 | N13: XL | O13: YL | P13: ZL | S13: 1 | T13: 2 | U13: 3 | V13: 4 | W13: 5 | X13: 6 | AC13: 1 | AD13: 2 | AE13: 3 | AF13: 4 | AG13: 5 | AH13: 6 | AJ13: X | AN13: VX | AO13: VY | AP13: VZ
B14: =AS4 -> -60.000 | C14: spring at link | D14: 2 | F14: -20.000 | G14: 550.000 | H14: 185.010 | J14: 2 | K14: =F14-B14 -> 40 | L14: =G14-B15 -> 320 | M14: =H14-B16 -> 0.01003299468 | N14: =F14-DASHBOARD!F$19 -> 0.00 | O14: =G14-DASHBOARD!G$19 -> 50.00 | P14: =H14-DASHBOARD!H$19 -> -614.99 | R14: 2 | S14: =N14 -> 0 | T14: 50 | U14: -614.989967 | V14: =L14*P14-M14*O14 -> -196797.2911 | W14: =M14*N14-K14*P14 -> 24599.59868 | X14: =K14*O14-L14*N14 -> 2000 | Y14: vx | Z14: =IF(ifederlenker=0,ZIVF*SQRT(N14^2+O14^2+P14^2),0) -> -6.170191727 | AB14: 2 | AC14: =MINVERSE(S14:X19) -> -2.453564964e-17 | AD14: -6.833333333 | AE14: -1.521005544e-13 | AF14: 6.666666667 | AG14: 1.34336986e-13 | AH14: -0.7424242424 | AJ14: V0X | AK14: =MMULT(AC14:AH19,Z14:Z19) -> 1.513896624e-16 | AM14: 2 | AN14: =AK14+(AK18*M14-AK19*L14) -> -2.887365001e-08 | AO14: =AK15+(AK19*K14-AK17*M14) -> -3.109556043e-07 | AP14: =AK16+(AK17*L14-AK18*K14) -> 0.01003297047 | AQ14: =SQRT(AP14^2+AO14^2+AN14^2) -> 0.01003297048 | AR14: 2 | AS14: =F14+AN14 -> -20.00000003 | AT14: 549.9999997 | AU14: 185.020066 | AV14: 594.805
B15: =AT4 -> 230.000 | D15: 4 | F15: -60.000 | G15: 230.000 | H15: 185.000 | J15: 4 | K15: =F15-B14 -> 0 | L15: =G15-B15 -> 0 | M15: =H15-B16 -> 0 | N15: 1.10 | O15: 2.20 | P15: 1.30 | R15: 4 | S15: 1.1 | T15: 2.2 | U15: 1.3 | V15: 0 | W15: 0 | X15: 0 | Y15: vy | Z15: 0 | AB15: 4 | AC15: 1.361573281e-17 | AD15: 4.166666667 | AE15: 7.901235222e-14 | AF15: -3.333333333 | AG15: -7.730704965e-14 | AH15: 0.07575757576 | AJ15: V0Y | AK15: -8.401168194e-17 | AM15: 4 | AN15: =AK14+(AK18*M15-AK19*L15) -> 1.513896624e-16 | AO15: =AK15+(AK19*K15-AK17*M15) -> -8.401168194e-17 | AP15: =AK16+(AK17*L15-AK18*K15) -> 1.738900478e-19 | AQ15: 1.731381611e-16 | AR15: 4 | AS15: -60 | AT15: 230 | AU15: 185 | AV15: 410.893
B16: =AU4 -> 185.000 | D16: 6 | F16: -50.000 | G16: 229.071 | H16: 185.000 | J16: 6 | K16: =F16-B14 -> 10 | L16: =G16-B15 -> -0.9285458429 | M16: =H16-B16 -> 0 | N16: 2.40 | O16: 1.50 | P16: 2.60 | R16: 6 | S16: 2.4 | T16: 1.5 | U16: 2.6 | V16: -2.414219191 | W16: -26 | X16: 17.22851002 | Y16: vz | Z16: 0 | AB16: 6 | AC16: -2.818227625e-20 | AD16: -0.5 | AE16: -3.092282014e-15 | AF16: 1.742130712e-15 | AG16: 2.482536264e-15 | AH16: 0.5 | AJ16: V0Z | AK16: 1.738900478e-19 | AM16: 6 | AN16: =AK14+(AK18*M16-AK19*L16) -> 1.422233753e-16 | AO16: =AK15+(AK19*K16-AK17*M16) -> -1.827282639e-16 | AP16: =AK16+(AK17*L16-AK18*K16) -> -2.552170144e-17 | AQ16: 2.329559275e-16 | AR16: 6 | AS16: -50 | AT16: 229.0714542 | AU16: 185 | AV16: 413.570
D17: 8 | F17: -60.000 | G17: 230.000 | H17: 185.000 | J17: 8 | K17: =F17-B14 -> 0 | L17: =G17-B15 -> 0 | M17: =H17-B16 -> 0 | N17: 1.40 | O17: 2.50 | P17: 1.70 | R17: 8 | S17: 1.4 | T17: 2.5 | U17: 1.7 | V17: 0 | W17: 0 | X17: 0 | Y17: wx | Z17: 0 | AB17: 8 | AC17: -5.023069032e-06 | AD17: -0.01428351703 | AE17: -0.01322377372 | AF17: 0.008801874901 | AG17: 0.01101263171 | AH17: 0.003900847269 | AJ17: OMEGAX | AK17: 3.099329899e-05 | AM17: 8 | AN17: =AK14+(AK18*M17-AK19*L17) -> 1.513896624e-16 | AO17: =AK15+(AK19*K17-AK17*M17) -> -8.401168194e-17 | AP17: =AK16+(AK17*L17-AK18*K17) -> 1.738900478e-19 | AQ17: 1.731381611e-16 | AR17: 8 | AS17: -60 | AT17: 230 | AU17: 185 | AV17: 410.893
D18: 10 | F18: -50.000 | G18: 229.071 | H18: 185.000 | J18: 10 | K18: =F18-B14 -> 10 | L18: =G18-B15 -> -0.9285458429 | M18: =H18-B16 -> 0 | N18: 2.8 | O18: 1.90 | P18: 2 | R18: 10 | S18: 2.8 | T18: 1.9 | U18: 2 | V18: -1.857091686 | W18: -20 | X18: 21.59992836 | Y18: wy | Z18: 0 | AB18: 10 | AC18: 4.664149868e-07 | AD18: -0.1684408659 | AE18: -0.09829813923 | AF18: 0.1149017018 | AG18: 0.07836126207 | AH18: 0.03720597304 | AJ18: OMEGAY | AK18: -2.877869893e-06 | AM18: 10 | AN18: =AK14+(AK18*M18-AK19*L18) -> 1.422233753e-16 | AO18: =AK15+(AK19*K18-AK17*M18) -> -1.827282639e-16 | AP18: =AK16+(AK17*L18-AK18*K18) -> -2.552170144e-17 | AQ18: 2.329559275e-16 | AR18: 10 | AS18: -50 | AT18: 229.0714542 | AU18: 185 | AV18: 413.570
D19: 12 | F19: -60.000 | G19: 230.000 | H19: 185.000 | J19: 12 | K19: =F19-B14 -> 0 | L19: =G19-B15 -> 0 | M19: =H19-B16 -> 0 | N19: 1.1 | O19: 2.2 | P19: 3.3 | R19: 12 | S19: 1.1 | T19: 2.2 | U19: 3.3 | V19: 0 | W19: 0 | X19: 0 | Y19: wz | Z19: 0 | AB19: 12 | AC19: 1.599894888e-18 | AD19: 0.4083959632 | AE19: -0.09215403457 | AF19: -0.463841974 | AG19: 0.1198002449 | AH19: 0.07806563747 | AJ19: OMEGAZ | AK19: -9.8716582e-18 | AM19: 12 | AN19: =AK14+(AK18*M19-AK19*L19) -> 1.513896624e-16 | AO19: =AK15+(AK19*K19-AK17*M19) -> -8.401168194e-17 | AP19: =AK16+(AK17*L19-AK18*K19) -> 1.738900478e-19 | AQ19: 1.731381611e-16 | AR19: 12 | AS19: =F19+AN19 -> -60.000 | AT19: =G19+AO19 -> 230.000 | AU19: =H19+AP19 -> 185.000 | AV19: 410.893
C20: springlink to knuckle | F20: -10.000 | G20: 650.000 | H20: 185.013 | AM20: springlink | AN20: =AK14+AK18*(H20-B16)-AK19*(G20-B15) -> -3.78759603e-08 | AO20: =AK15+AK19*(F20-B14)-AK17*(H20-B16) -> -4.079062433e-07 | AP20: =AK16+AK17*(G20-B15)-AK18*(F20-B14) -> 0.01316107907 | AQ20: 0.01316107908 | AR20: springlink | AS20: =F20+AN20 -> -10.00000004 | AT20: 649.9999996 | AU20: 185.0263222 | AV20: 665.141
F21: -20.00 | G21: 550.00 | H21: 185.01 | AN21: =AK14+AK18*(H21-B16)-AK19*(G21-B15) -> -2.887365001e-08 | AO21: =AK15+AK19*(F21-B14)-AK17*(H21-B16) -> -3.109556043e-07 | AP21: =AK16+AK17*(G21-B15)-AK18*(F21-B14) -> 0.01003297047 | AQ21: 0.01003297048 | AS21: =F21+AN21 -> -20.00000003 | AT21: 549.9999997 | AU21: 185.020066 | AV21: 594.805
B24: REF ROTATION AXIS
B25: =AS15 -> -60 | D25: 2 | F25: =AS14 -> -20.00 | G25: 550.00 | H25: 185.02
B26: =AT15 -> 230 | D26: 4 | F26: -60.00 | G26: 230.00 | H26: 185.00
B27: =AU15 -> 185 | D27: 6 | F27: -50.00 | G27: 229.07 | H27: 185.00
D28: 8 | F28: -60.00 | G28: 230.00 | H28: 185.00
D29: 10 | F29: -50.00 | G29: 229.07 | H29: 185.00
D30: 12 | F30: -60.00 | G30: 230.00 | H30: 185.00
D31: Pushrod | F31: -10.00 | G31: 650.00 | H31: 185.03
F32: =AS21 -> -20.00 | G32: =AT21 -> 550.00 | H32: =AU21 -> 185.02

Sheet LEFT STEER (hidden)
F1: X | G1: Y | H1: Z | AS1: X | AT1: y | AU1: Z | BJ1: delta springtravel | BK1: WCZ | BL1: delta raktravel | BM1: TOE | BN1: CAMBER | BO1: RCH | BP1: WHEEL CENTER ANTI | BQ1: CONTACT PATCH ANTI | BR1: WCX | BS1: WCY | BT1: CPX | BU1: CPY | BV1: CPZ | BW1: ifeder | BX1: YQP | BY1: ZQP | BZ1: XLP | CA1: ZLP | CB1: HMSA | CC1: KPI | CD1: KPI OFF | CE1: CASTER | CF1: CASTER OFF | CG1: SCRUB RADIUS | CH1: CASTER TRAIL | CI1: ilenk | CJ1: pradlast | CK1: TOGGLE | CL1: slenk | DA1: delta springtravel | DB1: WCZ | DC1: delta raktravel | DD1: TOE | DE1: CAMBER | DF1: RCH | DG1: WHEEL CENTER ANTI | DH1: CONTACT PATCH ANTI | DI1: WCX | DJ1: WCY | DK1: CPX | DL1: CPY | DM1: CPZ | DN1: ifeder | DO1: YQP | DP1: ZQP | DQ1: XLP | DR1: ZLP | DS1: HMSA | DT1: KPI | DU1: KPI OFF | DV1: CASTER | DW1: CASTER OFF | DX1: SCRUB RADIUS | DY1: CASTER TRAIL | DZ1: ilenk | EA1: pradlast | EB1: TOGGLE | EC1: slenk | EE1: =(EE2+'RIGHT STEER'!EE2)/2 -> 0 | EF1: =(EF2+'RIGHT STEER'!EF2)/2 -> 0 | EG1: =(EG2+'RIGHT STEER'!EG2)/2 -> 0 | EH1: =(EH2+'RIGHT STEER'!EH2)/2 -> 0 | EI1: =(EI2+'RIGHT STEER'!EI2)/2 -> 0 | EJ1: =(EJ2+'RIGHT STEER'!EJ2)/2 -> -0.14250502 | EK1: =(EK2+'RIGHT STEER'!EK2)/2 -> 43.40562016 | EL1: =(EL2+'RIGHT STEER'!EL2)/2 -> 0.1152945578 | EM1: =(EM2+'RIGHT STEER'!EM2)/2 -> -2.528295542 | EN1: =(EN2+'RIGHT STEER'!EN2)/2 -> 0 | EO1: =(EO2+'RIGHT STEER'!EO2)/2 -> 0 | EP1: =(EP2+'RIGHT STEER'!EP2)/2 -> 0 | EQ1: =(EQ2+'RIGHT STEER'!EQ2)/2 -> 0 | ER1: =(ER2+'RIGHT STEER'!ER2)/2 -> 0 | ES1: =(ES2+'RIGHT STEER'!ES2)/2 -> 0 | ET1: =(ET2+'RIGHT STEER'!ET2)/2 -> 700 | EU1: =(EU2+'RIGHT STEER'!EU2)/2 -> 300 | EV1: =(EV2+'RIGHT STEER'!EV2)/2 -> 0 | EW1: =(EW2+'RIGHT STEER'!EW2)/2 -> 700 | EX1: =(EX2+'RIGHT STEER'!EX2)/2 -> 0 | EY1: =(EY2+'RIGHT STEER'!EY2)/2 -> 9.806 | EZ1: =(EZ2+'RIGHT STEER'!EZ2)/2 -> 36.3483478 | FA1: =(FA2+'RIGHT STEER'!FA2)/2 -> 8.11 | FB1: =(FB2+'RIGHT STEER'!FB2)/2 -> -22.39676342 | FC1: =(FC2+'RIGHT STEER'!FC2)/2 -> 1.012775434 | FD1: =(FD2+'RIGHT STEER'!FD2)/2 -> -15.50041507 | FE1: =(FE2+'RIGHT STEER'!FE2)/2 -> 20.35473722 | FF1: =(FF2+'RIGHT STEER'!FF2)/2 -> 19.62181873 | FG1: =(FG2+'RIGHT STEER'!FG2)/2 -> 5.39695919 | FH1: =(FH2+'RIGHT STEER'!FH2)/2 -> 1.162503254e-05 | FI1: =(FI2+'RIGHT STEER'!FI2)/2 -> 1.162503122e-05 | FJ1: =(FJ2+'RIGHT STEER'!FJ2)/2 -> 0 | FK1: =(FK2+'RIGHT STEER'!FK2)/2 -> 1.320850606e-12 | FL1: =(FL2+'RIGHT STEER'!FL2)/2 -> 0 | FO1: =EB1 -> TOGGLE | FP1: HMSA
B2: REF WC | D2: TR | F2: =DASHBOARD!F9 -> 100.00 | G2: =DASHBOARD!G9 -> 300.00 | H2: =DASHBOARD!H9 -> 300 | K2: RiX0 | L2: RiY0 | M2: RiZ0 | N2: XL | O2: YL | P2: ZL | S2: 1 | T2: 2 | U2: 3 | V2: 4 | W2: 5 | X2: 6 | AC2: 1 | AD2: 2 | AE2: 3 | AF2: 4 | AG2: 5 | AH2: 6 | AJ2: X | AN2: VX | AO2: VY | AP2: VZ | AR2: 1 | AS2: =DASHBOARD!F9 -> 100.00 | AT2: =IF(ilenk=0,DASHBOARD!$G$9,DASHBOARD!G9-zivl) -> 300.10 | AU2: =DASHBOARD!H9 -> 300.00 | AV2: =SQRT((AS3-AS9)^2+(AT9-AT3)^2+(AU3-AU9)^2) -> 160.779 | AW2: HHWRT | AX2: =SQRT(MAX(AK6^2+AK7^2+AK8^2,0.0000000001)) -> 0.0006562993746 | AY2: CX | AZ2: =AX4*AX9-AX5*AX8 -> 0 | BA2: HVRTSE | BB2: =SQRT(MAX(AZ5^2+AZ6^2+AZ7^2,0.0000000001)) -> 0.0004007573086 | BC2: XQP | BD2: 0 | BE2: T6 | BF2: =H9-BD10*F9 -> 300 | BG2: SIGMA | BH2: =ATAN(-AK7/AK8) -> 0.1711386418 | BJ2: =IF(ilenk=0,ZIVF,0) -> 0 | BK2: =AP9 -> -0.003456366115 | BL2: =IF(ilenk=1,-zivl,0) -> 0.1 | BM2: =BF9*180/PI() -> -0.03669384157 | BN2: =BF10*180/PI() -> 0.00522905669 | BO2: =BD7 -> 2640.988023 | BP2: =BF8*180/PI() -> -81.55449535 | BQ2: =BF7*180/PI() -> 70.80282728 | BR2: =AN9 -> -0.02327852033 | BS2: =AO9 -> 0.01434352727 | BT2: =AN11 -> 0.009927 | BU2: =AO11 -> -0.013036 | BV2: =AP11 -> -0.003456 | BW2: =BH10 -> 0 | BX2: =BD3 -> 662.1279398 | BY2: =BD4 -> 142.8352466 | BZ2: =BF4 -> 31.22711752 | CA2: =BF6 -> 89.68977263 | CB2: =AX10 -> -24.45811091 | CC2: =ROUND(BH2*180/PI(),3) -> 9.806 | CD2: =BH6 -> 36.3345776 | CE2: =ROUND(BH3*180/PI(),3) -> 8.11 | CF2: =BH7 -> -22.37383817 | CG2: =BH4 -> -15.48762381 | CH2: =BH5 -> 20.34513137 | CI2: =BH9 -> 0.366932675 | CJ2: =BH8 -> 5.397044317 | CK2: =BH11 -> 71.01005865 | CL2: =BI6 -> 663.652 | DA2: 0 | DB2: -0.003456366115 | DC2: 0.1 | DD2: -1.162503122e-05 | DE2: 0.0002656095597 | DF2: 43.40882609 | DG2: 0.1152945578 | DH2: -2.528295542 | DI2: 2.699169869e-05 | DJ2: 0.0005589811381 | DK2: -0.000592284921 | DL2: -0.0008317472642 | DM2: -0.01341354144 | DN2: 0.7455152721 | DO2: -2193.492667 | DP2: 179.4197766 | DQ2: -6498.004777 | DR2: 286.9376581 | DS2: -27.43328 | DT2: 9.806 | DU2: 36.3345776 | DV2: 8.11 | DW2: -22.37383817 | DX2: -15.48762381 | DY2: 20.34513137 | DZ2: 0.366932675 | EA2: 5.397044317 | EB2: 71.01005865 | EC2: 663.6523866 | EE2: =DA2 -> 0.000 | EF2: =DB2 -> -0.003 | EG2: =DC2 -> 0.100 | EH2: =DD2 -> -0.000 | EI2: =DE2 -> 0.000 | EJ2: =(EI3-EI2)/(EH3-EH2) -> -0.143 | EK2: =DF2 -> 43.409 | EL2: =DG2 -> 0.115 | EM2: =DH2 -> -2.528 | EN2: =DI2 -> 0.000 | EO2: 0.001 | EP2: -0.001 | EQ2: -0.001 | ER2: -0.013 | ES2: ='MASTER DASHBOARD'!$D$23+EN2 -> 0.000 | ET2: ='MASTER DASHBOARD'!$E$23+EO2 -> 700.001 | EU2: ='MASTER DASHBOARD'!$F$23+EF2 -> 299.997 | EV2: ='MASTER DASHBOARD'!$D$25+EP2 -> -0.001 | EW2: ='MASTER DASHBOARD'!$E$25+EQ2 -> 699.999 | EX2: ='MASTER DASHBOARD'!$F$25+ER2 -> -0.013 | EY2: =DT2 -> 9.806 | EZ2: =DU2 -> 36.335 | FA2: =DV2 -> 8.110 | FB2: =DW2 -> -22.374 | FC2: =(FA3-FA2)/(EF3-EF2) -> 0.867 | FD2: =DX2 -> -15.488 | FE2: =DY2 -> 20.345 | FF2: =360/RACK_RATIO/DZ2 -> 19.622 | FG2: =EA2 -> 5.397 | FH2: =IF(iracktravel=1,ATAN(LWB/(LWB/TAN('RIGHT STEER'!DD2/180*PI())-2*'MASTER DASHBOARD'!$E$23))/PI()*180,ATAN(LWB/(LWB/TAN('LEFT STEER'!DD2/180*PI())-2*'MASTER DASHBOARD'!$E$23))/PI()*180) -> 0.000 | FI2: =(-iracktravel*DD2+iracktravel*'RIGHT STEER'!DD2)/2 -> 0.000 | FJ2: =-DD2-'RIGHT STEER'!DD2 -> 0.000 | FK2: =IF(iracktravel=1,FH2-'RIGHT STEER'!DD2,FH2-'LEFT STEER'!DD2) -> 0.000 | FL2: =MIN(MAX(FJ2/FK2*100,-150),150) -> 0.000 | FO2: 71.01005865 | FP2: =DS2 -> -27.43328
